Workbook

Sheet Title_Sheet
C3: DCF, LBO and M&A model
C5: All rights Reserved by Valentino Magniette-Bosseboeuf
C6: © 2024
C8: Version: | D8: 0.0.2 | E8: (19th May 2024)
C10: Due Diligence from the user is still required as the model can be wrong

Sheet Hub
C2: Main Information | S2: Stock Information Override
B4: Bloomberg Ticker | D4: CZR US EQUITY | J4: Use Bloomberg stock information tool? | N4: Yes | R4: =IF(N4="Yes","Override Disabled","Override Enabled") -> Override Disabled
B6: Official Name | D6: =_xll.BDP(D4, "DS002") -> CAESARS ENTERTAINMENT INC | F6: Share Price | H6: =_xll.BDP($D$4, "PX_ASK") -> 36.87 | P6: Official Name | T6: Share Price
B7: Ticker | D7: =_xll.BDP(D4, "DS001") -> CZR | F7: Outstanding Shares | H7: =_xll.BDP(D4, "DS124") -> 216.4155 | P7: Ticker | T7: Outstanding Shares
B8: Currency | D8: =_xll.BDP(D4, "DS004") -> USD | P8: Currency | T8: Beta
B10: Valuation Date if not today | F10: Tax Rate | H10: =IFERROR(_xll.BDP(D4,"IM156"), 0) -> 0.21
B11: ="FY End Date if not "&TEXT(DATE(YEAR(TODAY())-1,12,31),"dd-mmm-yy") -> FY End Date if not 31-Dec-23 | F11: Inflation Rate | H11: =H22-_xll.BDP("CTII5 GOVT","YAS_BOND_YLD")/100 -> 0.02187734
S12: Master Check
B13: Division 1 Name | F13: Division 6 Name
B14: Division 2 Name | F14: Division 7 Name | P14: DCF | R14: =IF(D69="Ok", "Ready", "Not Ready") -> Ready | T14: NWC Schedule | V14: =IF(OR(D75:D78<>"Ok", H76:H77<>"Ok"), "Not Ready", "Ready") -> Ready
B15: Division 3 Name | F15: Division 8 Name | P15: Revenue Build | R15: =IF(OR(D51:D55<>"Ok",H51:H55<> "Ok"), "Not Ready", "Ready") -> Not Ready | T15: D&A Schedule | V15: =IF(OR(D82<>"Ok", H82<>"Ok"), "Not Ready", "Ready") -> Ready
B16: Division 4 Name | F16: Division 9 Name | P16: Operating Model | R16: =IF(OR(D59<>"Ok", D63:D65<>"Ok", H59:H61<>"Ok", H63:H64<>"Ok"), "Not Ready", "Ready") -> Ready | T16: Debt Schedule | V16: =IF(OR(H86:H89<>"Ok"), "Not Ready", "Ready") -> Ready
B17: Division 5 Name | F17: Division 10 Name
C19: Main Assumptions | S19: LBO and Merger Optional Parts
B21: Terminal EBITDA Multiple | D21: =IF(_xll.BDP(D4, "RR957")="#N/A Field Not Applicable", _xll.BDP(D4, "RR474"), _xll.BDP(D4, "RR957")) -> 8.921767341 | F21: Equity Premium | H21: =0.1-H22 -> 0.05832645 | R21: DCF Synergy Assumptions | V21: Checklist
B22: Terminal EV/SALES (Backup) | D22: =IF(_xll.BDP(D4, "RR956")="#N/A Field Not Applicable", _xll.BDP(D4, "RR473"), _xll.BDP(D4, "RR956")) -> 2.840303904 | F22: Risk Free Rate | H22: =_xll.BDP("CT5 GOVT","YAS_BOND_YLD")/100 -> 0.04167355 | V22: =IF(COUNTBLANK(T23:T25)=0, "OK", "Missing Values") -> Missing Values
B23: Perpetual Growth Rate | D23: 0.02 | P23: Revenue Synergy Increase
B24: ="Terminal EBITDA Multiple unchanged from " & YEAR(DCF!D10) & " Fiscal Year?" -> Terminal EBITDA Multiple unchanged from 2023 Fiscal Year? | H24: Yes | P24: COGS Synergy Decrease
P25: FE Synergy Decrease
C26: Debt Schedule Set Up | F26: (Necessary)
R27: LBO Assumptions
B28: Does the company have detailed debts? | V28: =IF(COUNTBLANK(T29:T36)=0, "OK", "Missing Values") -> Missing Values
P29: Premium Paid (%)
B30: Do they have bonds? | F30: Bank loans? | J30: =IF(OR(AND(OR(D30="Yes", H30="Yes"), H28<>"Yes"), AND(H28="Yes", D30="No", H30="No")), "The company has detailed debts if they show their bonds/loans with IR, Year Due, and principal", " " ) ->  | P30: Minimum Cash as % EBITDA
P31: Holding Period (Years)
C32: Main Overrides | P32: Advisory Fee (%EV)
P33: Debt Issuance Fee (%EV)
C34: Revenue CAGR Overrides | F34: (Leave blank for no override) | P34: Legal & Other Fees
P35: Leverage Multiple
B36: =IF(ISBLANK(D13), "Division 1", D13) -> Division 1 | F36: =IF(ISBLANK(H13), "Division 6", H13) -> Division 6 | P36: Interest Rate Premium
B37: =IF(ISBLANK(D14), "Division 2", D14) -> Division 2 | F37: =IF(ISBLANK(H14), "Division 7", H14) -> Division 7
B38: =IF(ISBLANK(D15), "Division 3", D15) -> Division 3 | F38: =IF(ISBLANK(H15), "Division 8", H15) -> Division 8 | R38: Merger Assumptions
B39: =IF(ISBLANK(D16), "Division 4", D16) -> Division 4 | F39: =IF(ISBLANK(H16), "Division 9", H16) -> Division 9 | V39: =IF(COUNTBLANK(T40)+COUNTBLANK(T42:T46)+COUNTBLANK(T48:T54)=0, "OK", "Missing Values") -> Missing Values
B40: =IF(ISBLANK(D17), "Division 5", D17) -> Division 5 | F40: =IF(ISBLANK(H17), "Division 10", H17) -> Division 10 | P40: Buyer Bloomberg Ticker | T40: GE US EQUITY
C42: WACC Override | F42: (Leave blank for no override) | P42: Official Name | T42: =_xll.BDP(T40, "DS002") -> GENERAL ELECTRIC CO
P43: Ticker | T43: =_xll.BDP(T40, "DS001") -> GE
B44: WACC | F44: If TY WACC same as WACC, do not override TY WACC | P44: Currency | T44: =_xll.BDP(T40, "DS004") -> USD
B45: Terminal Year WACC | P45: Share Price | T45: =_xll.BDP($T$40, "PX_ASK") -> 159.19
P46: Outstanding Shares | T46: =_xll.BDP(T40, "DS124") -> 1094.607
C47: Checklist
P48: =D6 & " Take-Out Price" -> CAESARS ENTERTAINMENT INC Take-Out Price
C49: Revenue Build Checklist | P49: ="Tax Rate " & T42 -> Tax Rate GENERAL ELECTRIC CO | T49: =H10 -> 0.21
P50: Transaction Costs
B51: =B36 -> Division 1 | D51: =IF(B51="Division 1", IF(COUNTBLANK(Revenue_Build!D6:H6)=5,"OK", "Missing Name"), IF(COUNTBLANK(Revenue_Build!D6:H6)=0, "OK", "Missing Values")) -> Missing Name | F51: =F36 -> Division 6 | H51: =IF(F51="Division 6", IF(COUNTBLANK(Revenue_Build!D21:H21)=5,"OK", "Missing Name"), IF(COUNTBLANK(Revenue_Build!D21:H21)=0, "OK", "Missing Values")) -> Missing Name | P51: =T42 & " Cash on Hand in " & DCF!I15 -> GENERAL ELECTRIC CO Cash on Hand in 2023 | T51: =_xll.BDP(T40, "BS010") -> 18447
B52: =B37 -> Division 2 | D52: =IF(B52="Division 2", IF(COUNTBLANK(Revenue_Build!D9:H9)=5,"OK", "Missing Name"), IF(COUNTBLANK(Revenue_Build!D9:H9)=0, "OK", "Missing Values")) -> Missing Name | F52: Division 7 | H52: =IF(F52="Division 7", IF(COUNTBLANK(Revenue_Build!D24:H24)=5,"OK", "Missing Name"), IF(COUNTBLANK(Revenue_Build!D24:H24)=0, "OK", "Missing Values")) -> Missing Name | P52: Target Leverage
B53: Division 3 | D53: =IF(B53="Division 3", IF(COUNTBLANK(Revenue_Build!D12:H12)=5,"OK", "Missing Name"), IF(COUNTBLANK(Revenue_Build!D12:H12)=0, "OK", "Missing Values")) -> Missing Name | F53: Division 8 | H53: =IF(F53="Division 8", IF(COUNTBLANK(Revenue_Build!D27:H27)=5,"OK", "Missing Name"), IF(COUNTBLANK(Revenue_Build!D27:H27)=0, "OK", "Missing Values")) -> Missing Name | P53: =T42 & " EBITDA in " & DCF!J15 -> GENERAL ELECTRIC CO EBITDA in 2024 | T53: =_xll.BDP(T40, "RR009") -> 5242
B54: Division 4 | D54: =IF(B54="Division 4", IF(COUNTBLANK(Revenue_Build!D15:H15)=5,"OK", "Missing Name"), IF(COUNTBLANK(Revenue_Build!D15:H15)=0, "OK", "Missing Values")) -> Missing Name | F54: Division 9 | H54: =IF(F54="Division 9", IF(COUNTBLANK(Revenue_Build!D30:H30)=5,"OK", "Missing Name"), IF(COUNTBLANK(Revenue_Build!D30:H30)=0, "OK", "Missing Values")) -> Missing Name | P54: =T42 & " Debt in " & DCF!I15 -> GENERAL ELECTRIC CO Debt in 2023 | T54: =_xll.BDP(T40,"RR251") -> 22937
B55: Division 5 | D55: =IF(B55="Division 5", IF(COUNTBLANK(Revenue_Build!D18:H18)=5,"OK", "Missing Name"), IF(COUNTBLANK(Revenue_Build!D18:H18)=0, "OK", "Missing Values")) -> Missing Name | F55: Division 10 | H55: =IF(F55="Division 10", IF(COUNTBLANK(Revenue_Build!D33:H33)=5,"OK", "Missing Name"), IF(COUNTBLANK(Revenue_Build!D33:H33)=0, "OK", "Missing Values")) -> Missing Name
C57: Operating Model Checklist
B59: =Operating_Model!C48 -> Cost of Products Sold | D59: =IF(COUNTBLANK(Operating_Model!E48:I48)=0, "OK", "Missing Values") -> OK | F59: =Operating_Model!C86 -> SG&A | H59: =IF(COUNTBLANK(Operating_Model!E86:I86)=0, "OK", "Missing Values") -> OK
F60: =Operating_Model!C89 -> Research and Development | H60: =IF(COUNTBLANK(Operating_Model!E89:I89)=0, "OK", "Missing Values") -> OK
F61: =Operating_Model!C92 -> Other Fixed Costs | H61: =IF(COUNTBLANK(Operating_Model!E92:I92)=0, "OK", "Missing Values") -> OK
B63: =Operating_Model!C130 -> Other Non-Operating (Income) Loss | D63: =IF(COUNTBLANK(Operating_Model!E130:I130)=0, "OK", "Missing Values") -> OK | F63: =Operating_Model!C136 -> Interest Expenses | H63: =IF(COUNTBLANK(Operating_Model!E136:I136)=0, "OK", "Missing Values") -> OK
B64: =Operating_Model!C108 -> Depreciation | D64: =IF(COUNTBLANK(Operating_Model!E108:I108)=0, "OK", "Missing Values") -> OK | F64: =Operating_Model!C150 -> Tax Effect On Abnormal Items | H64: =IF(COUNTBLANK(Operating_Model!E150:I150)=0, "OK", "Missing Values") -> OK
B65: =Operating_Model!C109 -> Amortisation | D65: =IF(COUNTBLANK(Operating_Model!E109:I109)=0, "OK", "Missing Values") -> OK
C67: DCF Checklist
B69: CapEx | D69: =IF(COUNTBLANK(DCF!E30:I30)=0, "OK", "Missing Values") -> OK
C71: Balance Sheet Checklist
C73: In Net Working Capital | F73: (AKA Currents)
B75: =Net_Working_Capital!C8 -> Cash | D75: =IF(COUNTBLANK(Net_Working_Capital!D8:I8)=0, "OK", "Missing Values") -> OK
B76: =Net_Working_Capital!C9 -> Account Receivable | D76: =IF(COUNTBLANK(Net_Working_Capital!D9:I9)=0, "OK", "Missing Values") -> OK | F76: =Net_Working_Capital!C16 -> Accounts Payable | H76: =IF(COUNTBLANK(Net_Working_Capital!D16:I16)=0, "OK", "Missing Values") -> OK
B77: =Net_Working_Capital!C11 -> Inventory | D77: =IF(COUNTBLANK(Net_Working_Capital!D11:I11)=0, "OK", "Missing Values") -> OK | F77: =Net_Working_Capital!C18 -> Other Liabilities excluding debts | H77: =IF(COUNTBLANK(Net_Working_Capital!D18:I18)=0, "OK", "Missing Values") -> OK
B78: =Net_Working_Capital!C13 -> Other Current Assets | D78: =IF(COUNTBLANK(Net_Working_Capital!D13:I13)=0, "OK", "Missing Values") -> OK
C80: In Depreciation Schedule | F80: (AKA Assets)
B82: ='D&A+CAPEX'!C9 -> PP&E | D82: =IF(COUNTBLANK('D&A+CAPEX'!E9:I9)=0, "OK", "Missing Values") -> OK | F82: ='D&A+CAPEX'!C37 -> Intangible assets | H82: =IF(COUNTBLANK('D&A+CAPEX'!E37:I37)=0, "OK", "Missing Values") -> OK
C84: In Debt Schedule | F84: (AKA Debts)
B86: Main Schedule Balance | D86: =Debt_Schedule!AD16 ->  | F86: Bonds | H86: =IF(OR(COUNTBLANK(Debt_Schedule!C4:C23)<>COUNTBLANK(Debt_Schedule!D4:D23), COUNTBLANK(Debt_Schedule!C4:C23)<>COUNTBLANK(Debt_Schedule!F4:F23), COUNTBLANK(Debt_Schedule!D4:D23)<>COUNTBLANK(Debt_Schedule!F4:F23)), "Missing Values", "Ok") -> Ok
B87: ="Use Backup? " & IF(D86="Balanced", , "(Recommended)") ->  | F87: Loans | H87: =IF(OR(COUNTBLANK(Debt_Schedule!O4:O23)<>COUNTBLANK(Debt_Schedule!P4:P23), COUNTBLANK(Debt_Schedule!O4:O23)<>COUNTBLANK(Debt_Schedule!R4:R23), COUNTBLANK(Debt_Schedule!P4:P23)<>COUNTBLANK(Debt_Schedule!R4:R23)), "Missing Values", "Ok") -> Ok
F88: Debt Repayments | H88: =IF(COUNTBLANK(Debt_Schedule!Z10:AD10)=0, "OK", "Missing Values") -> OK
F89: Cash From Debts | H89: =IF(COUNTBLANK(Debt_Schedule!Z12:AD12)=0, "OK", "Missing Values") -> OK

Sheet Dashboard
B2: =DCF!C2 -> CAESARS ENTERTAINMENT INC
B3: Dashboard | F3: Enable Master Override? | I3: No
B4: =IF(OR(Hub!R14:R16<>"Ok", Hub!V14:V16<>"Ok"), "Model Not Complete", "Model Completed") -> Model Not Complete
B6: WACC | G6: Risk Free Rate | L6: Revenue Synergy Increase
B7: Terminal Year WACC | G7: 5-Year Average Inflation Rate | L7: COGS Synergy Decrease
B8: PGG | G8: Outstanding shares | L8: FE Synergy Decrease
B9: EBITDA Exit Multiple | G9: Share price at Valuation

Sheet 3_Main_Models --->

Sheet DCF
C2: =IF(Hub!N4="No", Hub!R6, Hub!D6) -> CAESARS ENTERTAINMENT INC | D2: Discounted Cash Flow Analysis
C3: ="All Figures in " & Hub!D8 &" Millions, expect for per share data" -> All Figures in USD Millions, expect for per share data
C4: Fiscal Year Ending December 31 | H4: =IF(Dashboard!I3="Yes", "Dashboard Master Override Enabled", "Dashboard Master Override Disabled") -> Dashboard Master Override Disabled
C7: Assumptions & Inputs
C9: Valuation Date | D9: =IF(ISBLANK(Hub!D10), TODAY(), Hub!D10) -> 2024-07-20 | F9: Latest Yearly EBITDA | I9: =I23 -> 9031 | K9: Perpetual Growth Rate | N9: =IF(Dashboard!I3="Yes", Dashboard!E8, Hub!D23) -> 0.02
C10: Latest Fiscal Year Date | D10: =IF(ISBLANK(Hub!D11), DATE(YEAR(D9)-1,12,31),Hub!D11) -> 2023-12-31 | F10: =INDEX(Hub!B21:B22,MATCH(I10,Hub!D21:D22,0)) -> Terminal EBITDA Multiple | I10: =IF(Dashboard!I3="Yes", Dashboard!E9, IF(Hub!D21="#N/A N/A", Hub!D22, Hub!D21)) -> 8.921767341 | K10: Outstanding Shares | N10: =IF(Dashboard!I3="YES", Dashboard!J8, IF(Hub!N4="No", Hub!V7, Hub!H7)) -> 216.4155
C11: Tax Rate | D11: =Hub!H10 -> 0.21 | F11: WACC | I11: =IF(Dashboard!I3="Yes", Dashboard!E6, IF(ISBLANK(Hub!D44), WACC_Calculator!D4, Hub!D44)) -> 0.08084891177 | K11: Share Price at Valuation | N11: =IF(Hub!N4="No", Hub!V6, Hub!H6) -> 36.87
C12: Inflation Rate | D12: =Hub!H11 -> 0.02187734 | F12: Terminal Year WACC | I12: =IF(Dashboard!I3="Yes", Dashboard!E7, IF(ISBLANK(Hub!D45), IF(ISBLANK(Hub!D44), WACC_Calculator!D4, Hub!D44), Hub!D45)) -> 0.08084891177 | K12: Risk Free Rate | N12: =IF(Dashboard!I3="YES", Dashboard!J6, Hub!H22) -> 0.04167355
G14: Actuals | N14: Forecast
E15: =YEAR(E16) -> 2019 | F15: =YEAR(F16) -> 2020 | G15: 2021 | H15: 2022 | I15: 2023 | J15: =YEAR(J16) -> 2024 | K15: =YEAR(K16) -> 2025 | L15: 2026 | M15: 2027 | N15: 2028 | O15: 2029 | P15: 2030 | Q15: 2031 | R15: 2032 | S15: 2033
E16: =EOMONTH(F16,-12) -> 2019-12-31 | F16: 2020-12-31 | G16: 2021-12-31 | H16: =EOMONTH(I16,-12) -> 2022-12-31 | I16: =D10 -> 2023-12-31 | J16: =EOMONTH(I16,12) -> 2024-12-31 | K16: =EOMONTH(J16,12) -> 2025-12-31 | L16: 2026-12-31 | M16: 2027-12-31 | N16: 2028-12-31 | O16: =EOMONTH(N16,12) -> 2029-12-31 | P16: =EOMONTH(O16,12) -> 2030-12-31 | Q16: =EOMONTH(P16,12) -> 2031-12-31 | R16: =EOMONTH(Q16,12) -> 2032-12-31 | S16: =EOMONTH(R16,12) -> 2033-12-31
E17: -4FY | F17: -3FY | G17: -2FY | H17: -1FY | I17: -0FY
C18: Discounted Cash Flow
C20: Revenue | E20: =Revenue_Build!D36 -> 2528 | F20: =Revenue_Build!E36 -> 3628 | G20: =Revenue_Build!F36 -> 9570 | H20: =Revenue_Build!G36 -> 10821 | I20: =Revenue_Build!H36 -> 11528 | J20: =Revenue_Build!I36 -> 15902.9954 | K20: =Revenue_Build!J36 -> 22095.14462 | L20: =Revenue_Build!K36 -> 30929.37564 | M20: =Revenue_Build!L36 -> 43635.40637 | N20: =Revenue_Build!M36 -> 62059.1015 | O20: =Revenue_Build!N36 -> 88989.47461 | P20: =Revenue_Build!O36 -> 128666.8205 | Q20: =Revenue_Build!P36 -> 187575.4842 | R20: =Revenue_Build!Q36 -> 275685.279 | S20: =Revenue_Build!R36 -> 408402.0266
C21: YoY Growth | E21: - | F21: =(F20-E20)/E20 -> 0.4351265823 | G21: =(G20-F20)/F20 -> 1.637816979 | H21: 0.1307210031 | I21: 0.06533592089 | J21: 0.3795103574 | K21: 0.3893699936 | L21: 0.3998268026 | M21: 0.4108078633 | N21: 0.4222189426 | O21: =(O20-N20)/N20 -> 0.4339471964 | P21: =(P20-O20)/O20 -> 0.4458656039 | Q21: =(Q20-P20)/P20 -> 0.4578388086 | R21: =(R20-Q20)/Q20 -> 0.4697298002 | S21: =(S20-R20)/R20 -> 0.4814067264
C23: Adj. EBITDA | E23: =Operating_Model!E122 -> 1870.096 | F23: =Operating_Model!F122 -> 2764 | G23: =Operating_Model!G122 -> 7482 | H23: =Operating_Model!H122 -> 8326 | I23: =Operating_Model!I122 -> 9031 | J23: =Operating_Model!J122 ->  | K23: =Operating_Model!K122 ->  | L23: =Operating_Model!L122 ->  | M23: =Operating_Model!M122 ->  | N23: =Operating_Model!N122 ->  | O23: =Operating_Model!O122 ->  | P23: =Operating_Model!P122 ->  | Q23: =Operating_Model!Q122 ->  | R23: =Operating_Model!R122 ->  | S23: =Operating_Model!S122 -> 
C24: %Margin | E24: =E23/E20 -> 0.7397531646 | F24: 0.7618522602 | G24: 0.7818181818 | H24: 0.7694298124 | I24: 0.7833969466 | O24: =O23/O20 -> 
C26: Adj. EBIT | E26: =Operating_Model!E102 -> 1585.976 | F26: =Operating_Model!F102 -> 2078 | G26: =Operating_Model!G102 -> 6124 | H26: =Operating_Model!H102 -> 6851 | I26: =Operating_Model!I102 -> 7515 | J26: =Operating_Model!J102 ->  | K26: =Operating_Model!K102 ->  | L26: =Operating_Model!L102 ->  | M26: =Operating_Model!M102 ->  | N26: =Operating_Model!N102 ->  | O26: =Operating_Model!O102 ->  | P26: =Operating_Model!P102 ->  | Q26: =Operating_Model!Q102 ->  | R26: =Operating_Model!R102 ->  | S26: =Operating_Model!S102 -> 
C27: Income Taxes | E27: =Operating_Model!E151 -> 51.28248 | F27: =Operating_Model!F151 -> 249.18 | G27: =Operating_Model!G151 -> -216.64 | H27: =Operating_Model!H151 -> 2.47 | I27: =Operating_Model!I151 -> -828.78 | J27: =Operating_Model!J151 ->  | K27: =Operating_Model!K151 ->  | L27: =Operating_Model!L151 ->  | M27: =Operating_Model!M151 ->  | N27: =Operating_Model!N151 ->  | O27: =Operating_Model!O151 ->  | P27: =Operating_Model!P151 ->  | Q27: =Operating_Model!Q151 ->  | R27: =Operating_Model!R151 ->  | S27: =Operating_Model!S151 -> 
C28: Adj. Unlevered Net Income | E28: =E26-E27 -> 1534.69352 | F28: =F26-F27 -> 1828.82 | G28: 6340.64 | H28: 6848.53 | I28: 8343.78 | O28: =O26-O27 -> 
C29: ADD: D&A -Other | E29: =Operating_Model!E110 -> 221.525 | F29: =Operating_Model!F110 -> 583 | G29: =Operating_Model!G110 -> 1126 | H29: =Operating_Model!H110 -> 1205 | I29: =Operating_Model!I110 -> 1261 | J29: =Operating_Model!J110 ->  | K29: =Operating_Model!K110 ->  | L29: =Operating_Model!L110 ->  | M29: =Operating_Model!M110 ->  | N29: =Operating_Model!N110 ->  | O29: =Operating_Model!O110 ->  | P29: =Operating_Model!P110 ->  | Q29: =Operating_Model!Q110 ->  | R29: =Operating_Model!R110 ->  | S29: =Operating_Model!S110 -> 
B30: ACQUIS_FXD_&_INTANG_DETAILED | C30: LESS: CapEx | E30: =IFERROR(-_xll.BDP(Hub!$D$4,$B30,"EQY_FUND_RELATIVE_PERIOD",E$17, "EQY_FUND_CRNCY", Hub!$D$8),0) -> 170.766 | F30: =IFERROR(-_xll.BDP(Hub!$D$4,$B30,"EQY_FUND_RELATIVE_PERIOD",F$17, "EQY_FUND_CRNCY", Hub!$D$8),0) -> 199 | G30: =IFERROR(-_xll.BDP(Hub!$D$4,$B30,"EQY_FUND_RELATIVE_PERIOD",G$17, "EQY_FUND_CRNCY", Hub!$D$8),0) -> 832 | H30: =IFERROR(-_xll.BDP(Hub!$D$4,$B30,"EQY_FUND_RELATIVE_PERIOD",H$17, "EQY_FUND_CRNCY", Hub!$D$8),0) -> 963 | I30: =IFERROR(-_xll.BDP(Hub!$D$4,$B30,"EQY_FUND_RELATIVE_PERIOD",I$17, "EQY_FUND_CRNCY", Hub!$D$8),0) -> 1294 | J30: ='D&A+CAPEX'!J45 ->  | K30: ='D&A+CAPEX'!K45 ->  | L30: ='D&A+CAPEX'!L45 ->  | M30: ='D&A+CAPEX'!M45 ->  | N30: ='D&A+CAPEX'!N45 ->  | O30: ='D&A+CAPEX'!O45 ->  | P30: ='D&A+CAPEX'!P45 ->  | Q30: ='D&A+CAPEX'!Q45 ->  | R30: ='D&A+CAPEX'!R45 ->  | S30: ='D&A+CAPEX'!S45 -> 
C31: LESS: ΔNWC | E31: =Net_Working_Capital!E24 -> 17.64 | F31: =Net_Working_Capital!F24 -> 2501.588 | G31: =Net_Working_Capital!G24 -> -2727 | H31: =Net_Working_Capital!H24 -> -1162 | I31: =Net_Working_Capital!I24 -> -116 | J31: =Net_Working_Capital!J24 -> 2579.750512 | K31: =Net_Working_Capital!K24 -> 372.096001 | L31: =Net_Working_Capital!L24 -> 528.4590314 | M31: =Net_Working_Capital!M24 -> 757.1366698 | N31: =Net_Working_Capital!N24 -> 1094.243685 | O31: =Net_Working_Capital!O24 -> 1595.028263 | P31: =Net_Working_Capital!P24 -> 2344.460333 | Q31: =Net_Working_Capital!Q24 -> 3473.867576 | R31: =Net_Working_Capital!R24 -> 5187.15335 | S31: =Net_Working_Capital!S24 -> 7802.231008
C32: Unlevered Free Cash Flow | E32: =E28+E29-E30-E31 -> 1567.81252 | F32: -288.768 | G32: 9361.64 | H32: 8252.53 | I32: =I28+I29-I30-I31 -> 8426.78 | J32: =J28+J29-J30-J31 ->  | K32: =K28+K29-K30-K31 ->  | O32: =O28+O29-O30-O31 -> 
C33: Valuation Timing Factor | J33: =1/((1+$I$11)^((J$16-$D$9)/365)) -> 0.9656703152 | K33: =1/((1+$I$11)^((K$16-$D$9)/365)) -> 0.8934369131 | L33: 0.8266066639 | M33: 0.7647754046 | N33: 0.7074185049 | O33: 0.6545026758 | P33: 0.6055450199 | Q33: 0.5602494607 | R33: 0.5182316709 | S33: 0.4794672644
C34: Discount Rate | D34: =I11 -> 0.08084891177
C35: PV of Unlevered Free Cash Flow | J35: =J32*J33 ->  | K35: =K32*K33 -> 
U36: Exit Multiple Sensitivities
C38: SUM of PV of Unlevered FCF | D38: =SUM(J35:N35) ->  | Y38: Implied Equity Value
Y39: WACC
C40: Implied Share Price - Exit Multiple | V40: =F42 -> 0 | W40: =X40-0.005 -> 0.07084891177 | X40: 0.07584891177 | Y40: =I11 -> 0.08084891177 | Z40: =Y40+0.005 -> 0.08584891177 | AA40: 0.09084891177
C41: Exit Multiple | D41: =I10 -> 8.921767341 | V41: =V42-0.5 -> 7.921767341 | W41: =IF($F$10=Hub!$B$21,(SUM($J$35:$N$35))+($V41*$N$23*(1/((1+W$40)^(($N$16-$D$9)/365))))+$D$45-$D$46,(SUM($J$35:$N$35))+($V41*$N$20*(1/((1+W$40)^(($N$16-$D$9)/365))))+$D$45-$D$46) ->  | X41: =IF($F$10=Hub!$B$21,(SUM($J$35:$N$35))+($V41*$N$23*(1/((1+X$40)^(($N$16-$D$9)/365))))+$D$45-$D$46,(SUM($J$35:$N$35))+($V41*$N$20*(1/((1+X$40)^(($N$16-$D$9)/365))))+$D$45-$D$46) ->  | Y41: =IF($F$10=Hub!$B$21,(SUM($J$35:$N$35))+($V41*$N$23*(1/((1+Y$40)^(($N$16-$D$9)/365))))+$D$45-$D$46,(SUM($J$35:$N$35))+($V41*$N$20*(1/((1+Y$40)^(($N$16-$D$9)/365))))+$D$45-$D$46) ->  | Z41: =IF($F$10=Hub!$B$21,(SUM($J$35:$N$35))+($V41*$N$23*(1/((1+Z$40)^(($N$16-$D$9)/365))))+$D$45-$D$46,(SUM($J$35:$N$35))+($V41*$N$20*(1/((1+Z$40)^(($N$16-$D$9)/365))))+$D$45-$D$46) ->  | AA41: =IF($F$10=Hub!$B$21,(SUM($J$35:$N$35))+($V41*$N$23*(1/((1+AA$40)^(($N$16-$D$9)/365))))+$D$45-$D$46,(SUM($J$35:$N$35))+($V41*$N$20*(1/((1+AA$40)^(($N$16-$D$9)/365))))+$D$45-$D$46) -> 
C42: Terminal Value | D42: =IF(F10=Hub!B21,N23*I10,N20*I10) ->  | U42: Terminal | V42: 8.421767341 | W42: =IF($F$10=Hub!$B$21,(SUM($J$35:$N$35))+($V42*$N$23*(1/((1+W$40)^(($N$16-$D$9)/365))))+$D$45-$D$46,(SUM($J$35:$N$35))+($V42*$N$20*(1/((1+W$40)^(($N$16-$D$9)/365))))+$D$45-$D$46) ->  | X42: =IF($F$10=Hub!$B$21,(SUM($J$35:$N$35))+($V42*$N$23*(1/((1+X$40)^(($N$16-$D$9)/365))))+$D$45-$D$46,(SUM($J$35:$N$35))+($V42*$N$20*(1/((1+X$40)^(($N$16-$D$9)/365))))+$D$45-$D$46) ->  | Y42: =IF($F$10=Hub!$B$21,(SUM($J$35:$N$35))+($V42*$N$23*(1/((1+Y$40)^(($N$16-$D$9)/365))))+$D$45-$D$46,(SUM($J$35:$N$35))+($V42*$N$20*(1/((1+Y$40)^(($N$16-$D$9)/365))))+$D$45-$D$46) ->  | Z42: =IF($F$10=Hub!$B$21,(SUM($J$35:$N$35))+($V42*$N$23*(1/((1+Z$40)^(($N$16-$D$9)/365))))+$D$45-$D$46,(SUM($J$35:$N$35))+($V42*$N$20*(1/((1+Z$40)^(($N$16-$D$9)/365))))+$D$45-$D$46) ->  | AA42: =IF($F$10=Hub!$B$21,(SUM($J$35:$N$35))+($V42*$N$23*(1/((1+AA$40)^(($N$16-$D$9)/365))))+$D$45-$D$46,(SUM($J$35:$N$35))+($V42*$N$20*(1/((1+AA$40)^(($N$16-$D$9)/365))))+$D$45-$D$46) -> 
C43: PV of Terminal Value | D43: =D42*N33 ->  | U43: Multiple | V43: =I10 -> 8.921767341 | W43: =IF($F$10=Hub!$B$21,(SUM($J$35:$N$35))+($V43*$N$23*(1/((1+W$40)^(($N$16-$D$9)/365))))+$D$45-$D$46,(SUM($J$35:$N$35))+($V43*$N$20*(1/((1+W$40)^(($N$16-$D$9)/365))))+$D$45-$D$46) ->  | X43: =IF($F$10=Hub!$B$21,(SUM($J$35:$N$35))+($V43*$N$23*(1/((1+X$40)^(($N$16-$D$9)/365))))+$D$45-$D$46,(SUM($J$35:$N$35))+($V43*$N$20*(1/((1+X$40)^(($N$16-$D$9)/365))))+$D$45-$D$46) ->  | Y43: =IF($F$10=Hub!$B$21,(SUM($J$35:$N$35))+($V43*$N$23*(1/((1+Y$40)^(($N$16-$D$9)/365))))+$D$45-$D$46,(SUM($J$35:$N$35))+($V43*$N$20*(1/((1+Y$40)^(($N$16-$D$9)/365))))+$D$45-$D$46) ->  | Z43: =IF($F$10=Hub!$B$21,(SUM($J$35:$N$35))+($V43*$N$23*(1/((1+Z$40)^(($N$16-$D$9)/365))))+$D$45-$D$46,(SUM($J$35:$N$35))+($V43*$N$20*(1/((1+Z$40)^(($N$16-$D$9)/365))))+$D$45-$D$46) ->  | AA43: =IF($F$10=Hub!$B$21,(SUM($J$35:$N$35))+($V43*$N$23*(1/((1+AA$40)^(($N$16-$D$9)/365))))+$D$45-$D$46,(SUM($J$35:$N$35))+($V43*$N$20*(1/((1+AA$40)^(($N$16-$D$9)/365))))+$D$45-$D$46) -> 
C44: Implied Enterprise Value | D44: =D43+D38 ->  | U44: (x) | V44: =V43+0.5 -> 9.421767341 | W44: =IF($F$10=Hub!$B$21,(SUM($J$35:$N$35))+($V44*$N$23*(1/((1+W$40)^(($N$16-$D$9)/365))))+$D$45-$D$46,(SUM($J$35:$N$35))+($V44*$N$20*(1/((1+W$40)^(($N$16-$D$9)/365))))+$D$45-$D$46) ->  | X44: =IF($F$10=Hub!$B$21,(SUM($J$35:$N$35))+($V44*$N$23*(1/((1+X$40)^(($N$16-$D$9)/365))))+$D$45-$D$46,(SUM($J$35:$N$35))+($V44*$N$20*(1/((1+X$40)^(($N$16-$D$9)/365))))+$D$45-$D$46) ->  | Y44: =IF($F$10=Hub!$B$21,(SUM($J$35:$N$35))+($V44*$N$23*(1/((1+Y$40)^(($N$16-$D$9)/365))))+$D$45-$D$46,(SUM($J$35:$N$35))+($V44*$N$20*(1/((1+Y$40)^(($N$16-$D$9)/365))))+$D$45-$D$46) ->  | Z44: =IF($F$10=Hub!$B$21,(SUM($J$35:$N$35))+($V44*$N$23*(1/((1+Z$40)^(($N$16-$D$9)/365))))+$D$45-$D$46,(SUM($J$35:$N$35))+($V44*$N$20*(1/((1+Z$40)^(($N$16-$D$9)/365))))+$D$45-$D$46) ->  | AA44: =IF($F$10=Hub!$B$21,(SUM($J$35:$N$35))+($V44*$N$23*(1/((1+AA$40)^(($N$16-$D$9)/365))))+$D$45-$D$46,(SUM($J$35:$N$35))+($V44*$N$20*(1/((1+AA$40)^(($N$16-$D$9)/365))))+$D$45-$D$46) -> 
C45: ADD: Debt | D45: =WACC_Calculator!L8 -> 25711 | V45: 9.921767341 | W45: =IF($F$10=Hub!$B$21,(SUM($J$35:$N$35))+($V45*$N$23*(1/((1+W$40)^(($N$16-$D$9)/365))))+$D$45-$D$46,(SUM($J$35:$N$35))+($V45*$N$20*(1/((1+W$40)^(($N$16-$D$9)/365))))+$D$45-$D$46) ->  | X45: =IF($F$10=Hub!$B$21,(SUM($J$35:$N$35))+($V45*$N$23*(1/((1+X$40)^(($N$16-$D$9)/365))))+$D$45-$D$46,(SUM($J$35:$N$35))+($V45*$N$20*(1/((1+X$40)^(($N$16-$D$9)/365))))+$D$45-$D$46) ->  | Y45: =IF($F$10=Hub!$B$21,(SUM($J$35:$N$35))+($V45*$N$23*(1/((1+Y$40)^(($N$16-$D$9)/365))))+$D$45-$D$46,(SUM($J$35:$N$35))+($V45*$N$20*(1/((1+Y$40)^(($N$16-$D$9)/365))))+$D$45-$D$46) ->  | Z45: =IF($F$10=Hub!$B$21,(SUM($J$35:$N$35))+($V45*$N$23*(1/((1+Z$40)^(($N$16-$D$9)/365))))+$D$45-$D$46,(SUM($J$35:$N$35))+($V45*$N$20*(1/((1+Z$40)^(($N$16-$D$9)/365))))+$D$45-$D$46) ->  | AA45: =IF($F$10=Hub!$B$21,(SUM($J$35:$N$35))+($V45*$N$23*(1/((1+AA$40)^(($N$16-$D$9)/365))))+$D$45-$D$46,(SUM($J$35:$N$35))+($V45*$N$20*(1/((1+AA$40)^(($N$16-$D$9)/365))))+$D$45-$D$46) -> 
C46: LESS: Cash | D46: =Net_Working_Capital!I8 -> 1005
C47: Implied Equity Value | D47: =D44+D45-D46 ->  | Y47: Implied Equity Value Change
C48: F.D. Share O/S | D48: =N10 -> 216.4155 | Y48: WACC
C49: Implied Share Value | D49: =D47/D48 ->  | V49: =F48 -> 0 | W49: =X49-0.005 -> 0.07084891177 | X49: 0.07584891177 | Y49: =Y40 -> 0.08084891177 | Z49: =Y49+0.005 -> 0.08584891177 | AA49: 0.09084891177
C50: Implied Upside/(Downside) | D50: =(D49-N11)/N11 ->  | V50: =V51-0.5 -> 7.921767341 | W50: =(W41-$D$47)/$D$47 ->  | Z50: =(Z41-$D$47)/$D$47 -> 
U51: Terminal | V51: 8.421767341 | W51: =(W42-$D$47)/$D$47 -> 
U52: Multiple | V52: =V43 -> 8.921767341 | W52: =(W43-$D$47)/$D$47 ->  | Y52: =(Y43-$D$47)/$D$47 ->  | Z52: =(Z43-$D$47)/$D$47 -> 
U53: (x) | V53: =V52+0.5 -> 9.421767341 | W53: =(W44-$D$47)/$D$47 ->  | Y53: =(Y44-$D$47)/$D$47 -> 
C54: Implied Share Price - PGG | V54: 9.921767341 | W54: =(W45-$D$47)/$D$47 ->  | Y54: =(Y45-$D$47)/$D$47 -> 
C55: Perpetual Growth Rate | D55: =N9 -> 0.02
C56: Sum of PV of Unlevered FCF | D56: =D38 ->  | U56: Perpetual Growth Rate Sensitivities
C57: PV of Terminal Value | D57: =(((N32)*(1+N9))/(I12-N9))*N33 -> 
C58: Implied Enterprise Value | D58: =D56+D57 ->  | Y58: Implied Equity Value
C59: ADD: Debt | D59: =WACC_Calculator!L8 -> 25711 | Y59: WACC
C60: LESS: Cash | D60: =D46 -> 1005 | V60: =F65 -> 0 | W60: =X60-0.005 -> 0.07084891177 | X60: 0.07584891177 | Y60: =Y40 -> 0.08084891177 | Z60: =Y60+0.005 -> 0.08584891177 | AA60: =Z60+0.005 -> 0.09084891177
C61: Implied Equity Value | D61: =D58+D59-D60 ->  | V61: =V62-0.005 -> 0.01 | W61: =(SUM($J$35:$N$35))+((($N$32*(1+$V61))/(W$60-$V61))*(1/((1+W$60)^(($N$16-$D$9)/365))))+$D$45-$D$46 ->  | X61: =(SUM($J$35:$N$35))+((($N$32*(1+$V61))/(X$60-$V61))*(1/((1+X$60)^(($N$16-$D$9)/365))))+$D$45-$D$46 -> 
C62: F.D. Share O/S | D62: =N10 -> 216.4155 | U62: Perpetual | V62: =V63-0.005 -> 0.015 | W62: =(SUM($J$35:$N$35))+((($N$32*(1+$V62))/(W$60-$V62))*(1/((1+W$60)^(($N$16-$D$9)/365))))+$D$45-$D$46 -> 
C63: Implied Share Value | D63: =D61/D62 ->  | U63: Growth | V63: =N9 -> 0.02
C64: Implied Upside/(Downside) | D64: =(D63-N11)/N11 ->  | U64: Rate | V64: =V63+0.005 -> 0.025
V65: =V64+0.005 -> 0.03
Y67: Implied Equity Value Change
Y68: WACC
V69: =F71 -> 0 | W69: =X69-0.005 -> 0.07084891177 | X69: 0.07584891177 | Y69: =Y40 -> 0.08084891177 | Z69: =Y69+0.005 -> 0.08584891177 | AA69: 0.09084891177
V70: =V71-0.005 -> 0.01 | W70: =(W61-$D$61)/$D$61 ->  | Y70: =(Y61-$D$61)/$D$61 -> 
U71: Perpetual | V71: =V72-0.005 -> 0.015 | W71: =(W62-$D$61)/$D$61 ->  | Y71: =(Y62-$D$61)/$D$61 -> 
U72: Growth | V72: =V63 -> 0.02 | W72: =(W63-$D$61)/$D$61 ->  | X72: =(X63-$D$61)/$D$61 ->  | Y72: =(Y63-$D$61)/$D$61 ->  | Z72: =(Z63-$D$61)/$D$61 ->  | AA72: =(AA63-$D$61)/$D$61 -> 
U73: Rate | V73: =V72+0.005 -> 0.025 | W73: =(W64-$D$61)/$D$61 ->  | Y73: =(Y64-$D$61)/$D$61 -> 
V74: =V73+0.005 -> 0.03 | W74: =(W65-$D$61)/$D$61 ->  | Y74: =(Y65-$D$61)/$D$61 -> 

Sheet LBO
B2: =DCF!C2 -> CAESARS ENTERTAINMENT INC | C2: Leverage Buyout Model
B3: =DCF!C3 -> All Figures in USD Millions, expect for per share data
B4: Fiscal Year Ending December 31
H6: Transaction Assumptions
D8: Current Share price | G8: =DCF!N11 -> 36.87 | K8: Exit Date | N8: =DATE(YEAR(D35)+Hub!T31,MONTH(D35),DAY(D35)) -> 2023-12-31
D9: Diluted Share Count | G9: =DCF!N10 -> 216.4155 | K9: Minimum Cash as % of EBITDA | N9: =Hub!T30 -> 0
D11: Premium Paid | G11: =Hub!T29 -> 0 | K11: Advisory Fee (%EV) | N11: =Hub!T32 -> 0
K12: Debt Issuance Fee (%EV) | N12: =Hub!T33 -> 0
D13: Purchase Equity Value | G13: =G8*G9*(1+G11) -> 7979.239485 | K13: Legal & Other Fees | N13: =Hub!T34 -> 0
D14: LESS: Cash | G14: =Net_Working_Capital!I8 -> 1005
D15: ADD: Debt | G15: =Debt_Schedule!AD41 -> 25711 | K15: Leverage Multiple | N15: =Hub!T35 -> 0
D16: Purchase EV | G16: =G13-G14+G15 -> 32685.23948 | K16: Total Debt Used | N16: =DCF!I23*N15 -> 0
K17: Interest Rate on Issued Debt | N17: =Hub!H22+Hub!T36 -> 0.04167355
D18: EBITDA Purchase Multiple | G18: =G16/DCF!I23 -> 3.61922705
I20: Sources and Uses
E22: Sources | L22: Uses
D24: New Debt Issued | G24: =N16 -> 0 | K24: Existing Debt Paydown | N24: =G15 -> 25711
D25: Cash on Hand | G25: =G14 -> 1005 | K25: Transaction Fees | N25: =(G16*N11)+(N16*N12)+N13 -> 0
D26: Investor Equity | G26: =N28-G24-G25 -> 32685.23948 | K26: Equity Purchase Price | N26: =G13 -> 7979.239485
K27: Minimum Cash Balance | N27: =N9*DCF!I23 -> 0
D28: Total Sources | G28: =SUM(G24:G26) -> 33690.23948 | K28: Total Uses | N28: =SUM(N24:N27) -> 33690.23948
D33: Actual | I33: Forecast
D34: =YEAR(D35) -> 2023 | E34: =YEAR(E35) -> 2024 | F34: =YEAR(F35) -> 2025 | G34: 2026 | H34: 2027 | I34: 2028 | J34: 2029 | K34: 2030 | L34: 2031 | M34: 2032 | N34: 2033
D35: =DCF!D10 -> 2023-12-31 | E35: =EOMONTH(D35,12) -> 2024-12-31 | F35: =EOMONTH(E35,12) -> 2025-12-31 | G35: 2026-12-31 | H35: 2027-12-31 | I35: 2028-12-31 | J35: =EOMONTH(I35,12) -> 2029-12-31 | K35: =EOMONTH(J35,12) -> 2030-12-31 | L35: =EOMONTH(K35,12) -> 2031-12-31 | M35: =EOMONTH(L35,12) -> 2032-12-31 | N35: 2033-12-31
B37: EBITDA | D37: =DCF!I23 -> 9031 | E37: =DCF!J23 ->  | F37: =DCF!K23 ->  | G37: =DCF!L23 ->  | H37: =DCF!M23 ->  | I37: =DCF!N23 ->  | J37: =DCF!O23 ->  | K37: =DCF!P23 ->  | L37: =DCF!Q23 ->  | M37: =DCF!R23 ->  | N37: =DCF!S23 -> 
B39: Unlevered Free Cash Flow | D39: =DCF!I32 -> 8426.78 | E39: =DCF!J32 ->  | F39: =DCF!K32 ->  | G39: =DCF!L32 ->  | H39: =DCF!M32 ->  | I39: =DCF!N32 ->  | J39: =DCF!O32 ->  | K39: =DCF!P32 ->  | L39: =DCF!Q32 ->  | M39: =DCF!R32 ->  | N39: =DCF!S32 -> 
B41: ADD: Beginning Cash Balance | D41: - | E41: =D46 -> 0 | F41: =E46 -> 
B42: LESS: Minimum Cash Balance | D42: - | E42: =N9*E37 ->  | F42: =O9*F37 -> 
B43: CF for Debt Service | E43: =E39+E41-E42 ->  | F43: =F39+F41-F42 -> 
B45: Debt Balance | D45: =N16 -> 0 | E45: =D45-E43 ->  | F45: =E45-F43 -> 
B46: Cash Balance | D46: =N27 -> 0 | E46: =D46+E39+(E45-D45) ->  | F46: =E46+F39+(F45-E45) -> 
B47: Equity Balance | D47: =G26 -> 32685.23948 | E47: =D47+Operating_Model!J160 ->  | F47: =E47+Operating_Model!K160 ->  | G47: =F47+Operating_Model!L160 ->  | H47: =G47+Operating_Model!M160 ->  | I47: =H47+Operating_Model!N160 ->  | J47: =I47+Operating_Model!O160 ->  | K47: =J47+Operating_Model!P160 ->  | L47: =K47+Operating_Model!Q160 ->  | M47: =L47+Operating_Model!R160 ->  | N47: =M47+Operating_Model!S160 -> 
B49: Invested Capital | D49: =D45+D47 -> 32685.23948 | E49: =E45+E47 -> 
B50: EBI | D50: =DCF!I28 -> 8343.78 | E50: =DCF!J28 ->  | F50: =DCF!K28 ->  | G50: =DCF!L28 ->  | H50: =DCF!M28 ->  | I50: =DCF!N28 ->  | J50: =DCF!O28 ->  | K50: =DCF!P28 ->  | L50: =DCF!Q28 ->  | M50: =DCF!R28 ->  | N50: =DCF!S28 -> 
B51: ROIC | D51: - | E51: =E50/(AVERAGE(D49:E49)) ->  | F51: =F50/(AVERAGE(E49:F49)) -> 
B53: Exit Enterprise Value | D53: - | E53: =E37*G18 ->  | F53: =F37*H18 -> 
B54: LESS: Debt | D54: - | E54: =E45 ->  | F54: =F45 -> 
B55: ADD: Cash | D55: - | E55: =E46 ->  | F55: =F46 -> 
B56: Exit Equity Value | D56: =-G26 -> -32685.23948 | E56: =(E53-E54+E55)*E58 ->  | F56: =(F53-F54+F55)*F58 -> 
B58: Exit Year | D58: - | E58: =IF(E35=$N8, 1,0) -> 0 | F58: =IF(F35=$N8, 1,0) -> 0 | G58: 0 | H58: 0 | I58: 0 | J58: 0 | K58: 0 | L58: 0 | M58: 0 | N58: 0
B59: MOIC | D59: - | E59: =(E56/-D56) ->  | F59: =(F56/-E56) -> 
L61: IRR | N61: =XIRR(E56:N56,E34:N34) -> 
L62: MOIC | N62: =SUM(E59:N59) -> 

Sheet Merger
B2: General Information
B3: Acquirer Name | F3: =Hub!T42 -> GENERAL ELECTRIC CO
B5: =TEXT(F3,) &" - Current Share Price" -> GENERAL ELECTRIC CO - Current Share Price | F5: =Hub!T45 -> 159.19
B6: =DCF!C2 &" - Current Share Price" -> CAESARS ENTERTAINMENT INC - Current Share Price | F6: =DCF!N11 -> 36.87
B7: Transaction Costs | F7: =Hub!T50 -> 0
B9: =TEXT(F3,) & " - Cash " & DCF!I15 & "A" -> GENERAL ELECTRIC CO - Cash 2023A | F9: =Hub!T51 -> 18447
B11: Target leverage | F11: =Hub!T52 -> 0
B12: All-In Interest Rate | F12: =LBO!N17 -> 0.04167355
G13: Purchase Price
G15: Take-Out Price | J15: =Hub!T48 -> 0
G16: Premium | J16: =(J15-F6)/F6 -> -1
G17: Shares Outstanding | J17: =DCF!N10 -> 216.4155
G18: Take-Out Equity Value | J18: =J15*J17 -> 0
G20: Debt | J20: =Debt_Schedule!AD41 -> 25711
G21: Cash | J21: =Net_Working_Capital!I8 -> 1005
G22: Take-Out Enterprise Value | J22: =J18+J20-J21 -> 24706
G23: Take-Out EV/LTM EBITDA | J23: =J22/LBO!D37 -> 2.735688185
K24: Combined Debt Capacity
K26: =TEXT(F3,) &" EBITDA - " & LBO!E34 & "E" -> GENERAL ELECTRIC CO EBITDA - 2024E | P26: =Hub!T53 -> 5242
K27: =DCF!C2 &" EBITDA - " & LBO!E34 & "E" -> CAESARS ENTERTAINMENT INC EBITDA - 2024E | P27: =DCF!J23 -> 
K28: Pro Forma EBITDA | P28: =P26+P27 -> 
K30: Maximum Leverage | P30: =F11 -> 0
K31: Total Net Debt Capacity | P31: =P28*P30 -> 
K33: =TEXT(F3,) & " Debt - " & DCF!I15 & "A" -> GENERAL ELECTRIC CO Debt - 2023A | P33: =Hub!T54 -> 22937
K34: =TEXT(F3,) & " Cash - " & DCF!I15 & "A (Outside Transaction)" -> GENERAL ELECTRIC CO Cash - 2023A (Outside Transaction) | P34: =F9*(1-Z44) -> 18447
K35: =DCF!C2 & " Debt" -> CAESARS ENTERTAINMENT INC Debt | P35: =Debt_Schedule!AD41 -> 25711
K36: =DCF!C2 & " Rolled Cash" -> CAESARS ENTERTAINMENT INC Rolled Cash | P36: =Net_Working_Capital!I8*(1-Z46) -> 1005
K38: Combined Debt | P38: =P36+P35 -> 26716
K39: Maximum External Debt Capacity | P39: =P31-P38 -> 
Q40: Sources and Uses
Q42: Uses | V42: Sources
Q43: Take-Out Equity Value | T43: =J18 -> 0 | V43: =TEXT(F3,) & " Cash For Transaction" -> GENERAL ELECTRIC CO Cash For Transaction | Z43: =Z44*F9 -> 0
Q44: =DCF!C2 & " Debt" -> CAESARS ENTERTAINMENT INC Debt | T44: =Debt_Schedule!AD41 -> 25711 | V44: % of Total Cash
Q45: Transaction Costs | T45: =F7*J22 -> 0 | V45: =DCF!C2 & " Cash For Transaction" -> CAESARS ENTERTAINMENT INC Cash For Transaction | Z45: =Net_Working_Capital!I8*Z46 -> 0
Q46: Total Uses | T46: =SUM(T43:T45) -> 25711 | V46: % of Total Cash
V47: =DCF!C2 & " Debt" -> CAESARS ENTERTAINMENT INC Debt | Z47: =Debt_Schedule!AD41 -> 25711
V48: New Debt | Z48: =P39 -> 
V49: ="Equity to " & DCF!C2 & " Shareholders" -> Equity to CAESARS ENTERTAINMENT INC Shareholders | Z49: =Z50-Z48-Z47+Z45-Z43 -> 
V50: Total Sources | Z50: =T46 -> 25711
AA51: Stock Exchange
AA53: =DCF!C2 & " Equity Take-Out" -> CAESARS ENTERTAINMENT INC Equity Take-Out | AG53: =J18 -> 0
AA54: Total Share Consideration | AG54: =Z49 -> 
AA55: ="% Equity Issued to " & DCF!C2 -> % Equity Issued to CAESARS ENTERTAINMENT INC | AG55: =AG54/AG53 -> 
AA56: Total Cash Consideration | AG56: =AG53-AG54 -> 
AA58: Offer Price | AG58: =J15 -> 0
AA59: =F3 & " Share Price" -> GENERAL ELECTRIC CO Share Price | AG59: =Hub!T45 -> 159.19
AA60: Exchange Ratio | AG60: =AG59/AG58 -> 
AA61: Actual Exchange Ratio | AG61: =AG60*AG55 -> 
AA62: =DCF!C2 & " Shares Outstanding" -> CAESARS ENTERTAINMENT INC Shares Outstanding | AG62: =DCF!N10 -> 216.4155
AA63: ="Shares Issued to " & DCF!C2 & " Shareholders" -> Shares Issued to CAESARS ENTERTAINMENT INC Shareholders | AG63: =AG62*AG61 -> 
AH64: Accretion/Dilution
AL66: =DCF!J15 -> 2024 | AM66: =DCF!K15 -> 2025 | AN66: =DCF!L15 -> 2026
AH67: =F3 & " Diluted EPS" -> GENERAL ELECTRIC CO Diluted EPS
AH68: =F3 & " Diluted S/O" -> GENERAL ELECTRIC CO Diluted S/O
AH69: Acquirer Net Income
AH71: =DCF!C2 & " EBITDA" -> CAESARS ENTERTAINMENT INC EBITDA | AL71: =DCF!J23 ->  | AM71: =DCF!K23 ->  | AN71: =DCF!L23 -> 
AH72: Synergies | AL72: =DCF_Synergies!I23-DCF!J23 ->  | AM72: =DCF_Synergies!J23-DCF!K23 ->  | AN72: =DCF_Synergies!K23-DCF!L23 -> 
AH73: Integration Costs
AH74: Increased Interest Expense | AL74: =F12*(P35+Z48) ->  | AM74: =AL74 ->  | AN74: =AM74 -> 
AH75: D&A | AL75: =DCF_Synergies!I29 ->  | AM75: =DCF_Synergies!J29 ->  | AN75: =DCF_Synergies!K29 -> 
AH76: Incremental EBT | AL76: =AL71+AL72-AL73-AL74-AL75 ->  | AM76: =AM71+AM72-AM73-AM74-AM75 -> 
AH77: Taxes | AL77: =AL76*Hub!$T48 ->  | AM77: =AM76*Hub!$T48 ->  | AN77: =AN76*Hub!$T48 -> 
AH78: Incremental Net Income | AL78: =AL76-AL77 ->  | AM78: =AM76-AM77 -> 
AH80: Pro Forma Net Income | AL80: =AL69+AL78 ->  | AM80: =AM69+AM78 -> 
AH81: Pro Forma Acquirer Diluted S/O | AL81: =AL68+$AG63 ->  | AM81: =AM68+$AG63 ->  | AN81: =AN68+$AG63 -> 
AH82: Pro Forma EPS | AL82: =AL80/AL81 ->  | AM82: =AM80/AM81 -> 
AH84: Accretion/(Dilution) - $ | AL84: =AL82-AL67 ->  | AM84: =AM82-AM67 ->  | AN84: =AN82-AN67 -> 
AH85: Accretion/(Dilution) - % | AL85: =(AL84-AL67)/AL67 ->  | AM85: =(AM84-AM67)/AM67 -> 
AH87: Pro Forma Balance Sheet (Excluding Synergies)
AL89: Acquirer | AM89: Adj. | AN89: PF
AH90: ="Debt - " & DCF!J15 & "E" -> Debt - 2024E | AL90: =P33 -> 22937 | AM90: =Z47+Z48 ->  | AN90: =AL90+AM90 -> 
AH91: ="Cash - " & DCF!J15 & "E" -> Cash - 2024E | AL91: =F9 -> 18447 | AM91: =Z43-Z45 -> 0 | AN91: =AL91+AM91 -> 18447
AH92: ="Net Debt - " & DCF!J15 & "E" -> Net Debt - 2024E | AL92: =AL90-AL91 -> 4490 | AM92: =AM90-AM91 -> 
AH94: ="EBITDA - " & DCF!J15 & "E" -> EBITDA - 2024E | AL94: =P26 -> 5242 | AM94: =P27 ->  | AN94: =AL94+AM94 -> 
AH95: Net Debt/EBITDA | AL95: =AL92/AL94 -> 0.8565433041 | AM95: =AM92/AM94 -> 
AH97: ="FY" & DCF!L15 & "E Accretion/Dilution Sensitivity Analysis" -> FY2026E Accretion/Dilution Sensitivity Analysis
AL99: Synergies
AJ100: =AK100-5 ->  | AK100: =AL100-5 ->  | AL100: =AN72 ->  | AM100: =AL100+5 ->  | AN100: =AM100+5 -> 
AI101: =AI102-1 -> -2 | AJ101: =(((($AN$71+AJ$100-$AN$73-$AN$74-$AN$75)*(1-DCF!$D$11))+$AN$69)/($AN$68+(((($AI101*$J$17)+$T$44+$T$45-$Z$43+$Z$45-$Z$47-$Z$48)/($AI101*$J$17))*($AI101/$AG$59)*$AG$62)))-$AN$67 ->  | AK101: =(((($AN$71+AK$100-$AN$73-$AN$74-$AN$75)*(1-DCF!$D$11))+$AN$69)/($AN$68+(((($AI101*$J$17)+$T$44+$T$45-$Z$43+$Z$45-$Z$47-$Z$48)/($AI101*$J$17))*($AI101/$AG$59)*$AG$62)))-$AN$67 ->  | AL101: =(((($AN$71+AL$100-$AN$73-$AN$74-$AN$75)*(1-DCF!$D$11))+$AN$69)/($AN$68+(((($AI101*$J$17)+$T$44+$T$45-$Z$43+$Z$45-$Z$47-$Z$48)/($AI101*$J$17))*($AI101/$AG$59)*$AG$62)))-$AN$67 ->  | AM101: =(((($AN$71+AM$100-$AN$73-$AN$74-$AN$75)*(1-DCF!$D$11))+$AN$69)/($AN$68+(((($AI101*$J$17)+$T$44+$T$45-$Z$43+$Z$45-$Z$47-$Z$48)/($AI101*$J$17))*($AI101/$AG$59)*$AG$62)))-$AN$67 ->  | AN101: =(((($AN$71+AN$100-$AN$73-$AN$74-$AN$75)*(1-DCF!$D$11))+$AN$69)/($AN$68+(((($AI101*$J$17)+$T$44+$T$45-$Z$43+$Z$45-$Z$47-$Z$48)/($AI101*$J$17))*($AI101/$AG$59)*$AG$62)))-$AN$67 -> 
AH102: Take | AI102: =AI103-1 -> -1 | AJ102: =(((($AN$71+AJ$100-$AN$73-$AN$74-$AN$75)*(1-DCF!$D$11))+$AN$69)/($AN$68+(((($AI102*$J$17)+$T$44+$T$45-$Z$43+$Z$45-$Z$47-$Z$48)/($AI102*$J$17))*($AI102/$AG$59)*$AG$62)))-$AN$67 ->  | AK102: =(((($AN$71+AK$100-$AN$73-$AN$74-$AN$75)*(1-DCF!$D$11))+$AN$69)/($AN$68+(((($AI102*$J$17)+$T$44+$T$45-$Z$43+$Z$45-$Z$47-$Z$48)/($AI102*$J$17))*($AI102/$AG$59)*$AG$62)))-$AN$67 ->  | AL102: =(((($AN$71+AL$100-$AN$73-$AN$74-$AN$75)*(1-DCF!$D$11))+$AN$69)/($AN$68+(((($AI102*$J$17)+$T$44+$T$45-$Z$43+$Z$45-$Z$47-$Z$48)/($AI102*$J$17))*($AI102/$AG$59)*$AG$62)))-$AN$67 ->  | AM102: =(((($AN$71+AM$100-$AN$73-$AN$74-$AN$75)*(1-DCF!$D$11))+$AN$69)/($AN$68+(((($AI102*$J$17)+$T$44+$T$45-$Z$43+$Z$45-$Z$47-$Z$48)/($AI102*$J$17))*($AI102/$AG$59)*$AG$62)))-$AN$67 ->  | AN102: =(((($AN$71+AN$100-$AN$73-$AN$74-$AN$75)*(1-DCF!$D$11))+$AN$69)/($AN$68+(((($AI102*$J$17)+$T$44+$T$45-$Z$43+$Z$45-$Z$47-$Z$48)/($AI102*$J$17))*($AI102/$AG$59)*$AG$62)))-$AN$67 -> 
AH103: Out | AI103: =J15 -> 0 | AJ103: =(((($AN$71+AJ$100-$AN$73-$AN$74-$AN$75)*(1-DCF!$D$11))+$AN$69)/($AN$68+(((($AI103*$J$17)+$T$44+$T$45-$Z$43+$Z$45-$Z$47-$Z$48)/($AI103*$J$17))*($AI103/$AG$59)*$AG$62)))-$AN$67 ->  | AK103: =(((($AN$71+AK$100-$AN$73-$AN$74-$AN$75)*(1-DCF!$D$11))+$AN$69)/($AN$68+(((($AI103*$J$17)+$T$44+$T$45-$Z$43+$Z$45-$Z$47-$Z$48)/($AI103*$J$17))*($AI103/$AG$59)*$AG$62)))-$AN$67 ->  | AL103: =(((($AN$71+AL$100-$AN$73-$AN$74-$AN$75)*(1-DCF!$D$11))+$AN$69)/($AN$68+(((($AI103*$J$17)+$T$44+$T$45-$Z$43+$Z$45-$Z$47-$Z$48)/($AI103*$J$17))*($AI103/$AG$59)*$AG$62)))-$AN$67 ->  | AM103: =(((($AN$71+AM$100-$AN$73-$AN$74-$AN$75)*(1-DCF!$D$11))+$AN$69)/($AN$68+(((($AI103*$J$17)+$T$44+$T$45-$Z$43+$Z$45-$Z$47-$Z$48)/($AI103*$J$17))*($AI103/$AG$59)*$AG$62)))-$AN$67 ->  | AN103: =(((($AN$71+AN$100-$AN$73-$AN$74-$AN$75)*(1-DCF!$D$11))+$AN$69)/($AN$68+(((($AI103*$J$17)+$T$44+$T$45-$Z$43+$Z$45-$Z$47-$Z$48)/($AI103*$J$17))*($AI103/$AG$59)*$AG$62)))-$AN$67 -> 
AH104: Price | AI104: =AI103+1 -> 1 | AJ104: =(((($AN$71+AJ$100-$AN$73-$AN$74-$AN$75)*(1-DCF!$D$11))+$AN$69)/($AN$68+(((($AI104*$J$17)+$T$44+$T$45-$Z$43+$Z$45-$Z$47-$Z$48)/($AI104*$J$17))*($AI104/$AG$59)*$AG$62)))-$AN$67 ->  | AK104: =(((($AN$71+AK$100-$AN$73-$AN$74-$AN$75)*(1-DCF!$D$11))+$AN$69)/($AN$68+(((($AI104*$J$17)+$T$44+$T$45-$Z$43+$Z$45-$Z$47-$Z$48)/($AI104*$J$17))*($AI104/$AG$59)*$AG$62)))-$AN$67 ->  | AL104: =(((($AN$71+AL$100-$AN$73-$AN$74-$AN$75)*(1-DCF!$D$11))+$AN$69)/($AN$68+(((($AI104*$J$17)+$T$44+$T$45-$Z$43+$Z$45-$Z$47-$Z$48)/($AI104*$J$17))*($AI104/$AG$59)*$AG$62)))-$AN$67 ->  | AM104: =(((($AN$71+AM$100-$AN$73-$AN$74-$AN$75)*(1-DCF!$D$11))+$AN$69)/($AN$68+(((($AI104*$J$17)+$T$44+$T$45-$Z$43+$Z$45-$Z$47-$Z$48)/($AI104*$J$17))*($AI104/$AG$59)*$AG$62)))-$AN$67 ->  | AN104: =(((($AN$71+AN$100-$AN$73-$AN$74-$AN$75)*(1-DCF!$D$11))+$AN$69)/($AN$68+(((($AI104*$J$17)+$T$44+$T$45-$Z$43+$Z$45-$Z$47-$Z$48)/($AI104*$J$17))*($AI104/$AG$59)*$AG$62)))-$AN$67 -> 
AI105: =AI104+1 -> 2 | AJ105: =(((($AN$71+AJ$100-$AN$73-$AN$74-$AN$75)*(1-DCF!$D$11))+$AN$69)/($AN$68+(((($AI105*$J$17)+$T$44+$T$45-$Z$43+$Z$45-$Z$47-$Z$48)/($AI105*$J$17))*($AI105/$AG$59)*$AG$62)))-$AN$67 ->  | AK105: =(((($AN$71+AK$100-$AN$73-$AN$74-$AN$75)*(1-DCF!$D$11))+$AN$69)/($AN$68+(((($AI105*$J$17)+$T$44+$T$45-$Z$43+$Z$45-$Z$47-$Z$48)/($AI105*$J$17))*($AI105/$AG$59)*$AG$62)))-$AN$67 ->  | AL105: =(((($AN$71+AL$100-$AN$73-$AN$74-$AN$75)*(1-DCF!$D$11))+$AN$69)/($AN$68+(((($AI105*$J$17)+$T$44+$T$45-$Z$43+$Z$45-$Z$47-$Z$48)/($AI105*$J$17))*($AI105/$AG$59)*$AG$62)))-$AN$67 ->  | AM105: =(((($AN$71+AM$100-$AN$73-$AN$74-$AN$75)*(1-DCF!$D$11))+$AN$69)/($AN$68+(((($AI105*$J$17)+$T$44+$T$45-$Z$43+$Z$45-$Z$47-$Z$48)/($AI105*$J$17))*($AI105/$AG$59)*$AG$62)))-$AN$67 ->  | AN105: =(((($AN$71+AN$100-$AN$73-$AN$74-$AN$75)*(1-DCF!$D$11))+$AN$69)/($AN$68+(((($AI105*$J$17)+$T$44+$T$45-$Z$43+$Z$45-$Z$47-$Z$48)/($AI105*$J$17))*($AI105/$AG$59)*$AG$62)))-$AN$67 -> 

Sheet LBO_Extras --->

Sheet DCF_Synergies
B2: =IF(Hub!N4="No", Hub!R6, Hub!D6) -> CAESARS ENTERTAINMENT INC | C2: Discounted Cash Flow Analysis (With Synergies)
B3: =DCF!C3 -> All Figures in USD Millions, expect for per share data
B4: Fiscal Year Ending December 31 | G4: =IF(Dashboard!I3="Yes", "Dashboard Master Override Enabled", "Dashboard Master Override Disabled") -> Dashboard Master Override Disabled
B7: Assumptions & Inputs
B9: Valuation Date | C9: =IF(ISBLANK(Hub!D10), TODAY(), Hub!D10) -> 2024-07-20 | E9: Latest Yearly EBITDA | H9: =H23 -> 9031 | J9: Perpetual Growth Rate | M9: =IF(Dashboard!I3="Yes", Dashboard!E8, Hub!D23) -> 0.02
B10: Latest Fiscal Year Date | C10: =IF(ISBLANK(Hub!D11), DATE(YEAR(C9)-1,12,31),Hub!D11) -> 2023-12-31 | E10: =DCF!F10 -> Terminal EBITDA Multiple | H10: =DCF!I10 -> 8.921767341 | J10: Outstanding Shares | M10: =IF(Dashboard!I3="YES", Dashboard!J8, IF(Hub!N4="No", Hub!V7, Hub!H7)) -> 216.4155
B11: Tax Rate | C11: =Hub!H10 -> 0.21 | E11: WACC | H11: =IF(Dashboard!I3="Yes", Dashboard!E6, IF(ISBLANK(Hub!D44), WACC_Calculator!D4, Hub!D44)) -> 0.08084891177 | J11: Share Price at Valuation | M11: =IF(Hub!N4="No", Hub!V6, Hub!H6) -> 36.87
B12: Inflation Rate | C12: =Hub!H11 -> 0.02187734 | E12: Terminal Year WACC | H12: =IF(Dashboard!I3="Yes", Dashboard!E7, IF(ISBLANK(Hub!D45), IF(ISBLANK(Hub!D44), WACC_Calculator!D4, Hub!D44), Hub!D45)) -> 0.08084891177 | J12: Risk Free Rate | M12: =IF(Dashboard!I3="YES", Dashboard!J6, Hub!H22) -> 0.04167355
B13: Revenue Synergy Increase | C13: =IF(Dashboard!I3="Yes", Dashboard!O6, Hub!T23) -> 0 | E13: COGS Synergy Decrease | H13: =IF(Dashboard!I3="Yes", Dashboard!O7, Hub!T24) -> 0 | J13: FE Synergy Decrease | M13: =IF(Dashboard!I3="Yes", Dashboard!O8, Hub!T25) -> 0
F15: Actuals | M15: Forecast
D16: =YEAR(D17) -> 2019 | E16: =YEAR(E17) -> 2020 | F16: 2021 | G16: 2022 | H16: 2023 | I16: =YEAR(I17) -> 2024 | J16: =YEAR(J17) -> 2025 | K16: 2026 | L16: 2027 | M16: 2028 | N16: 2029 | O16: 2030 | P16: 2031 | Q16: 2032 | R16: 2033
D17: =EOMONTH(E17,-12) -> 2019-12-31 | E17: 2020-12-31 | F17: 2021-12-31 | G17: =EOMONTH(H17,-12) -> 2022-12-31 | H17: =C10 -> 2023-12-31 | I17: =EOMONTH(H17,12) -> 2024-12-31 | J17: =EOMONTH(I17,12) -> 2025-12-31 | K17: 2026-12-31 | L17: 2027-12-31 | M17: 2028-12-31 | N17: =EOMONTH(M17,12) -> 2029-12-31 | O17: =EOMONTH(N17,12) -> 2030-12-31 | P17: =EOMONTH(O17,12) -> 2031-12-31 | Q17: =EOMONTH(P17,12) -> 2032-12-31 | R17: =EOMONTH(Q17,12) -> 2033-12-31
B18: Discounted Cash Flow
B20: Revenue | D20: =Revenue_Build!D36 -> 2528 | E20: =Revenue_Build!E36 -> 3628 | F20: =Revenue_Build!F36 -> 9570 | G20: =Revenue_Build!G36 -> 10821 | H20: =Revenue_Build!H36 -> 11528 | I20: =Revenue_Build!I36*(1+$C13) -> 15902.9954 | J20: =Revenue_Build!J36*(1+$C13) -> 22095.14462 | K20: =Revenue_Build!K36*(1+$C13) -> 30929.37564 | L20: =Revenue_Build!L36*(1+$C13) -> 43635.40637 | M20: =Revenue_Build!M36*(1+$C13) -> 62059.1015 | N20: =Revenue_Build!N36*(1+$C13) -> 88989.47461 | O20: =Revenue_Build!O36*(1+$C13) -> 128666.8205 | P20: =Revenue_Build!P36*(1+$C13) -> 187575.4842 | Q20: =Revenue_Build!Q36*(1+$C13) -> 275685.279 | R20: =Revenue_Build!R36*(1+$C13) -> 408402.0266
B21: YoY Growth | D21: - | E21: =(E20-D20)/D20 -> 0.4351265823 | F21: =(F20-E20)/E20 -> 1.637816979 | G21: 0.1307210031 | H21: 0.06533592089 | I21: 0.3795103574 | J21: 0.3893699936 | K21: 0.3998268026 | L21: 0.4108078633 | M21: 0.4222189426 | N21: =(N20-M20)/M20 -> 0.4339471964 | O21: =(O20-N20)/N20 -> 0.4458656039 | P21: =(P20-O20)/O20 -> 0.4578388086 | Q21: =(Q20-P20)/P20 -> 0.4697298002 | R21: =(R20-Q20)/Q20 -> 0.4814067264
B23: Adj. EBITDA | D23: =Operating_Model!E122 -> 1870.096 | E23: =Operating_Model!F122 -> 2764 | F23: =Operating_Model!G122 -> 7482 | G23: =Operating_Model!H122 -> 8326 | H23: =Operating_Model!I122 -> 9031 | I23: =DCF_Synergies!I20-((Operating_Model!J69)*(1-DCF_Synergies!$H13)+(Operating_Model!J98)*(1-DCF_Synergies!$M13))+Operating_Model!J110+Operating_Model!J118 ->  | J23: =DCF_Synergies!J20-((Operating_Model!K69)*(1-DCF_Synergies!$H13)+(Operating_Model!K98)*(1-DCF_Synergies!$M13))+Operating_Model!K110+Operating_Model!K118 ->  | K23: =DCF_Synergies!K20-((Operating_Model!L69)*(1-DCF_Synergies!$H13)+(Operating_Model!L98)*(1-DCF_Synergies!$M13))+Operating_Model!L110+Operating_Model!L118 ->  | L23: =DCF_Synergies!L20-((Operating_Model!M69)*(1-DCF_Synergies!$H13)+(Operating_Model!M98)*(1-DCF_Synergies!$M13))+Operating_Model!M110+Operating_Model!M118 ->  | M23: =DCF_Synergies!M20-((Operating_Model!N69)*(1-DCF_Synergies!$H13)+(Operating_Model!N98)*(1-DCF_Synergies!$M13))+Operating_Model!N110+Operating_Model!N118 ->  | N23: =DCF_Synergies!N20-((Operating_Model!O69)*(1-DCF_Synergies!$H13)+(Operating_Model!O98)*(1-DCF_Synergies!$M13))+Operating_Model!O110+Operating_Model!O118 ->  | O23: =DCF_Synergies!O20-((Operating_Model!P69)*(1-DCF_Synergies!$H13)+(Operating_Model!P98)*(1-DCF_Synergies!$M13))+Operating_Model!P110+Operating_Model!P118 ->  | P23: =DCF_Synergies!P20-((Operating_Model!Q69)*(1-DCF_Synergies!$H13)+(Operating_Model!Q98)*(1-DCF_Synergies!$M13))+Operating_Model!Q110+Operating_Model!Q118 ->  | Q23: =DCF_Synergies!Q20-((Operating_Model!R69)*(1-DCF_Synergies!$H13)+(Operating_Model!R98)*(1-DCF_Synergies!$M13))+Operating_Model!R110+Operating_Model!R118 ->  | R23: =DCF_Synergies!R20-((Operating_Model!S69)*(1-DCF_Synergies!$H13)+(Operating_Model!S98)*(1-DCF_Synergies!$M13))+Operating_Model!S110+Operating_Model!S118 -> 
B24: %Margin | D24: =D23/D20 -> 0.7397531646 | E24: 0.7618522602 | F24: 0.7818181818 | G24: 0.7694298124 | H24: 0.7833969466 | N24: =N23/N20 -> 
B26: Adj. EBIT | D26: =D23-Operating_Model!E110-Operating_Model!E118 -> 1585.976 | E26: =E23-Operating_Model!F110-Operating_Model!F118 -> 2078 | F26: =F23-Operating_Model!G110-Operating_Model!G118 -> 6124 | G26: =G23-Operating_Model!H110-Operating_Model!H118 -> 6851 | H26: =H23-Operating_Model!I110-Operating_Model!I118 -> 7515 | I26: =I23-Operating_Model!J110-Operating_Model!J118 ->  | J26: =J23-Operating_Model!K110-Operating_Model!K118 ->  | K26: =K23-Operating_Model!L110-Operating_Model!L118 ->  | L26: =L23-Operating_Model!M110-Operating_Model!M118 ->  | M26: =M23-Operating_Model!N110-Operating_Model!N118 ->  | N26: =N23-Operating_Model!O110-Operating_Model!O118 ->  | O26: =O23-Operating_Model!P110-Operating_Model!P118 ->  | P26: =P23-Operating_Model!Q110-Operating_Model!Q118 ->  | Q26: =Q23-Operating_Model!R110-Operating_Model!R118 ->  | R26: =R23-Operating_Model!S110-Operating_Model!S118 -> 
B27: Income Taxes | D27: =Operating_Model!E151 -> 51.28248 | E27: =Operating_Model!F151 -> 249.18 | F27: =Operating_Model!G151 -> -216.64 | G27: =Operating_Model!H151 -> 2.47 | H27: =Operating_Model!I151 -> -828.78 | I27: =Operating_Model!J151 ->  | J27: =Operating_Model!K151 ->  | K27: =Operating_Model!L151 ->  | L27: =Operating_Model!M151 ->  | M27: =Operating_Model!N151 ->  | N27: =Operating_Model!O151 ->  | O27: =Operating_Model!P151 ->  | P27: =Operating_Model!Q151 ->  | Q27: =Operating_Model!R151 ->  | R27: =Operating_Model!S151 -> 
B28: Adj. Unlevered Net Income | D28: =D26-D27 -> 1534.69352 | E28: =E26-E27 -> 1828.82 | F28: 6340.64 | G28: 6848.53 | H28: 8343.78 | I28: =I26-I27 ->  | N28: =N26-N27 -> 
B29: ADD: D&A -Other | D29: =Operating_Model!E110 -> 221.525 | E29: =Operating_Model!F110 -> 583 | F29: =Operating_Model!G110 -> 1126 | G29: =Operating_Model!H110 -> 1205 | H29: =Operating_Model!I110 -> 1261 | I29: =Operating_Model!J110 ->  | J29: =Operating_Model!K110 ->  | K29: =Operating_Model!L110 ->  | L29: =Operating_Model!M110 ->  | M29: =Operating_Model!N110 ->  | N29: =Operating_Model!O110 ->  | O29: =Operating_Model!P110 ->  | P29: =Operating_Model!Q110 ->  | Q29: =Operating_Model!R110 ->  | R29: =Operating_Model!S110 -> 
B30: LESS: CapEx | D30: =DCF!E30 -> 170.766 | E30: =DCF!F30 -> 199 | F30: =DCF!G30 -> 832 | G30: =DCF!H30 -> 963 | H30: =DCF!I30 -> 1294 | I30: ='D&A+CAPEX'!J45 ->  | J30: ='D&A+CAPEX'!K45 ->  | K30: ='D&A+CAPEX'!L45 ->  | L30: ='D&A+CAPEX'!M45 ->  | M30: ='D&A+CAPEX'!N45 ->  | N30: ='D&A+CAPEX'!O45 ->  | O30: ='D&A+CAPEX'!P45 ->  | P30: ='D&A+CAPEX'!Q45 ->  | Q30: ='D&A+CAPEX'!R45 ->  | R30: ='D&A+CAPEX'!S45 -> 
B31: LESS: ΔNWC | D31: =Net_Working_Capital!E24 -> 17.64 | E31: =Net_Working_Capital!F24 -> 2501.588 | F31: =Net_Working_Capital!G24 -> -2727 | G31: =Net_Working_Capital!H24 -> -1162 | H31: =Net_Working_Capital!I24 -> -116 | I31: =Net_Working_Capital!J24 -> 2579.750512 | J31: =Net_Working_Capital!K24 -> 372.096001 | K31: =Net_Working_Capital!L24 -> 528.4590314 | L31: =Net_Working_Capital!M24 -> 757.1366698 | M31: =Net_Working_Capital!N24 -> 1094.243685 | N31: =Net_Working_Capital!O24 -> 1595.028263 | O31: =Net_Working_Capital!P24 -> 2344.460333 | P31: =Net_Working_Capital!Q24 -> 3473.867576 | Q31: =Net_Working_Capital!R24 -> 5187.15335 | R31: =Net_Working_Capital!S24 -> 7802.231008
B32: Unlevered Free Cash Flow | D32: =D28+D29-D30-D31 -> 1567.81252 | E32: -288.768 | F32: 9361.64 | G32: 8252.53 | H32: =H28+H29-H30-H31 -> 8426.78 | I32: =I28+I29-I30-I31 ->  | N32: =N28+N29-N30-N31 -> 
B33: Valuation Timing Factor | I33: =1/((1+$H$11)^((I$17-$C$9)/365)) -> 0.9656703152 | J33: =1/((1+$H$11)^((J$17-$C$9)/365)) -> 0.8934369131 | K33: 0.8266066639 | L33: 0.7647754046 | M33: =1/((1+$H$11)^((M$17-$C$9)/365)) -> 0.7074185049 | N33: =1/((1+$H$11)^((N$17-$C$9)/365)) -> 0.6545026758 | O33: 0.6055450199 | P33: 0.5602494607 | Q33: 0.5182316709 | R33: 0.4794672644
B34: Discount Rate | C34: =H11 -> 0.08084891177
B35: PV of Unlevered Free Cash Flow | I35: =I32*I33 ->  | J35: =J32*J33 -> 
S37: Exit Multiple Sensitivities
B38: SUM of PV of Unlevered FCF | C38: =SUM(I35:M35) -> 
W39: Implied Equity Value
B40: Implied Share Price - Exit Multiple | W40: WACC
B41: Exit Multiple | C41: =H10 -> 8.921767341 | T41: =E42 -> 0 | U41: =V41-0.005 -> 0.07084891177 | V41: 0.07584891177 | W41: =H11 -> 0.08084891177 | X41: =W41+0.005 -> 0.08584891177 | Y41: 0.09084891177
B42: Terminal Value | C42: =M23*H10 ->  | T42: =T43-0.5 -> 7.921767341 | U42: =(SUM($I$35:$M$35))+($T42*$M$23*(1/((1+U$41)^(($M$17-$C$9)/365))))+$C$45-$C$46 -> 
B43: PV of Terminal Value | C43: =C42*M33 ->  | S43: Terminal | T43: 8.421767341
B44: Implied Enterprise Value | C44: =C43+C38 ->  | S44: Multiple | T44: =H10 -> 8.921767341
B45: ADD: Debt | C45: =WACC_Calculator!L8 -> 25711 | S45: (x) | T45: =T44+0.5 -> 9.421767341
B46: LESS: Cash | C46: =Net_Working_Capital!I8 -> 1005 | T46: 9.921767341
B47: Implied Equity Value | C47: =C44+C45-C46 -> 
B48: F.D. Share O/S | C48: =M10 -> 216.4155 | W48: Implied Equity Value Change
B49: Implied Share Value | C49: =C47/C48 ->  | W49: WACC
B50: Implied Upside/(Downside) | C50: =(C49-M11)/M11 ->  | T50: =E48 -> 0 | U50: =V50-0.005 -> 0.07084891177 | V50: 0.07584891177 | W50: =W41 -> 0.08084891177 | X50: =W50+0.005 -> 0.08584891177 | Y50: 0.09084891177
T51: =T52-0.5 -> 7.921767341 | U51: =(U42-$C$47)/$C$47 ->  | X51: =(X42-$C$47)/$C$47 -> 
S52: Terminal | T52: 8.421767341
S53: Multiple | T53: =T44 -> 8.921767341 | W53: =(W44-$C$47)/$C$47 -> 
B54: Implied Share Price - PGG | S54: (x) | T54: =T53+0.5 -> 9.421767341
B55: Perpetual Growth Rate | C55: =M9 -> 0.02 | T55: 9.921767341
B56: Sum of PV of Unlevered FCF | C56: =C38 -> 
B57: PV of Terminal Value | C57: =(((M32)*(1+M9))/(H12-M9))*M33 ->  | S57: Perpetual Growth Rate Sensitivities
B58: Implied Enterprise Value | C58: =C56+C57 -> 
B59: ADD: Debt | C59: =WACC_Calculator!L8 -> 25711 | W59: Implied Equity Value
B60: LESS: Cash | C60: =C46 -> 1005 | W60: WACC
B61: Implied Equity Value | C61: =C58+C59-C60 ->  | T61: =E65 -> 0 | U61: =V61-0.005 -> 0.07084891177 | V61: 0.07584891177 | W61: =W41 -> 0.08084891177 | X61: =W61+0.005 -> 0.08584891177 | Y61: =X61+0.005 -> 0.09084891177
B62: F.D. Share O/S | C62: =M10 -> 216.4155 | T62: =T63-0.005 -> 0.01 | U62: =(SUM($I$35:$M$35))+((($M$32*(1+$T62))/(U$61-$T62))*(1/((1+U$61)^(($M$17-$C$9)/365))))+$C$45-$C$46 -> 
B63: Implied Share Value | C63: =C61/C62 ->  | S63: Perpetual | T63: =T64-0.005 -> 0.015
B64: Implied Upside/(Downside) | C64: =(C63-M11)/M11 ->  | S64: Growth | T64: =M9 -> 0.02
S65: Rate | T65: =T64+0.005 -> 0.025
T66: =T65+0.005 -> 0.03
W68: Implied Equity Value Change
W69: WACC
T70: =E71 -> 0 | U70: =V70-0.005 -> 0.07084891177 | V70: 0.07584891177 | W70: =W41 -> 0.08084891177 | X70: =W70+0.005 -> 0.08584891177 | Y70: 0.09084891177
T71: =T72-0.005 -> 0.01 | U71: =(U62-$C$61)/$C$61 -> 
S72: Perpetual | T72: =T73-0.005 -> 0.015
S73: Growth | T73: =T64 -> 0.02 | V73: =(V64-$C$61)/$C$61 ->  | W73: =(W64-$C$61)/$C$61 ->  | Y73: =(Y64-$C$61)/$C$61 -> 
S74: Rate | T74: =T73+0.005 -> 0.025
T75: =T74+0.005 -> 0.03

Sheet Main_Components --->

Sheet Operating_Model
C2: =DCF!C2 -> CAESARS ENTERTAINMENT INC | D2: Operating Model
C3: =DCF!C3 -> All Figures in USD Millions, expect for per share data
C4: Fiscal Year Ending December 31
G6: Actuals | N6: Forecast
E7: =YEAR(E8) -> 2019 | F7: =YEAR(F8) -> 2020 | G7: 2021 | H7: 2022 | I7: 2023 | J7: =YEAR(J8) -> 2024 | K7: =YEAR(K8) -> 2025 | L7: 2026 | M7: 2027 | N7: 2028 | O7: 2029 | P7: 2030 | Q7: 2031 | R7: 2032 | S7: 2033
E8: =EOMONTH(F8,-12) -> 2019-12-31 | F8: 2020-12-31 | G8: 2021-12-31 | H8: =EOMONTH(I8,-12) -> 2022-12-31 | I8: =DCF!D10 -> 2023-12-31 | J8: =EOMONTH(I8,12) -> 2024-12-31 | K8: =EOMONTH(J8,12) -> 2025-12-31 | L8: 2026-12-31 | M8: 2027-12-31 | N8: 2028-12-31 | O8: =EOMONTH(N8,12) -> 2029-12-31 | P8: =EOMONTH(O8,12) -> 2030-12-31 | Q8: =EOMONTH(P8,12) -> 2031-12-31 | R8: =EOMONTH(Q8,12) -> 2032-12-31 | S8: =EOMONTH(R8,12) -> 2033-12-31
E9: -4FY | F9: -3FY | G9: -2FY | H9: -1FY | I9: -0FY
C10: Global Revenue
C12: Division 1 | E12: =Revenue_Build!D6 -> 1808 | F12: =Revenue_Build!E6 -> 2482 | G12: =Revenue_Build!F6 -> 5827 | H12: =Revenue_Build!G6 -> 5997 | I12: =Revenue_Build!H6 -> 6367 | J12: =Revenue_Build!I6 -> 8189.966675 | K12: =Revenue_Build!J6 -> 10534.87579 | L12: =Revenue_Build!K6 -> 13551.16721 | M12: =Revenue_Build!L6 -> 17431.06767 | N12: =Revenue_Build!M6 -> 22421.84126 | O12: =Revenue_Build!N6 -> 28841.54747 | P12: =Revenue_Build!O6 -> 37099.31092 | Q12: =Revenue_Build!P6 -> 47721.3947 | R12: =Revenue_Build!Q6 -> 61384.73885 | S12: =Revenue_Build!R6 -> 78960.10139
C13: YoY Growth | E13: - | F13: =((F12-E12)/E12) -> 0.3727876106 | G13: =((G12-F12)/F12) -> 1.347703465 | H13: 0.02917453235 | I13: 0.06169751542 | J13: 0.2863148539 | K13: 0.2863148539 | L13: 0.2863148539 | M13: 0.2863148539 | N13: 0.2863148539 | O13: =((O12-N12)/N12) -> 0.2863148539 | P13: =((P12-O12)/O12) -> 0.2863148539 | Q13: =((Q12-P12)/P12) -> 0.2863148539 | R13: =((R12-Q12)/Q12) -> 0.2863148539 | S13: =((S12-R12)/R12) -> 0.2863148539
C15: Division 2 | E15: =Revenue_Build!D9 -> 300 | F15: =Revenue_Build!E9 -> 450 | G15: =Revenue_Build!F9 -> 1551 | H15: =Revenue_Build!G9 -> 1957 | I15: =Revenue_Build!H9 -> 2090 | J15: =Revenue_Build!I9 -> 3081.422805 | K15: =Revenue_Build!J9 -> 4543.141868 | L15: =Revenue_Build!K9 -> 6698.249263 | M15: =Revenue_Build!L9 -> 9875.66413 | N15: =Revenue_Build!M9 -> 14560.33333 | O15: =Revenue_Build!N9 -> 21467.24554 | P15: =Revenue_Build!O9 -> 31650.55501 | Q15: =Revenue_Build!P9 -> 46664.46986 | R15: =Revenue_Build!Q9 -> 68800.46011 | S15: =Revenue_Build!R9 -> 101436.9889
C16: YoY Growth | E16: - | F16: =((F15-E15)/E15) -> 0.5 | G16: =((G15-F15)/F15) -> 2.446666667 | H16: =((H15-G15)/G15) -> 0.2617666022 | I16: =((I15-H15)/H15) -> 0.06796116505 | J16: =((J15-I15)/I15) -> 0.4743649785 | K16: =((K15-J15)/J15) -> 0.4743649785 | L16: =((L15-K15)/K15) -> 0.4743649785 | M16: =((M15-L15)/L15) -> 0.4743649785 | N16: =((N15-M15)/M15) -> 0.4743649785 | O16: =((O15-N15)/N15) -> 0.4743649785 | P16: =((P15-O15)/O15) -> 0.4743649785 | Q16: =((Q15-P15)/P15) -> 0.4743649785 | R16: =((R15-Q15)/Q15) -> 0.4743649785 | S16: =((S15-R15)/R15) -> 0.4743649785
C18: Division 3 | E18: =Revenue_Build!D12 -> 301 | F18: =Revenue_Build!E12 -> 342 | G18: =Revenue_Build!F12 -> 1140 | H18: =Revenue_Build!G12 -> 1596 | I18: =Revenue_Build!H12 -> 1728 | J18: =Revenue_Build!I12 -> 2450.976722 | K18: =Revenue_Build!J12 -> 3476.439175 | L18: =Revenue_Build!K12 -> 4930.944151 | M18: =Revenue_Build!L12 -> 6993.998457 | N18: =Revenue_Build!M12 -> 9920.212625 | O18: =Revenue_Build!N12 -> 14070.72351 | P18: =Revenue_Build!O12 -> 19957.76377 | Q18: =Revenue_Build!P12 -> 28307.87872 | R18: =Revenue_Build!Q12 -> 40151.59247 | S18: =Revenue_Build!R12 -> 56950.58942
C19: YoY Growth | E19: - | F19: =((F18-E18)/E18) -> 0.1362126246 | G19: =((G18-F18)/F18) -> 2.333333333 | H19: =((H18-G18)/G18) -> 0.4 | I19: =((I18-H18)/H18) -> 0.08270676692 | J19: =((J18-I18)/I18) -> 0.4183893069 | K19: =((K18-J18)/J18) -> 0.4183893069 | L19: =((L18-K18)/K18) -> 0.4183893069 | M19: =((M18-L18)/L18) -> 0.4183893069 | N19: =((N18-M18)/M18) -> 0.4183893069 | O19: =((O18-N18)/N18) -> 0.4183893069 | P19: =((P18-O18)/O18) -> 0.4183893069 | Q19: =((Q18-P18)/P18) -> 0.4183893069 | R19: =((R18-Q18)/Q18) -> 0.4183893069 | S19: =((S18-R18)/R18) -> 0.4183893069
C21: Division 4 | E21: =Revenue_Build!D15 -> 119 | F21: =Revenue_Build!E15 -> 354 | G21: =Revenue_Build!F15 -> 1052 | H21: =Revenue_Build!G15 -> 1271 | I21: =Revenue_Build!H15 -> 1343 | J21: =Revenue_Build!I15 -> 2180.629198 | K21: =Revenue_Build!J15 -> 3540.687789 | L21: =Revenue_Build!K15 -> 5749.015022 | M21: =Revenue_Build!L15 -> 9334.676112 | N21: =Revenue_Build!M15 -> 15156.71429 | O21: =Revenue_Build!N15 -> 24609.95809 | P21: =Revenue_Build!O15 -> 39959.19076 | Q21: =Revenue_Build!P15 -> 64881.74096 | R21: =Revenue_Build!Q15 -> 105348.4875 | S21: =Revenue_Build!R15 -> 171054.3469
C22: YoY Growth | E22: - | F22: =((F21-E21)/E21) -> 1.974789916 | G22: =((G21-F21)/F21) -> 1.971751412 | H22: =((H21-G21)/G21) -> 0.2081749049 | I22: =((I21-H21)/H21) -> 0.05664830842 | J22: =((J21-I21)/I21) -> 0.6237000732 | K22: =((K21-J21)/J21) -> 0.6237000732 | L22: =((L21-K21)/K21) -> 0.6237000732 | M22: =((M21-L21)/L21) -> 0.6237000732 | N22: =((N21-M21)/M21) -> 0.6237000732 | O22: =((O21-N21)/N21) -> 0.6237000732 | P22: =((P21-O21)/O21) -> 0.6237000732 | Q22: =((Q21-P21)/P21) -> 0.6237000732 | R22: =((R21-Q21)/Q21) -> 0.6237000732 | S22: =((S21-R21)/R21) -> 0.6237000732
C24: Division 5 | E24: =Revenue_Build!D18 -> 0 | F24: =Revenue_Build!E18 -> 0 | G24: =Revenue_Build!F18 -> 0 | H24: =Revenue_Build!G18 -> 0 | I24: =Revenue_Build!H18 -> 0 | J24: =Revenue_Build!I18 -> 0 | K24: =Revenue_Build!J18 -> 0 | L24: =Revenue_Build!K18 -> 0 | M24: =Revenue_Build!L18 -> 0 | N24: =Revenue_Build!M18 -> 0 | O24: =Revenue_Build!N18 -> 0 | P24: =Revenue_Build!O18 -> 0 | Q24: =Revenue_Build!P18 -> 0 | R24: =Revenue_Build!Q18 -> 0 | S24: =Revenue_Build!R18 -> 0
C25: YoY Growth | E25: - | F25: =((F24-E24)/E24) ->  | G25: =((G24-F24)/F24) ->  | H25: =((H24-G24)/G24) ->  | I25: =((I24-H24)/H24) ->  | J25: =((J24-I24)/I24) ->  | K25: =((K24-J24)/J24) ->  | L25: =((L24-K24)/K24) ->  | M25: =((M24-L24)/L24) ->  | N25: =((N24-M24)/M24) ->  | O25: =((O24-N24)/N24) ->  | P25: =((P24-O24)/O24) ->  | Q25: =((Q24-P24)/P24) ->  | R25: =((R24-Q24)/Q24) ->  | S25: =((S24-R24)/R24) -> 
C27: Division 6 | E27: =Revenue_Build!D21 -> 0 | F27: =Revenue_Build!E21 -> 0 | G27: =Revenue_Build!F21 -> 0 | H27: =Revenue_Build!G21 -> 0 | I27: =Revenue_Build!H21 -> 0 | J27: =Revenue_Build!I21 -> 0 | K27: =Revenue_Build!J21 -> 0 | L27: =Revenue_Build!K21 -> 0 | M27: =Revenue_Build!L21 -> 0 | N27: =Revenue_Build!M21 -> 0 | O27: =Revenue_Build!N21 -> 0 | P27: =Revenue_Build!O21 -> 0 | Q27: =Revenue_Build!P21 -> 0 | R27: =Revenue_Build!Q21 -> 0 | S27: =Revenue_Build!R21 -> 0
C28: YoY Growth | E28: - | F28: =((F27-E27)/E27) ->  | G28: =((G27-F27)/F27) ->  | H28: =((H27-G27)/G27) ->  | I28: =((I27-H27)/H27) ->  | J28: =((J27-I27)/I27) ->  | K28: =((K27-J27)/J27) ->  | L28: =((L27-K27)/K27) ->  | M28: =((M27-L27)/L27) ->  | N28: =((N27-M27)/M27) ->  | O28: =((O27-N27)/N27) ->  | P28: =((P27-O27)/O27) ->  | Q28: =((Q27-P27)/P27) ->  | R28: =((R27-Q27)/Q27) ->  | S28: =((S27-R27)/R27) -> 
C30: Division 7 | E30: =Revenue_Build!D24 -> 0 | F30: =Revenue_Build!E24 -> 0 | G30: =Revenue_Build!F24 -> 0 | H30: =Revenue_Build!G24 -> 0 | I30: =Revenue_Build!H24 -> 0 | J30: =Revenue_Build!I24 -> 0 | K30: =Revenue_Build!J24 -> 0 | L30: =Revenue_Build!K24 -> 0 | M30: =Revenue_Build!L24 -> 0 | N30: =Revenue_Build!M24 -> 0 | O30: =Revenue_Build!N24 -> 0 | P30: =Revenue_Build!O24 -> 0 | Q30: =Revenue_Build!P24 -> 0 | R30: =Revenue_Build!Q24 -> 0 | S30: =Revenue_Build!R24 -> 0
C31: YoY Growth | E31: - | F31: =((F30-E30)/E30) ->  | G31: =((G30-F30)/F30) ->  | H31: =((H30-G30)/G30) ->  | I31: =((I30-H30)/H30) ->  | J31: =((J30-I30)/I30) ->  | K31: =((K30-J30)/J30) ->  | L31: =((L30-K30)/K30) ->  | M31: =((M30-L30)/L30) ->  | N31: =((N30-M30)/M30) ->  | O31: =((O30-N30)/N30) ->  | P31: =((P30-O30)/O30) ->  | Q31: =((Q30-P30)/P30) ->  | R31: =((R30-Q30)/Q30) ->  | S31: =((S30-R30)/R30) -> 
C33: Division 8 | E33: =Revenue_Build!D27 -> 0 | F33: =Revenue_Build!E27 -> 0 | G33: =Revenue_Build!F27 -> 0 | H33: =Revenue_Build!G27 -> 0 | I33: =Revenue_Build!H27 -> 0 | J33: =Revenue_Build!I27 -> 0 | K33: =Revenue_Build!J27 -> 0 | L33: =Revenue_Build!K27 -> 0 | M33: =Revenue_Build!L27 -> 0 | N33: =Revenue_Build!M27 -> 0 | O33: =Revenue_Build!N27 -> 0 | P33: =Revenue_Build!O27 -> 0 | Q33: =Revenue_Build!P27 -> 0 | R33: =Revenue_Build!Q27 -> 0 | S33: =Revenue_Build!R27 -> 0
C34: YoY Growth | E34: - | F34: =((F33-E33)/E33) ->  | G34: =((G33-F33)/F33) ->  | H34: =((H33-G33)/G33) ->  | I34: =((I33-H33)/H33) ->  | J34: =((J33-I33)/I33) ->  | K34: =((K33-J33)/J33) ->  | L34: =((L33-K33)/K33) ->  | M34: =((M33-L33)/L33) ->  | N34: =((N33-M33)/M33) ->  | O34: =((O33-N33)/N33) ->  | P34: =((P33-O33)/O33) ->  | Q34: =((Q33-P33)/P33) ->  | R34: =((R33-Q33)/Q33) ->  | S34: =((S33-R33)/R33) -> 
C36: Division 9 | E36: =Revenue_Build!D30 -> 0 | F36: =Revenue_Build!E30 -> 0 | G36: =Revenue_Build!F30 -> 0 | H36: =Revenue_Build!G30 -> 0 | I36: =Revenue_Build!H30 -> 0 | J36: =Revenue_Build!I30 -> 0 | K36: =Revenue_Build!J30 -> 0 | L36: =Revenue_Build!K30 -> 0 | M36: =Revenue_Build!L30 -> 0 | N36: =Revenue_Build!M30 -> 0 | O36: =Revenue_Build!N30 -> 0 | P36: =Revenue_Build!O30 -> 0 | Q36: =Revenue_Build!P30 -> 0 | R36: =Revenue_Build!Q30 -> 0 | S36: =Revenue_Build!R30 -> 0
C37: YoY Growth | E37: - | F37: =((F36-E36)/E36) ->  | G37: =((G36-F36)/F36) ->  | H37: =((H36-G36)/G36) ->  | I37: =((I36-H36)/H36) ->  | J37: =((J36-I36)/I36) ->  | K37: =((K36-J36)/J36) ->  | L37: =((L36-K36)/K36) ->  | M37: =((M36-L36)/L36) ->  | N37: =((N36-M36)/M36) ->  | O37: =((O36-N36)/N36) ->  | P37: =((P36-O36)/O36) ->  | Q37: =((Q36-P36)/P36) ->  | R37: =((R36-Q36)/Q36) ->  | S37: =((S36-R36)/R36) -> 
C39: Division 10 | E39: =Revenue_Build!D33 -> 0 | F39: =Revenue_Build!E33 -> 0 | G39: =Revenue_Build!F33 -> 0 | H39: =Revenue_Build!G33 -> 0 | I39: =Revenue_Build!H33 -> 0 | J39: =Revenue_Build!I33 -> 0 | K39: =Revenue_Build!J33 -> 0 | L39: =Revenue_Build!K33 -> 0 | M39: =Revenue_Build!L33 -> 0 | N39: =Revenue_Build!M33 -> 0 | O39: =Revenue_Build!N33 -> 0 | P39: =Revenue_Build!O33 -> 0 | Q39: =Revenue_Build!P33 -> 0 | R39: =Revenue_Build!Q33 -> 0 | S39: =Revenue_Build!R33 -> 0
C40: YoY Growth | E40: - | F40: =((F39-E39)/E39) ->  | G40: =((G39-F39)/F39) ->  | H40: =((H39-G39)/G39) ->  | I40: =((I39-H39)/H39) ->  | J40: =((J39-I39)/I39) ->  | K40: =((K39-J39)/J39) ->  | L40: =((L39-K39)/K39) ->  | M40: =((M39-L39)/L39) ->  | N40: =((N39-M39)/M39) ->  | O40: =((O39-N39)/N39) ->  | P40: =((P39-O39)/O39) ->  | Q40: =((Q39-P39)/P39) ->  | R40: =((R39-Q39)/Q39) ->  | S40: =((S39-R39)/R39) -> 
C42: Global Revenue | E42: =SUM(IF(MOD(ROW(E12:E40)-ROW(E12),3)=0, IFERROR(E12:E40, 0))) -> 2528 | F42: =SUM(IF(MOD(ROW(F12:F40)-ROW(F12),3)=0, IFERROR(F12:F40, 0))) -> 3628 | G42: =SUM(IF(MOD(ROW(G12:G40)-ROW(G12),3)=0, IFERROR(G12:G40, 0))) -> 9570 | H42: =SUM(IF(MOD(ROW(H12:H40)-ROW(H12),3)=0, IFERROR(H12:H40, 0))) -> 10821 | I42: =SUM(IF(MOD(ROW(I12:I40)-ROW(I12),3)=0, IFERROR(I12:I40, 0))) -> 11528 | J42: =SUM(IF(MOD(ROW(J12:J40)-ROW(J12),3)=0, IFERROR(J12:J40, 0))) -> 15902.9954 | K42: =SUM(IF(MOD(ROW(K12:K40)-ROW(K12),3)=0, IFERROR(K12:K40, 0))) -> 22095.14462 | L42: =SUM(IF(MOD(ROW(L12:L40)-ROW(L12),3)=0, IFERROR(L12:L40, 0))) -> 30929.37564 | M42: =SUM(IF(MOD(ROW(M12:M40)-ROW(M12),3)=0, IFERROR(M12:M40, 0))) -> 43635.40637 | N42: =SUM(IF(MOD(ROW(N12:N40)-ROW(N12),3)=0, IFERROR(N12:N40, 0))) -> 62059.1015 | O42: =SUM(IF(MOD(ROW(O12:O40)-ROW(O12),3)=0, IFERROR(O12:O40, 0))) -> 88989.47461 | P42: =SUM(IF(MOD(ROW(P12:P40)-ROW(P12),3)=0, IFERROR(P12:P40, 0))) -> 128666.8205 | Q42: =SUM(IF(MOD(ROW(Q12:Q40)-ROW(Q12),3)=0, IFERROR(Q12:Q40, 0))) -> 187575.4842 | R42: =SUM(IF(MOD(ROW(R12:R40)-ROW(R12),3)=0, IFERROR(R12:R40, 0))) -> 275685.279 | S42: =SUM(IF(MOD(ROW(S12:S40)-ROW(S12),3)=0, IFERROR(S12:S40, 0))) -> 408402.0266
C43: YoY Growth | E43: - | F43: =((F42-E42)/E42) -> 0.4351265823 | G43: =((G42-F42)/F42) -> 1.637816979 | H43: =((H42-G42)/G42) -> 0.1307210031 | I43: =((I42-H42)/H42) -> 0.06533592089 | J43: =((J42-I42)/I42) -> 0.3795103574 | K43: =((K42-J42)/J42) -> 0.3893699936 | L43: =((L42-K42)/K42) -> 0.3998268026 | M43: =((M42-L42)/L42) -> 0.4108078633 | N43: =((N42-M42)/M42) -> 0.4222189426 | O43: =((O42-N42)/N42) -> 0.4339471964 | P43: =((P42-O42)/O42) -> 0.4458656039 | Q43: =((Q42-P42)/P42) -> 0.4578388086 | R43: =((R42-Q42)/Q42) -> 0.4697298002 | S43: =((S42-R42)/R42) -> 0.4814067264
C46: Cost of Revenue
B48: ARD_COST_OF_PRODUCTS_SOLD | C48: Cost of Products Sold | E48: =IF(_xll.BDP(Hub!$D$4,$B48,"EQY_FUND_RELATIVE_PERIOD",E$9, "EQY_FUND_CRNCY", Hub!$D$8, "FA_ADJUSTED", "ADJ")="#N/A N/A", 0, _xll.BDP(Hub!$D$4,$B48,"EQY_FUND_RELATIVE_PERIOD",E$9, "EQY_FUND_CRNCY", Hub!$D$8, "FA_ADJUSTED", "ADJ")) -> 0 | F48: =IF(_xll.BDP(Hub!$D$4,$B48,"EQY_FUND_RELATIVE_PERIOD",F$9, "EQY_FUND_CRNCY", Hub!$D$8, "FA_ADJUSTED", "ADJ")="#N/A N/A", 0, _xll.BDP(Hub!$D$4,$B48,"EQY_FUND_RELATIVE_PERIOD",F$9, "EQY_FUND_CRNCY", Hub!$D$8, "FA_ADJUSTED", "ADJ")) -> 0 | G48: =IF(_xll.BDP(Hub!$D$4,$B48,"EQY_FUND_RELATIVE_PERIOD",G$9, "EQY_FUND_CRNCY", Hub!$D$8, "FA_ADJUSTED", "ADJ")="#N/A N/A", 0, _xll.BDP(Hub!$D$4,$B48,"EQY_FUND_RELATIVE_PERIOD",G$9, "EQY_FUND_CRNCY", Hub!$D$8, "FA_ADJUSTED", "ADJ")) -> 0 | H48: =IF(_xll.BDP(Hub!$D$4,$B48,"EQY_FUND_RELATIVE_PERIOD",H$9, "EQY_FUND_CRNCY", Hub!$D$8, "FA_ADJUSTED", "ADJ")="#N/A N/A", 0, _xll.BDP(Hub!$D$4,$B48,"EQY_FUND_RELATIVE_PERIOD",H$9, "EQY_FUND_CRNCY", Hub!$D$8, "FA_ADJUSTED", "ADJ")) -> 0 | I48: =IF(_xll.BDP(Hub!$D$4,$B48,"EQY_FUND_RELATIVE_PERIOD",I$9, "EQY_FUND_CRNCY", Hub!$D$8, "FA_ADJUSTED", "ADJ")="#N/A N/A", 0, _xll.BDP(Hub!$D$4,$B48,"EQY_FUND_RELATIVE_PERIOD",I$9, "EQY_FUND_CRNCY", Hub!$D$8, "FA_ADJUSTED", "ADJ")) -> 0 | J48: =IFERROR(J$42*Historicals!I29,0) -> 0 | K48: =IFERROR(K$42*Historicals!J29,0) -> 0 | L48: =IFERROR(L$42*Historicals!K29,0) -> 0 | M48: =IFERROR(M$42*Historicals!L29,0) -> 0 | N48: =IFERROR(N$42*Historicals!M29,0) -> 0 | O48: =IFERROR(O$42*Historicals!N29,0) -> 0 | P48: =IFERROR(P$42*Historicals!O29,0) -> 0 | Q48: =IFERROR(Q$42*Historicals!P29,0) -> 0 | R48: =IFERROR(R$42*Historicals!Q29,0) -> 0 | S48: =IFERROR(S$42*Historicals!R29,0) -> 0
C49: YoY Growth | E49: - | F49: =((F48-E48)/E48) ->  | G49: =((G48-F48)/F48) ->  | H49: =((H48-G48)/G48) ->  | I49: =((I48-H48)/H48) ->  | J49: =((J48-I48)/I48) ->  | K49: =((K48-J48)/J48) ->  | L49: =((L48-K48)/K48) ->  | M49: =((M48-L48)/L48) ->  | N49: =((N48-M48)/M48) ->  | O49: =((O48-N48)/N48) -> 
B51: ARD_COST_OF_SERVICES | C51: Cost of Services Sold | E51: =IF(_xll.BDP(Hub!$D$4,$B51,"EQY_FUND_RELATIVE_PERIOD",E$9, "EQY_FUND_CRNCY", Hub!$D$8, "FA_ADJUSTED", "ADJ")="#N/A N/A", 0, _xll.BDP(Hub!$D$4,$B51,"EQY_FUND_RELATIVE_PERIOD",E$9, "EQY_FUND_CRNCY", Hub!$D$8, "FA_ADJUSTED", "ADJ")) -> 0 | F51: =IF(_xll.BDP(Hub!$D$4,$B51,"EQY_FUND_RELATIVE_PERIOD",F$9, "EQY_FUND_CRNCY", Hub!$D$8, "FA_ADJUSTED", "ADJ")="#N/A N/A", 0, _xll.BDP(Hub!$D$4,$B51,"EQY_FUND_RELATIVE_PERIOD",F$9, "EQY_FUND_CRNCY", Hub!$D$8, "FA_ADJUSTED", "ADJ")) -> 0 | G51: =IF(_xll.BDP(Hub!$D$4,$B51,"EQY_FUND_RELATIVE_PERIOD",G$9, "EQY_FUND_CRNCY", Hub!$D$8, "FA_ADJUSTED", "ADJ")="#N/A N/A", 0, _xll.BDP(Hub!$D$4,$B51,"EQY_FUND_RELATIVE_PERIOD",G$9, "EQY_FUND_CRNCY", Hub!$D$8, "FA_ADJUSTED", "ADJ")) -> 0 | H51: =IF(_xll.BDP(Hub!$D$4,$B51,"EQY_FUND_RELATIVE_PERIOD",H$9, "EQY_FUND_CRNCY", Hub!$D$8, "FA_ADJUSTED", "ADJ")="#N/A N/A", 0, _xll.BDP(Hub!$D$4,$B51,"EQY_FUND_RELATIVE_PERIOD",H$9, "EQY_FUND_CRNCY", Hub!$D$8, "FA_ADJUSTED", "ADJ")) -> 0 | I51: =IF(_xll.BDP(Hub!$D$4,$B51,"EQY_FUND_RELATIVE_PERIOD",I$9, "EQY_FUND_CRNCY", Hub!$D$8, "FA_ADJUSTED", "ADJ")="#N/A N/A", 0, _xll.BDP(Hub!$D$4,$B51,"EQY_FUND_RELATIVE_PERIOD",I$9, "EQY_FUND_CRNCY", Hub!$D$8, "FA_ADJUSTED", "ADJ")) -> 0 | J51: =IFERROR(J$42*Historicals!I30,0) -> 0 | K51: =IFERROR(K$42*Historicals!J30,0) -> 0 | L51: =IFERROR(L$42*Historicals!K30,0) -> 0 | M51: =IFERROR(M$42*Historicals!L30,0) -> 0 | N51: =IFERROR(N$42*Historicals!M30,0) -> 0 | O51: =IFERROR(O$42*Historicals!N30,0) -> 0 | P51: =IFERROR(P$42*Historicals!O30,0) -> 0 | Q51: =IFERROR(Q$42*Historicals!P30,0) -> 0 | R51: =IFERROR(R$42*Historicals!Q30,0) -> 0 | S51: =IFERROR(S$42*Historicals!R30,0) -> 0
C52: YoY Growth | E52: - | F52: =((F51-E51)/E51) ->  | G52: =((G51-F51)/F51) ->  | H52: =((H51-G51)/G51) ->  | I52: =((I51-H51)/H51) ->  | J52: =((J51-I51)/I51) ->  | K52: =((K51-J51)/J51) ->  | L52: =((L51-K51)/K51) ->  | M52: =((M51-L51)/L51) ->  | N52: =((N51-M51)/M51) ->  | O52: =((O51-N51)/N51) ->  | P52: =((P51-O51)/O51) ->  | Q52: =((Q51-P51)/P51) ->  | R52: =((R51-Q51)/Q51) ->  | S52: =((S51-R51)/R51) -> 
B54: ARDR_OTH_ADJ_NON_GAAP_COGS | C54: Cost of Revenue Adjustments | E54: =IFERROR(IF(-_xll.BDP(Hub!$D$4,$B54,"EQY_FUND_RELATIVE_PERIOD",E$9, "EQY_FUND_CRNCY", Hub!$D$8, "FA_ADJUSTED", "ADJ")="#N/A N/A", 0, -_xll.BDP(Hub!$D$4,$B54,"EQY_FUND_RELATIVE_PERIOD",E$9, "EQY_FUND_CRNCY", Hub!$D$8, "FA_ADJUSTED", "ADJ")),0) -> 0 | F54: =IFERROR(IF(-_xll.BDP(Hub!$D$4,$B54,"EQY_FUND_RELATIVE_PERIOD",F$9, "EQY_FUND_CRNCY", Hub!$D$8, "FA_ADJUSTED", "ADJ")="#N/A N/A", 0, -_xll.BDP(Hub!$D$4,$B54,"EQY_FUND_RELATIVE_PERIOD",F$9, "EQY_FUND_CRNCY", Hub!$D$8, "FA_ADJUSTED", "ADJ")),0) -> 0 | G54: =IFERROR(IF(-_xll.BDP(Hub!$D$4,$B54,"EQY_FUND_RELATIVE_PERIOD",G$9, "EQY_FUND_CRNCY", Hub!$D$8, "FA_ADJUSTED", "ADJ")="#N/A N/A", 0, -_xll.BDP(Hub!$D$4,$B54,"EQY_FUND_RELATIVE_PERIOD",G$9, "EQY_FUND_CRNCY", Hub!$D$8, "FA_ADJUSTED", "ADJ")),0) -> 0 | H54: =IFERROR(IF(-_xll.BDP(Hub!$D$4,$B54,"EQY_FUND_RELATIVE_PERIOD",H$9, "EQY_FUND_CRNCY", Hub!$D$8, "FA_ADJUSTED", "ADJ")="#N/A N/A", 0, -_xll.BDP(Hub!$D$4,$B54,"EQY_FUND_RELATIVE_PERIOD",H$9, "EQY_FUND_CRNCY", Hub!$D$8, "FA_ADJUSTED", "ADJ")),0) -> 0 | I54: =IFERROR(IF(-_xll.BDP(Hub!$D$4,$B54,"EQY_FUND_RELATIVE_PERIOD",I$9, "EQY_FUND_CRNCY", Hub!$D$8, "FA_ADJUSTED", "ADJ")="#N/A N/A", 0, -_xll.BDP(Hub!$D$4,$B54,"EQY_FUND_RELATIVE_PERIOD",I$9, "EQY_FUND_CRNCY", Hub!$D$8, "FA_ADJUSTED", "ADJ")),0) -> 0 | J54: =IFERROR(J$42*Historicals!I31,0) -> 0 | K54: =IFERROR(K$42*Historicals!J31,0) -> 0 | L54: =IFERROR(L$42*Historicals!K31,0) -> 0 | M54: =IFERROR(M$42*Historicals!L31,0) -> 0 | N54: =IFERROR(N$42*Historicals!M31,0) -> 0 | O54: =IFERROR(O$42*Historicals!N31,0) -> 0 | P54: =IFERROR(P$42*Historicals!O31,0) -> 0 | Q54: =IFERROR(Q$42*Historicals!P31,0) -> 0 | R54: =IFERROR(R$42*Historicals!Q31,0) -> 0 | S54: =IFERROR(S$42*Historicals!R31,0) -> 0
C55: YoY Growth | E55: - | F55: =((F54-E54)/E54) ->  | G55: =((G54-F54)/F54) ->  | H55: =((H54-G54)/G54) ->  | I55: =((I54-H54)/H54) ->  | J55: =((J54-I54)/I54) ->  | K55: =((K54-J54)/J54) ->  | L55: =((L54-K54)/K54) ->  | M55: =((M54-L54)/L54) ->  | N55: =((N54-M54)/M54) ->  | O55: =((O54-N54)/N54) ->  | P55: =((P54-O54)/O54) ->  | Q55: =((Q54-P54)/P54) ->  | R55: =((R54-Q54)/Q54) ->  | S55: =((S54-R54)/R54) -> 
B57: ARD_FINANCE_SUBSIDIARY_INT_EXP | C57: Cost of Financing Revenue | E57: =IF(_xll.BDP(Hub!$D$4,$B57,"EQY_FUND_RELATIVE_PERIOD",E$9, "EQY_FUND_CRNCY", Hub!$D$8, "FA_ADJUSTED", "ADJ")="#N/A N/A", 0, _xll.BDP(Hub!$D$4,$B57,"EQY_FUND_RELATIVE_PERIOD",E$9, "EQY_FUND_CRNCY", Hub!$D$8, "FA_ADJUSTED", "ADJ")) -> 0 | F57: =IF(_xll.BDP(Hub!$D$4,$B57,"EQY_FUND_RELATIVE_PERIOD",F$9, "EQY_FUND_CRNCY", Hub!$D$8, "FA_ADJUSTED", "ADJ")="#N/A N/A", 0, _xll.BDP(Hub!$D$4,$B57,"EQY_FUND_RELATIVE_PERIOD",F$9, "EQY_FUND_CRNCY", Hub!$D$8, "FA_ADJUSTED", "ADJ")) -> 0 | G57: =IF(_xll.BDP(Hub!$D$4,$B57,"EQY_FUND_RELATIVE_PERIOD",G$9, "EQY_FUND_CRNCY", Hub!$D$8, "FA_ADJUSTED", "ADJ")="#N/A N/A", 0, _xll.BDP(Hub!$D$4,$B57,"EQY_FUND_RELATIVE_PERIOD",G$9, "EQY_FUND_CRNCY", Hub!$D$8, "FA_ADJUSTED", "ADJ")) -> 0 | H57: =IF(_xll.BDP(Hub!$D$4,$B57,"EQY_FUND_RELATIVE_PERIOD",H$9, "EQY_FUND_CRNCY", Hub!$D$8, "FA_ADJUSTED", "ADJ")="#N/A N/A", 0, _xll.BDP(Hub!$D$4,$B57,"EQY_FUND_RELATIVE_PERIOD",H$9, "EQY_FUND_CRNCY", Hub!$D$8, "FA_ADJUSTED", "ADJ")) -> 0 | I57: =IF(_xll.BDP(Hub!$D$4,$B57,"EQY_FUND_RELATIVE_PERIOD",I$9, "EQY_FUND_CRNCY", Hub!$D$8, "FA_ADJUSTED", "ADJ")="#N/A N/A", 0, _xll.BDP(Hub!$D$4,$B57,"EQY_FUND_RELATIVE_PERIOD",I$9, "EQY_FUND_CRNCY", Hub!$D$8, "FA_ADJUSTED", "ADJ")) -> 0 | J57: =IFERROR(J$42*Historicals!I32,0) -> 0 | K57: =IFERROR(K$42*Historicals!J32,0) -> 0 | L57: =IFERROR(L$42*Historicals!K32,0) -> 0 | M57: =IFERROR(M$42*Historicals!L32,0) -> 0 | N57: =IFERROR(N$42*Historicals!M32,0) -> 0 | O57: =IFERROR(O$42*Historicals!N32,0) -> 0 | P57: =IFERROR(P$42*Historicals!O32,0) -> 0 | Q57: =IFERROR(Q$42*Historicals!P32,0) -> 0 | R57: =IFERROR(R$42*Historicals!Q32,0) -> 0 | S57: =IFERROR(S$42*Historicals!R32,0) -> 0
C58: YoY Growth | E58: - | F58: =((F57-E57)/E57) ->  | G58: =((G57-F57)/F57) ->  | H58: =((H57-G57)/G57) ->  | I58: =((I57-H57)/H57) ->  | J58: =((J57-I57)/I57) ->  | K58: =((K57-J57)/J57) ->  | L58: =((L57-K57)/K57) ->  | M58: =((M57-L57)/L57) ->  | N58: =((N57-M57)/M57) ->  | O58: =((O57-N57)/N57) ->  | P58: =((P57-O57)/O57) ->  | Q58: =((Q57-P57)/P57) ->  | R58: =((R57-Q57)/Q57) ->  | S58: =((S57-R57)/R57) -> 
B60: ARD_OTHER_COST_OF_REVENUES | C60: Other Costs of Revenue | E60: =IF(_xll.BDP(Hub!$D$4,$B60,"EQY_FUND_RELATIVE_PERIOD",E$9, "EQY_FUND_CRNCY", Hub!$D$8, "FA_ADJUSTED", "ADJ")="#N/A N/A", 0, _xll.BDP(Hub!$D$4,$B60,"EQY_FUND_RELATIVE_PERIOD",E$9, "EQY_FUND_CRNCY", Hub!$D$8, "FA_ADJUSTED", "ADJ")) -> 45.938 | F60: =IF(_xll.BDP(Hub!$D$4,$B60,"EQY_FUND_RELATIVE_PERIOD",F$9, "EQY_FUND_CRNCY", Hub!$D$8, "FA_ADJUSTED", "ADJ")="#N/A N/A", 0, _xll.BDP(Hub!$D$4,$B60,"EQY_FUND_RELATIVE_PERIOD",F$9, "EQY_FUND_CRNCY", Hub!$D$8, "FA_ADJUSTED", "ADJ")) -> 140 | G60: =IF(_xll.BDP(Hub!$D$4,$B60,"EQY_FUND_RELATIVE_PERIOD",G$9, "EQY_FUND_CRNCY", Hub!$D$8, "FA_ADJUSTED", "ADJ")="#N/A N/A", 0, _xll.BDP(Hub!$D$4,$B60,"EQY_FUND_RELATIVE_PERIOD",G$9, "EQY_FUND_CRNCY", Hub!$D$8, "FA_ADJUSTED", "ADJ")) -> 373 | H60: =IF(_xll.BDP(Hub!$D$4,$B60,"EQY_FUND_RELATIVE_PERIOD",H$9, "EQY_FUND_CRNCY", Hub!$D$8, "FA_ADJUSTED", "ADJ")="#N/A N/A", 0, _xll.BDP(Hub!$D$4,$B60,"EQY_FUND_RELATIVE_PERIOD",H$9, "EQY_FUND_CRNCY", Hub!$D$8, "FA_ADJUSTED", "ADJ")) -> 411 | I60: =IF(_xll.BDP(Hub!$D$4,$B60,"EQY_FUND_RELATIVE_PERIOD",I$9, "EQY_FUND_CRNCY", Hub!$D$8, "FA_ADJUSTED", "ADJ")="#N/A N/A", 0, _xll.BDP(Hub!$D$4,$B60,"EQY_FUND_RELATIVE_PERIOD",I$9, "EQY_FUND_CRNCY", Hub!$D$8, "FA_ADJUSTED", "ADJ")) -> 434 | J60: =IFERROR(J$42*Historicals!I33,0) -> 545.0451654 | K60: =IFERROR(K$42*Historicals!J33,0) -> 757.2693979 | L60: =IFERROR(L$42*Historicals!K33,0) -> 1060.046 | M60: =IFERROR(M$42*Historicals!L33,0) -> 1495.521232 | N60: =IFERROR(N$42*Historicals!M33,0) -> 2126.958626 | O60: =IFERROR(O$42*Historicals!N33,0) -> 3049.946358 | P60: =IFERROR(P$42*Historicals!O33,0) -> 4409.812533 | Q60: =IFERROR(Q$42*Historicals!P33,0) -> 6428.79585 | R60: =IFERROR(R$42*Historicals!Q33,0) -> 9448.59284 | S60: =IFERROR(S$42*Historicals!R33,0) -> 13997.20899
C61: YoY Growth | E61: - | F61: =((F60-E60)/E60) -> 2.047585877 | G61: =((G60-F60)/F60) -> 1.664285714 | H61: =((H60-G60)/G60) -> 0.1018766756 | I61: =((I60-H60)/H60) -> 0.05596107056 | J61: =((J60-I60)/I60) -> 0.2558644364 | K61: =((K60-J60)/J60) -> 0.3893699936 | L61: =((L60-K60)/K60) -> 0.3998268026 | M61: =((M60-L60)/L60) -> 0.4108078633 | N61: =((N60-M60)/M60) -> 0.4222189426 | O61: =((O60-N60)/N60) -> 0.4339471964 | P61: =((P60-O60)/O60) -> 0.4458656039 | Q61: =((Q60-P60)/P60) -> 0.4578388086 | R61: =((R60-Q60)/Q60) -> 0.4697298002 | S61: =((S60-R60)/R60) -> 0.4814067264
B63: ARD_COST_OF_GOODS_SOLD | C63: Cost of Goods Sold (Backup) | E63: =IF(_xll.BDP(Hub!$D$4,$B63,"EQY_FUND_RELATIVE_PERIOD",E$9, "EQY_FUND_CRNCY", Hub!$D$8, "FA_ADJUSTED", "ADJ")="#N/A N/A", 0, _xll.BDP(Hub!$D$4,$B63,"EQY_FUND_RELATIVE_PERIOD",E$9, "EQY_FUND_CRNCY", Hub!$D$8, "FA_ADJUSTED", "ADJ")) -> 0 | F63: =IF(_xll.BDP(Hub!$D$4,$B63,"EQY_FUND_RELATIVE_PERIOD",F$9, "EQY_FUND_CRNCY", Hub!$D$8, "FA_ADJUSTED", "ADJ")="#N/A N/A", 0, _xll.BDP(Hub!$D$4,$B63,"EQY_FUND_RELATIVE_PERIOD",F$9, "EQY_FUND_CRNCY", Hub!$D$8, "FA_ADJUSTED", "ADJ")) -> 0 | G63: =IF(_xll.BDP(Hub!$D$4,$B63,"EQY_FUND_RELATIVE_PERIOD",G$9, "EQY_FUND_CRNCY", Hub!$D$8, "FA_ADJUSTED", "ADJ")="#N/A N/A", 0, _xll.BDP(Hub!$D$4,$B63,"EQY_FUND_RELATIVE_PERIOD",G$9, "EQY_FUND_CRNCY", Hub!$D$8, "FA_ADJUSTED", "ADJ")) -> 0 | H63: =IF(_xll.BDP(Hub!$D$4,$B63,"EQY_FUND_RELATIVE_PERIOD",H$9, "EQY_FUND_CRNCY", Hub!$D$8, "FA_ADJUSTED", "ADJ")="#N/A N/A", 0, _xll.BDP(Hub!$D$4,$B63,"EQY_FUND_RELATIVE_PERIOD",H$9, "EQY_FUND_CRNCY", Hub!$D$8, "FA_ADJUSTED", "ADJ")) -> 0 | I63: =IF(_xll.BDP(Hub!$D$4,$B63,"EQY_FUND_RELATIVE_PERIOD",I$9, "EQY_FUND_CRNCY", Hub!$D$8, "FA_ADJUSTED", "ADJ")="#N/A N/A", 0, _xll.BDP(Hub!$D$4,$B63,"EQY_FUND_RELATIVE_PERIOD",I$9, "EQY_FUND_CRNCY", Hub!$D$8, "FA_ADJUSTED", "ADJ")) -> 0 | J63: =IFERROR(J$42*Historicals!I35,0) -> 0 | K63: =IFERROR(K$42*Historicals!J35,0) -> 0 | L63: =IFERROR(L$42*Historicals!K35,0) -> 0 | M63: =IFERROR(M$42*Historicals!L35,0) -> 0 | N63: =IFERROR(N$42*Historicals!M35,0) -> 0 | O63: =IFERROR(O$42*Historicals!N35,0) -> 0 | P63: =IFERROR(P$42*Historicals!O35,0) -> 0 | Q63: =IFERROR(Q$42*Historicals!P35,0) -> 0 | R63: =IFERROR(R$42*Historicals!Q35,0) -> 0 | S63: =IFERROR(S$42*Historicals!R35,0) -> 0
C64: YoY Growth | E64: - | F64: =((F63-E63)/E63) ->  | G64: =((G63-F63)/F63) ->  | H64: =((H63-G63)/G63) ->  | I64: =((I63-H63)/H63) ->  | J64: =((J63-I63)/I63) ->  | K64: =((K63-J63)/J63) ->  | L64: =((L63-K63)/K63) ->  | M64: =((M63-L63)/L63) ->  | N64: =((N63-M63)/M63) ->  | O64: =((O63-N63)/N63) ->  | P64: =((P63-O63)/O63) ->  | Q64: =((Q63-P63)/P63) ->  | R64: =((R63-Q63)/Q63) ->  | S64: =((S63-R63)/R63) -> 
B66: ARDR_RSTRCT_WF_BAL_NON_GAAP_COGS | C66: Restructuring/Workflow Balance | E66: =IFERROR(IF(-_xll.BDP(Hub!$D$4,$B66,"EQY_FUND_RELATIVE_PERIOD",E$9, "EQY_FUND_CRNCY", Hub!$D$8, "FA_ADJUSTED", "ADJ")="#N/A N/A", 0, -_xll.BDP(Hub!$D$4,$B66,"EQY_FUND_RELATIVE_PERIOD",E$9, "EQY_FUND_CRNCY", Hub!$D$8, "FA_ADJUSTED", "ADJ")),0) -> 0 | F66: =IFERROR(IF(-_xll.BDP(Hub!$D$4,$B66,"EQY_FUND_RELATIVE_PERIOD",F$9, "EQY_FUND_CRNCY", Hub!$D$8, "FA_ADJUSTED", "ADJ")="#N/A N/A", 0, -_xll.BDP(Hub!$D$4,$B66,"EQY_FUND_RELATIVE_PERIOD",F$9, "EQY_FUND_CRNCY", Hub!$D$8, "FA_ADJUSTED", "ADJ")),0) -> 0 | G66: =IFERROR(IF(-_xll.BDP(Hub!$D$4,$B66,"EQY_FUND_RELATIVE_PERIOD",G$9, "EQY_FUND_CRNCY", Hub!$D$8, "FA_ADJUSTED", "ADJ")="#N/A N/A", 0, -_xll.BDP(Hub!$D$4,$B66,"EQY_FUND_RELATIVE_PERIOD",G$9, "EQY_FUND_CRNCY", Hub!$D$8, "FA_ADJUSTED", "ADJ")),0) -> 0 | H66: =IFERROR(IF(-_xll.BDP(Hub!$D$4,$B66,"EQY_FUND_RELATIVE_PERIOD",H$9, "EQY_FUND_CRNCY", Hub!$D$8, "FA_ADJUSTED", "ADJ")="#N/A N/A", 0, -_xll.BDP(Hub!$D$4,$B66,"EQY_FUND_RELATIVE_PERIOD",H$9, "EQY_FUND_CRNCY", Hub!$D$8, "FA_ADJUSTED", "ADJ")),0) -> 0 | I66: =IFERROR(IF(-_xll.BDP(Hub!$D$4,$B66,"EQY_FUND_RELATIVE_PERIOD",I$9, "EQY_FUND_CRNCY", Hub!$D$8, "FA_ADJUSTED", "ADJ")="#N/A N/A", 0, -_xll.BDP(Hub!$D$4,$B66,"EQY_FUND_RELATIVE_PERIOD",I$9, "EQY_FUND_CRNCY", Hub!$D$8, "FA_ADJUSTED", "ADJ")),0) -> 0 | J66: =IFERROR(J$42*Historicals!I36,0) -> 0 | K66: =IFERROR(K$42*Historicals!J36,0) -> 0 | L66: =IFERROR(L$42*Historicals!K36,0) -> 0 | M66: =IFERROR(M$42*Historicals!L36,0) -> 0 | N66: =IFERROR(N$42*Historicals!M36,0) -> 0 | O66: =IFERROR(O$42*Historicals!N36,0) -> 0 | P66: =IFERROR(P$42*Historicals!O36,0) -> 0 | Q66: =IFERROR(Q$42*Historicals!P36,0) -> 0 | R66: =IFERROR(R$42*Historicals!Q36,0) -> 0 | S66: =IFERROR(S$42*Historicals!R36,0) -> 0
C67: YoY Growth | E67: - | F67: =((F66-E66)/E66) ->  | G67: =((G66-F66)/F66) ->  | H67: =((H66-G66)/G66) ->  | I67: =((I66-H66)/H66) ->  | J67: =((J66-I66)/I66) ->  | K67: =((K66-J66)/J66) ->  | L67: =((L66-K66)/K66) ->  | M67: =((M66-L66)/L66) ->  | N67: =((N66-M66)/M66) ->  | O67: =((O66-N66)/N66) ->  | P67: =((P66-O66)/O66) ->  | Q67: =((Q66-P66)/P66) ->  | R67: =((R66-Q66)/Q66) ->  | S67: =((S66-R66)/R66) -> 
C69: Adjusted Cost of Revenue | E69: =E48+E51+E54+E60+E57+E63+E66 -> 45.938 | F69: =F48+F51+F54+F60+F57+F63+F66 -> 140 | G69: 373 | H69: 411 | I69: 434 | J69: 545.0451654 | K69: 757.2693979 | L69: 1060.046 | M69: 1495.521232 | N69: 2126.958626 | O69: 3049.946358 | P69: 4409.812533 | Q69: 6428.79585 | R69: 9448.59284 | S69: 13997.20899
C70: YoY Growth | E70: - | F70: =((F69-E69)/E69) -> 2.047585877 | G70: =((G69-F69)/F69) -> 1.664285714 | H70: =((H69-G69)/G69) -> 0.1018766756 | I70: =((I69-H69)/H69) -> 0.05596107056 | J70: =((J69-I69)/I69) -> 0.2558644364 | K70: =((K69-J69)/J69) -> 0.3893699936 | L70: =((L69-K69)/K69) -> 0.3998268026 | M70: =((M69-L69)/L69) -> 0.4108078633 | N70: =((N69-M69)/M69) -> 0.4222189426 | O70: =((O69-N69)/N69) -> 0.4339471964 | P70: =((P69-O69)/O69) -> 0.4458656039 | Q70: =((Q69-P69)/P69) -> 0.4578388086 | R70: =((R69-Q69)/Q69) -> 0.4697298002 | S70: =((S69-R69)/R69) -> 0.4814067264
C73: Global Gross Profit | E73: =E42-E69 -> 2482.062 | F73: 3488 | G73: 9197 | H73: 10410 | I73: 11094 | J73: 15357.95024 | K73: 21337.87522 | L73: 29869.32964 | M73: 42139.88514 | N73: 59932.14288 | O73: 85939.52825 | P73: 124257.0079 | Q73: 181146.6884 | R73: 266236.6861 | S73: 394404.8176
C74: YoY Growth | E74: - | F74: =((F73-E73)/E73) -> 0.4052831879 | G74: =((G73-F73)/F73) -> 1.636754587 | H74: =((H73-G73)/G73) -> 0.131890834 | I74: =((I73-H73)/H73) -> 0.06570605187 | J74: =((J73-I73)/I73) -> 0.3843474162 | K74: =((K73-J73)/J73) -> 0.3893699936 | L74: =((L73-K73)/K73) -> 0.3998268026 | M74: =((M73-L73)/L73) -> 0.4108078633 | N74: =((N73-M73)/M73) -> 0.4222189426 | O74: =((O73-N73)/N73) -> 0.4339471964 | P74: =((P73-O73)/O73) -> 0.4458656039 | Q74: =((Q73-P73)/P73) -> 0.4578388086 | R74: =((R73-Q73)/Q73) -> 0.4697298002 | S74: =((S73-R73)/R73) -> 0.4814067264
C77: Other Operating Income
B79: IS_OTHER_OPER_INC | C79: Other Operating Income | E79: =IF(_xll.BDP(Hub!$D$4,$B79,"EQY_FUND_RELATIVE_PERIOD",E$9, "EQY_FUND_CRNCY", Hub!$D$8, "FA_ADJUSTED", "ADJ")="#N/A N/A", 0, _xll.BDP(Hub!$D$4,$B79,"EQY_FUND_RELATIVE_PERIOD",E$9, "EQY_FUND_CRNCY", Hub!$D$8, "FA_ADJUSTED", "ADJ")) -> 0 | F79: =IF(_xll.BDP(Hub!$D$4,$B79,"EQY_FUND_RELATIVE_PERIOD",F$9, "EQY_FUND_CRNCY", Hub!$D$8, "FA_ADJUSTED", "ADJ")="#N/A N/A", 0, _xll.BDP(Hub!$D$4,$B79,"EQY_FUND_RELATIVE_PERIOD",F$9, "EQY_FUND_CRNCY", Hub!$D$8, "FA_ADJUSTED", "ADJ")) -> 0 | G79: =IF(_xll.BDP(Hub!$D$4,$B79,"EQY_FUND_RELATIVE_PERIOD",G$9, "EQY_FUND_CRNCY", Hub!$D$8, "FA_ADJUSTED", "ADJ")="#N/A N/A", 0, _xll.BDP(Hub!$D$4,$B79,"EQY_FUND_RELATIVE_PERIOD",G$9, "EQY_FUND_CRNCY", Hub!$D$8, "FA_ADJUSTED", "ADJ")) -> 0 | H79: =IF(_xll.BDP(Hub!$D$4,$B79,"EQY_FUND_RELATIVE_PERIOD",H$9, "EQY_FUND_CRNCY", Hub!$D$8, "FA_ADJUSTED", "ADJ")="#N/A N/A", 0, _xll.BDP(Hub!$D$4,$B79,"EQY_FUND_RELATIVE_PERIOD",H$9, "EQY_FUND_CRNCY", Hub!$D$8, "FA_ADJUSTED", "ADJ")) -> 0 | I79: =IF(_xll.BDP(Hub!$D$4,$B79,"EQY_FUND_RELATIVE_PERIOD",I$9, "EQY_FUND_CRNCY", Hub!$D$8, "FA_ADJUSTED", "ADJ")="#N/A N/A", 0, _xll.BDP(Hub!$D$4,$B79,"EQY_FUND_RELATIVE_PERIOD",I$9, "EQY_FUND_CRNCY", Hub!$D$8, "FA_ADJUSTED", "ADJ")) -> 0 | J79: =IFERROR(IF(RSQ($E79:$I79,$E$7:$I$7)>0.5, (SLOPE($E79:$I79,$E$7:$I$7)+I79)*RSQ($E79:$I79,$E$7:$I$7)+(AVERAGE($E79:$I79)*(1-RSQ($E79:$I79,$E$7:$I$7))), AVERAGE($E79:$I79)),0) -> 0 | K79: =IFERROR(IF(RSQ($E79:$I79,$E$7:$I$7)>0.5, (SLOPE($E79:$I79,$E$7:$I$7)+J79)*RSQ($E79:$I79,$E$7:$I$7)+(AVERAGE($E79:$I79)*(1-RSQ($E79:$I79,$E$7:$I$7))), AVERAGE($E79:$I79)),0) -> 0 | L79: 0 | M79: 0 | N79: 0 | O79: 0 | P79: 0 | Q79: 0 | R79: 0 | S79: 0
C80: Total Other Operating Income | E80: =E71+E75+E79 -> 0 | F80: 0 | G80: 0 | H80: 0 | I80: 0 | J80: 0 | K80: 0 | L80: 0 | M80: 0 | N80: 0 | O80: 0 | P80: 0 | Q80: 0 | R80: 0 | S80: 0
C81: YoY Growth | E81: - | F81: =((F80-E80)/E80) ->  | G81: =((G80-F80)/F80) ->  | H81: =((H80-G80)/G80) ->  | I81: =((I80-H80)/H80) ->  | J81: =((J80-I80)/I80) ->  | K81: =((K80-J80)/J80) ->  | L81: =((L80-K80)/K80) ->  | M81: =((M80-L80)/L80) ->  | N81: =((N80-M80)/M80) ->  | O81: =((O80-N80)/N80) ->  | P81: =((P80-O80)/O80) ->  | Q81: =((Q80-P80)/P80) ->  | R81: =((R80-Q80)/Q80) ->  | S81: =((S80-R80)/R80) -> 
C84: Fixed Expenses
B86: IS_SG&A_EXPENSE | C86: SG&A | E86: =IF(_xll.BDP(Hub!$D$4,$B86,"EQY_FUND_RELATIVE_PERIOD",E$9, "EQY_FUND_CRNCY", Hub!$D$8, "FA_ADJUSTED", "ADJ")="#N/A N/A", 0, _xll.BDP(Hub!$D$4,$B86,"EQY_FUND_RELATIVE_PERIOD",E$9, "EQY_FUND_CRNCY", Hub!$D$8, "FA_ADJUSTED", "ADJ")) -> 606.124 | F86: =IF(_xll.BDP(Hub!$D$4,$B86,"EQY_FUND_RELATIVE_PERIOD",F$9, "EQY_FUND_CRNCY", Hub!$D$8, "FA_ADJUSTED", "ADJ")="#N/A N/A", 0, _xll.BDP(Hub!$D$4,$B86,"EQY_FUND_RELATIVE_PERIOD",F$9, "EQY_FUND_CRNCY", Hub!$D$8, "FA_ADJUSTED", "ADJ")) -> 902 | G86: =IF(_xll.BDP(Hub!$D$4,$B86,"EQY_FUND_RELATIVE_PERIOD",G$9, "EQY_FUND_CRNCY", Hub!$D$8, "FA_ADJUSTED", "ADJ")="#N/A N/A", 0, _xll.BDP(Hub!$D$4,$B86,"EQY_FUND_RELATIVE_PERIOD",G$9, "EQY_FUND_CRNCY", Hub!$D$8, "FA_ADJUSTED", "ADJ")) -> 1782 | H86: =IF(_xll.BDP(Hub!$D$4,$B86,"EQY_FUND_RELATIVE_PERIOD",H$9, "EQY_FUND_CRNCY", Hub!$D$8, "FA_ADJUSTED", "ADJ")="#N/A N/A", 0, _xll.BDP(Hub!$D$4,$B86,"EQY_FUND_RELATIVE_PERIOD",H$9, "EQY_FUND_CRNCY", Hub!$D$8, "FA_ADJUSTED", "ADJ")) -> 2068 | I86: =IF(_xll.BDP(Hub!$D$4,$B86,"EQY_FUND_RELATIVE_PERIOD",I$9, "EQY_FUND_CRNCY", Hub!$D$8, "FA_ADJUSTED", "ADJ")="#N/A N/A", 0, _xll.BDP(Hub!$D$4,$B86,"EQY_FUND_RELATIVE_PERIOD",I$9, "EQY_FUND_CRNCY", Hub!$D$8, "FA_ADJUSTED", "ADJ")) -> 2012 | J86: =IF(SUM(E86:I86)=0,0,IF(RSQ(Historicals!D43:H43,Historicals!D$8:H$8)>0.5,(((SLOPE(Historicals!D43:H43,Historicals!D$8:H$8)*Operating_Model!J$42*RSQ(Historicals!D43:H43,Historicals!D$8:H$8)+Operating_Model!I86)+(1-RSQ(Historicals!D43:H43,Historicals!D$8:H$8))*AVERAGE(Historicals!D43:H43))),AVERAGE(Historicals!D43:H43)*Operating_Model!J$42)) -> 1779.348053 | K86: =J86*(1+DCF!$D$12) -> 1818.275455 | L86: =K86*(1+DCF!$D$12) -> 1858.054485 | M86: =L86*(1+DCF!$D$12) -> 1898.703775 | N86: =M86*(1+DCF!$D$12) -> 1940.242363 | O86: =N86*(1+DCF!$D$12) -> 1982.689705 | P86: =O86*(1+DCF!$D$12) -> 2026.065682 | Q86: =P86*(1+DCF!$D$12) -> 2070.390609 | R86: =Q86*(1+DCF!$D$12) -> 2115.685249 | S86: =R86*(1+DCF!$D$12) -> 2161.970814
C87: YoY Growth | E87: - | F87: =((F86-E86)/E86) -> 0.4881443401 | G87: =((G86-F86)/F86) -> 0.9756097561 | H87: =((H86-G86)/G86) -> 0.1604938272 | I87: =((I86-H86)/H86) -> -0.02707930368 | J87: =((J86-I86)/I86) -> -0.1156321807 | K87: =((K86-J86)/J86) -> 0.02187734 | L87: =((L86-K86)/K86) -> 0.02187734 | M87: =((M86-L86)/L86) -> 0.02187734 | N87: =((N86-M86)/M86) -> 0.02187734 | O87: =((O86-N86)/N86) -> 0.02187734 | P87: 0.02187734 | Q87: 0.02187734 | R87: 0.02187734 | S87: 0.02187734
B89: IS_OPEX_R&D | C89: Research and Development | E89: =IF(_xll.BDP(Hub!$D$4,$B89,"EQY_FUND_RELATIVE_PERIOD",E$9, "EQY_FUND_CRNCY", Hub!$D$8, "FA_ADJUSTED", "ADJ")="#N/A N/A", 0, _xll.BDP(Hub!$D$4,$B89,"EQY_FUND_RELATIVE_PERIOD",E$9, "EQY_FUND_CRNCY", Hub!$D$8, "FA_ADJUSTED", "ADJ")) -> 0 | F89: =IF(_xll.BDP(Hub!$D$4,$B89,"EQY_FUND_RELATIVE_PERIOD",F$9, "EQY_FUND_CRNCY", Hub!$D$8, "FA_ADJUSTED", "ADJ")="#N/A N/A", 0, _xll.BDP(Hub!$D$4,$B89,"EQY_FUND_RELATIVE_PERIOD",F$9, "EQY_FUND_CRNCY", Hub!$D$8, "FA_ADJUSTED", "ADJ")) -> 0 | G89: =IF(_xll.BDP(Hub!$D$4,$B89,"EQY_FUND_RELATIVE_PERIOD",G$9, "EQY_FUND_CRNCY", Hub!$D$8, "FA_ADJUSTED", "ADJ")="#N/A N/A", 0, _xll.BDP(Hub!$D$4,$B89,"EQY_FUND_RELATIVE_PERIOD",G$9, "EQY_FUND_CRNCY", Hub!$D$8, "FA_ADJUSTED", "ADJ")) -> 0 | H89: =IF(_xll.BDP(Hub!$D$4,$B89,"EQY_FUND_RELATIVE_PERIOD",H$9, "EQY_FUND_CRNCY", Hub!$D$8, "FA_ADJUSTED", "ADJ")="#N/A N/A", 0, _xll.BDP(Hub!$D$4,$B89,"EQY_FUND_RELATIVE_PERIOD",H$9, "EQY_FUND_CRNCY", Hub!$D$8, "FA_ADJUSTED", "ADJ")) -> 0 | I89: =IF(_xll.BDP(Hub!$D$4,$B89,"EQY_FUND_RELATIVE_PERIOD",I$9, "EQY_FUND_CRNCY", Hub!$D$8, "FA_ADJUSTED", "ADJ")="#N/A N/A", 0, _xll.BDP(Hub!$D$4,$B89,"EQY_FUND_RELATIVE_PERIOD",I$9, "EQY_FUND_CRNCY", Hub!$D$8, "FA_ADJUSTED", "ADJ")) -> 0 | J89: =IF(SUM(E89:I89)=0, 0,IF(RSQ(Historicals!D44:H44,Historicals!D$8:H$8)>0.5, (((SLOPE(Historicals!D44:H44,Historicals!D$8:H$8)*Operating_Model!J$42*RSQ(Historicals!D44:H44,Historicals!D$8:H$8)+Operating_Model!I89)+(1-RSQ(Historicals!D44:H44,Historicals!D$8:H$8))*AVERAGE(Historicals!D44:H44))), AVERAGE(Historicals!D44:H44)*Operating_Model!J$42)) -> 0 | K89: =J89*(1+DCF!$D$12) -> 0 | L89: =K89*(1+DCF!$D$12) -> 0 | M89: =L89*(1+DCF!$D$12) -> 0 | N89: =M89*(1+DCF!$D$12) -> 0 | O89: =N89*(1+DCF!$D$12) -> 0 | P89: =O89*(1+DCF!$D$12) -> 0 | Q89: =P89*(1+DCF!$D$12) -> 0 | R89: =Q89*(1+DCF!$D$12) -> 0 | S89: =R89*(1+DCF!$D$12) -> 0
C90: YoY Growth | E90: - | F90: =((F89-E89)/E89) ->  | G90: =((G89-F89)/F89) ->  | H90: =((H89-G89)/G89) ->  | I90: =((I89-H89)/H89) ->  | J90: =((J89-I89)/I89) ->  | K90: =((K89-J89)/J89) ->  | L90: =((L89-K89)/K89) ->  | M90: =((M89-L89)/L89) ->  | N90: =((N89-M89)/M89) ->  | O90: =((O89-N89)/N89) ->  | P90: =((P89-O89)/O89) ->  | Q90: =((Q89-P89)/P89) ->  | R90: =((R89-Q89)/Q89) ->  | S90: =((S89-R89)/R89) -> 
B92: IS_OTHER_OPERATING_EXPENSES_GAAP | C92: Other Fixed Costs | E92: =IF(_xll.BDP(Hub!$D$4,$B92,"EQY_FUND_RELATIVE_PERIOD",E$9, "EQY_FUND_CRNCY", Hub!$D$8, "FA_ADJUSTED", "ADJ")="#N/A N/A", 0, _xll.BDP(Hub!$D$4,$B92,"EQY_FUND_RELATIVE_PERIOD",E$9, "EQY_FUND_CRNCY", Hub!$D$8, "FA_ADJUSTED", "ADJ")) -> 68.437 | F92: =IF(_xll.BDP(Hub!$D$4,$B92,"EQY_FUND_RELATIVE_PERIOD",F$9, "EQY_FUND_CRNCY", Hub!$D$8, "FA_ADJUSTED", "ADJ")="#N/A N/A", 0, _xll.BDP(Hub!$D$4,$B92,"EQY_FUND_RELATIVE_PERIOD",F$9, "EQY_FUND_CRNCY", Hub!$D$8, "FA_ADJUSTED", "ADJ")) -> -75 | G92: =IF(_xll.BDP(Hub!$D$4,$B92,"EQY_FUND_RELATIVE_PERIOD",G$9, "EQY_FUND_CRNCY", Hub!$D$8, "FA_ADJUSTED", "ADJ")="#N/A N/A", 0, _xll.BDP(Hub!$D$4,$B92,"EQY_FUND_RELATIVE_PERIOD",G$9, "EQY_FUND_CRNCY", Hub!$D$8, "FA_ADJUSTED", "ADJ")) -> 165 | H92: =IF(_xll.BDP(Hub!$D$4,$B92,"EQY_FUND_RELATIVE_PERIOD",H$9, "EQY_FUND_CRNCY", Hub!$D$8, "FA_ADJUSTED", "ADJ")="#N/A N/A", 0, _xll.BDP(Hub!$D$4,$B92,"EQY_FUND_RELATIVE_PERIOD",H$9, "EQY_FUND_CRNCY", Hub!$D$8, "FA_ADJUSTED", "ADJ")) -> 286 | I92: =IF(_xll.BDP(Hub!$D$4,$B92,"EQY_FUND_RELATIVE_PERIOD",I$9, "EQY_FUND_CRNCY", Hub!$D$8, "FA_ADJUSTED", "ADJ")="#N/A N/A", 0, _xll.BDP(Hub!$D$4,$B92,"EQY_FUND_RELATIVE_PERIOD",I$9, "EQY_FUND_CRNCY", Hub!$D$8, "FA_ADJUSTED", "ADJ")) -> 306 | J92: =(AVERAGE(Historicals!D45:H45)*J$42*(1+DCF!$D$12)) -> 249.0113608 | K92: =J92*(1+DCF!$D$12) -> 254.459067 | L92: =K92*(1+DCF!$D$12) -> 260.0259545 | M92: =L92*(1+DCF!$D$12) -> 265.7146307 | N92: =M92*(1+DCF!$D$12) -> 271.52776 | O92: =N92*(1+DCF!$D$12) -> 277.4680652 | P92: =O92*(1+DCF!$D$12) -> 283.5383284 | Q92: =P92*(1+DCF!$D$12) -> 289.7413928 | R92: =Q92*(1+DCF!$D$12) -> 296.0801637 | S92: =R92*(1+DCF!$D$12) -> 302.5576102
C93: YoY Growth | E93: - | F93: =((F92-E92)/E92) -> -2.095898418 | G93: =((G92-F92)/F92) -> -3.2 | H93: =((H92-G92)/G92) -> 0.7333333333 | I93: =((I92-H92)/H92) -> 0.06993006993 | J93: =((J92-I92)/I92) -> -0.1862373831 | K93: =((K92-J92)/J92) -> 0.02187734 | L93: =((L92-K92)/K92) -> 0.02187734 | M93: =((M92-L92)/L92) -> 0.02187734 | N93: =((N92-M92)/M92) -> 0.02187734 | O93: =((O92-N92)/N92) -> 0.02187734 | P93: 0.02187734 | Q93: 0.02187734 | R93: 0.02187734 | S93: 0.02187734
B95: IS_DEPRECIATION_AND_AMORTIZATION | C95: D&A Expense | E95: =IF(_xll.BDP(Hub!$D$4,$B95,"EQY_FUND_RELATIVE_PERIOD",E$9, "EQY_FUND_CRNCY", Hub!$D$8, "FA_ADJUSTED", "ADJ")="#N/A N/A", 0, _xll.BDP(Hub!$D$4,$B95,"EQY_FUND_RELATIVE_PERIOD",E$9, "EQY_FUND_CRNCY", Hub!$D$8, "FA_ADJUSTED", "ADJ")) -> 221.525 | F95: =IF(_xll.BDP(Hub!$D$4,$B95,"EQY_FUND_RELATIVE_PERIOD",F$9, "EQY_FUND_CRNCY", Hub!$D$8, "FA_ADJUSTED", "ADJ")="#N/A N/A", 0, _xll.BDP(Hub!$D$4,$B95,"EQY_FUND_RELATIVE_PERIOD",F$9, "EQY_FUND_CRNCY", Hub!$D$8, "FA_ADJUSTED", "ADJ")) -> 583 | G95: =IF(_xll.BDP(Hub!$D$4,$B95,"EQY_FUND_RELATIVE_PERIOD",G$9, "EQY_FUND_CRNCY", Hub!$D$8, "FA_ADJUSTED", "ADJ")="#N/A N/A", 0, _xll.BDP(Hub!$D$4,$B95,"EQY_FUND_RELATIVE_PERIOD",G$9, "EQY_FUND_CRNCY", Hub!$D$8, "FA_ADJUSTED", "ADJ")) -> 1126 | H95: =IF(_xll.BDP(Hub!$D$4,$B95,"EQY_FUND_RELATIVE_PERIOD",H$9, "EQY_FUND_CRNCY", Hub!$D$8, "FA_ADJUSTED", "ADJ")="#N/A N/A", 0, _xll.BDP(Hub!$D$4,$B95,"EQY_FUND_RELATIVE_PERIOD",H$9, "EQY_FUND_CRNCY", Hub!$D$8, "FA_ADJUSTED", "ADJ")) -> 1205 | I95: =IF(_xll.BDP(Hub!$D$4,$B95,"EQY_FUND_RELATIVE_PERIOD",I$9, "EQY_FUND_CRNCY", Hub!$D$8, "FA_ADJUSTED", "ADJ")="#N/A N/A", 0, _xll.BDP(Hub!$D$4,$B95,"EQY_FUND_RELATIVE_PERIOD",I$9, "EQY_FUND_CRNCY", Hub!$D$8, "FA_ADJUSTED", "ADJ")) -> 1261 | J95: =IF(SUM($E95:I$95)=0, 0, J110) ->  | K95: =IF(SUM($E95:J$95)=0, 0, K110) ->  | L95: =IF(SUM($E95:K$95)=0, 0, L110) ->  | M95: =IF(SUM($E95:L$95)=0, 0, M110) ->  | N95: =IF(SUM($E95:M$95)=0, 0, N110) ->  | O95: =IF(SUM($E95:N$95)=0, 0, O110) ->  | P95: =IF(SUM($E95:O$95)=0, 0, P110) ->  | Q95: =IF(SUM($E95:P$95)=0, 0, Q110) ->  | R95: =IF(SUM($E95:Q$95)=0, 0, R110) ->  | S95: =IF(SUM($E95:R$95)=0, 0, S110) -> 
C96: YoY Growth | E96: - | F96: =((F95-E95)/E95) -> 1.631757138 | G96: =((G95-F95)/F95) -> 0.9313893654 | H96: =((H95-G95)/G95) -> 0.0701598579 | I96: =((I95-H95)/H95) -> 0.04647302905 | J96: =((J95-I95)/I95) ->  | K96: =((K95-J95)/J95) ->  | L96: =((L95-K95)/K95) ->  | M96: =((M95-L95)/L95) ->  | N96: =((N95-M95)/M95) ->  | O96: =((O95-N95)/N95) ->  | P96: =((P95-O95)/O95) ->  | Q96: =((Q95-P95)/P95) ->  | R96: =((R95-Q95)/Q95) ->  | S96: =((S95-R95)/R95) -> 
C98: Fixed Expenses | E98: =E86+E89+E92+E95 -> 896.086 | F98: =F86+F89+F92+F95 -> 1410 | G98: 3073 | H98: 3559 | I98: 3579
C99: YoY Growth | E99: - | F99: =((F98-E98)/E98) -> 0.5735096855 | G99: =((G98-F98)/F98) -> 1.179432624 | H99: =((H98-G98)/G98) -> 0.1581516433 | I99: =((I98-H98)/H98) -> 0.005619556055 | J99: =((J98-I98)/I98) ->  | K99: =((K98-J98)/J98) ->  | L99: =((L98-K98)/K98) ->  | M99: =((M98-L98)/L98) ->  | N99: =((N98-M98)/M98) ->  | O99: =((O98-N98)/N98) ->  | P99: =((P98-O98)/O98) ->  | Q99: =((Q98-P98)/P98) ->  | R99: =((R98-Q98)/Q98) ->  | S99: =((S98-R98)/R98) -> 
C102: Global EBIT | E102: =E73+E80-E98 -> 1585.976 | F102: 2078 | G102: 6124 | H102: 6851 | I102: 7515
C103: YoY Growth | E103: - | F103: =((F102-E102)/E102) -> 0.3102342028 | G103: =((G102-F102)/F102) -> 1.947064485 | H103: =((H102-G102)/G102) -> 0.1187132593 | I103: =((I102-H102)/H102) -> 0.09692015764 | J103: =((J102-I102)/I102) ->  | K103: =((K102-J102)/J102) ->  | L103: =((L102-K102)/K102) ->  | M103: =((M102-L102)/L102) ->  | N103: =((N102-M102)/M102) ->  | O103: =((O102-N102)/N102) ->  | P103: =((P102-O102)/O102) ->  | Q103: =((Q102-P102)/P102) ->  | R103: =((R102-Q102)/Q102) ->  | S103: =((S102-R102)/R102) -> 
C106: Depreciation & Amortisation
B108: IS_DEPR_EXP | C108: Depreciation | E108: ='D&A+CAPEX'!E61 -> 191.3 | F108: ='D&A+CAPEX'!F61 -> 527 | G108: ='D&A+CAPEX'!G61 -> 987 | H108: ='D&A+CAPEX'!H61 -> 1018 | I108: ='D&A+CAPEX'!I61 -> 1117 | J108: ='D&A+CAPEX'!J34 ->  | K108: ='D&A+CAPEX'!K34 ->  | L108: ='D&A+CAPEX'!L34 ->  | M108: ='D&A+CAPEX'!M34 ->  | N108: ='D&A+CAPEX'!N34 ->  | O108: ='D&A+CAPEX'!O34 ->  | P108: ='D&A+CAPEX'!P34 ->  | Q108: ='D&A+CAPEX'!Q34 ->  | R108: ='D&A+CAPEX'!R34 ->  | S108: ='D&A+CAPEX'!S34 -> 
B109: IS_AMORTIZATION_EXPENSE | C109: Amortisation | E109: ='D&A+CAPEX'!E62 -> 30.3 | F109: ='D&A+CAPEX'!F62 -> 56 | G109: ='D&A+CAPEX'!G62 -> 139 | H109: ='D&A+CAPEX'!H62 -> 187 | I109: ='D&A+CAPEX'!I62 -> 144 | J109: ='D&A+CAPEX'!J38 -> 112.8723486 | K109: ='D&A+CAPEX'!K38 -> 114.1262616 | L109: ='D&A+CAPEX'!L38 -> 114.7921197 | M109: ='D&A+CAPEX'!M38 -> 115.1457063 | N109: ='D&A+CAPEX'!N38 -> 115.3334694 | O109: ='D&A+CAPEX'!O38 -> 115.4331761 | P109: ='D&A+CAPEX'!P38 -> 115.4861227 | Q109: ='D&A+CAPEX'!Q38 -> 115.5142387 | R109: ='D&A+CAPEX'!R38 -> 115.5291689 | S109: ='D&A+CAPEX'!S38 -> 115.5370972
B110: CF_DEPR_AMORT | C110: D&A | E110: ='D&A+CAPEX'!E63 -> 221.525 | F110: ='D&A+CAPEX'!F63 -> 583 | G110: ='D&A+CAPEX'!G63 -> 1126 | H110: ='D&A+CAPEX'!H63 -> 1205 | I110: ='D&A+CAPEX'!I63 -> 1261 | J110: =J108+J109 ->  | K110: =K108+K109 ->  | O110: =O108+O109 -> 
C111: YoY Growth | E111: - | F111: =((F110-E110)/E110) -> 1.631757138 | G111: 0.9313893654 | H111: 0.0701598579 | I111: 0.04647302905 | O111: =((O110-N110)/N110) ->  | P111: =((P110-O110)/O110) ->  | Q111: =((Q110-P110)/P110) ->  | R111: =((R110-Q110)/Q110) ->  | S111: =((S110-R110)/R110) -> 
C114: Capitalised Operating Lease
B116: BS_CURR_RENTAL_EXPENSE | C116: Rental Expense | E116: =IF(_xll.BDP(Hub!$D$4,$B116,"EQY_FUND_RELATIVE_PERIOD",E$9, "EQY_FUND_CRNCY", Hub!$D$8, "FA_ADJUSTED", "ADJ")="#N/A N/A", 0, _xll.BDP(Hub!$D$4,$B116,"EQY_FUND_RELATIVE_PERIOD",E$9, "EQY_FUND_CRNCY", Hub!$D$8, "FA_ADJUSTED", "ADJ")) -> 62.595 | F116: =IF(_xll.BDP(Hub!$D$4,$B116,"EQY_FUND_RELATIVE_PERIOD",F$9, "EQY_FUND_CRNCY", Hub!$D$8, "FA_ADJUSTED", "ADJ")="#N/A N/A", 0, _xll.BDP(Hub!$D$4,$B116,"EQY_FUND_RELATIVE_PERIOD",F$9, "EQY_FUND_CRNCY", Hub!$D$8, "FA_ADJUSTED", "ADJ")) -> 103 | G116: =IF(_xll.BDP(Hub!$D$4,$B116,"EQY_FUND_RELATIVE_PERIOD",G$9, "EQY_FUND_CRNCY", Hub!$D$8, "FA_ADJUSTED", "ADJ")="#N/A N/A", 0, _xll.BDP(Hub!$D$4,$B116,"EQY_FUND_RELATIVE_PERIOD",G$9, "EQY_FUND_CRNCY", Hub!$D$8, "FA_ADJUSTED", "ADJ")) -> 232 | H116: =IF(_xll.BDP(Hub!$D$4,$B116,"EQY_FUND_RELATIVE_PERIOD",H$9, "EQY_FUND_CRNCY", Hub!$D$8, "FA_ADJUSTED", "ADJ")="#N/A N/A", 0, _xll.BDP(Hub!$D$4,$B116,"EQY_FUND_RELATIVE_PERIOD",H$9, "EQY_FUND_CRNCY", Hub!$D$8, "FA_ADJUSTED", "ADJ")) -> 270 | I116: =IF(_xll.BDP(Hub!$D$4,$B116,"EQY_FUND_RELATIVE_PERIOD",I$9, "EQY_FUND_CRNCY", Hub!$D$8, "FA_ADJUSTED", "ADJ")="#N/A N/A", 0, _xll.BDP(Hub!$D$4,$B116,"EQY_FUND_RELATIVE_PERIOD",I$9, "EQY_FUND_CRNCY", Hub!$D$8, "FA_ADJUSTED", "ADJ")) -> 255 | J116: =IFERROR(IF(RSQ($E116:$I116,$E$7:$I$7)>0.5, (SLOPE($E116:$I116,$E$7:$I$7)+I116)*RSQ($E116:$I116,$E$7:$I$7)+(AVERAGE($E116:$I116)*(1-RSQ($E116:$I116,$E$7:$I$7))), AVERAGE($E116:$I116)),0) -> 290.6886536 | K116: =IFERROR(IF(RSQ($E116:$I116,$E$7:$I$7)>0.5, (SLOPE($E116:$I116,$E$7:$I$7)+J116)*RSQ($E116:$I116,$E$7:$I$7)+(AVERAGE($E116:$I116)*(1-RSQ($E116:$I116,$E$7:$I$7))), AVERAGE($E116:$I116)),0) -> 320.8413807 | L116: 346.3168991 | M116: 367.8407246 | N116: 386.0258331 | O116: 401.3901172 | P116: 414.3711355 | Q116: 425.3385736 | R116: 434.6047727 | S116: 442.4336243
B117: IS_VARIABLE_LEASE_COST | C117: Variable Lease Cost | E117: =IF(_xll.BDP(Hub!$D$4,$B117,"EQY_FUND_RELATIVE_PERIOD",E$9, "EQY_FUND_CRNCY", Hub!$D$8, "FA_ADJUSTED", "ADJ")="#N/A N/A", 0, _xll.BDP(Hub!$D$4,$B117,"EQY_FUND_RELATIVE_PERIOD",E$9, "EQY_FUND_CRNCY", Hub!$D$8, "FA_ADJUSTED", "ADJ")) -> 0 | F117: =IF(_xll.BDP(Hub!$D$4,$B117,"EQY_FUND_RELATIVE_PERIOD",F$9, "EQY_FUND_CRNCY", Hub!$D$8, "FA_ADJUSTED", "ADJ")="#N/A N/A", 0, _xll.BDP(Hub!$D$4,$B117,"EQY_FUND_RELATIVE_PERIOD",F$9, "EQY_FUND_CRNCY", Hub!$D$8, "FA_ADJUSTED", "ADJ")) -> 0 | G117: =IF(_xll.BDP(Hub!$D$4,$B117,"EQY_FUND_RELATIVE_PERIOD",G$9, "EQY_FUND_CRNCY", Hub!$D$8, "FA_ADJUSTED", "ADJ")="#N/A N/A", 0, _xll.BDP(Hub!$D$4,$B117,"EQY_FUND_RELATIVE_PERIOD",G$9, "EQY_FUND_CRNCY", Hub!$D$8, "FA_ADJUSTED", "ADJ")) -> 0 | H117: =IF(_xll.BDP(Hub!$D$4,$B117,"EQY_FUND_RELATIVE_PERIOD",H$9, "EQY_FUND_CRNCY", Hub!$D$8, "FA_ADJUSTED", "ADJ")="#N/A N/A", 0, _xll.BDP(Hub!$D$4,$B117,"EQY_FUND_RELATIVE_PERIOD",H$9, "EQY_FUND_CRNCY", Hub!$D$8, "FA_ADJUSTED", "ADJ")) -> 0 | I117: =IF(_xll.BDP(Hub!$D$4,$B117,"EQY_FUND_RELATIVE_PERIOD",I$9, "EQY_FUND_CRNCY", Hub!$D$8, "FA_ADJUSTED", "ADJ")="#N/A N/A", 0, _xll.BDP(Hub!$D$4,$B117,"EQY_FUND_RELATIVE_PERIOD",I$9, "EQY_FUND_CRNCY", Hub!$D$8, "FA_ADJUSTED", "ADJ")) -> 0 | J117: =IFERROR(IF(RSQ($E117:$I117,$E$7:$I$7)>0.5, (SLOPE($E117:$I117,$E$7:$I$7)+I117)*RSQ($E117:$I117,$E$7:$I$7)+(AVERAGE($E117:$I117)*(1-RSQ($E117:$I117,$E$7:$I$7))), AVERAGE($E117:$I117)),0) -> 0 | K117: =IFERROR(IF(RSQ($E117:$I117,$E$7:$I$7)>0.5, (SLOPE($E117:$I117,$E$7:$I$7)+J117)*RSQ($E117:$I117,$E$7:$I$7)+(AVERAGE($E117:$I117)*(1-RSQ($E117:$I117,$E$7:$I$7))), AVERAGE($E117:$I117)),0) -> 0 | L117: 0 | M117: 0 | N117: 0 | O117: 0 | P117: 0 | Q117: 0 | R117: 0 | S117: 0
C118: Total Capitalised Operating Lease | E118: =E116-E117 -> 62.595 | F118: =F116-F117 -> 103 | G118: 232 | H118: 270 | I118: 255 | J118: =J116+J117 -> 290.6886536 | K118: 320.8413807 | L118: 346.3168991 | M118: 367.8407246 | N118: 386.0258331 | O118: 401.3901172 | P118: 414.3711355 | Q118: 425.3385736 | R118: 434.6047727 | S118: 442.4336243
C119: YoY Growth | E119: - | F119: =((F118-E118)/E118) -> 0.6454988418 | G119: =((G118-F118)/F118) -> 1.252427184 | H119: =((H118-G118)/G118) -> 0.1637931034 | I119: =((I118-H118)/H118) -> -0.05555555556 | J119: =((J118-I118)/I118) -> 0.1399555044 | K119: =((K118-J118)/J118) -> 0.1037286001 | L119: =((L118-K118)/K118) -> 0.07940222153 | M119: =((M118-L118)/L118) -> 0.06215066483 | N119: =((N118-M118)/M118) -> 0.04943745281 | O119: =((O118-N118)/N118) -> 0.03980118109 | P119: =((P118-O118)/O118) -> 0.0323401542 | Q119: =((Q118-P118)/P118) -> 0.02646766926 | R119: =((R118-Q118)/Q118) -> 0.02178546615 | S119: =((S118-R118)/R118) -> 0.01801372668
C122: Global EBITDA | E122: =E102+E110+E118 -> 1870.096 | F122: =F102+F110+F118 -> 2764 | G122: 7482 | H122: 8326 | I122: 9031
C123: YoY Growth | E123: - | F123: =((F122-E122)/E122) -> 0.4779989904 | G123: =((G122-F122)/F122) -> 1.706946454 | H123: =((H122-G122)/G122) -> 0.1128040631 | I123: =((I122-H122)/H122) -> 0.08467451357 | J123: =((J122-I122)/I122) ->  | K123: =((K122-J122)/J122) ->  | L123: =((L122-K122)/K122) ->  | M123: =((M122-L122)/L122) ->  | N123: =((N122-M122)/M122) ->  | O123: =((O122-N122)/N122) ->  | P123: =((P122-O122)/O122) ->  | Q123: =((Q122-P122)/P122) ->  | R123: =((R122-Q122)/Q122) ->  | S123: =((S122-R122)/R122) -> 
C126: Other Non-Operating Expenses
B128: IS_OTHER_INVESTMENT_INCOME_LOSS | C128: Other Investment (Income) Loss | E128: =IFERROR(IF(_xll.BDP(Hub!$D$4,$B128,"EQY_FUND_RELATIVE_PERIOD",E$9, "EQY_FUND_CRNCY", Hub!$D$8, "FA_ADJUSTED", "ADJ")="#N/A N/A", 0, _xll.BDP(Hub!$D$4,$B128,"EQY_FUND_RELATIVE_PERIOD",E$9, "EQY_FUND_CRNCY", Hub!$D$8, "FA_ADJUSTED", "ADJ")),0) -> 0 | F128: =IFERROR(IF(_xll.BDP(Hub!$D$4,$B128,"EQY_FUND_RELATIVE_PERIOD",F$9, "EQY_FUND_CRNCY", Hub!$D$8, "FA_ADJUSTED", "ADJ")="#N/A N/A", 0, _xll.BDP(Hub!$D$4,$B128,"EQY_FUND_RELATIVE_PERIOD",F$9, "EQY_FUND_CRNCY", Hub!$D$8, "FA_ADJUSTED", "ADJ")),0) -> 0 | G128: =IFERROR(IF(_xll.BDP(Hub!$D$4,$B128,"EQY_FUND_RELATIVE_PERIOD",G$9, "EQY_FUND_CRNCY", Hub!$D$8, "FA_ADJUSTED", "ADJ")="#N/A N/A", 0, _xll.BDP(Hub!$D$4,$B128,"EQY_FUND_RELATIVE_PERIOD",G$9, "EQY_FUND_CRNCY", Hub!$D$8, "FA_ADJUSTED", "ADJ")),0) -> 0 | H128: =IFERROR(IF(_xll.BDP(Hub!$D$4,$B128,"EQY_FUND_RELATIVE_PERIOD",H$9, "EQY_FUND_CRNCY", Hub!$D$8, "FA_ADJUSTED", "ADJ")="#N/A N/A", 0, _xll.BDP(Hub!$D$4,$B128,"EQY_FUND_RELATIVE_PERIOD",H$9, "EQY_FUND_CRNCY", Hub!$D$8, "FA_ADJUSTED", "ADJ")),0) -> 0 | I128: =IFERROR(IF(_xll.BDP(Hub!$D$4,$B128,"EQY_FUND_RELATIVE_PERIOD",I$9, "EQY_FUND_CRNCY", Hub!$D$8, "FA_ADJUSTED", "ADJ")="#N/A N/A", 0, _xll.BDP(Hub!$D$4,$B128,"EQY_FUND_RELATIVE_PERIOD",I$9, "EQY_FUND_CRNCY", Hub!$D$8, "FA_ADJUSTED", "ADJ")),0) -> 0 | J128: =IFERROR(IF(RSQ($E128:$I128,$E$7:$I$7)>0.5, (SLOPE($E128:$I128,$E$7:$I$7)+I128)*RSQ($E128:$I128,$E$7:$I$7)+(AVERAGE($E128:$I128)*(1-RSQ($E128:$I128,$E$7:$I$7))), AVERAGE($E128:$I128)),0) -> 0 | K128: =IFERROR(IF(RSQ($E128:$I128,$E$7:$I$7)>0.5, (SLOPE($E128:$I128,$E$7:$I$7)+J128)*RSQ($E128:$I128,$E$7:$I$7)+(AVERAGE($E128:$I128)*(1-RSQ($E128:$I128,$E$7:$I$7))), AVERAGE($E128:$I128)),0) -> 0 | L128: 0 | M128: 0 | N128: 0 | O128: 0 | P128: 0 | Q128: 0 | R128: 0 | S128: 0
B129: IS_FOREIGN_EXCH_LOSS | C129: FOREX (Gains) Losses | E129: =IFERROR(IF(_xll.BDP(Hub!$D$4,$B129,"EQY_FUND_RELATIVE_PERIOD",E$9, "EQY_FUND_CRNCY", Hub!$D$8, "FA_ADJUSTED", "ADJ")="#N/A N/A", 0, _xll.BDP(Hub!$D$4,$B129,"EQY_FUND_RELATIVE_PERIOD",E$9, "EQY_FUND_CRNCY", Hub!$D$8, "FA_ADJUSTED", "ADJ")),0) -> 0 | F129: =IFERROR(IF(_xll.BDP(Hub!$D$4,$B129,"EQY_FUND_RELATIVE_PERIOD",F$9, "EQY_FUND_CRNCY", Hub!$D$8, "FA_ADJUSTED", "ADJ")="#N/A N/A", 0, _xll.BDP(Hub!$D$4,$B129,"EQY_FUND_RELATIVE_PERIOD",F$9, "EQY_FUND_CRNCY", Hub!$D$8, "FA_ADJUSTED", "ADJ")),0) -> 0 | G129: =IFERROR(IF(_xll.BDP(Hub!$D$4,$B129,"EQY_FUND_RELATIVE_PERIOD",G$9, "EQY_FUND_CRNCY", Hub!$D$8, "FA_ADJUSTED", "ADJ")="#N/A N/A", 0, _xll.BDP(Hub!$D$4,$B129,"EQY_FUND_RELATIVE_PERIOD",G$9, "EQY_FUND_CRNCY", Hub!$D$8, "FA_ADJUSTED", "ADJ")),0) -> 0 | H129: =IFERROR(IF(_xll.BDP(Hub!$D$4,$B129,"EQY_FUND_RELATIVE_PERIOD",H$9, "EQY_FUND_CRNCY", Hub!$D$8, "FA_ADJUSTED", "ADJ")="#N/A N/A", 0, _xll.BDP(Hub!$D$4,$B129,"EQY_FUND_RELATIVE_PERIOD",H$9, "EQY_FUND_CRNCY", Hub!$D$8, "FA_ADJUSTED", "ADJ")),0) -> 0 | I129: =IFERROR(IF(_xll.BDP(Hub!$D$4,$B129,"EQY_FUND_RELATIVE_PERIOD",I$9, "EQY_FUND_CRNCY", Hub!$D$8, "FA_ADJUSTED", "ADJ")="#N/A N/A", 0, _xll.BDP(Hub!$D$4,$B129,"EQY_FUND_RELATIVE_PERIOD",I$9, "EQY_FUND_CRNCY", Hub!$D$8, "FA_ADJUSTED", "ADJ")),0) -> 0 | J129: =IFERROR(IF(RSQ($E129:$I129,$E$7:$I$7)>0.5, (SLOPE($E129:$I129,$E$7:$I$7)+I129)*RSQ($E129:$I129,$E$7:$I$7)+(AVERAGE($E129:$I129)*(1-RSQ($E129:$I129,$E$7:$I$7))), AVERAGE($E129:$I129)),0) -> 0 | K129: 0 | L129: 0 | M129: 0 | N129: 0 | O129: 0 | P129: 0 | Q129: 0 | R129: 0 | S129: 0
B130: IS_OTHER_NON_OPERATING_INC_LOSS | C130: Other Non-Operating (Income) Loss | E130: =IFERROR(IF(_xll.BDP(Hub!$D$4,$B130,"EQY_FUND_RELATIVE_PERIOD",E$9, "EQY_FUND_CRNCY", Hub!$D$8, "FA_ADJUSTED", "ADJ")="#N/A N/A", 0, _xll.BDP(Hub!$D$4,$B130,"EQY_FUND_RELATIVE_PERIOD",E$9, "EQY_FUND_CRNCY", Hub!$D$8, "FA_ADJUSTED", "ADJ")),0) -> 0 | F130: =IFERROR(IF(_xll.BDP(Hub!$D$4,$B130,"EQY_FUND_RELATIVE_PERIOD",F$9, "EQY_FUND_CRNCY", Hub!$D$8, "FA_ADJUSTED", "ADJ")="#N/A N/A", 0, _xll.BDP(Hub!$D$4,$B130,"EQY_FUND_RELATIVE_PERIOD",F$9, "EQY_FUND_CRNCY", Hub!$D$8, "FA_ADJUSTED", "ADJ")),0) -> 218 | G130: =IFERROR(IF(_xll.BDP(Hub!$D$4,$B130,"EQY_FUND_RELATIVE_PERIOD",G$9, "EQY_FUND_CRNCY", Hub!$D$8, "FA_ADJUSTED", "ADJ")="#N/A N/A", 0, _xll.BDP(Hub!$D$4,$B130,"EQY_FUND_RELATIVE_PERIOD",G$9, "EQY_FUND_CRNCY", Hub!$D$8, "FA_ADJUSTED", "ADJ")),0) -> 508 | H130: =IFERROR(IF(_xll.BDP(Hub!$D$4,$B130,"EQY_FUND_RELATIVE_PERIOD",H$9, "EQY_FUND_CRNCY", Hub!$D$8, "FA_ADJUSTED", "ADJ")="#N/A N/A", 0, _xll.BDP(Hub!$D$4,$B130,"EQY_FUND_RELATIVE_PERIOD",H$9, "EQY_FUND_CRNCY", Hub!$D$8, "FA_ADJUSTED", "ADJ")),0) -> -46 | I130: =IFERROR(IF(_xll.BDP(Hub!$D$4,$B130,"EQY_FUND_RELATIVE_PERIOD",I$9, "EQY_FUND_CRNCY", Hub!$D$8, "FA_ADJUSTED", "ADJ")="#N/A N/A", 0, _xll.BDP(Hub!$D$4,$B130,"EQY_FUND_RELATIVE_PERIOD",I$9, "EQY_FUND_CRNCY", Hub!$D$8, "FA_ADJUSTED", "ADJ")),0) -> -10 | J130: 134 | K130: =IFERROR(IF(RSQ($E130:$I130,$E$7:$I$7)>0.5, (SLOPE($E130:$I130,$E$7:$I$7)+J130)*RSQ($E130:$I130,$E$7:$I$7)+(AVERAGE($E130:$I130)*(1-RSQ($E130:$I130,$E$7:$I$7))), AVERAGE($E130:$I130)),0) -> 134 | L130: 134 | M130: 134 | N130: 134 | O130: 134 | P130: 134 | Q130: 134 | R130: 134 | S130: 134
B131: IS_EQY_EARN_FROM_INVEST_ASSOC | C131: Loss (Income) From Affiliates | E131: =IFERROR(IF(-_xll.BDP(Hub!$D$4,$B131,"EQY_FUND_RELATIVE_PERIOD",E$9, "EQY_FUND_CRNCY", Hub!$D$8, "FA_ADJUSTED", "ADJ")="#N/A N/A", 0, -_xll.BDP(Hub!$D$4,$B131,"EQY_FUND_RELATIVE_PERIOD",E$9, "EQY_FUND_CRNCY", Hub!$D$8, "FA_ADJUSTED", "ADJ")),0) -> 0 | F131: =IFERROR(IF(-_xll.BDP(Hub!$D$4,$B131,"EQY_FUND_RELATIVE_PERIOD",F$9, "EQY_FUND_CRNCY", Hub!$D$8, "FA_ADJUSTED", "ADJ")="#N/A N/A", 0, -_xll.BDP(Hub!$D$4,$B131,"EQY_FUND_RELATIVE_PERIOD",F$9, "EQY_FUND_CRNCY", Hub!$D$8, "FA_ADJUSTED", "ADJ")),0) -> 0 | G131: =IFERROR(IF(-_xll.BDP(Hub!$D$4,$B131,"EQY_FUND_RELATIVE_PERIOD",G$9, "EQY_FUND_CRNCY", Hub!$D$8, "FA_ADJUSTED", "ADJ")="#N/A N/A", 0, -_xll.BDP(Hub!$D$4,$B131,"EQY_FUND_RELATIVE_PERIOD",G$9, "EQY_FUND_CRNCY", Hub!$D$8, "FA_ADJUSTED", "ADJ")),0) -> 0 | H131: =IFERROR(IF(-_xll.BDP(Hub!$D$4,$B131,"EQY_FUND_RELATIVE_PERIOD",H$9, "EQY_FUND_CRNCY", Hub!$D$8, "FA_ADJUSTED", "ADJ")="#N/A N/A", 0, -_xll.BDP(Hub!$D$4,$B131,"EQY_FUND_RELATIVE_PERIOD",H$9, "EQY_FUND_CRNCY", Hub!$D$8, "FA_ADJUSTED", "ADJ")),0) -> 0 | I131: =IFERROR(IF(-_xll.BDP(Hub!$D$4,$B131,"EQY_FUND_RELATIVE_PERIOD",I$9, "EQY_FUND_CRNCY", Hub!$D$8, "FA_ADJUSTED", "ADJ")="#N/A N/A", 0, -_xll.BDP(Hub!$D$4,$B131,"EQY_FUND_RELATIVE_PERIOD",I$9, "EQY_FUND_CRNCY", Hub!$D$8, "FA_ADJUSTED", "ADJ")),0) -> 0 | J131: 0 | K131: =IFERROR(IF(RSQ($E131:$I131,$E$7:$I$7)>0.5, (SLOPE($E131:$I131,$E$7:$I$7)+J131)*RSQ($E131:$I131,$E$7:$I$7)+(AVERAGE($E131:$I131)*(1-RSQ($E131:$I131,$E$7:$I$7))), AVERAGE($E131:$I131)),0) -> 0 | L131: 0 | M131: 0 | N131: 0 | O131: 0 | P131: 0 | Q131: 0 | R131: 0 | S131: 0
C132: Total Other Non-Operating Expenses | E132: =SUM(E128:E131) -> 0 | F132: =SUM(F128:F131) -> 218 | G132: 508 | H132: -46 | I132: -10 | J132: 134 | K132: 134 | L132: 134 | M132: 134 | N132: 134 | O132: 134 | P132: 134 | Q132: 134 | R132: 134 | S132: 134
C133: YoY Growth | E133: - | F133: =((F132-E132)/E132) ->  | G133: =((G132-F132)/F132) -> 1.330275229 | H133: =((H132-G132)/G132) -> -1.090551181 | I133: =((I132-H132)/H132) -> -0.7826086957 | J133: =((J132-I132)/I132) -> -14.4 | K133: =((K132-J132)/J132) -> 0 | L133: =((L132-K132)/K132) -> 0 | M133: =((M132-L132)/L132) -> 0 | N133: =((N132-M132)/M132) -> 0 | O133: =((O132-N132)/N132) -> 0 | P133: =((P132-O132)/O132) -> 0 | Q133: =((Q132-P132)/P132) -> 0 | R133: =((R132-Q132)/Q132) -> 0 | S133: =((S132-R132)/R132) -> 0
B136: IS_INT_EXPENSE | C136: Interest Expenses | E136: =IF(_xll.BDP(Hub!$D$4,$B136,"EQY_FUND_RELATIVE_PERIOD",E$9, "EQY_FUND_CRNCY", Hub!$D$8, "FA_ADJUSTED", "ADJ")="#N/A N/A", 0, _xll.BDP(Hub!$D$4,$B136,"EQY_FUND_RELATIVE_PERIOD",E$9, "EQY_FUND_CRNCY", Hub!$D$8, "FA_ADJUSTED", "ADJ")) -> 286.248 | F136: =IF(_xll.BDP(Hub!$D$4,$B136,"EQY_FUND_RELATIVE_PERIOD",F$9, "EQY_FUND_CRNCY", Hub!$D$8, "FA_ADJUSTED", "ADJ")="#N/A N/A", 0, _xll.BDP(Hub!$D$4,$B136,"EQY_FUND_RELATIVE_PERIOD",F$9, "EQY_FUND_CRNCY", Hub!$D$8, "FA_ADJUSTED", "ADJ")) -> 1202 | G136: =IF(_xll.BDP(Hub!$D$4,$B136,"EQY_FUND_RELATIVE_PERIOD",G$9, "EQY_FUND_CRNCY", Hub!$D$8, "FA_ADJUSTED", "ADJ")="#N/A N/A", 0, _xll.BDP(Hub!$D$4,$B136,"EQY_FUND_RELATIVE_PERIOD",G$9, "EQY_FUND_CRNCY", Hub!$D$8, "FA_ADJUSTED", "ADJ")) -> 2295 | H136: =IF(_xll.BDP(Hub!$D$4,$B136,"EQY_FUND_RELATIVE_PERIOD",H$9, "EQY_FUND_CRNCY", Hub!$D$8, "FA_ADJUSTED", "ADJ")="#N/A N/A", 0, _xll.BDP(Hub!$D$4,$B136,"EQY_FUND_RELATIVE_PERIOD",H$9, "EQY_FUND_CRNCY", Hub!$D$8, "FA_ADJUSTED", "ADJ")) -> 2265 | I136: =IF(_xll.BDP(Hub!$D$4,$B136,"EQY_FUND_RELATIVE_PERIOD",I$9, "EQY_FUND_CRNCY", Hub!$D$8, "FA_ADJUSTED", "ADJ")="#N/A N/A", 0, _xll.BDP(Hub!$D$4,$B136,"EQY_FUND_RELATIVE_PERIOD",I$9, "EQY_FUND_CRNCY", Hub!$D$8, "FA_ADJUSTED", "ADJ")) -> 2354 | J136: =IF(Hub!$D$87="Yes", Debt_Schedule!AE35, IF(Debt_Schedule!$AC$28="Backup Schedule Enabled", Debt_Schedule!AE35, Debt_Schedule!AE8)) -> 3468.441488 | K136: =IF(Hub!$D$87="Yes", Debt_Schedule!AF35, IF(Debt_Schedule!$AC$28="Backup Schedule Enabled", Debt_Schedule!AF35, Debt_Schedule!AF8)) -> 4151.314065 | L136: =IF(Hub!$D$87="Yes", Debt_Schedule!AG35, IF(Debt_Schedule!$AC$28="Backup Schedule Enabled", Debt_Schedule!AG35, Debt_Schedule!AG8)) -> 4834.186642 | M136: =IF(Hub!$D$87="Yes", Debt_Schedule!AH35, IF(Debt_Schedule!$AC$28="Backup Schedule Enabled", Debt_Schedule!AH35, Debt_Schedule!AH8)) -> 5517.059219 | N136: =IF(Hub!$D$87="Yes", Debt_Schedule!AI35, IF(Debt_Schedule!$AC$28="Backup Schedule Enabled", Debt_Schedule!AI35, Debt_Schedule!AI8)) -> 6199.931796 | O136: =IF(Hub!$D$87="Yes", Debt_Schedule!AJ35, IF(Debt_Schedule!$AC$28="Backup Schedule Enabled", Debt_Schedule!AJ35, Debt_Schedule!AJ8)) -> 6882.804373 | P136: =IF(Hub!$D$87="Yes", Debt_Schedule!AK35, IF(Debt_Schedule!$AC$28="Backup Schedule Enabled", Debt_Schedule!AK35, Debt_Schedule!AK8)) -> 7565.67695 | Q136: =IF(Hub!$D$87="Yes", Debt_Schedule!AL35, IF(Debt_Schedule!$AC$28="Backup Schedule Enabled", Debt_Schedule!AL35, Debt_Schedule!AL8)) -> 8248.549527 | R136: =IF(Hub!$D$87="Yes", Debt_Schedule!AM35, IF(Debt_Schedule!$AC$28="Backup Schedule Enabled", Debt_Schedule!AM35, Debt_Schedule!AM8)) -> 8931.422104 | S136: =IF(Hub!$D$87="Yes", Debt_Schedule!AN35, IF(Debt_Schedule!$AC$28="Backup Schedule Enabled", Debt_Schedule!AN35, Debt_Schedule!AN8)) -> 9614.294681
B137: IS_INT_INC | C137: Interest Income | E137: =IF(_xll.BDP(Hub!$D$4,$B137,"EQY_FUND_RELATIVE_PERIOD",E$9, "EQY_FUND_CRNCY", Hub!$D$8, "FA_ADJUSTED", "ADJ")="#N/A N/A", 0, _xll.BDP(Hub!$D$4,$B137,"EQY_FUND_RELATIVE_PERIOD",E$9, "EQY_FUND_CRNCY", Hub!$D$8, "FA_ADJUSTED", "ADJ")) -> 0 | F137: =IF(_xll.BDP(Hub!$D$4,$B137,"EQY_FUND_RELATIVE_PERIOD",F$9, "EQY_FUND_CRNCY", Hub!$D$8, "FA_ADJUSTED", "ADJ")="#N/A N/A", 0, _xll.BDP(Hub!$D$4,$B137,"EQY_FUND_RELATIVE_PERIOD",F$9, "EQY_FUND_CRNCY", Hub!$D$8, "FA_ADJUSTED", "ADJ")) -> 0 | G137: =IF(_xll.BDP(Hub!$D$4,$B137,"EQY_FUND_RELATIVE_PERIOD",G$9, "EQY_FUND_CRNCY", Hub!$D$8, "FA_ADJUSTED", "ADJ")="#N/A N/A", 0, _xll.BDP(Hub!$D$4,$B137,"EQY_FUND_RELATIVE_PERIOD",G$9, "EQY_FUND_CRNCY", Hub!$D$8, "FA_ADJUSTED", "ADJ")) -> 0 | H137: =IF(_xll.BDP(Hub!$D$4,$B137,"EQY_FUND_RELATIVE_PERIOD",H$9, "EQY_FUND_CRNCY", Hub!$D$8, "FA_ADJUSTED", "ADJ")="#N/A N/A", 0, _xll.BDP(Hub!$D$4,$B137,"EQY_FUND_RELATIVE_PERIOD",H$9, "EQY_FUND_CRNCY", Hub!$D$8, "FA_ADJUSTED", "ADJ")) -> 0 | I137: =IF(_xll.BDP(Hub!$D$4,$B137,"EQY_FUND_RELATIVE_PERIOD",I$9, "EQY_FUND_CRNCY", Hub!$D$8, "FA_ADJUSTED", "ADJ")="#N/A N/A", 0, _xll.BDP(Hub!$D$4,$B137,"EQY_FUND_RELATIVE_PERIOD",I$9, "EQY_FUND_CRNCY", Hub!$D$8, "FA_ADJUSTED", "ADJ")) -> 12 | J137: =IFERROR(IF(RSQ($E137:$I137,$E$7:$I$7)>0.5, (SLOPE($E137:$I137,$E$7:$I$7)+I137)*RSQ($E137:$I137,$E$7:$I$7)+(AVERAGE($E137:$I137)*(1-RSQ($E137:$I137,$E$7:$I$7))), AVERAGE($E137:$I137)),0) -> 2.4 | K137: 2.4 | L137: 2.4 | M137: 2.4 | N137: 2.4 | O137: 2.4 | P137: 2.4 | Q137: 2.4 | R137: 2.4 | S137: 2.4
C138: Net Interest Expenses | E138: =E136-E137 -> 286.248 | F138: =F136-F137 -> 1202 | G138: 2295 | H138: 2265 | I138: 2342 | J138: =J136-J137 -> 3466.041488 | K138: =K136-K137 -> 4148.914065 | L138: =L136-L137 -> 4831.786642 | M138: =M136-M137 -> 5514.659219 | N138: =N136-N137 -> 6197.531796 | O138: =O136-O137 -> 6880.404373 | P138: =P136-P137 -> 7563.27695 | Q138: =Q136-Q137 -> 8246.149527 | R138: =R136-R137 -> 8929.022104 | S138: =S136-S137 -> 9611.894681
C139: YoY Growth | E139: - | F139: =((F138-E138)/E138) -> 3.199155977 | G139: =((G138-F138)/F138) -> 0.9093178037 | H139: =((H138-G138)/G138) -> -0.01307189542 | I139: =((I138-H138)/H138) -> 0.03399558499 | J139: =((J138-I138)/I138) -> 0.479949397 | K139: =((K138-J138)/J138) -> 0.1970180044 | L139: =((L138-K138)/K138) -> 0.1645906776 | M139: =((M138-L138)/L138) -> 0.1413292075 | N139: =((N138-M138)/M138) -> 0.1238286084 | O139: =((O138-N138)/N138) -> 0.1101846024 | P139: =((P138-O138)/O138) -> 0.09924890167 | Q139: =((Q138-P138)/P138) -> 0.09028792434 | R139: =((R138-Q138)/Q138) -> 0.0828110835 | S139: =((S138-R138)/R138) -> 0.07647786836
C142: Global EBT | E142: =E102-E132-E138 -> 1299.728 | F142: =F102-F132-F138 -> 658 | G142: =G102-G132-G138 -> 3321 | H142: =H102-H132-H138 -> 4632 | I142: =I102-I132-I138 -> 5183 | J142: =J102-J138 -> 
C143: YoY Growth | E143: - | F143: =((F142-E142)/E142) -> -0.4937402287 | G143: =((G142-F142)/F142) -> 4.047112462 | H143: =((H142-G142)/G142) -> 0.3947606143 | I143: =((I142-H142)/H142) -> 0.118955095 | J143: =((J142-I142)/I142) ->  | K143: =((K142-J142)/J142) ->  | L143: =((L142-K142)/K142) ->  | M143: =((M142-L142)/L142) ->  | N143: =((N142-M142)/M142) ->  | O143: =((O142-N142)/N142) ->  | P143: =((P142-O142)/O142) ->  | Q143: =((Q142-P142)/P142) ->  | R143: =((R142-Q142)/Q142) ->  | S143: =((S142-R142)/R142) -> 
C146: Income Tax Expenses
B148: IS_CURRENT_INCOME_TAX_BENEFIT | C148: Current Income Taxes | E148: =IF(_xll.BDP(Hub!$D$4,$B148,"EQY_FUND_RELATIVE_PERIOD",E$9, "EQY_FUND_CRNCY", Hub!$D$8, "FA_ADJUSTED", "ADJ")="#N/A N/A", 0, _xll.BDP(Hub!$D$4,$B148,"EQY_FUND_RELATIVE_PERIOD",E$9, "EQY_FUND_CRNCY", Hub!$D$8, "FA_ADJUSTED", "ADJ")) -> 45.624 | F148: =IF(_xll.BDP(Hub!$D$4,$B148,"EQY_FUND_RELATIVE_PERIOD",F$9, "EQY_FUND_CRNCY", Hub!$D$8, "FA_ADJUSTED", "ADJ")="#N/A N/A", 0, _xll.BDP(Hub!$D$4,$B148,"EQY_FUND_RELATIVE_PERIOD",F$9, "EQY_FUND_CRNCY", Hub!$D$8, "FA_ADJUSTED", "ADJ")) -> -67 | G148: =IF(_xll.BDP(Hub!$D$4,$B148,"EQY_FUND_RELATIVE_PERIOD",G$9, "EQY_FUND_CRNCY", Hub!$D$8, "FA_ADJUSTED", "ADJ")="#N/A N/A", 0, _xll.BDP(Hub!$D$4,$B148,"EQY_FUND_RELATIVE_PERIOD",G$9, "EQY_FUND_CRNCY", Hub!$D$8, "FA_ADJUSTED", "ADJ")) -> -3 | H148: =IF(_xll.BDP(Hub!$D$4,$B148,"EQY_FUND_RELATIVE_PERIOD",H$9, "EQY_FUND_CRNCY", Hub!$D$8, "FA_ADJUSTED", "ADJ")="#N/A N/A", 0, _xll.BDP(Hub!$D$4,$B148,"EQY_FUND_RELATIVE_PERIOD",H$9, "EQY_FUND_CRNCY", Hub!$D$8, "FA_ADJUSTED", "ADJ")) -> 7 | I148: =IF(_xll.BDP(Hub!$D$4,$B148,"EQY_FUND_RELATIVE_PERIOD",I$9, "EQY_FUND_CRNCY", Hub!$D$8, "FA_ADJUSTED", "ADJ")="#N/A N/A", 0, _xll.BDP(Hub!$D$4,$B148,"EQY_FUND_RELATIVE_PERIOD",I$9, "EQY_FUND_CRNCY", Hub!$D$8, "FA_ADJUSTED", "ADJ")) -> 23 | J148: =DCF!$D$11*Operating_Model!J142 ->  | K148: =DCF!$D$11*Operating_Model!K142 ->  | L148: =DCF!$D$11*Operating_Model!L142 ->  | M148: =DCF!$D$11*Operating_Model!M142 ->  | N148: =DCF!$D$11*Operating_Model!N142 ->  | O148: =DCF!$D$11*Operating_Model!O142 ->  | P148: =DCF!$D$11*Operating_Model!P142 ->  | Q148: =DCF!$D$11*Operating_Model!Q142 ->  | R148: =DCF!$D$11*Operating_Model!R142 ->  | S148: =DCF!$D$11*Operating_Model!S142 -> 
B149: IS_DEFERRED_INCOME_TAX_BENEFIT | C149: Deferred Income Taxes | E149: =IF(_xll.BDP(Hub!$D$4,$B149,"EQY_FUND_RELATIVE_PERIOD",E$9, "EQY_FUND_CRNCY", Hub!$D$8, "FA_ADJUSTED", "ADJ")="#N/A N/A", 0, _xll.BDP(Hub!$D$4,$B149,"EQY_FUND_RELATIVE_PERIOD",E$9, "EQY_FUND_CRNCY", Hub!$D$8, "FA_ADJUSTED", "ADJ")) -> -1.647 | F149: =IF(_xll.BDP(Hub!$D$4,$B149,"EQY_FUND_RELATIVE_PERIOD",F$9, "EQY_FUND_CRNCY", Hub!$D$8, "FA_ADJUSTED", "ADJ")="#N/A N/A", 0, _xll.BDP(Hub!$D$4,$B149,"EQY_FUND_RELATIVE_PERIOD",F$9, "EQY_FUND_CRNCY", Hub!$D$8, "FA_ADJUSTED", "ADJ")) -> 199 | G149: =IF(_xll.BDP(Hub!$D$4,$B149,"EQY_FUND_RELATIVE_PERIOD",G$9, "EQY_FUND_CRNCY", Hub!$D$8, "FA_ADJUSTED", "ADJ")="#N/A N/A", 0, _xll.BDP(Hub!$D$4,$B149,"EQY_FUND_RELATIVE_PERIOD",G$9, "EQY_FUND_CRNCY", Hub!$D$8, "FA_ADJUSTED", "ADJ")) -> -280 | H149: =IF(_xll.BDP(Hub!$D$4,$B149,"EQY_FUND_RELATIVE_PERIOD",H$9, "EQY_FUND_CRNCY", Hub!$D$8, "FA_ADJUSTED", "ADJ")="#N/A N/A", 0, _xll.BDP(Hub!$D$4,$B149,"EQY_FUND_RELATIVE_PERIOD",H$9, "EQY_FUND_CRNCY", Hub!$D$8, "FA_ADJUSTED", "ADJ")) -> -48 | I149: =IF(_xll.BDP(Hub!$D$4,$B149,"EQY_FUND_RELATIVE_PERIOD",I$9, "EQY_FUND_CRNCY", Hub!$D$8, "FA_ADJUSTED", "ADJ")="#N/A N/A", 0, _xll.BDP(Hub!$D$4,$B149,"EQY_FUND_RELATIVE_PERIOD",I$9, "EQY_FUND_CRNCY", Hub!$D$8, "FA_ADJUSTED", "ADJ")) -> -911 | J149: =IFERROR(IF(RSQ($E149:$I149,$E$7:$I$7)>0.5, (SLOPE($E149:$I149,$E$7:$I$7)+I149)*RSQ($E149:$I149,$E$7:$I$7)+(AVERAGE($E149:$I149)*(1-RSQ($E149:$I149,$E$7:$I$7))), AVERAGE($E149:$I149)),0) -> -737.4809079 | K149: -636.4979243 | L149: -577.7288121 | M149: -543.5269256 | N149: -523.6224384 | O149: -512.0386151 | P149: -505.2971723 | Q149: -501.3738518 | R149: -499.0905952 | S149: -497.7618073
B150: IS_TAX_EFF_ON_ABNORMAL_ITEM | C150: Tax Effect On Abnormal Items | E150: =IF(_xll.BDP(Hub!$D$4,$B150,"EQY_FUND_RELATIVE_PERIOD",E$9, "EQY_FUND_CRNCY", Hub!$D$8, "FA_ADJUSTED", "ADJ")="#N/A N/A", 0, _xll.BDP(Hub!$D$4,$B150,"EQY_FUND_RELATIVE_PERIOD",E$9, "EQY_FUND_CRNCY", Hub!$D$8, "FA_ADJUSTED", "ADJ")) -> -7.30548 | F150: =IF(_xll.BDP(Hub!$D$4,$B150,"EQY_FUND_RELATIVE_PERIOD",F$9, "EQY_FUND_CRNCY", Hub!$D$8, "FA_ADJUSTED", "ADJ")="#N/A N/A", 0, _xll.BDP(Hub!$D$4,$B150,"EQY_FUND_RELATIVE_PERIOD",F$9, "EQY_FUND_CRNCY", Hub!$D$8, "FA_ADJUSTED", "ADJ")) -> -117.18 | G150: =IF(_xll.BDP(Hub!$D$4,$B150,"EQY_FUND_RELATIVE_PERIOD",G$9, "EQY_FUND_CRNCY", Hub!$D$8, "FA_ADJUSTED", "ADJ")="#N/A N/A", 0, _xll.BDP(Hub!$D$4,$B150,"EQY_FUND_RELATIVE_PERIOD",G$9, "EQY_FUND_CRNCY", Hub!$D$8, "FA_ADJUSTED", "ADJ")) -> -66.36 | H150: =IF(_xll.BDP(Hub!$D$4,$B150,"EQY_FUND_RELATIVE_PERIOD",H$9, "EQY_FUND_CRNCY", Hub!$D$8, "FA_ADJUSTED", "ADJ")="#N/A N/A", 0, _xll.BDP(Hub!$D$4,$B150,"EQY_FUND_RELATIVE_PERIOD",H$9, "EQY_FUND_CRNCY", Hub!$D$8, "FA_ADJUSTED", "ADJ")) -> -43.47 | I150: =IF(_xll.BDP(Hub!$D$4,$B150,"EQY_FUND_RELATIVE_PERIOD",I$9, "EQY_FUND_CRNCY", Hub!$D$8, "FA_ADJUSTED", "ADJ")="#N/A N/A", 0, _xll.BDP(Hub!$D$4,$B150,"EQY_FUND_RELATIVE_PERIOD",I$9, "EQY_FUND_CRNCY", Hub!$D$8, "FA_ADJUSTED", "ADJ")) -> -59.22 | J150: -58.707096 | K150: -58.707096 | L150: -58.707096 | M150: -58.707096 | N150: -58.707096 | O150: -58.707096 | P150: -58.707096 | Q150: -58.707096 | R150: -58.707096 | S150: -58.707096 | U150: not included for cash flow in filings
C151: Total Income Tax Expenses | E151: =E148+E149-E150 -> 51.28248 | F151: =F148+F149-F150 -> 249.18 | G151: -216.64 | H151: 2.47 | I151: -828.78
C152: YoY Growth | E152: - | F152: =((F151-E151)/E151) -> 3.858969379 | G152: =((G151-F151)/F151) -> -1.86941167 | H152: =((H151-G151)/G151) -> -1.011401403 | I152: =((I151-H151)/H151) -> -336.5384615 | J152: =((J151-I151)/I151) ->  | K152: =((K151-J151)/J151) ->  | L152: =((L151-K151)/K151) ->  | M152: =((M151-L151)/L151) ->  | N152: =((N151-M151)/M151) ->  | O152: =((O151-N151)/N151) ->  | P152: =((P151-O151)/O151) ->  | Q152: =((Q151-P151)/P151) ->  | R152: =((R151-Q151)/Q151) ->  | S152: =((S151-R151)/R151) -> 
B155: MIN_NONCONTROL_INTEREST_CREDITS | C155: Non-Controlling Interest (Credit) | E155: =IF(_xll.BDP(Hub!$D$4,$B155,"EQY_FUND_RELATIVE_PERIOD",E$9, "EQY_FUND_CRNCY", Hub!$D$8, "FA_ADJUSTED", "ADJ")="#N/A N/A", 0, _xll.BDP(Hub!$D$4,$B155,"EQY_FUND_RELATIVE_PERIOD",E$9, "EQY_FUND_CRNCY", Hub!$D$8, "FA_ADJUSTED", "ADJ")) -> 0 | F155: =IF(_xll.BDP(Hub!$D$4,$B155,"EQY_FUND_RELATIVE_PERIOD",F$9, "EQY_FUND_CRNCY", Hub!$D$8, "FA_ADJUSTED", "ADJ")="#N/A N/A", 0, _xll.BDP(Hub!$D$4,$B155,"EQY_FUND_RELATIVE_PERIOD",F$9, "EQY_FUND_CRNCY", Hub!$D$8, "FA_ADJUSTED", "ADJ")) -> -1 | G155: =IF(_xll.BDP(Hub!$D$4,$B155,"EQY_FUND_RELATIVE_PERIOD",G$9, "EQY_FUND_CRNCY", Hub!$D$8, "FA_ADJUSTED", "ADJ")="#N/A N/A", 0, _xll.BDP(Hub!$D$4,$B155,"EQY_FUND_RELATIVE_PERIOD",G$9, "EQY_FUND_CRNCY", Hub!$D$8, "FA_ADJUSTED", "ADJ")) -> 3 | H155: =IF(_xll.BDP(Hub!$D$4,$B155,"EQY_FUND_RELATIVE_PERIOD",H$9, "EQY_FUND_CRNCY", Hub!$D$8, "FA_ADJUSTED", "ADJ")="#N/A N/A", 0, _xll.BDP(Hub!$D$4,$B155,"EQY_FUND_RELATIVE_PERIOD",H$9, "EQY_FUND_CRNCY", Hub!$D$8, "FA_ADJUSTED", "ADJ")) -> -11 | I155: =IF(_xll.BDP(Hub!$D$4,$B155,"EQY_FUND_RELATIVE_PERIOD",I$9, "EQY_FUND_CRNCY", Hub!$D$8, "FA_ADJUSTED", "ADJ")="#N/A N/A", 0, _xll.BDP(Hub!$D$4,$B155,"EQY_FUND_RELATIVE_PERIOD",I$9, "EQY_FUND_CRNCY", Hub!$D$8, "FA_ADJUSTED", "ADJ")) -> 42 | J155: =IFERROR(IF(RSQ($E155:$I155,$E$7:$I$7)>0.5, (SLOPE($E155:$I155,$E$7:$I$7)+I155)*RSQ($E155:$I155,$E$7:$I$7)+(AVERAGE($E155:$I155)*(1-RSQ($E155:$I155,$E$7:$I$7))), AVERAGE($E155:$I155)),0) -> 6.6 | K155: 6.6 | L155: 6.6 | M155: 6.6 | N155: 6.6 | O155: 6.6 | P155: 6.6 | Q155: 6.6 | R155: 6.6 | S155: 6.6
C156: Total Capitalised Operating Lease | E156: =E155 -> 0 | F156: =F155 -> -1 | G156: 3 | H156: -11 | I156: 42 | J156: 6.6 | K156: 6.6 | L156: 6.6 | M156: 6.6 | N156: 6.6 | O156: 6.6 | P156: 6.6 | Q156: 6.6 | R156: 6.6 | S156: 6.6
C157: YoY Growth | E157: - | F157: =((F156-E156)/E156) ->  | G157: =((G156-F156)/F156) -> -4 | H157: =((H156-G156)/G156) -> -4.666666667 | I157: =((I156-H156)/H156) -> -4.818181818 | J157: =((J156-I156)/I156) -> -0.8428571429 | K157: =((K156-J156)/J156) -> 0 | L157: =((L156-K156)/K156) -> 0 | M157: =((M156-L156)/L156) -> 0 | N157: =((N156-M156)/M156) -> 0 | O157: =((O156-N156)/N156) -> 0 | P157: =((P156-O156)/O156) -> 0 | Q157: =((Q156-P156)/P156) -> 0 | R157: =((R156-Q156)/Q156) -> 0 | S157: =((S156-R156)/R156) -> 0
C160: Global Net Income | E160: =E142-E151-E156 -> 1248.44552 | F160: =F142-F151-F156 -> 409.82 | G160: 3534.64 | H160: 4640.53 | I160: 5969.78
C161: YoY Growth | E161: - | F161: =((F160-E160)/E160) -> -0.6717357759 | G161: =((G160-F160)/F160) -> 7.624859695 | H161: =((H160-G160)/G160) -> 0.3128720322 | I161: =((I160-H160)/H160) -> 0.2864435743 | J161: =((J160-I160)/I160) ->  | K161: =((K160-J160)/J160) ->  | L161: =((L160-K160)/K160) ->  | M161: =((M160-L160)/L160) ->  | N161: =((N160-M160)/M160) ->  | O161: =((O160-N160)/N160) ->  | P161: =((P160-O160)/O160) ->  | Q161: =((Q160-P160)/P160) ->  | R161: =((R160-Q160)/Q160) ->  | S161: =((S160-R160)/R160) -> 
B164: IS_TOT_CASH_PFD_DVD | C164: Preferred Dividends | E164: =IF(_xll.BDP(Hub!$D$4,$B164,"EQY_FUND_RELATIVE_PERIOD",E$9, "EQY_FUND_CRNCY", Hub!$D$8, "FA_ADJUSTED", "ADJ")="#N/A N/A", 0, _xll.BDP(Hub!$D$4,$B164,"EQY_FUND_RELATIVE_PERIOD",E$9, "EQY_FUND_CRNCY", Hub!$D$8, "FA_ADJUSTED", "ADJ")) -> 0 | F164: =IF(_xll.BDP(Hub!$D$4,$B164,"EQY_FUND_RELATIVE_PERIOD",F$9, "EQY_FUND_CRNCY", Hub!$D$8, "FA_ADJUSTED", "ADJ")="#N/A N/A", 0, _xll.BDP(Hub!$D$4,$B164,"EQY_FUND_RELATIVE_PERIOD",F$9, "EQY_FUND_CRNCY", Hub!$D$8, "FA_ADJUSTED", "ADJ")) -> 0 | G164: =IF(_xll.BDP(Hub!$D$4,$B164,"EQY_FUND_RELATIVE_PERIOD",G$9, "EQY_FUND_CRNCY", Hub!$D$8, "FA_ADJUSTED", "ADJ")="#N/A N/A", 0, _xll.BDP(Hub!$D$4,$B164,"EQY_FUND_RELATIVE_PERIOD",G$9, "EQY_FUND_CRNCY", Hub!$D$8, "FA_ADJUSTED", "ADJ")) -> 0 | H164: =IF(_xll.BDP(Hub!$D$4,$B164,"EQY_FUND_RELATIVE_PERIOD",H$9, "EQY_FUND_CRNCY", Hub!$D$8, "FA_ADJUSTED", "ADJ")="#N/A N/A", 0, _xll.BDP(Hub!$D$4,$B164,"EQY_FUND_RELATIVE_PERIOD",H$9, "EQY_FUND_CRNCY", Hub!$D$8, "FA_ADJUSTED", "ADJ")) -> 0 | I164: =IF(_xll.BDP(Hub!$D$4,$B164,"EQY_FUND_RELATIVE_PERIOD",I$9, "EQY_FUND_CRNCY", Hub!$D$8, "FA_ADJUSTED", "ADJ")="#N/A N/A", 0, _xll.BDP(Hub!$D$4,$B164,"EQY_FUND_RELATIVE_PERIOD",I$9, "EQY_FUND_CRNCY", Hub!$D$8, "FA_ADJUSTED", "ADJ")) -> 0 | J164: =IFERROR(IF(RSQ($E164:$I164,$E$7:$I$7)>0.5, (SLOPE($E164:$I164,$E$7:$I$7)+I164)*RSQ($E164:$I164,$E$7:$I$7)+(AVERAGE($E164:$I164)*(1-RSQ($E164:$I164,$E$7:$I$7))), AVERAGE($E164:$I164)),0) -> 0 | K164: =IFERROR(IF(RSQ($E164:$I164,$E$7:$I$7)>0.5, (SLOPE($E164:$I164,$E$7:$I$7)+J164)*RSQ($E164:$I164,$E$7:$I$7)+(AVERAGE($E164:$I164)*(1-RSQ($E164:$I164,$E$7:$I$7))), AVERAGE($E164:$I164)),0) -> 0 | L164: 0 | M164: 0 | N164: 0 | O164: 0 | P164: 0 | Q164: 0 | R164: 0 | S164: 0
B165: OTHER_ADJUSTMENTS | C165: Other Adjustments | E165: =IF(_xll.BDP(Hub!$D$4,$B165,"EQY_FUND_RELATIVE_PERIOD",E$9, "EQY_FUND_CRNCY", Hub!$D$8, "FA_ADJUSTED", "ADJ")="#N/A N/A", 0, _xll.BDP(Hub!$D$4,$B165,"EQY_FUND_RELATIVE_PERIOD",E$9, "EQY_FUND_CRNCY", Hub!$D$8, "FA_ADJUSTED", "ADJ")) -> 0 | F165: =IF(_xll.BDP(Hub!$D$4,$B165,"EQY_FUND_RELATIVE_PERIOD",F$9, "EQY_FUND_CRNCY", Hub!$D$8, "FA_ADJUSTED", "ADJ")="#N/A N/A", 0, _xll.BDP(Hub!$D$4,$B165,"EQY_FUND_RELATIVE_PERIOD",F$9, "EQY_FUND_CRNCY", Hub!$D$8, "FA_ADJUSTED", "ADJ")) -> 0 | G165: =IF(_xll.BDP(Hub!$D$4,$B165,"EQY_FUND_RELATIVE_PERIOD",G$9, "EQY_FUND_CRNCY", Hub!$D$8, "FA_ADJUSTED", "ADJ")="#N/A N/A", 0, _xll.BDP(Hub!$D$4,$B165,"EQY_FUND_RELATIVE_PERIOD",G$9, "EQY_FUND_CRNCY", Hub!$D$8, "FA_ADJUSTED", "ADJ")) -> 0 | H165: =IF(_xll.BDP(Hub!$D$4,$B165,"EQY_FUND_RELATIVE_PERIOD",H$9, "EQY_FUND_CRNCY", Hub!$D$8, "FA_ADJUSTED", "ADJ")="#N/A N/A", 0, _xll.BDP(Hub!$D$4,$B165,"EQY_FUND_RELATIVE_PERIOD",H$9, "EQY_FUND_CRNCY", Hub!$D$8, "FA_ADJUSTED", "ADJ")) -> 0 | I165: =IF(_xll.BDP(Hub!$D$4,$B165,"EQY_FUND_RELATIVE_PERIOD",I$9, "EQY_FUND_CRNCY", Hub!$D$8, "FA_ADJUSTED", "ADJ")="#N/A N/A", 0, _xll.BDP(Hub!$D$4,$B165,"EQY_FUND_RELATIVE_PERIOD",I$9, "EQY_FUND_CRNCY", Hub!$D$8, "FA_ADJUSTED", "ADJ")) -> 0 | J165: =IFERROR(IF(RSQ($E165:$I165,$E$7:$I$7)>0.5, (SLOPE($E165:$I165,$E$7:$I$7)+I165)*RSQ($E165:$I165,$E$7:$I$7)+(AVERAGE($E165:$I165)*(1-RSQ($E165:$I165,$E$7:$I$7))), AVERAGE($E165:$I165)),0) -> 0 | K165: 0 | L165: 0 | M165: 0 | N165: 0 | O165: 0 | P165: 0 | Q165: 0 | R165: 0 | S165: 0
B166: IS_SH_PRO_EQY_MT_INV_NET_OF_TAX | C166: After-Tax (Income) Loss From Affiliates | E166: =IF(_xll.BDP(Hub!$D$4,$B166,"EQY_FUND_RELATIVE_PERIOD",E$9, "EQY_FUND_CRNCY", Hub!$D$8, "FA_ADJUSTED", "ADJ")="#N/A N/A", 0, _xll.BDP(Hub!$D$4,$B166,"EQY_FUND_RELATIVE_PERIOD",E$9, "EQY_FUND_CRNCY", Hub!$D$8, "FA_ADJUSTED", "ADJ")) -> 0 | F166: =IF(_xll.BDP(Hub!$D$4,$B166,"EQY_FUND_RELATIVE_PERIOD",F$9, "EQY_FUND_CRNCY", Hub!$D$8, "FA_ADJUSTED", "ADJ")="#N/A N/A", 0, _xll.BDP(Hub!$D$4,$B166,"EQY_FUND_RELATIVE_PERIOD",F$9, "EQY_FUND_CRNCY", Hub!$D$8, "FA_ADJUSTED", "ADJ")) -> 0 | G166: =IF(_xll.BDP(Hub!$D$4,$B166,"EQY_FUND_RELATIVE_PERIOD",G$9, "EQY_FUND_CRNCY", Hub!$D$8, "FA_ADJUSTED", "ADJ")="#N/A N/A", 0, _xll.BDP(Hub!$D$4,$B166,"EQY_FUND_RELATIVE_PERIOD",G$9, "EQY_FUND_CRNCY", Hub!$D$8, "FA_ADJUSTED", "ADJ")) -> 0 | H166: =IF(_xll.BDP(Hub!$D$4,$B166,"EQY_FUND_RELATIVE_PERIOD",H$9, "EQY_FUND_CRNCY", Hub!$D$8, "FA_ADJUSTED", "ADJ")="#N/A N/A", 0, _xll.BDP(Hub!$D$4,$B166,"EQY_FUND_RELATIVE_PERIOD",H$9, "EQY_FUND_CRNCY", Hub!$D$8, "FA_ADJUSTED", "ADJ")) -> 0 | I166: =IF(_xll.BDP(Hub!$D$4,$B166,"EQY_FUND_RELATIVE_PERIOD",I$9, "EQY_FUND_CRNCY", Hub!$D$8, "FA_ADJUSTED", "ADJ")="#N/A N/A", 0, _xll.BDP(Hub!$D$4,$B166,"EQY_FUND_RELATIVE_PERIOD",I$9, "EQY_FUND_CRNCY", Hub!$D$8, "FA_ADJUSTED", "ADJ")) -> 0 | J166: =IFERROR(IF(RSQ($E166:$I166,$E$7:$I$7)>0.5, (SLOPE($E166:$I166,$E$7:$I$7)+I166)*RSQ($E166:$I166,$E$7:$I$7)+(AVERAGE($E166:$I166)*(1-RSQ($E166:$I166,$E$7:$I$7))), AVERAGE($E166:$I166)),0) -> 0 | K166: 0 | L166: 0 | M166: 0 | N166: 0 | O166: 0 | P166: 0 | Q166: 0 | R166: 0 | S166: 0
C167: Total Final Adjustments | E167: =SUM(E164:E166) -> 0 | F167: =SUM(F164:F166) -> 0 | G167: 0 | H167: 0 | I167: 0 | J167: 0 | K167: 0 | L167: 0 | M167: 0 | N167: 0 | O167: 0 | P167: 0 | Q167: 0 | R167: 0 | S167: 0
C168: YoY Growth | E168: - | F168: =((F167-E167)/E167) ->  | G168: =((G167-F167)/F167) ->  | H168: =((H167-G167)/G167) ->  | I168: =((I167-H167)/H167) ->  | J168: =((J167-I167)/I167) ->  | K168: =((K167-J167)/J167) ->  | L168: =((L167-K167)/K167) ->  | M168: =((M167-L167)/L167) ->  | N168: =((N167-M167)/M167) ->  | O168: =((O167-N167)/N167) ->  | P168: =((P167-O167)/O167) ->  | Q168: =((Q167-P167)/P167) ->  | R168: =((R167-Q167)/Q167) ->  | S168: =((S167-R167)/R167) -> 
C171: Global Net Income to Commons | E171: =E160-E167 -> 1248.44552 | F171: =F160-F167 -> 409.82 | G171: 3534.64 | H171: 4640.53 | I171: 5969.78
C172: YoY Growth | E172: - | F172: =((F171-E171)/E171) -> -0.6717357759 | G172: =((G171-F171)/F171) -> 7.624859695 | H172: =((H171-G171)/G171) -> 0.3128720322 | I172: =((I171-H171)/H171) -> 0.2864435743 | J172: =((J171-I171)/I171) ->  | K172: =((K171-J171)/J171) ->  | L172: =((L171-K171)/K171) ->  | M172: =((M171-L171)/L171) ->  | N172: =((N171-M171)/M171) ->  | O172: =((O171-N171)/N171) ->  | P172: =((P171-O171)/O171) ->  | Q172: =((Q171-P171)/P171) ->  | R172: =((R171-Q171)/Q171) ->  | S172: =((S171-R171)/R171) -> 

Sheet WACC_Calculator
B2: =DCF!C2 -> CAESARS ENTERTAINMENT INC | C2: WACC Calculator
C4: Calc WACC | D4: =((G4/G6*G7))+((G5/G6)*G8*(1-L4)) -> 0.08084891177 | F4: Market Cap | G4: =IF(Hub!N4="Yes", _xll.BDP(Hub!D4, "RR902")/1000000, Hub!V6*Hub!V7) -> 7977.076657 | I4: Tax Rate | L4: =DCF!D11 -> 0.21
F5: Market Value of Debt | G5: =IF(Debt_Schedule!AC28="Backup Schedule Enabled", Debt_Schedule!AD41, Debt_Schedule!J105+Debt_Schedule!T105) -> 25711 | I5: Beta | L5: =IF(Hub!N4="Yes", _xll.BDP(Hub!D4, "RK001"), Hub!V8) -> 1.981797218
F6: Cost of Capital | G6: =G4+G5 -> 33688.07666 | I6: Risk Free Rate | L6: =DCF!N12 -> 0.04167355
F7: Cost of Equity | G7: =L6+(L5*L7) -> 0.1572647464 | I7: Equity Risk Premium | L7: =Hub!H21 -> 0.05832645
F8: Cost of Debt | G8: =(L9/L8)*(1-L4) -> 0.0723293532 | I8: Total Debt | L8: =IF(Debt_Schedule!AC28="Backup Schedule Enabled", Debt_Schedule!AD41, Debt_Schedule!AD14) -> 25711
I9: Interest Expenses | L9: =Operating_Model!I136 -> 2354

Sheet D&A+CAPEX
G2: Actuals | N2: Forecast
E3: =YEAR(E4) -> 2019 | F3: =YEAR(F4) -> 2020 | G3: 2021 | H3: 2022 | I3: 2023 | J3: =YEAR(J4) -> 2024 | K3: =YEAR(K4) -> 2025 | L3: 2026 | M3: 2027 | N3: 2028 | O3: 2029 | P3: 2030 | Q3: 2031 | R3: 2032 | S3: 2033
E4: =EOMONTH(F4,-12) -> 2019-12-31 | F4: 2020-12-31 | G4: 2021-12-31 | H4: =EOMONTH(I4,-12) -> 2022-12-31 | I4: =DCF!I16 -> 2023-12-31 | J4: =EOMONTH(I4,12) -> 2024-12-31 | K4: =EOMONTH(J4,12) -> 2025-12-31 | L4: 2026-12-31 | M4: 2027-12-31 | N4: 2028-12-31 | O4: 2029-12-31 | P4: 2030-12-31 | Q4: 2031-12-31 | R4: 2032-12-31 | S4: 2033-12-31
E5: -4FY | F5: -3FY | G5: -2FY | H5: -1FY | I5: -0FY
C7: D&A, PP&E, CapEx Schedules
B9: ARDR_PROPERTY_PLANT_EQUIP_NET | C9: PP&E | E9: =_xll.BDP(Hub!$D$4,$B9,"EQY_FUND_RELATIVE_PERIOD",E$5, "EQY_FUND_CRNCY", Hub!$D$8, "FA_ADJUSTED", "ADJ") -> 2614.524 | F9: =_xll.BDP(Hub!$D$4,$B9,"EQY_FUND_RELATIVE_PERIOD",F$5, "EQY_FUND_CRNCY", Hub!$D$8, "FA_ADJUSTED", "ADJ") -> 14333 | G9: =_xll.BDP(Hub!$D$4,$B9,"EQY_FUND_RELATIVE_PERIOD",G$5, "EQY_FUND_CRNCY", Hub!$D$8, "FA_ADJUSTED", "ADJ") -> 14601 | H9: =_xll.BDP(Hub!$D$4,$B9,"EQY_FUND_RELATIVE_PERIOD",H$5, "EQY_FUND_CRNCY", Hub!$D$8, "FA_ADJUSTED", "ADJ") -> 14598 | I9: =_xll.BDP(Hub!$D$4,$B9,"EQY_FUND_RELATIVE_PERIOD",I$5, "EQY_FUND_CRNCY", Hub!$D$8, "FA_ADJUSTED", "ADJ") -> 14756 | J9: =I9+J11-J34 -> 
C11: PP&E CapEx | E11: =DCF!E30-E43 -> 140.466 | F11: =DCF!F30-F43 -> -2998.602 | G11: =DCF!G30-G43 -> 26 | H11: =DCF!H30-H43 -> 982 | I11: =DCF!I30-I43 -> 1341 | J11: =J12*Revenue_Build!I36-J43 ->  | K11: =K12*Revenue_Build!J36-K43 ->  | L11: =L12*Revenue_Build!K36-L43 ->  | M11: =M12*Revenue_Build!L36-M43 ->  | N11: =N12*Revenue_Build!M36-N43 ->  | O11: =O12*Revenue_Build!N36-O43 ->  | P11: =P12*Revenue_Build!O36-P43 ->  | Q11: =Q12*Revenue_Build!P36-Q43 ->  | R11: =R12*Revenue_Build!Q36-R43 ->  | S11: =S12*Revenue_Build!R36-S43 -> 
C12: & of Revenue | E12: =E11/Revenue_Build!D36 -> 0.05556408228 | F12: =F11/Revenue_Build!E36 -> -0.826516538 | G12: =G11/Revenue_Build!F36 -> 0.002716823406 | H12: =H11/Revenue_Build!G36 -> 0.09074946863 | I12: =I11/Revenue_Build!H36 -> 0.1163254684 | J12: =IF(RSQ($E12:$I12*$E13:$I13,$E$3:$I$3)>0.5,((SLOPE($E12:$I12*$E13:$I13,$E$3:$I$3)+I12)*RSQ($E12:$I12*$E13:$I13,$E$3:$I$3)+(AVERAGE(IF($E13:$I13=1,$E12:$I12,""))*(1-RSQ($E12:$I12*$E13:$I13,$E$3:$I$3)))),AVERAGE(IF($E13:$I13=1,$E12:$I12,""))) ->  | K12: =IF(RSQ($E12:$I12*$E13:$I13,$E$3:$I$3)>0.5,((SLOPE($E12:$I12*$E13:$I13,$E$3:$I$3)+J12)*RSQ($E12:$I12*$E13:$I13,$E$3:$I$3)+(AVERAGE(IF($E13:$I13=1,$E12:$I12,""))*(1-RSQ($E12:$I12*$E13:$I13,$E$3:$I$3)))),AVERAGE(IF($E13:$I13=1,$E12:$I12,""))) ->  | L12: =IF(RSQ($E12:$I12*$E13:$I13,$E$3:$I$3)>0.5,((SLOPE($E12:$I12*$E13:$I13,$E$3:$I$3)+K12)*RSQ($E12:$I12*$E13:$I13,$E$3:$I$3)+(AVERAGE(IF($E13:$I13=1,$E12:$I12,""))*(1-RSQ($E12:$I12*$E13:$I13,$E$3:$I$3)))),AVERAGE(IF($E13:$I13=1,$E12:$I12,""))) ->  | M12: =IF(RSQ($E12:$I12*$E13:$I13,$E$3:$I$3)>0.5,((SLOPE($E12:$I12*$E13:$I13,$E$3:$I$3)+L12)*RSQ($E12:$I12*$E13:$I13,$E$3:$I$3)+(AVERAGE(IF($E13:$I13=1,$E12:$I12,""))*(1-RSQ($E12:$I12*$E13:$I13,$E$3:$I$3)))),AVERAGE(IF($E13:$I13=1,$E12:$I12,""))) ->  | N12: =IF(RSQ($E12:$I12*$E13:$I13,$E$3:$I$3)>0.5,((SLOPE($E12:$I12*$E13:$I13,$E$3:$I$3)+M12)*RSQ($E12:$I12*$E13:$I13,$E$3:$I$3)+(AVERAGE(IF($E13:$I13=1,$E12:$I12,""))*(1-RSQ($E12:$I12*$E13:$I13,$E$3:$I$3)))),AVERAGE(IF($E13:$I13=1,$E12:$I12,""))) ->  | O12: =IF(RSQ($E12:$I12*$E13:$I13,$E$3:$I$3)>0.5,((SLOPE($E12:$I12*$E13:$I13,$E$3:$I$3)+N12)*RSQ($E12:$I12*$E13:$I13,$E$3:$I$3)+(AVERAGE(IF($E13:$I13=1,$E12:$I12,""))*(1-RSQ($E12:$I12*$E13:$I13,$E$3:$I$3)))),AVERAGE(IF($E13:$I13=1,$E12:$I12,""))) ->  | P12: =IF(RSQ($E12:$I12*$E13:$I13,$E$3:$I$3)>0.5,((SLOPE($E12:$I12*$E13:$I13,$E$3:$I$3)+O12)*RSQ($E12:$I12*$E13:$I13,$E$3:$I$3)+(AVERAGE(IF($E13:$I13=1,$E12:$I12,""))*(1-RSQ($E12:$I12*$E13:$I13,$E$3:$I$3)))),AVERAGE(IF($E13:$I13=1,$E12:$I12,""))) ->  | Q12: =IF(RSQ($E12:$I12*$E13:$I13,$E$3:$I$3)>0.5,((SLOPE($E12:$I12*$E13:$I13,$E$3:$I$3)+P12)*RSQ($E12:$I12*$E13:$I13,$E$3:$I$3)+(AVERAGE(IF($E13:$I13=1,$E12:$I12,""))*(1-RSQ($E12:$I12*$E13:$I13,$E$3:$I$3)))),AVERAGE(IF($E13:$I13=1,$E12:$I12,""))) ->  | R12: =IF(RSQ($E12:$I12*$E13:$I13,$E$3:$I$3)>0.5,((SLOPE($E12:$I12*$E13:$I13,$E$3:$I$3)+Q12)*RSQ($E12:$I12*$E13:$I13,$E$3:$I$3)+(AVERAGE(IF($E13:$I13=1,$E12:$I12,""))*(1-RSQ($E12:$I12*$E13:$I13,$E$3:$I$3)))),AVERAGE(IF($E13:$I13=1,$E12:$I12,""))) ->  | S12: =IF(RSQ($E12:$I12*$E13:$I13,$E$3:$I$3)>0.5,((SLOPE($E12:$I12*$E13:$I13,$E$3:$I$3)+R12)*RSQ($E12:$I12*$E13:$I13,$E$3:$I$3)+(AVERAGE(IF($E13:$I13=1,$E12:$I12,""))*(1-RSQ($E12:$I12*$E13:$I13,$E$3:$I$3)))),AVERAGE(IF($E13:$I13=1,$E12:$I12,""))) -> 
B13: Outlier Checker | E13: =IF(OR(E12>(1.5*(_xlfn.QUARTILE.INC($E12:$I12,3)-_xlfn.QUARTILE.INC($E12:$I12,1))+_xlfn.QUARTILE.INC($E12:$I12,3)),E12<(1.5*(_xlfn.QUARTILE.INC($E12:$I12,3)-_xlfn.QUARTILE.INC($E12:$I12,1)))-_xlfn.QUARTILE.INC($E12:$I12,1),E12<=0),0,1) -> 0 | F13: =IF(OR(F12>(1.5*(_xlfn.QUARTILE.INC($E12:$I12,3)-_xlfn.QUARTILE.INC($E12:$I12,1))+_xlfn.QUARTILE.INC($E12:$I12,3)),F12<(1.5*(_xlfn.QUARTILE.INC($E12:$I12,3)-_xlfn.QUARTILE.INC($E12:$I12,1)))-_xlfn.QUARTILE.INC($E12:$I12,1),F12<=0),0,1) -> 0 | G13: 0 | H13: 0 | I13: 0
C15: Useful life (Years) | E15: =E9/SUM(E18:E32) -> 13.66714062 | F15: =F9/SUM(F18:F32) -> 27.19734345 | G15: =G9/SUM(G18:G32) -> 14.79331307 | H15: =H9/SUM(H18:H32) -> 14.33988212 | I15: =I9/SUM(I18:I32) -> 13.21038496 | J15: =IF(RSQ($E15:$I15*$E16:$I16,$E$3:$I$3)>0.5,((SLOPE($E15:$I15*$E16:$I16,$E$3:$I$3)+I15)*RSQ($E15:$I15*$E16:$I16,$E$3:$I$3)+(AVERAGE(IF($E16:$I16=1,$E15:$I15,""))*(1-RSQ($E15:$I15*$E16:$I16,$E$3:$I$3)))),AVERAGE(IF($E16:$I16=1,$E15:$I15,""))) -> 14.00268019 | K15: =IF(RSQ($E15:$I15*$E16:$I16,$E$3:$I$3)>0.5,((SLOPE($E15:$I15*$E16:$I16,$E$3:$I$3)+J15)*RSQ($E15:$I15*$E16:$I16,$E$3:$I$3)+(AVERAGE(IF($E16:$I16=1,$E15:$I15,""))*(1-RSQ($E15:$I15*$E16:$I16,$E$3:$I$3)))),AVERAGE(IF($E16:$I16=1,$E15:$I15,""))) -> 14.00268019 | L15: =IF(RSQ($E15:$I15*$E16:$I16,$E$3:$I$3)>0.5,((SLOPE($E15:$I15*$E16:$I16,$E$3:$I$3)+K15)*RSQ($E15:$I15*$E16:$I16,$E$3:$I$3)+(AVERAGE(IF($E16:$I16=1,$E15:$I15,""))*(1-RSQ($E15:$I15*$E16:$I16,$E$3:$I$3)))),AVERAGE(IF($E16:$I16=1,$E15:$I15,""))) -> 14.00268019 | M15: =IF(RSQ($E15:$I15*$E16:$I16,$E$3:$I$3)>0.5,((SLOPE($E15:$I15*$E16:$I16,$E$3:$I$3)+L15)*RSQ($E15:$I15*$E16:$I16,$E$3:$I$3)+(AVERAGE(IF($E16:$I16=1,$E15:$I15,""))*(1-RSQ($E15:$I15*$E16:$I16,$E$3:$I$3)))),AVERAGE(IF($E16:$I16=1,$E15:$I15,""))) -> 14.00268019 | N15: =IF(RSQ($E15:$I15*$E16:$I16,$E$3:$I$3)>0.5,((SLOPE($E15:$I15*$E16:$I16,$E$3:$I$3)+M15)*RSQ($E15:$I15*$E16:$I16,$E$3:$I$3)+(AVERAGE(IF($E16:$I16=1,$E15:$I15,""))*(1-RSQ($E15:$I15*$E16:$I16,$E$3:$I$3)))),AVERAGE(IF($E16:$I16=1,$E15:$I15,""))) -> 14.00268019 | O15: =IF(RSQ($E15:$I15*$E16:$I16,$E$3:$I$3)>0.5,((SLOPE($E15:$I15*$E16:$I16,$E$3:$I$3)+N15)*RSQ($E15:$I15*$E16:$I16,$E$3:$I$3)+(AVERAGE(IF($E16:$I16=1,$E15:$I15,""))*(1-RSQ($E15:$I15*$E16:$I16,$E$3:$I$3)))),AVERAGE(IF($E16:$I16=1,$E15:$I15,""))) -> 14.00268019 | P15: =IF(RSQ($E15:$I15*$E16:$I16,$E$3:$I$3)>0.5,((SLOPE($E15:$I15*$E16:$I16,$E$3:$I$3)+O15)*RSQ($E15:$I15*$E16:$I16,$E$3:$I$3)+(AVERAGE(IF($E16:$I16=1,$E15:$I15,""))*(1-RSQ($E15:$I15*$E16:$I16,$E$3:$I$3)))),AVERAGE(IF($E16:$I16=1,$E15:$I15,""))) -> 14.00268019 | Q15: =IF(RSQ($E15:$I15*$E16:$I16,$E$3:$I$3)>0.5,((SLOPE($E15:$I15*$E16:$I16,$E$3:$I$3)+P15)*RSQ($E15:$I15*$E16:$I16,$E$3:$I$3)+(AVERAGE(IF($E16:$I16=1,$E15:$I15,""))*(1-RSQ($E15:$I15*$E16:$I16,$E$3:$I$3)))),AVERAGE(IF($E16:$I16=1,$E15:$I15,""))) -> 14.00268019 | R15: =IF(RSQ($E15:$I15*$E16:$I16,$E$3:$I$3)>0.5,((SLOPE($E15:$I15*$E16:$I16,$E$3:$I$3)+Q15)*RSQ($E15:$I15*$E16:$I16,$E$3:$I$3)+(AVERAGE(IF($E16:$I16=1,$E15:$I15,""))*(1-RSQ($E15:$I15*$E16:$I16,$E$3:$I$3)))),AVERAGE(IF($E16:$I16=1,$E15:$I15,""))) -> 14.00268019 | S15: =IF(RSQ($E15:$I15*$E16:$I16,$E$3:$I$3)>0.5,((SLOPE($E15:$I15*$E16:$I16,$E$3:$I$3)+R15)*RSQ($E15:$I15*$E16:$I16,$E$3:$I$3)+(AVERAGE(IF($E16:$I16=1,$E15:$I15,""))*(1-RSQ($E15:$I15*$E16:$I16,$E$3:$I$3)))),AVERAGE(IF($E16:$I16=1,$E15:$I15,""))) -> 14.00268019
B16: Outlier Checker | E16: =IF(OR(E15>(1.5*(_xlfn.QUARTILE.INC($E15:$I15,3)-_xlfn.QUARTILE.INC($E15:$I15,1))+_xlfn.QUARTILE.INC($E15:$I15,3)),E15<(1.5*(_xlfn.QUARTILE.INC($E15:$I15,3)-_xlfn.QUARTILE.INC($E15:$I15,1)))-_xlfn.QUARTILE.INC($E15:$I15,1)),0,1) -> 1 | F16: =IF(OR(F15>(1.5*(_xlfn.QUARTILE.INC($E15:$I15,3)-_xlfn.QUARTILE.INC($E15:$I15,1))+_xlfn.QUARTILE.INC($E15:$I15,3)),F15<(1.5*(_xlfn.QUARTILE.INC($E15:$I15,3)-_xlfn.QUARTILE.INC($E15:$I15,1)))-_xlfn.QUARTILE.INC($E15:$I15,1)),0,1) -> 0 | G16: 1 | H16: 1 | I16: =IF(OR(I15>(1.5*(_xlfn.QUARTILE.INC($E15:$I15,3)-_xlfn.QUARTILE.INC($E15:$I15,1))+_xlfn.QUARTILE.INC($E15:$I15,3)),I15<(1.5*(_xlfn.QUARTILE.INC($E15:$I15,3)-_xlfn.QUARTILE.INC($E15:$I15,1)))-_xlfn.QUARTILE.INC($E15:$I15,1)),0,1) -> 1
C17: Depreciation Schedule
C18: =C19-1 -> 2019 | E18: =Operating_Model!E108 -> 191.3 | J18: =IF($F$15 - (J$3-$C18) >= 1, $E$11/$F$15, IF(AND($F$15 - (J$3-$C18) >= 0, $F$15 - (J$3-$C18) < 1), ($F$15 - (J$3-$C18)) * ($E$11/$F$15), 0)) -> 5.164695598 | K18: =IF($F$15 - (K$3-$C18) >= 1, $E$11/$F$15, IF(AND($F$15 - (K$3-$C18) >= 0, $F$15 - (K$3-$C18) < 1), ($F$15 - (K$3-$C18)) * ($E$11/$F$15), 0)) -> 5.164695598 | L18: 5.164695598 | M18: 5.164695598 | N18: 5.164695598 | O18: 5.164695598 | P18: 5.164695598 | Q18: 5.164695598 | R18: 5.164695598 | S18: 5.164695598
C19: =C20-1 -> 2020 | F19: =Operating_Model!F108 -> 527 | J19: =IF($G$15 - (J$3-$C19) >= 1, $F$11/$G$15, IF(AND($G$15 - (J$3-$C19) >= 0, $G$15 - (J$3-$C19) < 1), ($G$15 - (J$3-$C19)) * ($F$11/$G$15), 0)) -> -202.699827 | K19: =IF($G$15 - (K$3-$C19) >= 1, $F$11/$G$15, IF(AND($G$15 - (K$3-$C19) >= 0, $G$15 - (K$3-$C19) < 1), ($G$15 - (K$3-$C19)) * ($F$11/$G$15), 0)) -> -202.699827 | L19: -202.699827 | M19: -202.699827 | N19: -202.699827 | O19: -202.699827 | P19: -202.699827 | Q19: -202.699827 | R19: -202.699827 | S19: -202.699827
C20: =C21-1 -> 2021 | G20: =Operating_Model!G108 -> 987 | J20: =IF($H$15 - (J$3-$C20) >= 1, $G$11/$H$15, IF(AND($H$15 - (J$3-$C20) >= 0, $H$15 - (J$3-$C20) < 1), ($H$15 - (J$3-$C20)) * ($G$11/$H$15), 0)) -> 1.813125086 | K20: =IF($H$15 - (K$3-$C20) >= 1, $G$11/$H$15, IF(AND($H$15 - (K$3-$C20) >= 0, $H$15 - (K$3-$C20) < 1), ($H$15 - (K$3-$C20)) * ($G$11/$H$15), 0)) -> 1.813125086 | L20: 1.813125086 | M20: 1.813125086 | N20: 1.813125086 | O20: 1.813125086 | P20: 1.813125086 | Q20: 1.813125086 | R20: 1.813125086 | S20: 1.813125086
C21: =C22-1 -> 2022 | H21: =Operating_Model!H108 -> 1018 | J21: =IF($I$15 - (J$3-$C21) >= 1, $H$11/$I$15, IF(AND($I$15 - (J$3-$C21) >= 0, $I$15 - (J$3-$C21) < 1), ($I$15 - (J$3-$C21)) * ($H$11/$I$15), 0)) -> 74.33545676 | K21: =IF($I$15 - (K$3-$C21) >= 1, $H$11/$I$15, IF(AND($I$15 - (K$3-$C21) >= 0, $I$15 - (K$3-$C21) < 1), ($I$15 - (K$3-$C21)) * ($H$11/$I$15), 0)) -> 74.33545676 | L21: 74.33545676 | M21: 74.33545676 | N21: 74.33545676 | O21: 74.33545676 | P21: 74.33545676 | Q21: 74.33545676 | R21: 74.33545676 | S21: 74.33545676
C22: =YEAR(Historicals!H9) -> 2023 | I22: =Operating_Model!I108 -> 1117 | J22: =IF($J$15 - (J$3-$C22) >= 1, $I$11/$J$15, IF(AND($J$15 - (J$3-$C22) >= 0, $J$15 - (J$3-$C22) < 1), ($J$15 - (J$3-$C22)) * ($I$11/$J$15), 0)) -> 95.76738036 | K22: =IF($J$15 - (K$3-$C22) >= 1, $I$11/$J$15, IF(AND($J$15 - (K$3-$C22) >= 0, $J$15 - (K$3-$C22) < 1), ($J$15 - (K$3-$C22)) * ($I$11/$J$15), 0)) -> 95.76738036 | L22: 95.76738036 | M22: 95.76738036 | N22: 95.76738036 | O22: 95.76738036 | P22: 95.76738036 | Q22: 95.76738036 | R22: 95.76738036 | S22: 95.76738036
C23: =C22+1 -> 2024 | J23: =IF($K$15 - (J$3-$C23) >= 1, $J$11/$K$15, IF(AND($K$15 - (J$3-$C23) >= 0, $K$15 - (J$3-$C23) < 1), ($K$15 - (J$3-$C23)) * ($J$11/$K$15), 0)) ->  | K23: =IF($K$15 - (K$3-$C23) >= 1, $J$11/$K$15, IF(AND($K$15 - (K$3-$C23) >= 0, $K$15 - (K$3-$C23) < 1), ($K$15 - (K$3-$C23)) * ($J$11/$K$15), 0)) -> 
C24: 2025 | K24: =IF($L$15 - (K$3-$C24) >= 1, $K$11/$L$15, IF(AND($L$15 - (K$3-$C24) >= 0, $L$15 - (K$3-$C24) < 1), ($L$15 - (K$3-$C24)) * ($K$11/$L$15), 0)) ->  | S24: =IF($L$15 - (S$3-$C24) >= 1, $K$11/$L$15, IF(AND($L$15 - (S$3-$C24) >= 0, $L$15 - (S$3-$C24) < 1), ($L$15 - (S$3-$C24)) * ($K$11/$L$15), 0)) -> 
C25: 2026 | L25: =IF($M$15 - (L$3-$C25) >= 1, $L$11/$M$15, IF(AND($M$15 - (L$3-$C25) >= 0, $M$15 - (L$3-$C25) < 1), ($M$15 - (L$3-$C25)) * ($L$11/$M$15), 0)) ->  | S25: =IF($M$15 - (S$3-$C25) >= 1, $L$11/$M$15, IF(AND($M$15 - (S$3-$C25) >= 0, $M$15 - (S$3-$C25) < 1), ($M$15 - (S$3-$C25)) * ($L$11/$M$15), 0)) -> 
C26: 2027 | M26: =IF($N$15 - (M$3-$C26) >= 1, $L$11/$N$15, IF(AND($N$15 - (M$3-$C26) >= 0, $N$15 - (M$3-$C26) < 1), ($N$15 - (M$3-$C26)) * ($L$11/$N$15), 0)) ->  | S26: =IF($N$15 - (S$3-$C26) >= 1, $L$11/$N$15, IF(AND($N$15 - (S$3-$C26) >= 0, $N$15 - (S$3-$C26) < 1), ($N$15 - (S$3-$C26)) * ($L$11/$N$15), 0)) -> 
C27: 2028 | N27: =IF($O$15 - (N$3-$C27) >= 1, $N$11/$O$15, IF(AND($O$15 - (N$3-$C27) >= 0, $O$15 - (N$3-$C27) < 1), ($O$15 - (N$3-$C27)) * ($N$11/$O$15), 0)) ->  | S27: =IF($O$15 - (S$3-$C27) >= 1, $N$11/$O$15, IF(AND($O$15 - (S$3-$C27) >= 0, $O$15 - (S$3-$C27) < 1), ($O$15 - (S$3-$C27)) * ($N$11/$O$15), 0)) -> 
C28: 2029 | O28: =IF($P$15 - (O$3-$C28) >= 1, $O$11/$P$15, IF(AND($P$15 - (O$3-$C28) >= 0, $P$15 - (O$3-$C28) < 1), ($P$15 - (O$3-$C28)) * ($O$11/$P$15), 0)) ->  | S28: =IF($P$15 - (S$3-$C28) >= 1, $O$11/$P$15, IF(AND($P$15 - (S$3-$C28) >= 0, $P$15 - (S$3-$C28) < 1), ($P$15 - (S$3-$C28)) * ($O$11/$P$15), 0)) -> 
C29: 2030 | P29: =IF($Q$15 - (P$3-$C29) >= 1, $P$11/$Q$15, IF(AND($Q$15 - (P$3-$C29) >= 0, $Q$15 - (P$3-$C29) < 1), ($Q$15 - (P$3-$C29)) * ($P$11/$Q$15), 0)) ->  | S29: =IF($Q$15 - (S$3-$C29) >= 1, $P$11/$Q$15, IF(AND($Q$15 - (S$3-$C29) >= 0, $Q$15 - (S$3-$C29) < 1), ($Q$15 - (S$3-$C29)) * ($P$11/$Q$15), 0)) -> 
C30: 2031 | Q30: =IF($R$15 - (Q$3-$C30) >= 1, $Q$11/$R$15, IF(AND($R$15 - (Q$3-$C30) >= 0, $R$15 - (Q$3-$C30) < 1), ($R$15 - (Q$3-$C30)) * ($Q$11/$R$15), 0)) ->  | S30: =IF($R$15 - (S$3-$C30) >= 1, $Q$11/$R$15, IF(AND($R$15 - (S$3-$C30) >= 0, $R$15 - (S$3-$C30) < 1), ($R$15 - (S$3-$C30)) * ($Q$11/$R$15), 0)) -> 
C31: 2032 | R31: =IF($S$15 - (R$3-$C31) >= 1, $R$11/$S$15, IF(AND($S$15 - (R$3-$C31) >= 0, $S$15 - (R$3-$C31) < 1), ($S$15 - (R$3-$C31)) * ($R$11/$S$15), 0)) ->  | S31: =IF($S$15 - (S$3-$C31) >= 1, $R$11/$S$15, IF(AND($S$15 - (S$3-$C31) >= 0, $S$15 - (S$3-$C31) < 1), ($S$15 - (S$3-$C31)) * ($R$11/$S$15), 0)) -> 
C32: 2033 | S32: =IF($S$15 - (S$3-$C32) >= 1, $S$11/$S$15, IF(AND($S$15 - (S$3-$C32) >= 0, $S$15 - (S$3-$C32) < 1), ($S$15 - (S$3-$C32)) * ($S$11/$S$15), 0)) -> 
C34: Total Depreciation | E34: =SUM(E18:E32) -> 191.3 | F34: 527 | G34: 987 | H34: 1018 | I34: 1117
C35: % of Revenue | E35: =E34/Revenue_Build!D36 -> 0.07567246835 | F35: =F34/Revenue_Build!E36 -> 0.1452590959 | G35: =G34/Revenue_Build!F36 -> 0.1031347962 | H35: =H34/Revenue_Build!G36 -> 0.09407633306 | I35: =I34/Revenue_Build!H36 -> 0.0968945177 | J35: =J34/Revenue_Build!I36 ->  | K35: =K34/Revenue_Build!J36 ->  | L35: =L34/Revenue_Build!K36 ->  | M35: =M34/Revenue_Build!L36 ->  | N35: =N34/Revenue_Build!M36 ->  | O35: =O34/Revenue_Build!N36 ->  | P35: =P34/Revenue_Build!O36 ->  | Q35: =Q34/Revenue_Build!P36 ->  | R35: =R34/Revenue_Build!Q36 ->  | S35: =S34/Revenue_Build!R36 -> 
B37: OTHER_INTANGIBLE_ASSETS_DETAILED | C37: Intangible assets | E37: =_xll.BDP(Hub!$D$4,$B37,"EQY_FUND_RELATIVE_PERIOD",E$5, "EQY_FUND_CRNCY", Hub!$D$8, "FA_ADJUSTED", "ADJ") -> 1111.398 | F37: =_xll.BDP(Hub!$D$4,$B37,"EQY_FUND_RELATIVE_PERIOD",F$5, "EQY_FUND_CRNCY", Hub!$D$8, "FA_ADJUSTED", "ADJ") -> 4253 | G37: =_xll.BDP(Hub!$D$4,$B37,"EQY_FUND_RELATIVE_PERIOD",G$5, "EQY_FUND_CRNCY", Hub!$D$8, "FA_ADJUSTED", "ADJ") -> 4920 | H37: =_xll.BDP(Hub!$D$4,$B37,"EQY_FUND_RELATIVE_PERIOD",H$5, "EQY_FUND_CRNCY", Hub!$D$8, "FA_ADJUSTED", "ADJ") -> 4714 | I37: =_xll.BDP(Hub!$D$4,$B37,"EQY_FUND_RELATIVE_PERIOD",I$5, "EQY_FUND_CRNCY", Hub!$D$8, "FA_ADJUSTED", "ADJ") -> 4523 | J37: =IF(SUM($E37:$I37)=0, 0, IF(RSQ($E37:$I37,$E$3:$I$3)>0.5,((SLOPE($E37:$I37,$E$3:$I$3)+I37)*RSQ($E37:$I37,$E$3:$I$3)+(AVERAGE($E37:$I37)*(1-RSQ($E37:$I37,$E$3:$I$3)))),AVERAGE($E37:$I37))) -> 4619.643826 | K37: =IF(SUM($E37:$I37)=0, 0, IF(RSQ($E37:$I37,$E$3:$I$3)>0.5,((SLOPE($E37:$I37,$E$3:$I$3)+J37)*RSQ($E37:$I37,$E$3:$I$3)+(AVERAGE($E37:$I37)*(1-RSQ($E37:$I37,$E$3:$I$3)))),AVERAGE($E37:$I37))) -> 4670.964027 | L37: 4698.21629 | M37: 4712.687898 | N37: 4720.372671 | O37: 4724.453471 | P37: 4726.620474 | Q37: 4727.771204 | R37: 4728.38227 | S37: 4728.706761
C38: Amortisation expense | E38: =Operating_Model!E109 -> 30.3 | F38: =Operating_Model!F109 -> 56 | G38: =Operating_Model!G109 -> 139 | H38: =Operating_Model!H109 -> 187 | I38: =Operating_Model!I109 -> 144 | J38: =IF(J37=0, 0,J37/J41) -> 112.8723486 | K38: =IF(K37=0, 0,K37/K41) -> 114.1262616 | L38: 114.7921197 | M38: 115.1457063 | N38: 115.3334694 | O38: 115.4331761 | P38: 115.4861227 | Q38: 115.5142387 | R38: 115.5291689 | S38: 115.5370972
C39: & of Revenue | E39: =E38/Revenue_Build!D36 -> 0.01198575949 | F39: =F38/Revenue_Build!E36 -> 0.01543550165 | G39: =G38/Revenue_Build!F36 -> 0.0145245559 | H39: =H38/Revenue_Build!G36 -> 0.01728121246 | I39: =I38/Revenue_Build!H36 -> 0.01249132547 | J39: =J38/Revenue_Build!I36 -> 0.007097552741 | K39: =K38/Revenue_Build!J36 -> 0.005165219038 | L39: =L38/Revenue_Build!K36 -> 0.003711426993 | M39: =M38/Revenue_Build!L36 -> 0.002638813659 | N39: =N38/Revenue_Build!M36 -> 0.001858445684 | O39: =O38/Revenue_Build!N36 -> 0.001297155383 | P39: =P38/Revenue_Build!O36 -> 0.0008975594664 | Q39: =Q38/Revenue_Build!P36 -> 0.0006158280179 | R39: =R38/Revenue_Build!Q36 -> 0.0004190617988 | S39: =S38/Revenue_Build!R36 -> 0.0002829004013
C41: Useful Life (Years) | E41: =IFERROR(E37/E38, 0) -> 36.67980198 | F41: 75.94642857 | G41: 35.39568345 | H41: 25.20855615 | I41: 31.40972222 | J41: =IF(SUM($E41:$I41)=0, 0, IF(RSQ($E41:$I41,$E$3:$I$3)>0.5,((SLOPE($E41:$I41,$E$3:$I$3)+I41)*RSQ($E41:$I41,$E$3:$I$3)+(AVERAGE($E41:$I41)*(1-RSQ($E41:$I41,$E$3:$I$3)))),AVERAGE($E41:$I41))) -> 40.92803848 | K41: 40.92803848 | L41: 40.92803848 | M41: 40.92803848 | N41: 40.92803848 | O41: 40.92803848 | P41: 40.92803848 | Q41: 40.92803848 | R41: 40.92803848 | S41: 40.92803848
C43: Intangible Assets CapEx | E43: =E38 -> 30.3 | F43: =F37+F38-E37 -> 3197.602 | G43: =G37+G38-F37 -> 806 | H43: -19 | I43: -47 | J43: =J38 -> 112.8723486 | K43: 114.1262616 | L43: 114.7921197 | M43: 115.1457063 | N43: 115.3334694 | O43: 115.4331761 | P43: 115.4861227 | Q43: 115.5142387 | R43: 115.5291689 | S43: 115.5370972
C45: Total CapEx | E45: =E11+E43 -> 170.766 | F45: 199 | G45: 832 | H45: 963 | I45: 1294
C46: Total D&A | E46: =E34+E38 -> 221.6 | F46: 583 | G46: 1126 | H46: 1205 | I46: 1261
G49: Actuals
E50: =YEAR(E51) -> 2019 | F50: =YEAR(F51) -> 2020 | G50: 2021 | H50: 2022 | I50: 2023
E51: =EOMONTH(F51,-12) -> 2019-12-31 | F51: 2020-12-31 | G51: 2021-12-31 | H51: =EOMONTH(I51,-12) -> 2022-12-31 | I51: =DCF!D10 -> 2023-12-31
C52: Pre-emptive | E52: -4FY | F52: -3FY | G52: -2FY | H52: -1FY | I52: -0FY
B54: IS_DEPR_EXP | C54: Depreciation | E54: =IF(_xll.BDP(Hub!$D$4,$B54,"EQY_FUND_RELATIVE_PERIOD",E$52, "EQY_FUND_CRNCY", Hub!$D$8, "FA_ADJUSTED", "ADJ")="#N/A N/A",0,_xll.BDP(Hub!$D$4,$B54,"EQY_FUND_RELATIVE_PERIOD",E$52, "EQY_FUND_CRNCY", Hub!$D$8,"FA_ADJUSTED", "ADJ")) -> 191.3 | F54: =IF(_xll.BDP(Hub!$D$4,$B54,"EQY_FUND_RELATIVE_PERIOD",F$52, "EQY_FUND_CRNCY", Hub!$D$8, "FA_ADJUSTED", "ADJ")="#N/A N/A",0,_xll.BDP(Hub!$D$4,$B54,"EQY_FUND_RELATIVE_PERIOD",F$52, "EQY_FUND_CRNCY", Hub!$D$8,"FA_ADJUSTED", "ADJ")) -> 527 | G54: =IF(_xll.BDP(Hub!$D$4,$B54,"EQY_FUND_RELATIVE_PERIOD",G$52, "EQY_FUND_CRNCY", Hub!$D$8, "FA_ADJUSTED", "ADJ")="#N/A N/A",0,_xll.BDP(Hub!$D$4,$B54,"EQY_FUND_RELATIVE_PERIOD",G$52, "EQY_FUND_CRNCY", Hub!$D$8,"FA_ADJUSTED", "ADJ")) -> 987 | H54: =IF(_xll.BDP(Hub!$D$4,$B54,"EQY_FUND_RELATIVE_PERIOD",H$52, "EQY_FUND_CRNCY", Hub!$D$8, "FA_ADJUSTED", "ADJ")="#N/A N/A",0,_xll.BDP(Hub!$D$4,$B54,"EQY_FUND_RELATIVE_PERIOD",H$52, "EQY_FUND_CRNCY", Hub!$D$8,"FA_ADJUSTED", "ADJ")) -> 1018 | I54: =IF(_xll.BDP(Hub!$D$4,$B54,"EQY_FUND_RELATIVE_PERIOD",I$52, "EQY_FUND_CRNCY", Hub!$D$8, "FA_ADJUSTED", "ADJ")="#N/A N/A",0,_xll.BDP(Hub!$D$4,$B54,"EQY_FUND_RELATIVE_PERIOD",I$52, "EQY_FUND_CRNCY", Hub!$D$8,"FA_ADJUSTED", "ADJ")) -> 1117
B55: IS_AMORTIZATION_EXPENSE | C55: Amortisation | E55: =IF(_xll.BDP(Hub!$D$4,$B55,"EQY_FUND_RELATIVE_PERIOD",E$52, "EQY_FUND_CRNCY", Hub!$D$8, "FA_ADJUSTED", "ADJ")="#N/A N/A",0,_xll.BDP(Hub!$D$4,$B55,"EQY_FUND_RELATIVE_PERIOD",E$52, "EQY_FUND_CRNCY", Hub!$D$8,"FA_ADJUSTED", "ADJ")) -> 30.3 | F55: =IF(_xll.BDP(Hub!$D$4,$B55,"EQY_FUND_RELATIVE_PERIOD",F$52, "EQY_FUND_CRNCY", Hub!$D$8, "FA_ADJUSTED", "ADJ")="#N/A N/A",0,_xll.BDP(Hub!$D$4,$B55,"EQY_FUND_RELATIVE_PERIOD",F$52, "EQY_FUND_CRNCY", Hub!$D$8,"FA_ADJUSTED", "ADJ")) -> 0 | G55: =IF(_xll.BDP(Hub!$D$4,$B55,"EQY_FUND_RELATIVE_PERIOD",G$52, "EQY_FUND_CRNCY", Hub!$D$8, "FA_ADJUSTED", "ADJ")="#N/A N/A",0,_xll.BDP(Hub!$D$4,$B55,"EQY_FUND_RELATIVE_PERIOD",G$52, "EQY_FUND_CRNCY", Hub!$D$8,"FA_ADJUSTED", "ADJ")) -> 0 | H55: =IF(_xll.BDP(Hub!$D$4,$B55,"EQY_FUND_RELATIVE_PERIOD",H$52, "EQY_FUND_CRNCY", Hub!$D$8, "FA_ADJUSTED", "ADJ")="#N/A N/A",0,_xll.BDP(Hub!$D$4,$B55,"EQY_FUND_RELATIVE_PERIOD",H$52, "EQY_FUND_CRNCY", Hub!$D$8,"FA_ADJUSTED", "ADJ")) -> 0 | I55: =IF(_xll.BDP(Hub!$D$4,$B55,"EQY_FUND_RELATIVE_PERIOD",I$52, "EQY_FUND_CRNCY", Hub!$D$8, "FA_ADJUSTED", "ADJ")="#N/A N/A",0,_xll.BDP(Hub!$D$4,$B55,"EQY_FUND_RELATIVE_PERIOD",I$52, "EQY_FUND_CRNCY", Hub!$D$8,"FA_ADJUSTED", "ADJ")) -> 0
B56: CF_DEPR_AMORT | C56: D&A | E56: =IF(_xll.BDP(Hub!$D$4,$B56,"EQY_FUND_RELATIVE_PERIOD",E$52, "EQY_FUND_CRNCY", Hub!$D$8, "FA_ADJUSTED", "ADJ")="#N/A N/A",0,_xll.BDP(Hub!$D$4,$B56,"EQY_FUND_RELATIVE_PERIOD",E$52, "EQY_FUND_CRNCY", Hub!$D$8,"FA_ADJUSTED", "ADJ")) -> 221.525 | F56: =IF(_xll.BDP(Hub!$D$4,$B56,"EQY_FUND_RELATIVE_PERIOD",F$52, "EQY_FUND_CRNCY", Hub!$D$8, "FA_ADJUSTED", "ADJ")="#N/A N/A",0,_xll.BDP(Hub!$D$4,$B56,"EQY_FUND_RELATIVE_PERIOD",F$52, "EQY_FUND_CRNCY", Hub!$D$8,"FA_ADJUSTED", "ADJ")) -> 583 | G56: =IF(_xll.BDP(Hub!$D$4,$B56,"EQY_FUND_RELATIVE_PERIOD",G$52, "EQY_FUND_CRNCY", Hub!$D$8, "FA_ADJUSTED", "ADJ")="#N/A N/A",0,_xll.BDP(Hub!$D$4,$B56,"EQY_FUND_RELATIVE_PERIOD",G$52, "EQY_FUND_CRNCY", Hub!$D$8,"FA_ADJUSTED", "ADJ")) -> 1126 | H56: =IF(_xll.BDP(Hub!$D$4,$B56,"EQY_FUND_RELATIVE_PERIOD",H$52, "EQY_FUND_CRNCY", Hub!$D$8, "FA_ADJUSTED", "ADJ")="#N/A N/A",0,_xll.BDP(Hub!$D$4,$B56,"EQY_FUND_RELATIVE_PERIOD",H$52, "EQY_FUND_CRNCY", Hub!$D$8,"FA_ADJUSTED", "ADJ")) -> 1205 | I56: =IF(_xll.BDP(Hub!$D$4,$B56,"EQY_FUND_RELATIVE_PERIOD",I$52, "EQY_FUND_CRNCY", Hub!$D$8, "FA_ADJUSTED", "ADJ")="#N/A N/A",0,_xll.BDP(Hub!$D$4,$B56,"EQY_FUND_RELATIVE_PERIOD",I$52, "EQY_FUND_CRNCY", Hub!$D$8,"FA_ADJUSTED", "ADJ")) -> 1261
C59: Final
C61: Deprecitation | E61: =IF(OR(E54=0, E54=""), E56-E55, E54) -> 191.3 | F61: =IF(OR(F54=0, F54=""), F56-F55, F54) -> 527 | G61: 987 | H61: 1018 | I61: 1117
C62: Amortization | E62: =IF(SUM($E37:$I37)=0,0,IF(OR(E55=0, E55=""), E56-E54,E55)) -> 30.3 | F62: =IF(SUM($E37:$I37)=0,0,IF(OR(F55=0, F55=""), F56-F54,F55)) -> 56 | G62: 139 | H62: 187 | I62: 144
C63: D&A | E63: =IF(OR(E56=0,E56=""), E54+E55, E56) -> 221.525 | F63: 583 | G63: 1126 | H63: 1205 | I63: =IF(OR(I56=0,I56=""), I54+I55, I56) -> 1261

Sheet Net_Working_Capital
G2: Actuals | N2: Forecast
D3: =YEAR(D4) -> 2018 | E3: =YEAR(E4) -> 2019 | F3: =YEAR(F4) -> 2020 | G3: 2021 | H3: 2022 | I3: 2023 | J3: =YEAR(J4) -> 2024 | K3: =YEAR(K4) -> 2025 | L3: 2026 | M3: 2027 | N3: 2028 | O3: 2029 | P3: 2030 | Q3: 2031 | R3: 2032 | S3: 2033
D4: =EOMONTH(E4,-12) -> 2018-12-31 | E4: 2019-12-31 | F4: 2020-12-31 | G4: 2021-12-31 | H4: =EOMONTH(I4,-12) -> 2022-12-31 | I4: =DCF!D10 -> 2023-12-31 | J4: =EOMONTH(I4,12) -> 2024-12-31 | K4: =EOMONTH(J4,12) -> 2025-12-31 | L4: 2026-12-31 | M4: 2027-12-31 | N4: 2028-12-31 | O4: =EOMONTH(N4,12) -> 2029-12-31 | P4: =EOMONTH(O4,12) -> 2030-12-31 | Q4: =EOMONTH(P4,12) -> 2031-12-31 | R4: =EOMONTH(Q4,12) -> 2032-12-31 | S4: =EOMONTH(R4,12) -> 2033-12-31
D5: -5FY | E5: -4FY | F5: -3FY | G5: -2FY | H5: -1FY | I5: -0FY
C6: Change in Net Working Capital
B8: C&CE_AND_STI_DETAILED | C8: Cash | D8: =_xll.BDP(Hub!$D$4,$B8,"EQY_FUND_RELATIVE_PERIOD",D$5, "EQY_FUND_CRNCY", Hub!$D$8) -> 247.709 | E8: =_xll.BDP(Hub!$D$4,$B8,"EQY_FUND_RELATIVE_PERIOD",E$5, "EQY_FUND_CRNCY", Hub!$D$8) -> 240.951 | F8: =_xll.BDP(Hub!$D$4,$B8,"EQY_FUND_RELATIVE_PERIOD",F$5, "EQY_FUND_CRNCY", Hub!$D$8) -> 1758 | G8: =_xll.BDP(Hub!$D$4,$B8,"EQY_FUND_RELATIVE_PERIOD",G$5, "EQY_FUND_CRNCY", Hub!$D$8) -> 1070 | H8: =_xll.BDP(Hub!$D$4,$B8,"EQY_FUND_RELATIVE_PERIOD",H$5, "EQY_FUND_CRNCY", Hub!$D$8) -> 1038 | I8: =_xll.BDP(Hub!$D$4,$B8,"EQY_FUND_RELATIVE_PERIOD",I$5, "EQY_FUND_CRNCY", Hub!$D$8) -> 1005 | J8: =I8 -> 1005 | K8: =J8 -> 1005 | L8: =K8 -> 1005 | M8: =L8 -> 1005 | N8: =M8 -> 1005 | O8: =N8 -> 1005 | P8: 1005 | Q8: 1005 | R8: 1005 | S8: 1005
B9: BS_ACCT_NOTE_RCV | C9: Account Receivable | D9: =_xll.BDP(Hub!$D$4,$B9,"EQY_FUND_RELATIVE_PERIOD",D$5, "EQY_FUND_CRNCY", Hub!$D$8) -> 60.169 | E9: =_xll.BDP(Hub!$D$4,$B9,"EQY_FUND_RELATIVE_PERIOD",E$5, "EQY_FUND_CRNCY", Hub!$D$8) -> 53.899 | F9: =_xll.BDP(Hub!$D$4,$B9,"EQY_FUND_RELATIVE_PERIOD",F$5, "EQY_FUND_CRNCY", Hub!$D$8) -> 338 | G9: =_xll.BDP(Hub!$D$4,$B9,"EQY_FUND_RELATIVE_PERIOD",G$5, "EQY_FUND_CRNCY", Hub!$D$8) -> 472 | H9: =_xll.BDP(Hub!$D$4,$B9,"EQY_FUND_RELATIVE_PERIOD",H$5, "EQY_FUND_CRNCY", Hub!$D$8) -> 611 | I9: =_xll.BDP(Hub!$D$4,$B9,"EQY_FUND_RELATIVE_PERIOD",I$5, "EQY_FUND_CRNCY", Hub!$D$8) -> 608 | J9: =(J10/365)*Revenue_Build!I36 -> 868.3395321 | K9: =(K10/365)*Revenue_Build!J36 -> 1206.44489 | L9: =(L10/365)*Revenue_Build!K36 -> 1688.813893 | M9: =(M10/365)*Revenue_Build!L36 -> 2382.59192 | N9: =(N10/365)*Revenue_Build!M36 -> 3388.567361 | O9: =(O10/365)*Revenue_Build!N36 -> 4859.026667 | P9: =(P10/365)*Revenue_Build!O36 -> 7025.499527 | Q9: =(Q10/365)*Revenue_Build!P36 -> 10242.04586 | R9: =(R10/365)*Revenue_Build!Q36 -> 15053.04002 | S9: =(S10/365)*Revenue_Build!R36 -> 22299.67473
C10: DSO Ratio | E10: =IFERROR((E9/Revenue_Build!D36)*365,0) -> 7.782094541 | F10: =IFERROR((F9/Revenue_Build!E36)*365,0) -> 34.00496141 | G10: =IFERROR((G9/Revenue_Build!F36)*365,0) -> 18.00208986 | H10: =IFERROR((H9/Revenue_Build!G36)*365,0) -> 20.60946308 | I10: =IFERROR((I9/Revenue_Build!H36)*365,0) -> 19.25052047 | J10: =IF(SUM($E10:$I10)=0, 0, IF(RSQ($E10:$I10,$E$3:$I$3)>0.5,((SLOPE($E10:$I10,$E$3:$I$3)+I10)*RSQ($E10:$I10,$E$3:$I$3)+(AVERAGE($E10:$I10)*(1-RSQ($E10:$I10,$E$3:$I$3)))),AVERAGE($E10:$I10))) -> 19.92982587 | K10: =IF(SUM($E10:$I10)=0, 0, IF(RSQ($E10:$I10,$E$3:$I$3)>0.5,((SLOPE($E10:$I10,$E$3:$I$3)+J10)*RSQ($E10:$I10,$E$3:$I$3)+(AVERAGE($E10:$I10)*(1-RSQ($E10:$I10,$E$3:$I$3)))),AVERAGE($E10:$I10))) -> 19.92982587 | L10: 19.92982587 | M10: 19.92982587 | N10: 19.92982587 | O10: 19.92982587 | P10: 19.92982587 | Q10: 19.92982587 | R10: 19.92982587 | S10: 19.92982587
B11: BS_INVENTORIES | C11: Inventory | D11: =_xll.BDP(Hub!$D$4,$B11,"EQY_FUND_RELATIVE_PERIOD",D$5, "EQY_FUND_CRNCY", Hub!$D$8) -> 20.595 | E11: =_xll.BDP(Hub!$D$4,$B11,"EQY_FUND_RELATIVE_PERIOD",E$5, "EQY_FUND_CRNCY", Hub!$D$8) -> 18.379 | F11: =_xll.BDP(Hub!$D$4,$B11,"EQY_FUND_RELATIVE_PERIOD",F$5, "EQY_FUND_CRNCY", Hub!$D$8) -> 44 | G11: =_xll.BDP(Hub!$D$4,$B11,"EQY_FUND_RELATIVE_PERIOD",G$5, "EQY_FUND_CRNCY", Hub!$D$8) -> 42 | H11: =_xll.BDP(Hub!$D$4,$B11,"EQY_FUND_RELATIVE_PERIOD",H$5, "EQY_FUND_CRNCY", Hub!$D$8) -> 59 | I11: =_xll.BDP(Hub!$D$4,$B11,"EQY_FUND_RELATIVE_PERIOD",I$5, "EQY_FUND_CRNCY", Hub!$D$8) -> 46 | J11: =(J12/365)*Operating_Model!J69 -> 36.13371273 | K11: =(K12/365)*Operating_Model!K69 -> 26.01758676 | L11: =(L12/365)*Operating_Model!L69 -> 9.181259073 | M11: =(M12/365)*Operating_Model!M69 -> -17.96533982 | N11: =(N12/365)*Operating_Model!N69 -> -60.92934422 | O11: =(O12/365)*Operating_Model!O69 -> -128.1858271 | P11: =(P12/365)*Operating_Model!P69 -> -232.8206657 | Q11: =(Q12/365)*Operating_Model!Q69 -> -395.1066922 | R11: =(R12/365)*Operating_Model!R69 -> -646.5548475 | S11: =(S12/365)*Operating_Model!S69 -> -1036.30188
C12: DIH Ratio | E12: =IFERROR((E11/Operating_Model!E69)*365,0) -> 146.0301929 | F12: =IFERROR((F11/Operating_Model!F69)*365,0) -> 114.7142857 | G12: =IFERROR((G11/Operating_Model!G69)*365,0) -> 41.09919571 | H12: =IFERROR((H11/Operating_Model!H69)*365,0) -> 52.39659367 | I12: =IFERROR((I11/Operating_Model!I69)*365,0) -> 38.68663594 | J12: =IF(SUM($E12:$I12)=0, 0, IF(RSQ($E12:$I12,$E$3:$I$3)>0.5,((SLOPE($E12:$I12,$E$3:$I$3)+I12)*RSQ($E12:$I12,$E$3:$I$3)+(AVERAGE($E12:$I12)*(1-RSQ($E12:$I12,$E$3:$I$3)))),AVERAGE($E12:$I12))) -> 24.19763716 | K12: =IF(SUM($E12:$I12)=0, 0, IF(RSQ($E12:$I12,$E$3:$I$3)>0.5,((SLOPE($E12:$I12,$E$3:$I$3)+J12)*RSQ($E12:$I12,$E$3:$I$3)+(AVERAGE($E12:$I12)*(1-RSQ($E12:$I12,$E$3:$I$3)))),AVERAGE($E12:$I12))) -> 12.54034455 | L12: 3.161334094 | M12: -4.384657931 | N12: -10.45587364 | O12: -15.34054091 | P12: -19.27055682 | Q12: -22.43249685 | R12: -24.97647251 | S12: -27.02325774
B13: OTHER_CURRENT_ASSETS_DETAILED | C13: Other Current Assets | D13: =_xll.BDP(Hub!$D$4,$B13,"EQY_FUND_RELATIVE_PERIOD",D$5, "EQY_FUND_CRNCY", Hub!$D$8) -> 244.723 | E13: =_xll.BDP(Hub!$D$4,$B13,"EQY_FUND_RELATIVE_PERIOD",E$5, "EQY_FUND_CRNCY", Hub!$D$8) -> 291.414 | F13: =_xll.BDP(Hub!$D$4,$B13,"EQY_FUND_RELATIVE_PERIOD",F$5, "EQY_FUND_CRNCY", Hub!$D$8) -> 4527 | G13: =_xll.BDP(Hub!$D$4,$B13,"EQY_FUND_RELATIVE_PERIOD",G$5, "EQY_FUND_CRNCY", Hub!$D$8) -> 4380 | H13: =_xll.BDP(Hub!$D$4,$B13,"EQY_FUND_RELATIVE_PERIOD",H$5, "EQY_FUND_CRNCY", Hub!$D$8) -> 394 | I13: =_xll.BDP(Hub!$D$4,$B13,"EQY_FUND_RELATIVE_PERIOD",I$5, "EQY_FUND_CRNCY", Hub!$D$8) -> 386 | J13: =J14*Revenue_Build!I36 -> 6013.380819 | K13: =K14*Revenue_Build!J36 -> 8354.81087 | L13: =L14*Revenue_Build!K36 -> 11695.28819 | M13: =M14*Revenue_Build!L36 -> 16499.80454 | N13: =N14*Revenue_Build!M36 -> 23466.33456 | O13: =O14*Revenue_Build!N36 -> 33649.48466 | P13: =P14*Revenue_Build!O36 -> 48652.63246 | Q13: =Q14*Revenue_Build!P36 -> 70927.69574 | R13: =R14*Revenue_Build!Q36 -> 104244.5481 | S13: =S14*Revenue_Build!R36 -> 154428.5747
C14: % of Revenue | E14: =E13/Revenue_Build!D36 -> 0.1152745253 | F14: =F13/Revenue_Build!E36 -> 1.247794928 | G14: =G13/Revenue_Build!F36 -> 0.4576802508 | H14: =H13/Revenue_Build!G36 -> 0.03641068293 | I14: =I13/Revenue_Build!H36 -> 0.03348369188 | J14: =IF(SUM($E14:$I14)=0, 0, IF(RSQ($E14:$I14,$E$3:$I$3)>0.5,((SLOPE($E14:$I14,$E$3:$I$3)+I14)*RSQ($E14:$I14,$E$3:$I$3)+(AVERAGE($E14:$I14)*(1-RSQ($E14:$I14,$E$3:$I$3)))),AVERAGE($E14:$I14))) -> 0.3781288158 | K14: =IF(SUM($E14:$I14)=0, 0, IF(RSQ($E14:$I14,$E$3:$I$3)>0.5,((SLOPE($E14:$I14,$E$3:$I$3)+J14)*RSQ($E14:$I14,$E$3:$I$3)+(AVERAGE($E14:$I14)*(1-RSQ($E14:$I14,$E$3:$I$3)))),AVERAGE($E14:$I14))) -> 0.3781288158 | L14: 0.3781288158 | M14: 0.3781288158 | N14: 0.3781288158 | O14: 0.3781288158 | P14: 0.3781288158 | Q14: 0.3781288158 | R14: 0.3781288158 | S14: 0.3781288158
B16: ACCT_PAYABLE_&_ACCRUALS_DETAILED | C16: Accounts Payable | D16: =_xll.BDP(Hub!$D$4,$B16,"EQY_FUND_RELATIVE_PERIOD",D$5, "EQY_FUND_CRNCY", Hub!$D$8) -> 391.024 | E16: =_xll.BDP(Hub!$D$4,$B16,"EQY_FUND_RELATIVE_PERIOD",E$5, "EQY_FUND_CRNCY", Hub!$D$8) -> 384.795 | F16: =_xll.BDP(Hub!$D$4,$B16,"EQY_FUND_RELATIVE_PERIOD",F$5, "EQY_FUND_CRNCY", Hub!$D$8) -> 1633 | G16: =_xll.BDP(Hub!$D$4,$B16,"EQY_FUND_RELATIVE_PERIOD",G$5, "EQY_FUND_CRNCY", Hub!$D$8) -> 2547 | H16: =_xll.BDP(Hub!$D$4,$B16,"EQY_FUND_RELATIVE_PERIOD",H$5, "EQY_FUND_CRNCY", Hub!$D$8) -> 2510 | I16: =_xll.BDP(Hub!$D$4,$B16,"EQY_FUND_RELATIVE_PERIOD",I$5, "EQY_FUND_CRNCY", Hub!$D$8) -> 2602 | J16: =(J17/365)*Operating_Model!J69 -> 4248.251009 | K16: =(K17/365)*Operating_Model!K69 -> 5902.392477 | L16: =(L17/365)*Operating_Model!L69 -> 8262.327189 | M16: =(M17/365)*Operating_Model!M69 -> 11656.55617 | N16: =(N17/365)*Operating_Model!N69 -> 16578.17499 | O16: =(O17/365)*Operating_Model!O69 -> 23772.22754 | P16: =(P17/365)*Operating_Model!P69 -> 34371.44613 | Q16: =(Q17/365)*Operating_Model!Q69 -> 50108.02808 | R16: =(R17/365)*Operating_Model!R69 -> 73645.2621 | S16: =(S17/365)*Operating_Model!S69 -> 109098.5866
C17: DPO Ratio | E17: =IFERROR((E16/Operating_Model!E69)*365,0) -> 3057.385498 | F17: =IFERROR((F16/Operating_Model!F69)*365,0) -> 4257.464286 | G17: =IFERROR((G16/Operating_Model!G69)*365,0) -> 2492.372654 | H17: =IFERROR((H16/Operating_Model!H69)*365,0) -> 2229.075426 | I17: =IFERROR((I16/Operating_Model!I69)*365,0) -> 2188.317972 | J17: =IF(SUM($E17:$I17)=0, 0, IF(RSQ($E17:$I17,$E$3:$I$3)>0.5,((SLOPE($E17:$I17,$E$3:$I$3)+I17)*RSQ($E17:$I17,$E$3:$I$3)+(AVERAGE($E17:$I17)*(1-RSQ($E17:$I17,$E$3:$I$3)))),AVERAGE($E17:$I17))) -> 2844.923167 | K17: =IF(SUM($E17:$I17)=0, 0, IF(RSQ($E17:$I17,$E$3:$I$3)>0.5,((SLOPE($E17:$I17,$E$3:$I$3)+J17)*RSQ($E17:$I17,$E$3:$I$3)+(AVERAGE($E17:$I17)*(1-RSQ($E17:$I17,$E$3:$I$3)))),AVERAGE($E17:$I17))) -> 2844.923167 | L17: 2844.923167 | M17: 2844.923167 | N17: 2844.923167 | O17: 2844.923167 | P17: 2844.923167 | Q17: 2844.923167 | R17: 2844.923167 | S17: 2844.923167
B18: OTHER_CURRENT_LIABS_SUB_DETAILED | C18: Other Liabilities excluding debts | D18: =_xll.BDP(Hub!$D$4,$B18,"EQY_FUND_RELATIVE_PERIOD",D$5, "EQY_FUND_CRNCY", Hub!$D$8) -> 10.691 | E18: =_xll.BDP(Hub!$D$4,$B18,"EQY_FUND_RELATIVE_PERIOD",E$5, "EQY_FUND_CRNCY", Hub!$D$8) -> 37.485 | F18: =_xll.BDP(Hub!$D$4,$B18,"EQY_FUND_RELATIVE_PERIOD",F$5, "EQY_FUND_CRNCY", Hub!$D$8) -> 833 | G18: =_xll.BDP(Hub!$D$4,$B18,"EQY_FUND_RELATIVE_PERIOD",G$5, "EQY_FUND_CRNCY", Hub!$D$8) -> 2631 | H18: =_xll.BDP(Hub!$D$4,$B18,"EQY_FUND_RELATIVE_PERIOD",H$5, "EQY_FUND_CRNCY", Hub!$D$8) -> 0 | I18: =_xll.BDP(Hub!$D$4,$B18,"EQY_FUND_RELATIVE_PERIOD",I$5, "EQY_FUND_CRNCY", Hub!$D$8) -> 0 | J18: =J19*Revenue_Build!I36 -> 1651.852543 | K18: =K19*Revenue_Build!J36 -> 2295.034357 | L18: =L19*Revenue_Build!K36 -> 3212.650606 | M18: =M19*Revenue_Build!L36 -> 4532.432737 | N18: =N19*Revenue_Build!M36 -> 6446.111695 | O18: =O19*Revenue_Build!N36 -> 9243.383793 | P18: =P19*Revenue_Build!O36 -> 13364.69069 | Q18: =Q19*Revenue_Build!P36 -> 19483.56475 | R18: =R19*Revenue_Build!Q36 -> 28635.57573 | S18: =S19*Revenue_Build!R36 -> 42420.9345
C19: % of Revenue | E19: =E18/Revenue_Build!D36 -> 0.01482792722 | F19: =F18/Revenue_Build!E36 -> 0.2296030871 | G19: =G18/Revenue_Build!F36 -> 0.2749216301 | H19: =H18/Revenue_Build!G36 -> 0 | I19: =I18/Revenue_Build!H36 -> 0 | J19: =IF(SUM($E19:$I19)=0, 0, IF(RSQ($E19:$I19,$E$3:$I$3)>0.5,((SLOPE($E19:$I19,$E$3:$I$3)+I19)*RSQ($E19:$I19,$E$3:$I$3)+(AVERAGE($E19:$I19)*(1-RSQ($E19:$I19,$E$3:$I$3)))),AVERAGE($E19:$I19))) -> 0.1038705289 | K19: =IF(SUM($E19:$I19)=0, 0, IF(RSQ($E19:$I19,$E$3:$I$3)>0.5,((SLOPE($E19:$I19,$E$3:$I$3)+J19)*RSQ($E19:$I19,$E$3:$I$3)+(AVERAGE($E19:$I19)*(1-RSQ($E19:$I19,$E$3:$I$3)))),AVERAGE($E19:$I19))) -> 0.1038705289 | L19: 0.1038705289 | M19: 0.1038705289 | N19: 0.1038705289 | O19: 0.1038705289 | P19: 0.1038705289 | Q19: 0.1038705289 | R19: 0.1038705289 | S19: 0.1038705289
C21: LT Debt principal into Current Debt | I21: =Debt_Schedule!AE10 -> 1423.02947 | J21: =Debt_Schedule!AF10 -> 1518.610401 | K21: =Debt_Schedule!AG10 -> 1620.611237 | L21: =Debt_Schedule!AH10 -> 3340.361185 | M21: =Debt_Schedule!AI10 -> 1845.626416 | N21: =Debt_Schedule!AJ10 -> 3169.592008 | O21: =Debt_Schedule!AK10 -> 4101.884024 | P21: =Debt_Schedule!AL10 -> 2243.061727 | Q21: =Debt_Schedule!AM10 -> 3893.721943 | R21: =Debt_Schedule!AN10 -> 2554.501587 | S21: =Debt_Schedule!AO10 -> 0
C23: NWC | D23: =D9+D11+D13-D16-D18 -> -76.228 | E23: -58.588 | F23: 2443 | G23: -284 | H23: -1446 | I23: -1562 | J23: =J9+J11+J13-J16-J18 -> 1017.750512 | K23: 1389.846513 | L23: 1918.305545 | M23: 2675.442215 | N23: 3769.6859 | O23: =O9+O11+O13-O16-O18 -> 5364.714163 | P23: 7709.174495 | Q23: 11183.04207 | R23: 16370.19542 | S23: 24172.42643
C24: ΔNWC | D24: - | E24: =E23-D23 -> 17.64 | F24: 2501.588 | G24: -2727 | H24: -1162 | I24: -116 | J24: 2579.750512 | K24: =K23-J23 -> 372.096001 | L24: 528.4590314 | M24: 757.1366698 | N24: 1094.243685 | O24: =O23-N23 -> 1595.028263 | P24: =P23-O23 -> 2344.460333 | Q24: =Q23-P23 -> 3473.867576 | R24: =R23-Q23 -> 5187.15335 | S24: =S23-R23 -> 7802.231008

Sheet Scenario_Analysis--->

Sheet SC_Manager
D2: =DCF!C2 -> CAESARS ENTERTAINMENT INC
D3: Scenario Manager
D6: Scenario Chooser
D8: Master Check
G10: Case 1 | I10: Case 1 | J10: Case 2 | K10: Case 3 | L10: Case 4 | M10: Case 5 | N10: Case 6 | O10: Case 7 | P10: Case 8 | Q10: Case 9 | R10: Case 10
G11: =OFFSET(H11,0,MATCH(G10,I10:XFD10)) -> Base | I11: Base | J11: Bull | K11: Bear | L11: [Case 4] | M11: [Case 5] | N11: [Case 6] | O11: [Case 7] | P11: [Case 8] | Q11: [Case 9] | R11: [Case 10]
D13: 1. Company Details
E15: Company | G15: =IF(Hub!N4="No", Hub!R6, Hub!D6) -> CAESARS ENTERTAINMENT INC
E16: Ticker | G16: =IF(Hub!N4="No", Hub!R7, Hub!D7) -> CZR
E17: Location | G17: =_xll.BDP(Hub!D4, "DS497") -> UNITED STATES
E18: Valuation Date | G18: =DCF!D9 -> 2024-07-20
D20: 2. CAGR Change Control
E22: CAGR positive for division | G22: =INDEX(I22:XFD22,0,MATCH($G$10,$I$10:$XFD$10)) -> 1 | I22: 1 | J22: 1.25 | K22: 0.6
E23: CAGR negative for division | G23: =INDEX(I23:XFD23,0,MATCH($G$10,$I$10:$XFD$10)) -> 1 | I23: 1 | J23: 0.6 | K23: 1.25
E27: Division revenue | G27: =INDEX(I27:XFD27,0,MATCH($G$10,$I$10:$XFD$10)) -> Base | I27: Base | J27: Bull | K27: Bear | L27: Base | M27: Base | N27: Base | O27: Base | P27: Base | Q27: Base | R27: Base
E31: Division revenue | G31: =INDEX(I31:XFD31,0,MATCH($G$10,$I$10:$XFD$10)) -> Base | I31: Base | J31: Bull | K31: Bear | L31: Base | M31: Base | N31: Base | O31: Base | P31: Base | Q31: Base | R31: Base
E35: Division revenue | G35: =INDEX(I35:XFD35,0,MATCH($G$10,$I$10:$XFD$10)) -> Base | I35: Base | J35: Bull | K35: Bear | L35: Base | M35: Base | N35: Base | O35: Base | P35: Base | Q35: Base | R35: Base
E39: Division revenue | G39: =INDEX(I39:XFD39,0,MATCH($G$10,$I$10:$XFD$10)) -> Base | I39: Base | J39: Bull | K39: Bear | L39: Base | M39: Base | N39: Base | O39: Base | P39: Base | Q39: Base | R39: Base
E43: Division revenue | G43: =INDEX(I43:XFD43,0,MATCH($G$10,$I$10:$XFD$10)) -> Base | I43: Base | J43: Bull | K43: Bear | L43: Base | M43: Base | N43: Base | O43: Base | P43: Base | Q43: Base | R43: Base
E47: Division revenue | G47: =INDEX(I47:XFD47,0,MATCH($G$10,$I$10:$XFD$10)) -> Base | I47: Base | J47: Bull | K47: Bear | L47: Base | M47: Base | N47: Base | O47: Base | P47: Base | Q47: Base | R47: Base
E51: Division revenue | G51: =INDEX(I51:XFD51,0,MATCH($G$10,$I$10:$XFD$10)) -> Base | I51: Base | J51: Bull | K51: Bear | L51: Base | M51: Base | N51: Base | O51: Base | P51: Base | Q51: Base | R51: Base
E55: Division revenue | G55: =INDEX(I55:XFD55,0,MATCH($G$10,$I$10:$XFD$10)) -> Base | I55: Base | J55: Bull | K55: Bear | L55: Base | M55: Base | N55: Base | O55: Base | P55: Base | Q55: Base | R55: Base
E59: Division revenue | G59: =INDEX(I59:XFD59,0,MATCH($G$10,$I$10:$XFD$10)) -> Base | I59: Base | J59: Bull | K59: Bear | L59: Base | M59: Base | N59: Base | O59: Base | P59: Base | Q59: Base | R59: Base
E63: Division revenue | G63: =INDEX(I63:XFD63,0,MATCH($G$10,$I$10:$XFD$10)) -> Base | I63: Base | J63: Bull | K63: Bear | L63: Base | M63: Base | N63: Base | O63: Base | P63: Base | Q63: Base | R63: Base

Sheet Time_Series
B2: =DCF!C2 -> CAESARS ENTERTAINMENT INC
B3: Time Series
B6: Operating Assumptions
B8: Year | F8: =YEAR(DCF!J16) -> 2024 | G8: =F8+1 -> 2025 | H8: 2026 | I8: 2027 | J8: 2028 | K8: =J8+1 -> 2029 | L8: =K8+1 -> 2030 | M8: =L8+1 -> 2031 | N8: =M8+1 -> 2032 | O8: =N8+1 -> 2033
B9: =IF(ISBLANK(Hub!D13), Revenue_Build!C6, Hub!D13) -> Casino & Pari-Mutuel Commissions
C11: Chosen Scenario | D11: =SC_Manager!G27 -> Base | F11: =INDEX(F13:F15,MATCH($D11,$C13:$C15,0),0) -> 8189.966675 | G11: =INDEX(G13:G15,MATCH($D11,$C13:$C15,0),0) -> 10534.87579 | H11: =INDEX(H13:H15,MATCH($D11,$C13:$C15,0),0) -> 13551.16721 | I11: =INDEX(I13:I15,MATCH($D11,$C13:$C15,0),0) -> 17431.06767 | J11: =INDEX(J13:J15,MATCH($D11,$C13:$C15,0),0) -> 22421.84126 | K11: =INDEX(K13:K15,MATCH($D11,$C13:$C15,0),0) -> 28841.54747 | L11: =INDEX(L13:L15,MATCH($D11,$C13:$C15,0),0) -> 37099.31092 | M11: =INDEX(M13:M15,MATCH($D11,$C13:$C15,0),0) -> 47721.3947 | N11: =INDEX(N13:N15,MATCH($D11,$C13:$C15,0),0) -> 61384.73885 | O11: =INDEX(O13:O15,MATCH($D11,$C13:$C15,0),0) -> 78960.10139
P12: CAGR | Q12: Override
B13: 1 | C13: Base | F13: =IF($Q13=0, Revenue_Build!$H$6*(1+$P13), Revenue_Build!$H$6*(1+$Q13)) -> 8189.966675 | G13: =IF($Q13=0, F13*(1+$P13), F13*(1+$Q13)) -> 10534.87579 | H13: 13551.16721 | I13: 17431.06767 | J13: 22421.84126 | K13: 28841.54747 | L13: 37099.31092 | M13: 47721.3947 | N13: 61384.73885 | O13: 78960.10139 | P13: =IF(Revenue_Build!D6=0, IF(Revenue_Build!E6=0, IF(Revenue_Build!F6=0, IF(Revenue_Build!G6=0, 0, (Revenue_Build!H6/Revenue_Build!G6)^(1/2)-1), (Revenue_Build!H6/Revenue_Build!F6)^(1/3)-1), (Revenue_Build!H6/Revenue_Build!E6)^(1/4)-1), (Revenue_Build!H6/Revenue_Build!D6)^(1/5)-1) -> 0.2863148539 | Q13: =Hub!D36 -> 0
B14: 2 | C14: Bull | F14: =IF($Q14=0, Revenue_Build!$H$6*(1+$P14), Revenue_Build!$H$6*(1+$Q14)) -> 8645.708344 | G14: =IF($Q14=0, F14*(1+$P14), F14*(1+$Q14)) -> 11739.95175 | H14: 15941.60496 | I14: 21647.00282 | J14: 29394.32589 | K14: 39914.36604 | L14: 54199.46089 | M14: 73597.0993 | N14: 99937.02772 | O14: 135703.8471 | P14: =IF(P13>0, P13*SC_Manager!$J$22, IF(P13<0, P13*SC_Manager!$J$23, 0)) -> 0.3578935674 | Q14: =IF(Q13>0, Q13*SC_Manager!$J$22, IF(Q13<0, Q13*SC_Manager!$J$23, 0)) -> 0
B15: 3 | C15: Bear | F15: =IF($Q15=0, Revenue_Build!$H$6*(1+$P15), Revenue_Build!$H$6*(1+$Q15)) -> 7460.780005 | G15: =IF($Q15=0, F15*(1+$P15), F15*(1+$Q15)) -> 8742.459287 | H15: 10244.31686 | I15: 12004.17691 | J15: 14066.36141 | K15: 16482.80633 | L15: 19314.3697 | M15: 22632.36427 | N15: 26520.35351 | O15: 31076.25619 | P15: =IF(P13>0, P13*SC_Manager!$K$22, IF(P13<0, P13*SC_Manager!$K$23, 0)) -> 0.1717889123 | Q15: =IF(Q13>0, Q13*SC_Manager!$K$22, IF(Q13<0, Q13*SC_Manager!$K$23, 0)) -> 0
B17: =IF(ISBLANK(Hub!D14), Revenue_Build!C9, Hub!D14) -> Hotel
C19: Chosen Scenario | D19: =SC_Manager!G31 -> Base | F19: =INDEX(F21:F23,MATCH($D19,$C21:$C23,0),0) -> 3081.422805 | G19: =INDEX(G21:G23,MATCH($D19,$C21:$C23,0),0) -> 4543.141868 | H19: =INDEX(H21:H23,MATCH($D19,$C21:$C23,0),0) -> 6698.249263 | I19: =INDEX(I21:I23,MATCH($D19,$C21:$C23,0),0) -> 9875.66413 | J19: =INDEX(J21:J23,MATCH($D19,$C21:$C23,0),0) -> 14560.33333 | K19: =INDEX(K21:K23,MATCH($D19,$C21:$C23,0),0) -> 21467.24554 | L19: =INDEX(L21:L23,MATCH($D19,$C21:$C23,0),0) -> 31650.55501 | M19: =INDEX(M21:M23,MATCH($D19,$C21:$C23,0),0) -> 46664.46986 | N19: =INDEX(N21:N23,MATCH($D19,$C21:$C23,0),0) -> 68800.46011 | O19: =INDEX(O21:O23,MATCH($D19,$C21:$C23,0),0) -> 101436.9889
P20: CAGR | Q20: Override
B21: 1 | C21: Base | F21: =IF($Q21=0, Revenue_Build!$H$9*(1+$P21), Revenue_Build!$H$9*(1+$Q21)) -> 3081.422805 | G21: =IF($Q21=0, F21*(1+$P21), F21*(1+$Q21)) -> 4543.141868 | H21: 6698.249263 | I21: 9875.66413 | J21: 14560.33333 | K21: 21467.24554 | L21: 31650.55501 | M21: 46664.46986 | N21: 68800.46011 | O21: 101436.9889 | P21: =IF(Revenue_Build!D9=0, IF(Revenue_Build!E9=0, IF(Revenue_Build!F9=0, IF(Revenue_Build!G9=0, 0, (Revenue_Build!H9/Revenue_Build!G9)^(1/2)-1), (Revenue_Build!H9/Revenue_Build!F9)^(1/3)-1), (Revenue_Build!H9/Revenue_Build!E9)^(1/4)-1), (Revenue_Build!H9/Revenue_Build!D9)^(1/5)-1) -> 0.4743649785 | Q21: =Hub!D37 -> 0
B22: 2 | C22: Bull | F22: =IF($Q22=0, Revenue_Build!$H$9*(1+$P22), Revenue_Build!$H$9*(1+$Q22)) -> 3329.278506 | G22: =IF($Q22=0, F22*(1+$P22), F22*(1+$Q22)) -> 5303.394915 | H22: 8448.075934 | I22: 13457.41513 | J22: 21437.07318 | K22: 34148.31914 | L22: 54396.77748 | M22: 86651.6852 | N22: 138032.3412 | O22: 219879.4769 | P22: =IF(P21>0, P21*SC_Manager!$J$22, IF(P21<0, P21*SC_Manager!$J$23, 0)) -> 0.5929562232 | Q22: =IF(Q21>0, Q21*SC_Manager!$J$22, IF(Q21<0, Q21*SC_Manager!$J$23, 0)) -> 0
B23: 3 | C23: Bear | F23: =IF($Q23=0, Revenue_Build!$H$9*(1+$P23), Revenue_Build!$H$9*(1+$Q23)) -> 2684.853683 | G23: =IF($Q23=0, F23*(1+$P23), F23*(1+$Q23)) -> 3449.014019 | H23: 4430.668896 | I23: 5691.721389 | J23: 7311.693366 | K23: =IF($Q23=0, J23*(1+$P23), J23*(1+$Q23)) -> 9392.740125 | L23: 12066.09231 | M23: 15500.33128 | N23: 19912.01986 | O23: 25579.35879 | P23: =IF(P21>0, P21*SC_Manager!$K$22, IF(P21<0, P21*SC_Manager!$K$23, 0)) -> 0.2846189871 | Q23: =IF(Q21>0, Q21*SC_Manager!$K$22, IF(Q21<0, Q21*SC_Manager!$K$23, 0)) -> 0
B25: =IF(ISBLANK(Hub!D15), Revenue_Build!C12, Hub!D15) -> Food & Beverage
C27: Chosen Scenario | D27: =SC_Manager!G35 -> Base | F27: =INDEX(F29:F31,MATCH($D27,$C29:$C31,0),0) -> 2450.976722 | G27: =INDEX(G29:G31,MATCH($D27,$C29:$C31,0),0) -> 3476.439175 | H27: =INDEX(H29:H31,MATCH($D27,$C29:$C31,0),0) -> 4930.944151 | I27: =INDEX(I29:I31,MATCH($D27,$C29:$C31,0),0) -> 6993.998457 | J27: =INDEX(J29:J31,MATCH($D27,$C29:$C31,0),0) -> 9920.212625 | K27: =INDEX(K29:K31,MATCH($D27,$C29:$C31,0),0) -> 14070.72351 | L27: =INDEX(L29:L31,MATCH($D27,$C29:$C31,0),0) -> 19957.76377 | M27: =INDEX(M29:M31,MATCH($D27,$C29:$C31,0),0) -> 28307.87872 | N27: =INDEX(N29:N31,MATCH($D27,$C29:$C31,0),0) -> 40151.59247 | O27: =INDEX(O29:O31,MATCH($D27,$C29:$C31,0),0) -> 56950.58942
P28: CAGR | Q28: Override
B29: 1 | C29: Base | F29: =IF($Q29=0, Revenue_Build!$H$12*(1+$P29), Revenue_Build!$H$12*(1+$Q29)) -> 2450.976722 | G29: =IF($Q29=0, F29*(1+$P29), F29*(1+$Q29)) -> 3476.439175 | H29: =IF($Q29=0, G29*(1+$P29), G29*(1+$Q29)) -> 4930.944151 | I29: 6993.998457 | J29: 9920.212625 | K29: 14070.72351 | L29: 19957.76377 | M29: 28307.87872 | N29: 40151.59247 | O29: 56950.58942 | P29: =IF(Revenue_Build!D12=0, IF(Revenue_Build!E12=0, IF(Revenue_Build!F12=0, IF(Revenue_Build!G12=0, 0, (Revenue_Build!H12/Revenue_Build!G12)^(1/2)-1), (Revenue_Build!H12/Revenue_Build!F12)^(1/3)-1), (Revenue_Build!H12/Revenue_Build!E12)^(1/4)-1), (Revenue_Build!H12/Revenue_Build!D12)^(1/5)-1) -> 0.4183893069 | Q29: =Hub!D38 -> 0
B30: 2 | C30: Bull | F30: =IF($Q30=0, Revenue_Build!$H$12*(1+$P30), Revenue_Build!$H$12*(1+$Q30)) -> 2631.720903 | G30: =IF($Q30=0, F30*(1+$P30), F30*(1+$Q30)) -> 4008.075759 | H30: 6104.245807 | I30: 9296.684773 | J30: 14158.72665 | K30: 21563.55143 | L30: 32841.00061 | M30: 50016.40496 | N30: 76174.31622 | O30: 116012.4654 | P30: =IF(P29>0, P29*SC_Manager!$J$22, IF(P29<0, P29*SC_Manager!$J$23, 0)) -> 0.5229866337 | Q30: =IF(Q29>0, Q29*SC_Manager!$J$22, IF(Q29<0, Q29*SC_Manager!$J$23, 0)) -> 0
B31: 3 | C31: Bear | F31: =IF($Q31=0, Revenue_Build!$H$12*(1+$P31), Revenue_Build!$H$12*(1+$Q31)) -> 2161.786033 | G31: =IF($Q31=0, F31*(1+$P31), F31*(1+$Q31)) -> 2704.46693 | H31: 3383.378956 | I31: 4232.720702 | J31: 5295.275751 | K31: 6624.567801 | L31: 8287.5568 | M31: 10368.01189 | N31: 12970.73107 | O31: 16226.82018 | P31: =IF(P29>0, P29*SC_Manager!$K$22, IF(P29<0, P29*SC_Manager!$K$23, 0)) -> 0.2510335842 | Q31: =IF(Q29>0, Q29*SC_Manager!$K$22, IF(Q29<0, Q29*SC_Manager!$K$23, 0)) -> 0
B33: =IF(ISBLANK(Hub!D16), Revenue_Build!C15, Hub!D16) -> Other
C35: Chosen Scenario | D35: =SC_Manager!G39 -> Base | F35: =INDEX(F37:F39,MATCH($D35,$C37:$C39,0),0) -> 2180.629198 | G35: =INDEX(G37:G39,MATCH($D35,$C37:$C39,0),0) -> 3540.687789 | H35: =INDEX(H37:H39,MATCH($D35,$C37:$C39,0),0) -> 5749.015022 | I35: =INDEX(I37:I39,MATCH($D35,$C37:$C39,0),0) -> 9334.676112 | J35: =INDEX(J37:J39,MATCH($D35,$C37:$C39,0),0) -> 15156.71429 | K35: =INDEX(K37:K39,MATCH($D35,$C37:$C39,0),0) -> 24609.95809 | L35: =INDEX(L37:L39,MATCH($D35,$C37:$C39,0),0) -> 39959.19076 | M35: =INDEX(M37:M39,MATCH($D35,$C37:$C39,0),0) -> 64881.74096 | N35: =INDEX(N37:N39,MATCH($D35,$C37:$C39,0),0) -> 105348.4875 | O35: =INDEX(O37:O39,MATCH($D35,$C37:$C39,0),0) -> 171054.3469
P36: CAGR | Q36: Override
B37: 1 | C37: Base | F37: =IF($Q37=0, Revenue_Build!$H$15*(1+$P37), Revenue_Build!$H$15*(1+$Q37)) -> 2180.629198 | G37: =IF($Q37=0, F37*(1+$P37), F37*(1+$Q37)) -> 3540.687789 | H37: =IF($Q37=0, G37*(1+$P37), G37*(1+$Q37)) -> 5749.015022 | I37: 9334.676112 | J37: 15156.71429 | K37: 24609.95809 | L37: 39959.19076 | M37: 64881.74096 | N37: 105348.4875 | O37: 171054.3469 | P37: =IF(Revenue_Build!D15=0, IF(Revenue_Build!E15=0, IF(Revenue_Build!F15=0, IF(Revenue_Build!G15=0, 0, (Revenue_Build!H15/Revenue_Build!G15)^(1/2)-1), (Revenue_Build!H15/Revenue_Build!F15)^(1/3)-1), (Revenue_Build!H15/Revenue_Build!E15)^(1/4)-1), (Revenue_Build!H15/Revenue_Build!D15)^(1/5)-1) -> 0.6237000732 | Q37: =Hub!D39 -> 0
B38: 2 | C38: Bull | F38: =IF($Q38=0, Revenue_Build!$H$15*(1+$P38), Revenue_Build!$H$15*(1+$Q38)) -> 2390.036498 | G38: =IF($Q38=0, F38*(1+$P38), F38*(1+$Q38)) -> 4253.368921 | H38: 7569.402055 | I38: 13470.69783 | J38: 23972.79185 | K38: 42662.58189 | L38: =IF($Q38=0, K38*(1+$P38), K38*(1+$Q38)) -> 75923.4012 | M38: 135115.1898 | N38: 240454.382 | O38: 427918.6516 | P38: =IF(P37>0, P37*SC_Manager!$J$22, IF(P37<0, P37*SC_Manager!$J$23, 0)) -> 0.7796250915 | Q38: =IF(Q37>0, Q37*SC_Manager!$J$22, IF(Q37<0, Q37*SC_Manager!$J$23, 0)) -> 0
B39: 3 | C39: Bear | F39: =IF($Q39=0, Revenue_Build!$H$15*(1+$P39), Revenue_Build!$H$15*(1+$Q39)) -> 1845.577519 | G39: =IF($Q39=0, F39*(1+$P39), F39*(1+$Q39)) -> 2536.229619 | H39: 3485.337579 | I39: 4789.62076 | J39: 6581.992852 | K39: 9045.106505 | L39: 12429.96666 | M39: 17081.50933 | N39: 23473.7525 | O39: 32258.10119 | P39: =IF(P37>0, P37*SC_Manager!$K$22, IF(P37<0, P37*SC_Manager!$K$23, 0)) -> 0.3742200439 | Q39: =IF(Q37>0, Q37*SC_Manager!$K$22, IF(Q37<0, Q37*SC_Manager!$K$23, 0)) -> 0
B41: =IF(ISBLANK(Hub!D17), Revenue_Build!C18, Hub!D17) -> Division 5 Revenue
C43: Chosen Scenario | D43: =SC_Manager!G43 -> Base | F43: =INDEX(F45:F47,MATCH($D43,$C45:$C47,0),0) -> 0 | G43: =INDEX(G45:G47,MATCH($D43,$C45:$C47,0),0) -> 0 | H43: =INDEX(H45:H47,MATCH($D43,$C45:$C47,0),0) -> 0 | I43: =INDEX(I45:I47,MATCH($D43,$C45:$C47,0),0) -> 0 | J43: =INDEX(J45:J47,MATCH($D43,$C45:$C47,0),0) -> 0 | K43: =INDEX(K45:K47,MATCH($D43,$C45:$C47,0),0) -> 0 | L43: =INDEX(L45:L47,MATCH($D43,$C45:$C47,0),0) -> 0 | M43: =INDEX(M45:M47,MATCH($D43,$C45:$C47,0),0) -> 0 | N43: =INDEX(N45:N47,MATCH($D43,$C45:$C47,0),0) -> 0 | O43: =INDEX(O45:O47,MATCH($D43,$C45:$C47,0),0) -> 0
P44: CAGR | Q44: Override
B45: 1 | C45: Base | F45: =IF($Q45=0, Revenue_Build!$H$18*(1+$P45), Revenue_Build!$H$18*(1+$Q45)) -> 0 | G45: =IF($Q45=0, F45*(1+$P45), F45*(1+$Q45)) -> 0 | H45: =IF($Q45=0, G45*(1+$P45), G45*(1+$Q45)) -> 0 | I45: 0 | J45: 0 | K45: 0 | L45: 0 | M45: 0 | N45: 0 | O45: 0 | P45: =IF(Revenue_Build!D18=0, IF(Revenue_Build!E18=0, IF(Revenue_Build!F18=0, IF(Revenue_Build!G18=0, 0, (Revenue_Build!H18/Revenue_Build!G18)^(1/2)-1), (Revenue_Build!H18/Revenue_Build!F18)^(1/3)-1), (Revenue_Build!H18/Revenue_Build!E18)^(1/4)-1), (Revenue_Build!H18/Revenue_Build!D18)^(1/5)-1) -> 0 | Q45: =Hub!D40 -> 0
B46: 2 | C46: Bull | F46: =IF($Q46=0, Revenue_Build!$H$18*(1+$P46), Revenue_Build!$H$18*(1+$Q46)) -> 0 | G46: =IF($Q46=0, F46*(1+$P46), F46*(1+$Q46)) -> 0 | H46: 0 | I46: 0 | J46: 0 | K46: 0 | L46: 0 | M46: 0 | N46: 0 | O46: 0 | P46: =IF(P45>0, P45*SC_Manager!$J$22, IF(P45<0, P45*SC_Manager!$J$23, 0)) -> 0 | Q46: =IF(Q45>0, Q45*SC_Manager!$J$22, IF(Q45<0, Q45*SC_Manager!$J$23, 0)) -> 0
B47: 3 | C47: Bear | F47: =IF($Q47=0, Revenue_Build!$H$18*(1+$P47), Revenue_Build!$H$18*(1+$Q47)) -> 0 | G47: =IF($Q47=0, F47*(1+$P47), F47*(1+$Q47)) -> 0 | H47: 0 | I47: 0 | J47: 0 | K47: 0 | L47: 0 | M47: 0 | N47: 0 | O47: 0 | P47: =IF(P45>0, P45*SC_Manager!$K$22, IF(P45<0, P45*SC_Manager!$K$23, 0)) -> 0 | Q47: =IF(Q45>0, Q45*SC_Manager!$K$22, IF(Q45<0, Q45*SC_Manager!$K$23, 0)) -> 0
B49: =IF(ISBLANK(Hub!H13), Revenue_Build!C21, Hub!H13) -> Division 6 Revenue
C51: Chosen Scenario | D51: =SC_Manager!G47 -> Base | F51: =INDEX(F53:F55,MATCH($D51,$C53:$C55,0),0) -> 0 | G51: =INDEX(G53:G55,MATCH($D51,$C53:$C55,0),0) -> 0 | H51: =INDEX(H53:H55,MATCH($D51,$C53:$C55,0),0) -> 0 | I51: =INDEX(I53:I55,MATCH($D51,$C53:$C55,0),0) -> 0 | J51: =INDEX(J53:J55,MATCH($D51,$C53:$C55,0),0) -> 0 | K51: =INDEX(K53:K55,MATCH($D51,$C53:$C55,0),0) -> 0 | L51: =INDEX(L53:L55,MATCH($D51,$C53:$C55,0),0) -> 0 | M51: =INDEX(M53:M55,MATCH($D51,$C53:$C55,0),0) -> 0 | N51: =INDEX(N53:N55,MATCH($D51,$C53:$C55,0),0) -> 0 | O51: =INDEX(O53:O55,MATCH($D51,$C53:$C55,0),0) -> 0
P52: CAGR | Q52: Override
B53: 1 | C53: Base | F53: =IF($Q53=0, Revenue_Build!$H$21*(1+$P53), Revenue_Build!$H$21*(1+$Q53)) -> 0 | G53: =IF($Q53=0, F53*(1+$P53), F53*(1+$Q53)) -> 0 | H53: =IF($Q53=0, G53*(1+$P53), G53*(1+$Q53)) -> 0 | I53: 0 | J53: 0 | K53: 0 | L53: 0 | M53: 0 | N53: 0 | O53: 0 | P53: =IF(Revenue_Build!D21=0, IF(Revenue_Build!E21=0, IF(Revenue_Build!F21=0, IF(Revenue_Build!G21=0, 0, (Revenue_Build!H21/Revenue_Build!G21)^(1/2)-1), (Revenue_Build!H21/Revenue_Build!F21)^(1/3)-1), (Revenue_Build!H21/Revenue_Build!E21)^(1/4)-1), (Revenue_Build!H21/Revenue_Build!D21)^(1/5)-1) -> 0 | Q53: =Hub!H36 -> 0
B54: 2 | C54: Bull | F54: =IF($Q54=0, Revenue_Build!$H$21*(1+$P54), Revenue_Build!$H$21*(1+$Q54)) -> 0 | G54: =IF($Q54=0, F54*(1+$P54), F54*(1+$Q54)) -> 0 | H54: 0 | I54: 0 | J54: 0 | K54: 0 | L54: 0 | M54: 0 | N54: 0 | O54: 0 | P54: =IF(P53>0, P53*SC_Manager!$J$22, IF(P53<0, P53*SC_Manager!$J$23, 0)) -> 0 | Q54: =IF(Q53>0, Q53*SC_Manager!$J$22, IF(Q53<0, Q53*SC_Manager!$J$23, 0)) -> 0
B55: 3 | C55: Bear | F55: =IF($Q55=0, Revenue_Build!$H$21*(1+$P55), Revenue_Build!$H$21*(1+$Q55)) -> 0 | G55: =IF($Q55=0, F55*(1+$P55), F55*(1+$Q55)) -> 0 | H55: 0 | I55: 0 | J55: 0 | K55: 0 | L55: 0 | M55: 0 | N55: 0 | O55: 0 | P55: =IF(P53>0, P53*SC_Manager!$K$22, IF(P53<0, P53*SC_Manager!$K$23, 0)) -> 0 | Q55: =IF(Q53>0, Q53*SC_Manager!$K$22, IF(Q53<0, Q53*SC_Manager!$K$23, 0)) -> 0
B57: =IF(ISBLANK(Hub!H14), Revenue_Build!C24, Hub!H14) -> Division 7 Revenue
C59: Chosen Scenario | D59: =SC_Manager!G51 -> Base | F59: =INDEX(F61:F63,MATCH($D59,$C61:$C63,0),0) -> 0 | G59: =INDEX(G61:G63,MATCH($D59,$C61:$C63,0),0) -> 0 | H59: =INDEX(H61:H63,MATCH($D59,$C61:$C63,0),0) -> 0 | I59: =INDEX(I61:I63,MATCH($D59,$C61:$C63,0),0) -> 0 | J59: =INDEX(J61:J63,MATCH($D59,$C61:$C63,0),0) -> 0 | K59: =INDEX(K61:K63,MATCH($D59,$C61:$C63,0),0) -> 0 | L59: =INDEX(L61:L63,MATCH($D59,$C61:$C63,0),0) -> 0 | M59: =INDEX(M61:M63,MATCH($D59,$C61:$C63,0),0) -> 0 | N59: =INDEX(N61:N63,MATCH($D59,$C61:$C63,0),0) -> 0 | O59: =INDEX(O61:O63,MATCH($D59,$C61:$C63,0),0) -> 0
P60: CAGR | Q60: Override
B61: 1 | C61: Base | F61: =IF($Q61=0, Revenue_Build!$H$24*(1+$P61), Revenue_Build!$H$24*(1+$Q61)) -> 0 | G61: =IF($Q61=0, F61*(1+$P61), F61*(1+$Q61)) -> 0 | H61: =IF($Q61=0, G61*(1+$P61), G61*(1+$Q61)) -> 0 | I61: 0 | J61: 0 | K61: 0 | L61: 0 | M61: 0 | N61: 0 | O61: 0 | P61: =IF(Revenue_Build!D24=0, IF(Revenue_Build!E24=0, IF(Revenue_Build!F24=0, IF(Revenue_Build!G24=0, 0, (Revenue_Build!H24/Revenue_Build!G24)^(1/2)-1), (Revenue_Build!H24/Revenue_Build!F24)^(1/3)-1), (Revenue_Build!H24/Revenue_Build!E24)^(1/4)-1), (Revenue_Build!H24/Revenue_Build!D24)^(1/5)-1) -> 0 | Q61: =Hub!H37 -> 0
B62: 2 | C62: Bull | F62: =IF($Q62=0, Revenue_Build!$H$24*(1+$P62), Revenue_Build!$H$24*(1+$Q62)) -> 0 | G62: =IF($Q62=0, F62*(1+$P62), F62*(1+$Q62)) -> 0 | H62: 0 | I62: 0 | J62: 0 | K62: 0 | L62: 0 | M62: 0 | N62: 0 | O62: 0 | P62: =IF(P61>0, P61*SC_Manager!$J$22, IF(P61<0, P61*SC_Manager!$J$23, 0)) -> 0 | Q62: =IF(Q61>0, Q61*SC_Manager!$J$22, IF(Q61<0, Q61*SC_Manager!$J$23, 0)) -> 0
B63: 3 | C63: Bear | F63: =IF($Q63=0, Revenue_Build!$H$24*(1+$P63), Revenue_Build!$H$24*(1+$Q63)) -> 0 | G63: =IF($Q63=0, F63*(1+$P63), F63*(1+$Q63)) -> 0 | H63: 0 | I63: 0 | J63: 0 | K63: 0 | L63: 0 | M63: 0 | N63: 0 | O63: 0 | P63: =IF(P61>0, P61*SC_Manager!$K$22, IF(P61<0, P61*SC_Manager!$K$23, 0)) -> 0 | Q63: =IF(Q61>0, Q61*SC_Manager!$K$22, IF(Q61<0, Q61*SC_Manager!$K$23, 0)) -> 0
B65: =IF(ISBLANK(Hub!H15), Revenue_Build!C27, Hub!H15) -> Division 8 Revenue
C67: Chosen Scenario | D67: =SC_Manager!G55 -> Base | F67: =INDEX(F69:F71,MATCH($D67,$C69:$C71,0),0) -> 0 | G67: =INDEX(G69:G71,MATCH($D67,$C69:$C71,0),0) -> 0 | H67: =INDEX(H69:H71,MATCH($D67,$C69:$C71,0),0) -> 0 | I67: =INDEX(I69:I71,MATCH($D67,$C69:$C71,0),0) -> 0 | J67: =INDEX(J69:J71,MATCH($D67,$C69:$C71,0),0) -> 0 | K67: =INDEX(K69:K71,MATCH($D67,$C69:$C71,0),0) -> 0 | L67: =INDEX(L69:L71,MATCH($D67,$C69:$C71,0),0) -> 0 | M67: =INDEX(M69:M71,MATCH($D67,$C69:$C71,0),0) -> 0 | N67: =INDEX(N69:N71,MATCH($D67,$C69:$C71,0),0) -> 0 | O67: =INDEX(O69:O71,MATCH($D67,$C69:$C71,0),0) -> 0
P68: CAGR | Q68: Override
B69: 1 | C69: Base | F69: =IF($Q69=0, Revenue_Build!$H$27*(1+$P69), Revenue_Build!$H$27*(1+$Q69)) -> 0 | G69: =IF($Q69=0, F69*(1+$P69), F69*(1+$Q69)) -> 0 | H69: =IF($Q69=0, G69*(1+$P69), G69*(1+$Q69)) -> 0 | I69: 0 | J69: 0 | K69: 0 | L69: 0 | M69: 0 | N69: 0 | O69: 0 | P69: =IF(Revenue_Build!D27=0, IF(Revenue_Build!E27=0, IF(Revenue_Build!F27=0, IF(Revenue_Build!G27=0, 0, (Revenue_Build!H27/Revenue_Build!G27)^(1/2)-1), (Revenue_Build!H27/Revenue_Build!F27)^(1/3)-1), (Revenue_Build!H27/Revenue_Build!E27)^(1/4)-1), (Revenue_Build!H27/Revenue_Build!D27)^(1/5)-1) -> 0 | Q69: =Hub!H38 -> 0
B70: 2 | C70: Bull | F70: =IF($Q70=0, Revenue_Build!$H$27*(1+$P70), Revenue_Build!$H$27*(1+$Q70)) -> 0 | G70: =IF($Q70=0, F70*(1+$P70), F70*(1+$Q70)) -> 0 | H70: 0 | I70: 0 | J70: 0 | K70: 0 | L70: 0 | M70: 0 | N70: 0 | O70: 0 | P70: =IF(P69>0, P69*SC_Manager!$J$22, IF(P69<0, P69*SC_Manager!$J$23, 0)) -> 0 | Q70: =IF(Q69>0, Q69*SC_Manager!$J$22, IF(Q69<0, Q69*SC_Manager!$J$23, 0)) -> 0
B71: 3 | C71: Bear | F71: =IF($Q71=0, Revenue_Build!$H$27*(1+$P71), Revenue_Build!$H$27*(1+$Q71)) -> 0 | G71: =IF($Q71=0, F71*(1+$P71), F71*(1+$Q71)) -> 0 | H71: 0 | I71: 0 | J71: 0 | K71: 0 | L71: 0 | M71: 0 | N71: 0 | O71: 0 | P71: =IF(P69>0, P69*SC_Manager!$K$22, IF(P69<0, P69*SC_Manager!$K$23, 0)) -> 0 | Q71: =IF(Q69>0, Q69*SC_Manager!$K$22, IF(Q69<0, Q69*SC_Manager!$K$23, 0)) -> 0
B73: =IF(ISBLANK(Hub!H16), Revenue_Build!C30, Hub!H16) -> Division 9 Revenue
C75: Chosen Scenario | D75: =SC_Manager!G59 -> Base | F75: =INDEX(F77:F79,MATCH($D75,$C77:$C79,0),0) -> 0 | G75: =INDEX(G77:G79,MATCH($D75,$C77:$C79,0),0) -> 0 | H75: =INDEX(H77:H79,MATCH($D75,$C77:$C79,0),0) -> 0 | I75: =INDEX(I77:I79,MATCH($D75,$C77:$C79,0),0) -> 0 | J75: =INDEX(J77:J79,MATCH($D75,$C77:$C79,0),0) -> 0 | K75: =INDEX(K77:K79,MATCH($D75,$C77:$C79,0),0) -> 0 | L75: =INDEX(L77:L79,MATCH($D75,$C77:$C79,0),0) -> 0 | M75: =INDEX(M77:M79,MATCH($D75,$C77:$C79,0),0) -> 0 | N75: =INDEX(N77:N79,MATCH($D75,$C77:$C79,0),0) -> 0 | O75: =INDEX(O77:O79,MATCH($D75,$C77:$C79,0),0) -> 0
P76: CAGR | Q76: Override
B77: 1 | C77: Base | F77: =IF($Q77=0, Revenue_Build!$H$30*(1+$P77), Revenue_Build!$H$30*(1+$Q77)) -> 0 | G77: =IF($Q77=0, F77*(1+$P77), F77*(1+$Q77)) -> 0 | H77: =IF($Q77=0, G77*(1+$P77), G77*(1+$Q77)) -> 0 | I77: 0 | J77: 0 | K77: 0 | L77: 0 | M77: 0 | N77: 0 | O77: 0 | P77: =IF(Revenue_Build!D30=0, IF(Revenue_Build!E30=0, IF(Revenue_Build!F30=0, IF(Revenue_Build!G30=0, 0, (Revenue_Build!H30/Revenue_Build!G30)^(1/2)-1), (Revenue_Build!H30/Revenue_Build!F30)^(1/3)-1), (Revenue_Build!H30/Revenue_Build!E30)^(1/4)-1), (Revenue_Build!H30/Revenue_Build!D30)^(1/5)-1) -> 0 | Q77: =Hub!H39 -> 0
B78: 2 | C78: Bull | F78: =IF($Q78=0, Revenue_Build!$H$30*(1+$P78), Revenue_Build!$H$30*(1+$Q78)) -> 0 | G78: =IF($Q78=0, F78*(1+$P78), F78*(1+$Q78)) -> 0 | H78: 0 | I78: 0 | J78: 0 | K78: 0 | L78: 0 | M78: 0 | N78: 0 | O78: 0 | P78: =IF(P77>0, P77*SC_Manager!$J$22, IF(P77<0, P77*SC_Manager!$J$23, 0)) -> 0 | Q78: =IF(Q77>0, Q77*SC_Manager!$J$22, IF(Q77<0, Q77*SC_Manager!$J$23, 0)) -> 0
B79: 3 | C79: Bear | F79: =IF($Q79=0, Revenue_Build!$H$30*(1+$P79), Revenue_Build!$H$30*(1+$Q79)) -> 0 | G79: =IF($Q79=0, F79*(1+$P79), F79*(1+$Q79)) -> 0 | H79: 0 | I79: 0 | J79: 0 | K79: 0 | L79: 0 | M79: 0 | N79: 0 | O79: 0 | P79: =IF(P77>0, P77*SC_Manager!$K$22, IF(P77<0, P77*SC_Manager!$K$23, 0)) -> 0 | Q79: =IF(Q77>0, Q77*SC_Manager!$K$22, IF(Q77<0, Q77*SC_Manager!$K$23, 0)) -> 0
B81: =IF(ISBLANK(Hub!H17), Revenue_Build!C33, Hub!H17) -> Division 10 Revenue
C83: Chosen Scenario | D83: =SC_Manager!G63 -> Base | F83: =INDEX(F85:F87,MATCH($D83,$C85:$C87,0),0) -> 0 | G83: =INDEX(G85:G87,MATCH($D83,$C85:$C87,0),0) -> 0 | H83: =INDEX(H85:H87,MATCH($D83,$C85:$C87,0),0) -> 0 | I83: =INDEX(I85:I87,MATCH($D83,$C85:$C87,0),0) -> 0 | J83: =INDEX(J85:J87,MATCH($D83,$C85:$C87,0),0) -> 0 | K83: =INDEX(K85:K87,MATCH($D83,$C85:$C87,0),0) -> 0 | L83: =INDEX(L85:L87,MATCH($D83,$C85:$C87,0),0) -> 0 | M83: =INDEX(M85:M87,MATCH($D83,$C85:$C87,0),0) -> 0 | N83: =INDEX(N85:N87,MATCH($D83,$C85:$C87,0),0) -> 0 | O83: =INDEX(O85:O87,MATCH($D83,$C85:$C87,0),0) -> 0
P84: CAGR | Q84: Override
B85: 1 | C85: Base | F85: =IF($Q85=0, Revenue_Build!$H$33*(1+$P85), Revenue_Build!$H$33*(1+$Q85)) -> 0 | G85: =IF($Q85=0, F85*(1+$P85), F85*(1+$Q85)) -> 0 | H85: =IF($Q85=0, G85*(1+$P85), G85*(1+$Q85)) -> 0 | I85: 0 | J85: 0 | K85: 0 | L85: 0 | M85: =IF($Q85=0, L85*(1+$P85), L85*(1+$Q85)) -> 0 | N85: 0 | O85: 0 | P85: =IF(Revenue_Build!D33=0, IF(Revenue_Build!E33=0, IF(Revenue_Build!F33=0, IF(Revenue_Build!G33=0, 0, (Revenue_Build!H33/Revenue_Build!G33)^(1/2)-1), (Revenue_Build!H33/Revenue_Build!F33)^(1/3)-1), (Revenue_Build!H33/Revenue_Build!E33)^(1/4)-1), (Revenue_Build!H33/Revenue_Build!D33)^(1/5)-1) -> 0 | Q85: =Hub!H40 -> 0
B86: 2 | C86: Bull | F86: =IF($Q86=0, Revenue_Build!$H$33*(1+$P86), Revenue_Build!$H$33*(1+$Q86)) -> 0 | G86: =IF($Q86=0, F86*(1+$P86), F86*(1+$Q86)) -> 0 | H86: 0 | I86: 0 | J86: 0 | K86: 0 | L86: 0 | M86: 0 | N86: 0 | O86: 0 | P86: =IF(P85>0, P85*SC_Manager!$J$22, IF(P85<0, P85*SC_Manager!$J$23, 0)) -> 0 | Q86: =IF(Q85>0, Q85*SC_Manager!$J$22, IF(Q85<0, Q85*SC_Manager!$J$23, 0)) -> 0
B87: 3 | C87: Bear | F87: =IF($Q87=0, Revenue_Build!$H$33*(1+$P87), Revenue_Build!$H$33*(1+$Q87)) -> 0 | G87: =IF($Q87=0, F87*(1+$P87), F87*(1+$Q87)) -> 0 | H87: 0 | I87: 0 | J87: 0 | K87: 0 | L87: 0 | M87: =IF($Q87=0, L87*(1+$P87), L87*(1+$Q87)) -> 0 | N87: 0 | O87: 0 | P87: =IF(P85>0, P85*SC_Manager!$K$22, IF(P85<0, P85*SC_Manager!$K$23, 0)) -> 0 | Q87: =IF(Q85>0, Q85*SC_Manager!$K$22, IF(Q85<0, Q85*SC_Manager!$K$23, 0)) -> 0

Sheet Buildups--->

Sheet Revenue_Build
C2: ="In Millions of " & Hub!D8 -> In Millions of USD | D2: Actuals | I2: Forecast
C3: Revenue Segments | D3: =YEAR(D4) -> 2019 | E3: 2020 | F3: 2021 | G3: 2022 | H3: 2023 | I3: 2024 | J3: 2025 | K3: 2026 | L3: 2027 | M3: 2028 | N3: 2029 | O3: 2030 | P3: 2031 | Q3: 2032 | R3: 2033
D4: =EOMONTH(E4, -12) -> 2019-12-31 | E4: =EOMONTH(F4, -12) -> 2020-12-31 | F4: =EOMONTH(G4, -12) -> 2021-12-31 | G4: =EOMONTH(H4, -12) -> 2022-12-31 | H4: =DCF!D10 -> 2023-12-31 | I4: =EOMONTH(H4,12) -> 2024-12-31 | J4: 2025-12-31 | K4: 2026-12-31 | L4: 2027-12-31 | M4: 2028-12-31 | N4: 2029-12-31 | O4: 2030-12-31 | P4: 2031-12-31 | Q4: 2032-12-31 | R4: 2033-12-31
B6: 1 | C6: =IF(ISBLANK(Hub!D13), IFERROR(IF(INDEX(C$41:C$100, SMALL(IF($B$41:$B$100=1, ROW($B$41:$B$100)-ROW($B$41)+1), $B6))="#N/A N/A", "Division " & $B6 & " Revenue", INDEX(C$41:C$100, SMALL(IF($B$41:$B$100=1, ROW($B$41:$B$100)-ROW($B$41)+1), $B6))), "Division " & B6 & " Revenue"), Hub!D13 & " Revenue") -> Casino & Pari-Mutuel Commissions | D6: =IFERROR(IF(INDEX(I$41:I$100, SMALL(IF($B$41:$B$100=1, ROW($B$41:$B$100)-ROW($B$41)+1), $B6))="#N/A N/A", 0, INDEX(I$41:I$100, SMALL(IF($B$41:$B$100=1, ROW($B$41:$B$100)-ROW($B$41)+1), $B6))), 0) -> 1808 | E6: =IFERROR(IF(INDEX(H$41:H$100, SMALL(IF($B$41:$B$100=1, ROW($B$41:$B$100)-ROW($B$41)+1), $B6))="#N/A N/A", 0, INDEX(H$41:H$100, SMALL(IF($B$41:$B$100=1, ROW($B$41:$B$100)-ROW($B$41)+1), $B6))), 0) -> 2482 | F6: =IFERROR(IF(INDEX(G$41:G$100, SMALL(IF($B$41:$B$100=1, ROW($B$41:$B$100)-ROW($B$41)+1), $B6))="#N/A N/A", 0, INDEX(G$41:G$100, SMALL(IF($B$41:$B$100=1, ROW($B$41:$B$100)-ROW($B$41)+1), $B6))), 0) -> 5827 | G6: =IFERROR(IF(INDEX(F$41:F$100, SMALL(IF($B$41:$B$100=1, ROW($B$41:$B$100)-ROW($B$41)+1), $B6))="#N/A N/A", 0, INDEX(F$41:F$100, SMALL(IF($B$41:$B$100=1, ROW($B$41:$B$100)-ROW($B$41)+1), $B6))), 0) -> 5997 | H6: =IFERROR(IF(INDEX(E$41:E$100, SMALL(IF($B$41:$B$100=1, ROW($B$41:$B$100)-ROW($B$41)+1), $B6))="#N/A N/A", 0, INDEX(E$41:E$100, SMALL(IF($B$41:$B$100=1, ROW($B$41:$B$100)-ROW($B$41)+1), $B6))), 0) -> 6367 | I6: =IF(SUM(D6:H6)=0, 0, Time_Series!F11) -> 8189.966675 | J6: =IF(SUM(E6:I6)=0, 0, Time_Series!G11) -> 10534.87579 | K6: =IF(SUM(F6:J6)=0, 0, Time_Series!H11) -> 13551.16721 | L6: =IF(SUM(G6:K6)=0, 0, Time_Series!I11) -> 17431.06767 | M6: =IF(SUM(H6:L6)=0, 0, Time_Series!J11) -> 22421.84126 | N6: =IF(SUM(I6:M6)=0, 0, Time_Series!K11) -> 28841.54747 | O6: =IF(SUM(J6:N6)=0, 0, Time_Series!L11) -> 37099.31092 | P6: =IF(SUM(K6:O6)=0, 0, Time_Series!M11) -> 47721.3947 | Q6: =IF(SUM(L6:P6)=0, 0, Time_Series!N11) -> 61384.73885 | R6: =IF(SUM(M6:Q6)=0, 0, Time_Series!O11) -> 78960.10139
C7: YoY Growth | D7: - | E7: =(E6-D6)/D6 -> 0.3727876106 | F7: 1.347703465 | G7: 0.02917453235 | H7: 0.06169751542 | I7: 0.2863148539 | J7: 0.2863148539 | K7: 0.2863148539 | L7: 0.2863148539 | M7: 0.2863148539 | N7: 0.2863148539 | O7: 0.2863148539 | P7: 0.2863148539 | Q7: 0.2863148539 | R7: 0.2863148539 | T7: Levels | U7: 1
B9: 2 | C9: =IF(ISBLANK(Hub!D14), IFERROR(IF(INDEX(C$41:C$100, SMALL(IF($B$41:$B$100=1, ROW($B$41:$B$100)-ROW($B$41)+1), $B9))="#N/A N/A", "Division " & $B9 & " Revenue", INDEX(C$41:C$100, SMALL(IF($B$41:$B$100=1, ROW($B$41:$B$100)-ROW($B$41)+1), $B9))), "Division " & B9 & " Revenue"), Hub!D14 & " Revenue") -> Hotel | D9: =IFERROR(IF(INDEX(I$41:I$100, SMALL(IF($B$41:$B$100=1, ROW($B$41:$B$100)-ROW($B$41)+1), $B9))="#N/A N/A", 0, INDEX(I$41:I$100, SMALL(IF($B$41:$B$100=1, ROW($B$41:$B$100)-ROW($B$41)+1), $B9))), 0) -> 300 | E9: =IFERROR(IF(INDEX(H$41:H$100, SMALL(IF($B$41:$B$100=1, ROW($B$41:$B$100)-ROW($B$41)+1), $B9))="#N/A N/A", 0, INDEX(H$41:H$100, SMALL(IF($B$41:$B$100=1, ROW($B$41:$B$100)-ROW($B$41)+1), $B9))), 0) -> 450 | F9: =IFERROR(IF(INDEX(G$41:G$100, SMALL(IF($B$41:$B$100=1, ROW($B$41:$B$100)-ROW($B$41)+1), $B9))="#N/A N/A", 0, INDEX(G$41:G$100, SMALL(IF($B$41:$B$100=1, ROW($B$41:$B$100)-ROW($B$41)+1), $B9))), 0) -> 1551 | G9: =IFERROR(IF(INDEX(F$41:F$100, SMALL(IF($B$41:$B$100=1, ROW($B$41:$B$100)-ROW($B$41)+1), $B9))="#N/A N/A", 0, INDEX(F$41:F$100, SMALL(IF($B$41:$B$100=1, ROW($B$41:$B$100)-ROW($B$41)+1), $B9))), 0) -> 1957 | H9: =IFERROR(IF(INDEX(E$41:E$100, SMALL(IF($B$41:$B$100=1, ROW($B$41:$B$100)-ROW($B$41)+1), $B9))="#N/A N/A", 0, INDEX(E$41:E$100, SMALL(IF($B$41:$B$100=1, ROW($B$41:$B$100)-ROW($B$41)+1), $B9))), 0) -> 2090 | I9: =Time_Series!F19 -> 3081.422805 | J9: =Time_Series!G19 -> 4543.141868 | K9: =Time_Series!H19 -> 6698.249263 | L9: =Time_Series!I19 -> 9875.66413 | M9: =Time_Series!J19 -> 14560.33333 | N9: =Time_Series!K19 -> 21467.24554 | O9: =Time_Series!L19 -> 31650.55501 | P9: =Time_Series!M19 -> 46664.46986 | Q9: =Time_Series!N19 -> 68800.46011 | R9: =Time_Series!O19 -> 101436.9889
C10: YoY Growth | D10: - | E10: =(E9-D9)/D9 -> 0.5 | F10: 2.446666667 | G10: 0.2617666022 | H10: 0.06796116505 | I10: 0.4743649785 | J10: 0.4743649785 | K10: 0.4743649785 | L10: 0.4743649785 | M10: 0.4743649785 | N10: 0.4743649785 | O10: 0.4743649785 | P10: 0.4743649785 | Q10: 0.4743649785 | R10: 0.4743649785
B12: 3 | C12: =IF(ISBLANK(Hub!D15), IFERROR(IF(INDEX(C$41:C$100, SMALL(IF($B$41:$B$100=1, ROW($B$41:$B$100)-ROW($B$41)+1), $B12))="#N/A N/A", "Division " & $B12 & " Revenue", INDEX(C$41:C$100, SMALL(IF($B$41:$B$100=1, ROW($B$41:$B$100)-ROW($B$41)+1), $B12))), "Division " & B12 & " Revenue"), Hub!D15 & " Revenue") -> Food & Beverage | D12: =IFERROR(IF(INDEX(I$41:I$100, SMALL(IF($B$41:$B$100=1, ROW($B$41:$B$100)-ROW($B$41)+1), $B12))="#N/A N/A", 0, INDEX(I$41:I$100, SMALL(IF($B$41:$B$100=1, ROW($B$41:$B$100)-ROW($B$41)+1), $B12))), 0) -> 301 | E12: =IFERROR(IF(INDEX(H$41:H$100, SMALL(IF($B$41:$B$100=1, ROW($B$41:$B$100)-ROW($B$41)+1), $B12))="#N/A N/A", 0, INDEX(H$41:H$100, SMALL(IF($B$41:$B$100=1, ROW($B$41:$B$100)-ROW($B$41)+1), $B12))), 0) -> 342 | F12: =IFERROR(IF(INDEX(G$41:G$100, SMALL(IF($B$41:$B$100=1, ROW($B$41:$B$100)-ROW($B$41)+1), $B12))="#N/A N/A", 0, INDEX(G$41:G$100, SMALL(IF($B$41:$B$100=1, ROW($B$41:$B$100)-ROW($B$41)+1), $B12))), 0) -> 1140 | G12: =IFERROR(IF(INDEX(F$41:F$100, SMALL(IF($B$41:$B$100=1, ROW($B$41:$B$100)-ROW($B$41)+1), $B12))="#N/A N/A", 0, INDEX(F$41:F$100, SMALL(IF($B$41:$B$100=1, ROW($B$41:$B$100)-ROW($B$41)+1), $B12))), 0) -> 1596 | H12: =IFERROR(IF(INDEX(E$41:E$100, SMALL(IF($B$41:$B$100=1, ROW($B$41:$B$100)-ROW($B$41)+1), $B12))="#N/A N/A", 0, INDEX(E$41:E$100, SMALL(IF($B$41:$B$100=1, ROW($B$41:$B$100)-ROW($B$41)+1), $B12))), 0) -> 1728 | I12: =Time_Series!F27 -> 2450.976722 | J12: =Time_Series!G27 -> 3476.439175 | K12: =Time_Series!H27 -> 4930.944151 | L12: =Time_Series!I27 -> 6993.998457 | M12: =Time_Series!J27 -> 9920.212625 | N12: =Time_Series!K27 -> 14070.72351 | O12: =Time_Series!L27 -> 19957.76377 | P12: =Time_Series!M27 -> 28307.87872 | Q12: =Time_Series!N27 -> 40151.59247 | R12: =Time_Series!O27 -> 56950.58942
C13: YoY Growth | D13: - | E13: =(E12-D12)/D12 -> 0.1362126246 | F13: 2.333333333 | G13: 0.4 | H13: 0.08270676692 | I13: 0.4183893069 | J13: 0.4183893069 | K13: 0.4183893069 | L13: 0.4183893069 | M13: 0.4183893069 | N13: 0.4183893069 | O13: 0.4183893069 | P13: 0.4183893069 | Q13: 0.4183893069 | R13: 0.4183893069
B15: 4 | C15: =IF(ISBLANK(Hub!D16), IFERROR(IF(INDEX(C$41:C$100, SMALL(IF($B$41:$B$100=1, ROW($B$41:$B$100)-ROW($B$41)+1), $B15))="#N/A N/A", "Division " & $B15 & " Revenue", INDEX(C$41:C$100, SMALL(IF($B$41:$B$100=1, ROW($B$41:$B$100)-ROW($B$41)+1), $B15))), "Division " & B15 & " Revenue"), Hub!D16 & " Revenue") -> Other | D15: =IFERROR(IF(INDEX(I$41:I$100, SMALL(IF($B$41:$B$100=1, ROW($B$41:$B$100)-ROW($B$41)+1), $B15))="#N/A N/A", 0, INDEX(I$41:I$100, SMALL(IF($B$41:$B$100=1, ROW($B$41:$B$100)-ROW($B$41)+1), $B15))), 0) -> 119 | E15: =IFERROR(IF(INDEX(H$41:H$100, SMALL(IF($B$41:$B$100=1, ROW($B$41:$B$100)-ROW($B$41)+1), $B15))="#N/A N/A", 0, INDEX(H$41:H$100, SMALL(IF($B$41:$B$100=1, ROW($B$41:$B$100)-ROW($B$41)+1), $B15))), 0) -> 354 | F15: =IFERROR(IF(INDEX(G$41:G$100, SMALL(IF($B$41:$B$100=1, ROW($B$41:$B$100)-ROW($B$41)+1), $B15))="#N/A N/A", 0, INDEX(G$41:G$100, SMALL(IF($B$41:$B$100=1, ROW($B$41:$B$100)-ROW($B$41)+1), $B15))), 0) -> 1052 | G15: =IFERROR(IF(INDEX(F$41:F$100, SMALL(IF($B$41:$B$100=1, ROW($B$41:$B$100)-ROW($B$41)+1), $B15))="#N/A N/A", 0, INDEX(F$41:F$100, SMALL(IF($B$41:$B$100=1, ROW($B$41:$B$100)-ROW($B$41)+1), $B15))), 0) -> 1271 | H15: =IFERROR(IF(INDEX(E$41:E$100, SMALL(IF($B$41:$B$100=1, ROW($B$41:$B$100)-ROW($B$41)+1), $B15))="#N/A N/A", 0, INDEX(E$41:E$100, SMALL(IF($B$41:$B$100=1, ROW($B$41:$B$100)-ROW($B$41)+1), $B15))), 0) -> 1343 | I15: =Time_Series!F35 -> 2180.629198 | J15: =Time_Series!G35 -> 3540.687789 | K15: =Time_Series!H35 -> 5749.015022 | L15: =Time_Series!I35 -> 9334.676112 | M15: =Time_Series!J35 -> 15156.71429 | N15: =Time_Series!K35 -> 24609.95809 | O15: =Time_Series!L35 -> 39959.19076 | P15: =Time_Series!M35 -> 64881.74096 | Q15: =Time_Series!N35 -> 105348.4875 | R15: =Time_Series!O35 -> 171054.3469
C16: YoY Growth | D16: - | E16: =(E15-D15)/D15 -> 1.974789916 | F16: 1.971751412 | G16: 0.2081749049 | H16: 0.05664830842 | I16: 0.6237000732 | J16: 0.6237000732 | K16: 0.6237000732 | L16: 0.6237000732 | M16: 0.6237000732 | N16: 0.6237000732 | O16: 0.6237000732 | P16: 0.6237000732 | Q16: 0.6237000732 | R16: 0.6237000732
B18: 5 | C18: =IF(ISBLANK(Hub!D17), IFERROR(IF(INDEX(C$41:C$100, SMALL(IF($B$41:$B$100=1, ROW($B$41:$B$100)-ROW($B$41)+1), $B18))="#N/A N/A", "Division " & $B18 & " Revenue", INDEX(C$41:C$100, SMALL(IF($B$41:$B$100=1, ROW($B$41:$B$100)-ROW($B$41)+1), $B18))), "Division " & B18 & " Revenue"), Hub!S17 & " Revenue") -> Division 5 Revenue | D18: =IFERROR(IF(INDEX(I$41:I$100, SMALL(IF($B$41:$B$100=1, ROW($B$41:$B$100)-ROW($B$41)+1), $B18))="#N/A N/A", 0, INDEX(I$41:I$100, SMALL(IF($B$41:$B$100=1, ROW($B$41:$B$100)-ROW($B$41)+1), $B18))), 0) -> 0 | E18: =IFERROR(IF(INDEX(H$41:H$100, SMALL(IF($B$41:$B$100=1, ROW($B$41:$B$100)-ROW($B$41)+1), $B18))="#N/A N/A", 0, INDEX(H$41:H$100, SMALL(IF($B$41:$B$100=1, ROW($B$41:$B$100)-ROW($B$41)+1), $B18))), 0) -> 0 | F18: =IFERROR(IF(INDEX(G$41:G$100, SMALL(IF($B$41:$B$100=1, ROW($B$41:$B$100)-ROW($B$41)+1), $B18))="#N/A N/A", 0, INDEX(G$41:G$100, SMALL(IF($B$41:$B$100=1, ROW($B$41:$B$100)-ROW($B$41)+1), $B18))), 0) -> 0 | G18: =IFERROR(IF(INDEX(F$41:F$100, SMALL(IF($B$41:$B$100=1, ROW($B$41:$B$100)-ROW($B$41)+1), $B18))="#N/A N/A", 0, INDEX(F$41:F$100, SMALL(IF($B$41:$B$100=1, ROW($B$41:$B$100)-ROW($B$41)+1), $B18))), 0) -> 0 | H18: =IFERROR(IF(INDEX(E$41:E$100, SMALL(IF($B$41:$B$100=1, ROW($B$41:$B$100)-ROW($B$41)+1), $B18))="#N/A N/A", 0, INDEX(E$41:E$100, SMALL(IF($B$41:$B$100=1, ROW($B$41:$B$100)-ROW($B$41)+1), $B18))), 0) -> 0 | I18: =Time_Series!F43 -> 0 | J18: =Time_Series!G43 -> 0 | K18: =Time_Series!H43 -> 0 | L18: =Time_Series!I43 -> 0 | M18: =Time_Series!J43 -> 0 | N18: =Time_Series!K43 -> 0 | O18: =Time_Series!L43 -> 0 | P18: =Time_Series!M43 -> 0 | Q18: =Time_Series!N43 -> 0 | R18: =Time_Series!O43 -> 0
C19: YoY Growth | D19: - | E19: =(E18-D18)/D18 -> 
B21: 6 | C21: =IF(ISBLANK(Hub!H13), IFERROR(IF(INDEX(C$41:C$100, SMALL(IF($B$41:$B$100=1, ROW($B$41:$B$100)-ROW($B$41)+1), $B21))="#N/A N/A", "Division " & $B21 & " Revenue", INDEX(C$41:C$100, SMALL(IF($B$41:$B$100=1, ROW($B$41:$B$100)-ROW($B$41)+1), $B21))), "Division " & B21 & " Revenue"), Hub!H13 & " Revenue") -> Division 6 Revenue | D21: =IFERROR(IF(INDEX(I$41:I$100, SMALL(IF($B$41:$B$100=1, ROW($B$41:$B$100)-ROW($B$41)+1), $B21))="#N/A N/A", 0, INDEX(I$41:I$100, SMALL(IF($B$41:$B$100=1, ROW($B$41:$B$100)-ROW($B$41)+1), $B21))), 0) -> 0 | E21: =IFERROR(IF(INDEX(H$41:H$100, SMALL(IF($B$41:$B$100=1, ROW($B$41:$B$100)-ROW($B$41)+1), $B21))="#N/A N/A", 0, INDEX(H$41:H$100, SMALL(IF($B$41:$B$100=1, ROW($B$41:$B$100)-ROW($B$41)+1), $B21))), 0) -> 0 | F21: =IFERROR(IF(INDEX(G$41:G$100, SMALL(IF($B$41:$B$100=1, ROW($B$41:$B$100)-ROW($B$41)+1), $B21))="#N/A N/A", 0, INDEX(G$41:G$100, SMALL(IF($B$41:$B$100=1, ROW($B$41:$B$100)-ROW($B$41)+1), $B21))), 0) -> 0 | G21: =IFERROR(IF(INDEX(F$41:F$100, SMALL(IF($B$41:$B$100=1, ROW($B$41:$B$100)-ROW($B$41)+1), $B21))="#N/A N/A", 0, INDEX(F$41:F$100, SMALL(IF($B$41:$B$100=1, ROW($B$41:$B$100)-ROW($B$41)+1), $B21))), 0) -> 0 | H21: =IFERROR(IF(INDEX(E$41:E$100, SMALL(IF($B$41:$B$100=1, ROW($B$41:$B$100)-ROW($B$41)+1), $B21))="#N/A N/A", 0, INDEX(E$41:E$100, SMALL(IF($B$41:$B$100=1, ROW($B$41:$B$100)-ROW($B$41)+1), $B21))), 0) -> 0 | I21: =Time_Series!F51 -> 0 | J21: =Time_Series!G51 -> 0 | K21: =Time_Series!H51 -> 0 | L21: =Time_Series!I51 -> 0 | M21: =Time_Series!J51 -> 0 | N21: =Time_Series!K51 -> 0 | O21: =Time_Series!L51 -> 0 | P21: =Time_Series!M51 -> 0 | Q21: =Time_Series!N51 -> 0 | R21: =Time_Series!O51 -> 0
C22: YoY Growth | D22: - | E22: =(E21-D21)/D21 -> 
B24: 7 | C24: =IF(ISBLANK(Hub!H14), IFERROR(IF(INDEX(C$41:C$100, SMALL(IF($B$41:$B$100=1, ROW($B$41:$B$100)-ROW($B$41)+1), $B24))="#N/A N/A", "Division " & $B24 & " Revenue", INDEX(C$41:C$100, SMALL(IF($B$41:$B$100=1, ROW($B$41:$B$100)-ROW($B$41)+1), $B24))), "Division " & B24 & " Revenue"), Hub!H14 & " Revenue") -> Division 7 Revenue | D24: =IFERROR(IF(INDEX(I$41:I$100, SMALL(IF($B$41:$B$100=1, ROW($B$41:$B$100)-ROW($B$41)+1), $B24))="#N/A N/A", 0, INDEX(I$41:I$100, SMALL(IF($B$41:$B$100=1, ROW($B$41:$B$100)-ROW($B$41)+1), $B24))), 0) -> 0 | E24: =IFERROR(IF(INDEX(H$41:H$100, SMALL(IF($B$41:$B$100=1, ROW($B$41:$B$100)-ROW($B$41)+1), $B24))="#N/A N/A", 0, INDEX(H$41:H$100, SMALL(IF($B$41:$B$100=1, ROW($B$41:$B$100)-ROW($B$41)+1), $B24))), 0) -> 0 | F24: =IFERROR(IF(INDEX(G$41:G$100, SMALL(IF($B$41:$B$100=1, ROW($B$41:$B$100)-ROW($B$41)+1), $B24))="#N/A N/A", 0, INDEX(G$41:G$100, SMALL(IF($B$41:$B$100=1, ROW($B$41:$B$100)-ROW($B$41)+1), $B24))), 0) -> 0 | G24: =IFERROR(IF(INDEX(F$41:F$100, SMALL(IF($B$41:$B$100=1, ROW($B$41:$B$100)-ROW($B$41)+1), $B24))="#N/A N/A", 0, INDEX(F$41:F$100, SMALL(IF($B$41:$B$100=1, ROW($B$41:$B$100)-ROW($B$41)+1), $B24))), 0) -> 0 | H24: =IFERROR(IF(INDEX(E$41:E$100, SMALL(IF($B$41:$B$100=1, ROW($B$41:$B$100)-ROW($B$41)+1), $B24))="#N/A N/A", 0, INDEX(E$41:E$100, SMALL(IF($B$41:$B$100=1, ROW($B$41:$B$100)-ROW($B$41)+1), $B24))), 0) -> 0 | I24: =Time_Series!F59 -> 0 | J24: =Time_Series!G59 -> 0 | K24: =Time_Series!H59 -> 0 | L24: =Time_Series!I59 -> 0 | M24: =Time_Series!J59 -> 0 | N24: =Time_Series!K59 -> 0 | O24: =Time_Series!L59 -> 0 | P24: =Time_Series!M59 -> 0 | Q24: =Time_Series!N59 -> 0 | R24: =Time_Series!O59 -> 0
C25: YoY Growth | D25: - | E25: =(E24-D24)/D24 -> 
B27: 8 | C27: =IF(ISBLANK(Hub!H15), IFERROR(IF(INDEX(C$41:C$100, SMALL(IF($B$41:$B$100=1, ROW($B$41:$B$100)-ROW($B$41)+1), $B27))="#N/A N/A", "Division " & $B27 & " Revenue", INDEX(C$41:C$100, SMALL(IF($B$41:$B$100=1, ROW($B$41:$B$100)-ROW($B$41)+1), $B27))), "Division " & B27 & " Revenue"), Hub!H15 & " Revenue") -> Division 8 Revenue | D27: =IFERROR(IF(INDEX(I$41:I$100, SMALL(IF($B$41:$B$100=1, ROW($B$41:$B$100)-ROW($B$41)+1), $B27))="#N/A N/A", 0, INDEX(I$41:I$100, SMALL(IF($B$41:$B$100=1, ROW($B$41:$B$100)-ROW($B$41)+1), $B27))), 0) -> 0 | E27: =IFERROR(IF(INDEX(H$41:H$100, SMALL(IF($B$41:$B$100=1, ROW($B$41:$B$100)-ROW($B$41)+1), $B27))="#N/A N/A", 0, INDEX(H$41:H$100, SMALL(IF($B$41:$B$100=1, ROW($B$41:$B$100)-ROW($B$41)+1), $B27))), 0) -> 0 | F27: =IFERROR(IF(INDEX(G$41:G$100, SMALL(IF($B$41:$B$100=1, ROW($B$41:$B$100)-ROW($B$41)+1), $B27))="#N/A N/A", 0, INDEX(G$41:G$100, SMALL(IF($B$41:$B$100=1, ROW($B$41:$B$100)-ROW($B$41)+1), $B27))), 0) -> 0 | G27: =IFERROR(IF(INDEX(F$41:F$100, SMALL(IF($B$41:$B$100=1, ROW($B$41:$B$100)-ROW($B$41)+1), $B27))="#N/A N/A", 0, INDEX(F$41:F$100, SMALL(IF($B$41:$B$100=1, ROW($B$41:$B$100)-ROW($B$41)+1), $B27))), 0) -> 0 | H27: =IFERROR(IF(INDEX(E$41:E$100, SMALL(IF($B$41:$B$100=1, ROW($B$41:$B$100)-ROW($B$41)+1), $B27))="#N/A N/A", 0, INDEX(E$41:E$100, SMALL(IF($B$41:$B$100=1, ROW($B$41:$B$100)-ROW($B$41)+1), $B27))), 0) -> 0 | I27: =Time_Series!F67 -> 0 | J27: =Time_Series!G67 -> 0 | K27: =Time_Series!H67 -> 0 | L27: =Time_Series!I67 -> 0 | M27: =Time_Series!J67 -> 0 | N27: =Time_Series!K67 -> 0 | O27: =Time_Series!L67 -> 0 | P27: =Time_Series!M67 -> 0 | Q27: =Time_Series!N67 -> 0 | R27: =Time_Series!O67 -> 0
C28: YoY Growth | D28: - | E28: =(E27-D27)/D27 -> 
B30: 9 | C30: =IF(ISBLANK(Hub!H16), IFERROR(IF(INDEX(C$41:C$100, SMALL(IF($B$41:$B$100=1, ROW($B$41:$B$100)-ROW($B$41)+1), $B30))="#N/A N/A", "Division " & $B30 & " Revenue", INDEX(C$41:C$100, SMALL(IF($B$41:$B$100=1, ROW($B$41:$B$100)-ROW($B$41)+1), $B30))), "Division " & B30 & " Revenue"), Hub!H16 & " Revenue") -> Division 9 Revenue | D30: =IFERROR(IF(INDEX(I$41:I$100, SMALL(IF($B$41:$B$100=1, ROW($B$41:$B$100)-ROW($B$41)+1), $B30))="#N/A N/A", 0, INDEX(I$41:I$100, SMALL(IF($B$41:$B$100=1, ROW($B$41:$B$100)-ROW($B$41)+1), $B30))), 0) -> 0 | E30: =IFERROR(IF(INDEX(H$41:H$100, SMALL(IF($B$41:$B$100=1, ROW($B$41:$B$100)-ROW($B$41)+1), $B30))="#N/A N/A", 0, INDEX(H$41:H$100, SMALL(IF($B$41:$B$100=1, ROW($B$41:$B$100)-ROW($B$41)+1), $B30))), 0) -> 0 | F30: =IFERROR(IF(INDEX(G$41:G$100, SMALL(IF($B$41:$B$100=1, ROW($B$41:$B$100)-ROW($B$41)+1), $B30))="#N/A N/A", 0, INDEX(G$41:G$100, SMALL(IF($B$41:$B$100=1, ROW($B$41:$B$100)-ROW($B$41)+1), $B30))), 0) -> 0 | G30: =IFERROR(IF(INDEX(F$41:F$100, SMALL(IF($B$41:$B$100=1, ROW($B$41:$B$100)-ROW($B$41)+1), $B30))="#N/A N/A", 0, INDEX(F$41:F$100, SMALL(IF($B$41:$B$100=1, ROW($B$41:$B$100)-ROW($B$41)+1), $B30))), 0) -> 0 | H30: =IFERROR(IF(INDEX(E$41:E$100, SMALL(IF($B$41:$B$100=1, ROW($B$41:$B$100)-ROW($B$41)+1), $B30))="#N/A N/A", 0, INDEX(E$41:E$100, SMALL(IF($B$41:$B$100=1, ROW($B$41:$B$100)-ROW($B$41)+1), $B30))), 0) -> 0 | I30: =Time_Series!F75 -> 0 | J30: =Time_Series!G75 -> 0 | K30: =Time_Series!H75 -> 0 | L30: =Time_Series!I75 -> 0 | M30: =Time_Series!J75 -> 0 | N30: =Time_Series!K75 -> 0 | O30: =Time_Series!L75 -> 0 | P30: =Time_Series!M75 -> 0 | Q30: =Time_Series!N75 -> 0 | R30: =Time_Series!O75 -> 0
C31: YoY Growth | D31: - | E31: =(E30-D30)/D30 -> 
B33: 10 | C33: =IF(ISBLANK(Hub!H17), IFERROR(IF(INDEX(C$41:C$100, SMALL(IF($B$41:$B$100=1, ROW($B$41:$B$100)-ROW($B$41)+1), $B33))="#N/A N/A", "Division " & $B33 & " Revenue", INDEX(C$41:C$100, SMALL(IF($B$41:$B$100=1, ROW($B$41:$B$100)-ROW($B$41)+1), $B33))), "Division " & B33 & " Revenue"), Hub!H17 & " Revenue") -> Division 10 Revenue | D33: =IFERROR(IF(INDEX(I$41:I$100, SMALL(IF($B$41:$B$100=1, ROW($B$41:$B$100)-ROW($B$41)+1), $B33))="#N/A N/A", 0, INDEX(I$41:I$100, SMALL(IF($B$41:$B$100=1, ROW($B$41:$B$100)-ROW($B$41)+1), $B33))), 0) -> 0 | E33: =IFERROR(IF(INDEX(H$41:H$100, SMALL(IF($B$41:$B$100=1, ROW($B$41:$B$100)-ROW($B$41)+1), $B33))="#N/A N/A", 0, INDEX(H$41:H$100, SMALL(IF($B$41:$B$100=1, ROW($B$41:$B$100)-ROW($B$41)+1), $B33))), 0) -> 0 | F33: =IFERROR(IF(INDEX(G$41:G$100, SMALL(IF($B$41:$B$100=1, ROW($B$41:$B$100)-ROW($B$41)+1), $B33))="#N/A N/A", 0, INDEX(G$41:G$100, SMALL(IF($B$41:$B$100=1, ROW($B$41:$B$100)-ROW($B$41)+1), $B33))), 0) -> 0 | G33: =IFERROR(IF(INDEX(F$41:F$100, SMALL(IF($B$41:$B$100=1, ROW($B$41:$B$100)-ROW($B$41)+1), $B33))="#N/A N/A", 0, INDEX(F$41:F$100, SMALL(IF($B$41:$B$100=1, ROW($B$41:$B$100)-ROW($B$41)+1), $B33))), 0) -> 0 | H33: =IFERROR(IF(INDEX(E$41:E$100, SMALL(IF($B$41:$B$100=1, ROW($B$41:$B$100)-ROW($B$41)+1), $B33))="#N/A N/A", 0, INDEX(E$41:E$100, SMALL(IF($B$41:$B$100=1, ROW($B$41:$B$100)-ROW($B$41)+1), $B33))), 0) -> 0 | I33: =Time_Series!F83 -> 0 | J33: =Time_Series!G83 -> 0 | K33: =Time_Series!H83 -> 0 | L33: =Time_Series!I83 -> 0 | M33: =Time_Series!J83 -> 0 | N33: =Time_Series!K83 -> 0 | O33: =Time_Series!L83 -> 0 | P33: =Time_Series!M83 -> 0 | Q33: =Time_Series!N83 -> 0 | R33: =Time_Series!O83 -> 0
C34: YoY Growth | D34: - | E34: =(E33-D33)/D33 ->  | I34: =(I33-H33)/H33 -> 
C36: Total revenue | D36: =SUM(IF(MOD(ROW(D6:D34)-ROW(D6),3)=0, IFERROR(D6:D34, 0))) -> 2528 | E36: =SUM(IF(MOD(ROW(E6:E34)-ROW(E6),3)=0, IFERROR(E6:E34, 0))) -> 3628 | F36: =SUM(IF(MOD(ROW(F6:F34)-ROW(F6),3)=0, IFERROR(F6:F34, 0))) -> 9570 | G36: =SUM(IF(MOD(ROW(G6:G34)-ROW(G6),3)=0, IFERROR(G6:G34, 0))) -> 10821 | H36: =SUM(IF(MOD(ROW(H6:H34)-ROW(H6),3)=0, IFERROR(H6:H34, 0))) -> 11528 | I36: =SUM(IF(MOD(ROW(I6:I34)-ROW(I6),3)=0, IFERROR(I6:I34, 0))) -> 15902.9954 | J36: =SUM(IF(MOD(ROW(J6:J34)-ROW(J6),3)=0, IFERROR(J6:J34, 0))) -> 22095.14462 | K36: =SUM(IF(MOD(ROW(K6:K34)-ROW(K6),3)=0, IFERROR(K6:K34, 0))) -> 30929.37564 | L36: =SUM(IF(MOD(ROW(L6:L34)-ROW(L6),3)=0, IFERROR(L6:L34, 0))) -> 43635.40637 | M36: =SUM(IF(MOD(ROW(M6:M34)-ROW(M6),3)=0, IFERROR(M6:M34, 0))) -> 62059.1015 | N36: =SUM(IF(MOD(ROW(N6:N34)-ROW(N6),3)=0, IFERROR(N6:N34, 0))) -> 88989.47461 | O36: =SUM(IF(MOD(ROW(O6:O34)-ROW(O6),3)=0, IFERROR(O6:O34, 0))) -> 128666.8205 | P36: =SUM(IF(MOD(ROW(P6:P34)-ROW(P6),3)=0, IFERROR(P6:P34, 0))) -> 187575.4842 | Q36: =SUM(IF(MOD(ROW(Q6:Q34)-ROW(Q6),3)=0, IFERROR(Q6:Q34, 0))) -> 275685.279 | R36: =SUM(IF(MOD(ROW(R6:R34)-ROW(R6),3)=0, IFERROR(R6:R34, 0))) -> 408402.0266
C37: YoY Growth | D37: - | E37: =(E36-D36)/D36 -> 0.4351265823 | F37: 1.637816979 | G37: 0.1307210031 | H37: 0.06533592089 | I37: =(I36-H36)/H36 -> 0.3795103574 | J37: 0.3893699936 | K37: 0.3998268026 | L37: 0.4108078633 | M37: 0.4222189426 | N37: 0.4339471964 | O37: 0.4458656039 | P37: 0.4578388086 | Q37: 0.4697298002 | R37: 0.4814067264
B41: =IF(C41="", 0, IF(D41=U$7,1,IF(D41>U$7,0,(IF(D42>D41,0,1))))) -> 1 | C41: =_xll.BDS(Hub!D4, "PG_REVENUE","EQY_FUND_CRNCY", Hub!D8,"cols=18;rows=4") -> Casino & Pari-Mutuel Commissions | D41: 1 | E41: 6367 | F41: 5997 | G41: 5827 | H41: 2482 | I41: 1808 | J41: #N/A N/A | K41: #N/A N/A | L41: #N/A N/A | M41: #N/A N/A | N41: #N/A N/A | O41: #N/A N/A | P41: #N/A N/A | Q41: #N/A N/A | R41: #N/A N/A | S41: #N/A N/A | T41: #N/A N/A
B42: =IF(C42="", 0, IF(D42=U$7,1,IF(D42>U$7,0,(IF(D43>D42,0,1))))) -> 1 | C42: Hotel | D42: 1 | E42: 2090 | F42: 1957 | G42: 1551 | H42: 450 | I42: 300 | J42: #N/A N/A | K42: #N/A N/A | L42: #N/A N/A | M42: #N/A N/A | N42: #N/A N/A | O42: #N/A N/A | P42: #N/A N/A | Q42: #N/A N/A | R42: #N/A N/A | S42: #N/A N/A | T42: #N/A N/A
B43: 1 | C43: Food & Beverage | D43: 1 | E43: 1728 | F43: 1596 | G43: 1140 | H43: 342 | I43: 301 | J43: #N/A N/A | K43: #N/A N/A | L43: #N/A N/A | M43: #N/A N/A | N43: #N/A N/A | O43: #N/A N/A | P43: #N/A N/A | Q43: #N/A N/A | R43: #N/A N/A | S43: #N/A N/A | T43: #N/A N/A
B44: 1 | C44: Other | D44: 1 | E44: 1343 | F44: 1271 | G44: 1052 | H44: 354 | I44: 119 | J44: #N/A N/A | K44: #N/A N/A | L44: #N/A N/A | M44: #N/A N/A | N44: #N/A N/A | O44: #N/A N/A | P44: #N/A N/A | Q44: #N/A N/A | R44: #N/A N/A | S44: #N/A N/A | T44: #N/A N/A
B45: 0
B46: 0
B47: 0
B48: 0
B49: 0
B50: 0
B51: 0
B52: 0
B53: 0
B54: 0
B55: 0
B56: 0
B57: 0
B58: 0
B59: 0
B60: 0
B61: 0
B62: 0
B63: 0
B64: 0
B65: 0
B66: 0
B67: 0
B68: 0
B69: 0
B70: 0
B71: 0
B72: 0
B73: 0
B74: 0
B75: 0
B76: 0
B77: 0
B78: 0
B79: 0
B80: 0
B81: 0
B82: 0
B83: 0
B84: 0
B85: 0
B86: 0
B87: 0
B88: 0
B89: 0
B90: 0
B91: 0
B92: 0
B93: 0
B94: 0
B95: 0
B96: 0
B97: 0
B98: 0
B99: 0
B100: 0

Sheet Tester
L22: =_xll.BDS(Hub!D4, "PG_REVENUE", "EQY_FUND_CRNCY", Hub!D8,"cols=18;rows=4") -> Casino & Pari-Mutuel Commissions | M22: 1 | N22: 6367 | O22: 5997 | P22: 5827 | Q22: 2482 | R22: 1808 | S22: #N/A N/A | T22: #N/A N/A | U22: #N/A N/A | V22: #N/A N/A | W22: #N/A N/A | X22: #N/A N/A | Y22: #N/A N/A | Z22: #N/A N/A | AA22: #N/A N/A | AB22: #N/A N/A | AC22: #N/A N/A
L23: Hotel | M23: 1 | N23: 2090 | O23: 1957 | P23: 1551 | Q23: 450 | R23: 300 | S23: #N/A N/A | T23: #N/A N/A | U23: #N/A N/A | V23: #N/A N/A | W23: #N/A N/A | X23: #N/A N/A | Y23: #N/A N/A | Z23: #N/A N/A | AA23: #N/A N/A | AB23: #N/A N/A | AC23: #N/A N/A
L24: Food & Beverage | M24: 1 | N24: 1728 | O24: 1596 | P24: 1140 | Q24: 342 | R24: 301 | S24: #N/A N/A | T24: #N/A N/A | U24: #N/A N/A | V24: #N/A N/A | W24: #N/A N/A | X24: #N/A N/A | Y24: #N/A N/A | Z24: #N/A N/A | AA24: #N/A N/A | AB24: #N/A N/A | AC24: #N/A N/A
L25: Other | M25: 1 | N25: 1343 | O25: 1271 | P25: 1052 | Q25: 354 | R25: 119 | S25: #N/A N/A | T25: #N/A N/A | U25: #N/A N/A | V25: #N/A N/A | W25: #N/A N/A | X25: #N/A N/A | Y25: #N/A N/A | Z25: #N/A N/A | AA25: #N/A N/A | AB25: #N/A N/A | AC25: #N/A N/A

Sheet Historicals
B2: =DCF!C2 -> CAESARS ENTERTAINMENT INC
B3: Historicals
B4: =DCF!C3 -> All Figures in USD Millions, expect for per share data
B5: As % of Revenue
F7: Actuals | M7: Forecast
D8: =YEAR(D9) -> 2019 | E8: =YEAR(E9) -> 2020 | F8: 2021 | G8: 2022 | H8: 2023 | I8: =YEAR(I9) -> 2024 | J8: =YEAR(J9) -> 2025 | K8: 2026 | L8: 2027 | M8: 2028 | N8: 2029 | O8: 2030 | P8: 2031 | Q8: 2032 | R8: 2033
D9: =EOMONTH(E9,-12) -> 2019-12-31 | E9: 2020-12-31 | F9: 2021-12-31 | G9: =EOMONTH(H9,-12) -> 2022-12-31 | H9: =DCF!I16 -> 2023-12-31 | I9: =EOMONTH(H9,12) -> 2024-12-31 | J9: =EOMONTH(I9,12) -> 2025-12-31 | K9: 2026-12-31 | L9: 2027-12-31 | M9: 2028-12-31 | N9: 2029-12-31 | O9: 2030-12-31 | P9: 2031-12-31 | Q9: 2032-12-31 | R9: 2033-12-31
B11: Revenue
B13: =IF(ISBLANK(Hub!D13), "Division 1", Hub!D13) -> Division 1 | D13: =(Revenue_Build!D6/Revenue_Build!D$36) -> 0.7151898734 | E13: =(Revenue_Build!E6/Revenue_Build!E$36) -> 0.684123484 | F13: =(Revenue_Build!F6/Revenue_Build!F$36) -> 0.6088819227 | G13: =(Revenue_Build!G6/Revenue_Build!G$36) -> 0.5542001663 | H13: =(Revenue_Build!H6/Revenue_Build!H$36) -> 0.5523074254 | I13: =(Revenue_Build!I6/Revenue_Build!I$36) -> 0.5149952238 | J13: =(Revenue_Build!J6/Revenue_Build!J$36) -> 0.4767959644 | K13: =(Revenue_Build!K6/Revenue_Build!K$36) -> 0.4381325819 | L13: =(Revenue_Build!L6/Revenue_Build!L$36) -> 0.3994707308 | M13: =(Revenue_Build!M6/Revenue_Build!M$36) -> 0.3612981935 | N13: =(Revenue_Build!N6/Revenue_Build!N$36) -> 0.3241006601 | O13: =(Revenue_Build!O6/Revenue_Build!O$36) -> 0.2883362687 | P13: =(Revenue_Build!P6/Revenue_Build!P$36) -> 0.2544116833 | Q13: =(Revenue_Build!Q6/Revenue_Build!Q$36) -> 0.2226623746 | R13: =(Revenue_Build!R6/Revenue_Build!R$36) -> 0.1933391517
B14: =IF(ISBLANK(Hub!D14), "Division 2", Hub!D14) -> Division 2 | D14: =(Revenue_Build!D9/Revenue_Build!D$36) -> 0.1186708861 | E14: =(Revenue_Build!E9/Revenue_Build!E$36) -> 0.1240352811 | F14: =(Revenue_Build!F9/Revenue_Build!F$36) -> 0.1620689655 | G14: =(Revenue_Build!G9/Revenue_Build!G$36) -> 0.1808520469 | H14: =(Revenue_Build!H9/Revenue_Build!H$36) -> 0.1812977099 | I14: =(Revenue_Build!I9/Revenue_Build!I$36) -> 0.1937636733 | J14: =(Revenue_Build!J9/Revenue_Build!J$36) -> 0.2056172044 | K14: =(Revenue_Build!K9/Revenue_Build!K$36) -> 0.2165659385 | L14: =(Revenue_Build!L9/Revenue_Build!L$36) -> 0.2263222679 | M14: =(Revenue_Build!M9/Revenue_Build!M$36) -> 0.2346204341 | N14: =(Revenue_Build!N9/Revenue_Build!N$36) -> 0.241233535 | O14: =(Revenue_Build!O9/Revenue_Build!O$36) -> 0.2459884755 | P14: =(Revenue_Build!P9/Revenue_Build!P$36) -> 0.2487770193 | Q14: =(Revenue_Build!Q9/Revenue_Build!Q$36) -> 0.2495616029 | R14: =(Revenue_Build!R9/Revenue_Build!R$36) -> 0.2483753318
B15: =IF(ISBLANK(Hub!D15), "Division 3", Hub!D15) -> Division 3 | D15: =(Revenue_Build!D12/Revenue_Build!D$36) -> 0.1190664557 | E15: =(Revenue_Build!E12/Revenue_Build!E$36) -> 0.09426681367 | F15: =(Revenue_Build!F12/Revenue_Build!F$36) -> 0.1191222571 | G15: =(Revenue_Build!G12/Revenue_Build!G$36) -> 0.1474909897 | H15: =(Revenue_Build!H12/Revenue_Build!H$36) -> 0.1498959056 | I15: =(Revenue_Build!I12/Revenue_Build!I$36) -> 0.1541204446 | J15: =(Revenue_Build!J12/Revenue_Build!J$36) -> 0.1573395076 | K15: =(Revenue_Build!K12/Revenue_Build!K$36) -> 0.1594259195 | L15: =(Revenue_Build!L12/Revenue_Build!L$36) -> 0.1602826475 | M15: =(Revenue_Build!M12/Revenue_Build!M$36) -> 0.1598510514 | N15: =(Revenue_Build!N12/Revenue_Build!N$36) -> 0.1581167163 | O15: =(Revenue_Build!O12/Revenue_Build!O$36) -> 0.1551119682 | P15: =(Revenue_Build!P12/Revenue_Build!P$36) -> 0.1509145976 | Q15: =(Revenue_Build!Q12/Revenue_Build!Q$36) -> 0.1456428599 | R15: =(Revenue_Build!R12/Revenue_Build!R$36) -> 0.1394473722
B16: =IF(ISBLANK(Hub!D16), "Division 4", Hub!D16) -> Division 4 | D16: =(Revenue_Build!D15/Revenue_Build!D$36) -> 0.04707278481 | E16: =(Revenue_Build!E15/Revenue_Build!E$36) -> 0.09757442117 | F16: =(Revenue_Build!F15/Revenue_Build!F$36) -> 0.1099268548 | G16: =(Revenue_Build!G15/Revenue_Build!G$36) -> 0.117456797 | H16: =(Revenue_Build!H15/Revenue_Build!H$36) -> 0.1164989591 | I16: =(Revenue_Build!I15/Revenue_Build!I$36) -> 0.1371206583 | J16: =(Revenue_Build!J15/Revenue_Build!J$36) -> 0.1602473236 | K16: =(Revenue_Build!K15/Revenue_Build!K$36) -> 0.1858755601 | L16: =(Revenue_Build!L15/Revenue_Build!L$36) -> 0.2139243538 | M16: =(Revenue_Build!M15/Revenue_Build!M$36) -> 0.2442303211 | N16: =(Revenue_Build!N15/Revenue_Build!N$36) -> 0.2765490886 | O16: =(Revenue_Build!O15/Revenue_Build!O$36) -> 0.3105632876 | P16: =(Revenue_Build!P15/Revenue_Build!P$36) -> 0.3458966998 | Q16: =(Revenue_Build!Q15/Revenue_Build!Q$36) -> 0.3821331626 | R16: =(Revenue_Build!R15/Revenue_Build!R$36) -> 0.4188381442
B17: =IF(ISBLANK(Hub!D17), "Division 5", Hub!D17) -> Division 5 | D17: =(Revenue_Build!D18/Revenue_Build!D$36) -> 0 | E17: =(Revenue_Build!E18/Revenue_Build!E$36) -> 0 | F17: =(Revenue_Build!F18/Revenue_Build!F$36) -> 0 | G17: =(Revenue_Build!G18/Revenue_Build!G$36) -> 0 | H17: =(Revenue_Build!H18/Revenue_Build!H$36) -> 0 | I17: =(Revenue_Build!I18/Revenue_Build!I$36) -> 0 | J17: =(Revenue_Build!J18/Revenue_Build!J$36) -> 0 | K17: =(Revenue_Build!K18/Revenue_Build!K$36) -> 0 | L17: =(Revenue_Build!L18/Revenue_Build!L$36) -> 0 | M17: =(Revenue_Build!M18/Revenue_Build!M$36) -> 0 | N17: =(Revenue_Build!N18/Revenue_Build!N$36) -> 0 | O17: =(Revenue_Build!O18/Revenue_Build!O$36) -> 0 | P17: =(Revenue_Build!P18/Revenue_Build!P$36) -> 0 | Q17: =(Revenue_Build!Q18/Revenue_Build!Q$36) -> 0 | R17: =(Revenue_Build!R18/Revenue_Build!R$36) -> 0
B18: =IF(ISBLANK(Hub!H13), "Division 6", Hub!H13) -> Division 6 | D18: =(Revenue_Build!D21/Revenue_Build!D$36) -> 0 | E18: =(Revenue_Build!E21/Revenue_Build!E$36) -> 0 | F18: =(Revenue_Build!F21/Revenue_Build!F$36) -> 0 | G18: =(Revenue_Build!G21/Revenue_Build!G$36) -> 0 | H18: =(Revenue_Build!H21/Revenue_Build!H$36) -> 0 | I18: =(Revenue_Build!I21/Revenue_Build!I$36) -> 0 | J18: =(Revenue_Build!J21/Revenue_Build!J$36) -> 0 | K18: =(Revenue_Build!K21/Revenue_Build!K$36) -> 0 | L18: =(Revenue_Build!L21/Revenue_Build!L$36) -> 0 | M18: =(Revenue_Build!M21/Revenue_Build!M$36) -> 0 | N18: =(Revenue_Build!N21/Revenue_Build!N$36) -> 0 | O18: =(Revenue_Build!O21/Revenue_Build!O$36) -> 0 | P18: =(Revenue_Build!P21/Revenue_Build!P$36) -> 0 | Q18: =(Revenue_Build!Q21/Revenue_Build!Q$36) -> 0 | R18: =(Revenue_Build!R21/Revenue_Build!R$36) -> 0
B19: =IF(ISBLANK(Hub!H14), "Division 7", Hub!H14) -> Division 7 | D19: =(Revenue_Build!D24/Revenue_Build!D$36) -> 0 | E19: =(Revenue_Build!E24/Revenue_Build!E$36) -> 0 | F19: =(Revenue_Build!F24/Revenue_Build!F$36) -> 0 | G19: =(Revenue_Build!G24/Revenue_Build!G$36) -> 0 | H19: =(Revenue_Build!H24/Revenue_Build!H$36) -> 0 | I19: =(Revenue_Build!I24/Revenue_Build!I$36) -> 0 | J19: =(Revenue_Build!J24/Revenue_Build!J$36) -> 0 | K19: =(Revenue_Build!K24/Revenue_Build!K$36) -> 0 | L19: =(Revenue_Build!L24/Revenue_Build!L$36) -> 0 | M19: =(Revenue_Build!M24/Revenue_Build!M$36) -> 0 | N19: =(Revenue_Build!N24/Revenue_Build!N$36) -> 0 | O19: =(Revenue_Build!O24/Revenue_Build!O$36) -> 0 | P19: =(Revenue_Build!P24/Revenue_Build!P$36) -> 0 | Q19: =(Revenue_Build!Q24/Revenue_Build!Q$36) -> 0 | R19: =(Revenue_Build!R24/Revenue_Build!R$36) -> 0
B20: =IF(ISBLANK(Hub!H15), "Division 8", Hub!H15) -> Division 8 | D20: =(Revenue_Build!D27/Revenue_Build!D$36) -> 0 | E20: =(Revenue_Build!E27/Revenue_Build!E$36) -> 0 | F20: =(Revenue_Build!F27/Revenue_Build!F$36) -> 0 | G20: =(Revenue_Build!G27/Revenue_Build!G$36) -> 0 | H20: =(Revenue_Build!H27/Revenue_Build!H$36) -> 0 | I20: =(Revenue_Build!I27/Revenue_Build!I$36) -> 0 | J20: =(Revenue_Build!J27/Revenue_Build!J$36) -> 0 | K20: =(Revenue_Build!K27/Revenue_Build!K$36) -> 0 | L20: =(Revenue_Build!L27/Revenue_Build!L$36) -> 0 | M20: =(Revenue_Build!M27/Revenue_Build!M$36) -> 0 | N20: =(Revenue_Build!N27/Revenue_Build!N$36) -> 0 | O20: =(Revenue_Build!O27/Revenue_Build!O$36) -> 0 | P20: =(Revenue_Build!P27/Revenue_Build!P$36) -> 0 | Q20: =(Revenue_Build!Q27/Revenue_Build!Q$36) -> 0 | R20: =(Revenue_Build!R27/Revenue_Build!R$36) -> 0
B21: =IF(ISBLANK(Hub!H16), "Division 9", Hub!H16) -> Division 9 | D21: =(Revenue_Build!D30/Revenue_Build!D$36) -> 0 | E21: =(Revenue_Build!E30/Revenue_Build!E$36) -> 0 | F21: =(Revenue_Build!F30/Revenue_Build!F$36) -> 0 | G21: =(Revenue_Build!G30/Revenue_Build!G$36) -> 0 | H21: =(Revenue_Build!H30/Revenue_Build!H$36) -> 0 | I21: =(Revenue_Build!I30/Revenue_Build!I$36) -> 0 | J21: =(Revenue_Build!J30/Revenue_Build!J$36) -> 0 | K21: =(Revenue_Build!K30/Revenue_Build!K$36) -> 0 | L21: =(Revenue_Build!L30/Revenue_Build!L$36) -> 0 | M21: =(Revenue_Build!M30/Revenue_Build!M$36) -> 0 | N21: =(Revenue_Build!N30/Revenue_Build!N$36) -> 0 | O21: =(Revenue_Build!O30/Revenue_Build!O$36) -> 0 | P21: =(Revenue_Build!P30/Revenue_Build!P$36) -> 0 | Q21: =(Revenue_Build!Q30/Revenue_Build!Q$36) -> 0 | R21: =(Revenue_Build!R30/Revenue_Build!R$36) -> 0
B22: =IF(ISBLANK(Hub!H17), "Division 10", Hub!H17) -> Division 10 | D22: =(Revenue_Build!D33/Revenue_Build!D$36) -> 0 | E22: =(Revenue_Build!E33/Revenue_Build!E$36) -> 0 | F22: =(Revenue_Build!F33/Revenue_Build!F$36) -> 0 | G22: =(Revenue_Build!G33/Revenue_Build!G$36) -> 0 | H22: =(Revenue_Build!H33/Revenue_Build!H$36) -> 0 | I22: =(Revenue_Build!I33/Revenue_Build!I$36) -> 0 | J22: =(Revenue_Build!J33/Revenue_Build!J$36) -> 0 | K22: =(Revenue_Build!K33/Revenue_Build!K$36) -> 0 | L22: =(Revenue_Build!L33/Revenue_Build!L$36) -> 0 | M22: =(Revenue_Build!M33/Revenue_Build!M$36) -> 0 | N22: =(Revenue_Build!N33/Revenue_Build!N$36) -> 0 | O22: =(Revenue_Build!O33/Revenue_Build!O$36) -> 0 | P22: =(Revenue_Build!P33/Revenue_Build!P$36) -> 0 | Q22: =(Revenue_Build!Q33/Revenue_Build!Q$36) -> 0 | R22: =(Revenue_Build!R33/Revenue_Build!R$36) -> 0
B24: Revenue | D24: =Revenue_Build!D36 -> 2528 | E24: =Revenue_Build!E36 -> 3628 | F24: =Revenue_Build!F36 -> 9570 | G24: =Revenue_Build!G36 -> 10821 | H24: =Revenue_Build!H36 -> 11528 | I24: =Revenue_Build!I36 -> 15902.9954 | J24: =Revenue_Build!J36 -> 22095.14462 | K24: =Revenue_Build!K36 -> 30929.37564 | L24: =Revenue_Build!L36 -> 43635.40637 | M24: =Revenue_Build!M36 -> 62059.1015 | N24: =Revenue_Build!N36 -> 88989.47461 | O24: =Revenue_Build!O36 -> 128666.8205 | P24: =Revenue_Build!P36 -> 187575.4842 | Q24: =Revenue_Build!Q36 -> 275685.279 | R24: =Revenue_Build!R36 -> 408402.0266
B27: Cost of Revenue
B29: Cost of Goods Sold | D29: =Operating_Model!E48/Operating_Model!E42 -> 0 | E29: =Operating_Model!F48/Operating_Model!F42 -> 0 | F29: =Operating_Model!G48/Operating_Model!G42 -> 0 | G29: =Operating_Model!H48/Operating_Model!H42 -> 0 | H29: =Operating_Model!I48/Operating_Model!I42 -> 0 | I29: =IFERROR(IF(RSQ($D29:$H29,$D$8:$H$8)>0.5,((SLOPE($D29:$H29,$D$8:$H$8)+H29)*RSQ($D29:$H29,$D$8:$H$8)+(AVERAGE($D29:$H29)*(1-RSQ($D29:$H29,$D$8:$H$8)))),AVERAGE($D29:$H29)),0) -> 0 | J29: =IFERROR(IF(RSQ($D29:$H29,$D$8:$H$8)>0.5,((SLOPE($D29:$H29,$D$8:$H$8)+I29)*RSQ($D29:$H29,$D$8:$H$8)+(AVERAGE($D29:$H29)*(1-RSQ($D29:$H29,$D$8:$H$8)))),AVERAGE($D29:$H29)),0) -> 0 | K29: 0 | L29: 0 | M29: 0 | N29: 0 | O29: 0 | P29: 0 | Q29: 0 | R29: 0
B30: Cost of Services Sold | D30: =Operating_Model!E51/Operating_Model!E42 -> 0 | E30: =Operating_Model!F51/Operating_Model!F42 -> 0 | F30: =Operating_Model!G51/Operating_Model!G42 -> 0 | G30: =Operating_Model!H51/Operating_Model!H42 -> 0 | H30: =Operating_Model!I51/Operating_Model!I42 -> 0 | I30: =IFERROR(IF(RSQ($D30:$H30,$D$8:$H$8)>0.5,((SLOPE($D30:$H30,$D$8:$H$8)+H30)*RSQ($D30:$H30,$D$8:$H$8)+(AVERAGE($D30:$H30)*(1-RSQ($D30:$H30,$D$8:$H$8)))),AVERAGE($D30:$H30)),0) -> 0 | J30: 0 | K30: 0 | L30: 0 | M30: 0 | N30: 0 | O30: 0 | P30: 0 | Q30: 0 | R30: 0
B31: COGS Adjustments | D31: =Operating_Model!E54/Operating_Model!E42 -> 0 | E31: =Operating_Model!F54/Operating_Model!F42 -> 0 | F31: =Operating_Model!G54/Operating_Model!G42 -> 0 | G31: =Operating_Model!H54/Operating_Model!H42 -> 0 | H31: =Operating_Model!I54/Operating_Model!I42 -> 0 | I31: 0 | J31: 0 | K31: 0 | L31: 0 | M31: 0 | N31: 0 | O31: 0 | P31: 0 | Q31: 0 | R31: 0
B32: Cost of Financing Revenue | D32: =Operating_Model!E57/Operating_Model!E42 -> 0 | E32: =Operating_Model!F57/Operating_Model!F42 -> 0 | F32: =Operating_Model!G57/Operating_Model!G42 -> 0 | G32: =Operating_Model!H57/Operating_Model!H42 -> 0 | H32: =Operating_Model!I57/Operating_Model!I42 -> 0 | I32: 0 | J32: =IFERROR(IF(RSQ($D32:$H32,$D$8:$H$8)>0.5,((SLOPE($D32:$H32,$D$8:$H$8)+I32)*RSQ($D32:$H32,$D$8:$H$8)+(AVERAGE($D32:$H32)*(1-RSQ($D32:$H32,$D$8:$H$8)))),AVERAGE($D32:$H32)),0) -> 0 | K32: =IFERROR(IF(RSQ($D32:$H32,$D$8:$H$8)>0.5,((SLOPE($D32:$H32,$D$8:$H$8)+J32)*RSQ($D32:$H32,$D$8:$H$8)+(AVERAGE($D32:$H32)*(1-RSQ($D32:$H32,$D$8:$H$8)))),AVERAGE($D32:$H32)),0) -> 0 | L32: =IFERROR(IF(RSQ($D32:$H32,$D$8:$H$8)>0.5,((SLOPE($D32:$H32,$D$8:$H$8)+K32)*RSQ($D32:$H32,$D$8:$H$8)+(AVERAGE($D32:$H32)*(1-RSQ($D32:$H32,$D$8:$H$8)))),AVERAGE($D32:$H32)),0) -> 0 | M32: =IFERROR(IF(RSQ($D32:$H32,$D$8:$H$8)>0.5,((SLOPE($D32:$H32,$D$8:$H$8)+L32)*RSQ($D32:$H32,$D$8:$H$8)+(AVERAGE($D32:$H32)*(1-RSQ($D32:$H32,$D$8:$H$8)))),AVERAGE($D32:$H32)),0) -> 0 | N32: =IFERROR(IF(RSQ($D32:$H32,$D$8:$H$8)>0.5,((SLOPE($D32:$H32,$D$8:$H$8)+M32)*RSQ($D32:$H32,$D$8:$H$8)+(AVERAGE($D32:$H32)*(1-RSQ($D32:$H32,$D$8:$H$8)))),AVERAGE($D32:$H32)),0) -> 0 | O32: =IFERROR(IF(RSQ($D32:$H32,$D$8:$H$8)>0.5,((SLOPE($D32:$H32,$D$8:$H$8)+N32)*RSQ($D32:$H32,$D$8:$H$8)+(AVERAGE($D32:$H32)*(1-RSQ($D32:$H32,$D$8:$H$8)))),AVERAGE($D32:$H32)),0) -> 0 | P32: =IFERROR(IF(RSQ($D32:$H32,$D$8:$H$8)>0.5,((SLOPE($D32:$H32,$D$8:$H$8)+O32)*RSQ($D32:$H32,$D$8:$H$8)+(AVERAGE($D32:$H32)*(1-RSQ($D32:$H32,$D$8:$H$8)))),AVERAGE($D32:$H32)),0) -> 0 | Q32: =IFERROR(IF(RSQ($D32:$H32,$D$8:$H$8)>0.5,((SLOPE($D32:$H32,$D$8:$H$8)+P32)*RSQ($D32:$H32,$D$8:$H$8)+(AVERAGE($D32:$H32)*(1-RSQ($D32:$H32,$D$8:$H$8)))),AVERAGE($D32:$H32)),0) -> 0 | R32: =IFERROR(IF(RSQ($D32:$H32,$D$8:$H$8)>0.5,((SLOPE($D32:$H32,$D$8:$H$8)+Q32)*RSQ($D32:$H32,$D$8:$H$8)+(AVERAGE($D32:$H32)*(1-RSQ($D32:$H32,$D$8:$H$8)))),AVERAGE($D32:$H32)),0) -> 0
B33: Other Costs Revenue | D33: =Operating_Model!E60/Operating_Model!E42 -> 0.01817167722 | E33: =Operating_Model!F60/Operating_Model!F42 -> 0.03858875413 | F33: =Operating_Model!G60/Operating_Model!G42 -> 0.03897596656 | G33: =Operating_Model!H60/Operating_Model!H42 -> 0.03798170225 | H33: =Operating_Model!I60/Operating_Model!I42 -> 0.03764746704 | I33: 0.03427311344 | J33: 0.03427311344 | K33: 0.03427311344 | L33: 0.03427311344 | M33: 0.03427311344 | N33: 0.03427311344 | O33: 0.03427311344 | P33: 0.03427311344 | Q33: 0.03427311344 | R33: 0.03427311344
B35: COGS (Backup) | D35: =Operating_Model!E63/Operating_Model!E42 -> 0 | E35: =Operating_Model!F63/Operating_Model!F42 -> 0 | F35: =Operating_Model!G63/Operating_Model!G42 -> 0 | G35: =Operating_Model!H63/Operating_Model!H42 -> 0 | H35: =Operating_Model!I63/Operating_Model!I42 -> 0 | I35: 0 | J35: 0 | K35: 0 | L35: 0 | M35: 0 | N35: 0 | O35: 0 | P35: 0 | Q35: 0 | R35: 0
B36: Restructuring/Workflow | D36: =Operating_Model!E66/Operating_Model!E42 -> 0 | E36: =Operating_Model!F66/Operating_Model!F42 -> 0 | F36: =Operating_Model!G66/Operating_Model!G42 -> 0 | G36: =Operating_Model!H66/Operating_Model!H42 -> 0 | H36: =Operating_Model!I66/Operating_Model!I42 -> 0 | I36: 0 | J36: 0 | K36: 0 | L36: 0 | M36: 0 | N36: 0 | O36: 0 | P36: 0 | Q36: 0 | R36: 0
B38: Cost of Revenue | D38: =SUM(D29:D36)*D24 -> 45.938 | E38: =SUM(E29:E36)*E24 -> 140 | F38: 373 | G38: 411 | H38: 434 | I38: 545.0451654 | J38: 757.2693979 | K38: 1060.046 | L38: 1495.521232 | M38: 2126.958626 | N38: 3049.946358 | O38: 4409.812533 | P38: 6428.79585 | Q38: 9448.59284 | R38: 13997.20899
B41: Fixed Expenses
B43: SG&A | D43: =Operating_Model!E86/Operating_Model!E$42 -> 0.2397642405 | E43: =Operating_Model!F86/Operating_Model!F$42 -> 0.2486218302 | F43: =Operating_Model!G86/Operating_Model!G$42 -> 0.1862068966 | G43: =Operating_Model!H86/Operating_Model!H$42 -> 0.1911098789 | H43: =Operating_Model!I86/Operating_Model!I$42 -> 0.1745315753 | I43: =Operating_Model!J86/Operating_Model!J$42 -> 0.111887604 | J43: =Operating_Model!K86/Operating_Model!K$42 -> 0.08229298727 | K43: =Operating_Model!L86/Operating_Model!L$42 -> 0.06007410258 | L43: =Operating_Model!M86/Operating_Model!M$42 -> 0.04351291607 | M43: =Operating_Model!N86/Operating_Model!N$42 -> 0.03126442884 | N43: =Operating_Model!O86/Operating_Model!O$42 -> 0.02228004731 | O43: =Operating_Model!P86/Operating_Model!P$42 -> 0.01574660565 | P43: =Operating_Model!Q86/Operating_Model!Q$42 -> 0.01103763969 | Q43: =Operating_Model!R86/Operating_Model!R$42 -> 0.007674277192 | R43: =Operating_Model!S86/Operating_Model!S$42 -> 0.005293731845
B44: R&D | D44: =Operating_Model!E89/Operating_Model!E$42 -> 0 | E44: =Operating_Model!F89/Operating_Model!F$42 -> 0 | F44: =Operating_Model!G89/Operating_Model!G$42 -> 0 | G44: =Operating_Model!H89/Operating_Model!H$42 -> 0 | H44: =Operating_Model!I89/Operating_Model!I$42 -> 0 | I44: =Operating_Model!J89/Operating_Model!J$42 -> 0 | J44: =Operating_Model!K89/Operating_Model!K$42 -> 0 | K44: =Operating_Model!L89/Operating_Model!L$42 -> 0 | L44: =Operating_Model!M89/Operating_Model!M$42 -> 0 | M44: =Operating_Model!N89/Operating_Model!N$42 -> 0 | N44: =Operating_Model!O89/Operating_Model!O$42 -> 0 | O44: =Operating_Model!P89/Operating_Model!P$42 -> 0 | P44: =Operating_Model!Q89/Operating_Model!Q$42 -> 0 | Q44: =Operating_Model!R89/Operating_Model!R$42 -> 0 | R44: =Operating_Model!S89/Operating_Model!S$42 -> 0
B45: Other Fixed Costs | D45: =Operating_Model!E92/Operating_Model!E$42 -> 0.0270715981 | E45: =Operating_Model!F92/Operating_Model!F$42 -> -0.02067254686 | F45: =Operating_Model!G92/Operating_Model!G$42 -> 0.01724137931 | G45: =Operating_Model!H92/Operating_Model!H$42 -> 0.02643008964 | H45: =Operating_Model!I92/Operating_Model!I$42 -> 0.02654406662 | I45: =Operating_Model!J92/Operating_Model!J$42 -> 0.01565814204 | J45: =Operating_Model!K92/Operating_Model!K$42 -> 0.01151651512 | K45: =Operating_Model!L92/Operating_Model!L$42 -> 0.008407087084 | L45: =Operating_Model!M92/Operating_Model!M$42 -> 0.006089427207 | M45: =Operating_Model!N92/Operating_Model!N$42 -> 0.004375309237 | N45: =Operating_Model!O92/Operating_Model!O$42 -> 0.003117987452 | O45: =Operating_Model!P92/Operating_Model!P$42 -> 0.002203663131 | P45: =Operating_Model!Q92/Operating_Model!Q$42 -> 0.001544665573 | Q45: =Operating_Model!R92/Operating_Model!R$42 -> 0.001073978868 | R45: =Operating_Model!S92/Operating_Model!S$42 -> 0.0007408327834
B47: Fixed Expenses | D47: =SUM(D43:D45)*D24 -> 674.561 | E47: 827 | F47: 1947 | G47: 2354 | H47: 2318 | I47: 2028.359413 | J47: 2072.734522 | K47: 2118.08044 | L47: 2164.418406 | M47: 2211.770123 | N47: 2260.15777 | O47: 2309.60401 | P47: 2360.132002 | Q47: 2411.765412 | R47: 2464.528424

Sheet Debt_Schedule
B2: Bond Names | C2: Year Due | D2: Yearly Coupon Rate | E2: Currency | F2: Principal Outstanding | G2: Principal Issued | H2: Adjusted Principal Outstanding | J2: Outstanding Market Value | O2: Year Due | P2: Interest Rate | Q2: Estimated Interest Rate? | R2: Amount left | T2: Market Value | AB2: Actuals | AG2: Forecast | AQ2: IR | AR2: Amount | AS2: Years
B3: =_xll.BQL("bonds('" & Hub!D4 & "')", "id", "showids", "false","cols=1;rows=5") -> id | Y3: =YEAR(Y4) -> 2018 | Z3: =YEAR(Z4) -> 2019 | AA3: =YEAR(AA4) -> 2020 | AB3: 2021 | AC3: 2022 | AD3: =YEAR(AD4) -> 2023 | AE3: =YEAR(AE4) -> 2024 | AF3: =YEAR(AF4) -> 2025 | AG3: 2026 | AH3: 2027 | AI3: 2028 | AJ3: 2029 | AK3: 2030 | AL3: 2031 | AM3: 2032 | AN3: 2033 | AP3: Cash From Debt
B4: BR401813 Corp | C4: =IFERROR(YEAR(_xll.BDP(B4,"DS035")), 0) -> 2029 | D4: =IFERROR(_xll.BDP(B4,"DS033")/100, 0) -> 0.04625 | E4: =IFERROR(_xll.BDP(B4,"DS004"), 0) -> USD | F4: =IFERROR(_xll.BDP(B4,"DS021")/1000000, 0) -> 1200 | G4: =IFERROR(_xll.BDP(B4,"DS218")/1000000, 0) -> 1200 | H4: =IFERROR(IF(E4=Hub!$D$8,F4, F4*((_xll.BDP(E4 & Hub!$D$8 & " Curncy", "PR005")/_xll.BDP(E4 & Hub!$D$8 & " Curncy", "DS672")))),0) -> 1200 | J4: =IFERROR(IF(C4=0,0,-PV(DCF!$D$12, C4-YEAR(DCF!$D$10), H4*D4, H4, 0)),"") -> 1362.793223 | L4: BS_LT_BORROW | N4: Other Debts | O4: 2033 | P4: =IF(F105=0, (_xll.BDP(Hub!D4,"VM010")/100)/(1-Hub!H10), SUMPRODUCT(D4:D103,F4:F103)/SUM(F4:F103)) -> 0.06716721812 | Q4: Yes | R4: =_xll.BDP(Hub!D4, L4, "EQY_FUND_CRNCY", Hub!D8)-H105 -> 19400.102 | T4: =IFERROR(-PV(DCF!$D$12, O4-YEAR(DCF!$D$10), R4*P4, R4, 0), "") -> 27215.49181 | Y4: =EOMONTH(Z4,-12) -> 2018-12-31 | Z4: =EOMONTH(AA4,-12) -> 2019-12-31 | AA4: =EOMONTH(AB4,-12) -> 2020-12-31 | AB4: =EOMONTH(AC4,-12) -> 2021-12-31 | AC4: =EOMONTH(AD4,-12) -> 2022-12-31 | AD4: =DCF!I16 -> 2023-12-31 | AE4: =EOMONTH(AD4,12) -> 2024-12-31 | AF4: =EOMONTH(AE4,12) -> 2025-12-31 | AG4: =EOMONTH(AF4,12) -> 2026-12-31 | AH4: =EOMONTH(AG4,12) -> 2027-12-31 | AI4: =EOMONTH(AH4,12) -> 2028-12-31 | AJ4: =EOMONTH(AI4,12) -> 2029-12-31 | AK4: =EOMONTH(AJ4,12) -> 2030-12-31 | AL4: =EOMONTH(AK4,12) -> 2031-12-31 | AM4: =EOMONTH(AL4,12) -> 2032-12-31 | AN4: =EOMONTH(AM4,12) -> 2033-12-31
B5: BK128425 Corp | C5: =IFERROR(YEAR(_xll.BDP(B5,"DS035")), 0) -> 2027 | D5: =IFERROR(_xll.BDP(B5,"DS033")/100, 0) -> 0.08125 | E5: =IFERROR(_xll.BDP(B5,"DS004"), 0) -> USD | F5: =IFERROR(_xll.BDP(B5,"DS021")/1000000, 0) -> 1610.898 | G5: =IFERROR(_xll.BDP(B5,"DS218")/1000000, 0) -> 1800 | H5: =IFERROR(IF(E5=Hub!$D$8,F5, F5*((_xll.BDP(E5 & Hub!$D$8 & " Curncy", "PR005")/_xll.BDP(E5 & Hub!$D$8 & " Curncy", "DS672")))),0) -> 1610.898 | J5: =IFERROR(IF(C5=0,0,-PV(DCF!$D$12, C5-YEAR(DCF!$D$10), H5*D5, H5, 0)),"") -> 1973.428656 | Y5: -5FY | Z5: -4FY | AA5: -3FY | AB5: -2FY | AC5: -1FY | AD5: -0FY
B6: ZF564137 Corp | C6: =IFERROR(YEAR(_xll.BDP(B6,"DS035")), 0) -> 2032 | D6: =IFERROR(_xll.BDP(B6,"DS033")/100, 0) -> 0.065 | E6: =IFERROR(_xll.BDP(B6,"DS004"), 0) -> USD | F6: =IFERROR(_xll.BDP(B6,"DS021")/1000000, 0) -> 1500 | G6: =IFERROR(_xll.BDP(B6,"DS218")/1000000, 0) -> 1500 | H6: =IFERROR(IF(E6=Hub!$D$8,F6, F6*((_xll.BDP(E6 & Hub!$D$8 & " Curncy", "PR005")/_xll.BDP(E6 & Hub!$D$8 & " Curncy", "DS672")))),0) -> 1500 | J6: =IFERROR(IF(C6=0,0,-PV(DCF!$D$12, C6-YEAR(DCF!$D$10), H6*D6, H6, 0)),"") -> 2023.266896 | X6: Main Debt Schedule | AP6: =AE3 -> 2024 | AQ6: =IF(COUNTBLANK(P4:P103)=100, IF(COUNTBLANK(D4:D103)=100, "N/A", SUMPRODUCT(D4:D103*H4:H103)/SUM(H4:H103)), SUMPRODUCT(P4:P103*R4:R103)/SUM(R4:R103)) -> 0.06716721812 | AR6: =AE12 ->  | AS6: =IF(COUNTBLANK(O4:O103)=100, IF(COUNTBLANK(C4:C103)=100, "N/A", SUMPRODUCT(C4:C103*H4:H103)/SUM(H4:H103)), SUMPRODUCT(O4:O103*R4:R103)/SUM(R4:R103))-YEAR(AE4) -> 9
B7: ZM601307 Corp | C7: =IFERROR(YEAR(_xll.BDP(B7,"DS035")), 0) -> 2030 | D7: =IFERROR(_xll.BDP(B7,"DS033")/100, 0) -> 0.07 | E7: =IFERROR(_xll.BDP(B7,"DS004"), 0) -> USD | F7: =IFERROR(_xll.BDP(B7,"DS021")/1000000, 0) -> 2000 | G7: =IFERROR(_xll.BDP(B7,"DS218")/1000000, 0) -> 2000 | H7: =IFERROR(IF(E7=Hub!$D$8,F7, F7*((_xll.BDP(E7 & Hub!$D$8 & " Curncy", "PR005")/_xll.BDP(E7 & Hub!$D$8 & " Curncy", "DS672")))),0) -> 2000 | J7: =IFERROR(IF(C7=0,0,-PV(DCF!$D$12, C7-YEAR(DCF!$D$10), H7*D7, H7, 0)),"") -> 2618.428239 | AP7: =AF3 -> 2025 | AQ7: =AQ6 -> 0.06716721812 | AR7: =AF12 ->  | AS7: =AS6 -> 9
C8: =IFERROR(YEAR(_xll.BDP(B8,"DS035")), 0) -> 0 | D8: =IFERROR(_xll.BDP(B8,"DS033")/100, 0) -> 0 | E8: =IFERROR(_xll.BDP(B8,"DS004"), 0) -> #N/A Mandatory parameter [SECURITY] cannot be empty | F8: =IFERROR(_xll.BDP(B8,"DS021")/1000000, 0) -> 0 | G8: =IFERROR(_xll.BDP(B8,"DS218")/1000000, 0) -> 0 | H8: =IFERROR(IF(E8=Hub!$D$8,F8, F8*((_xll.BDP(E8 & Hub!$D$8 & " Curncy", "PR005")/_xll.BDP(E8 & Hub!$D$8 & " Curncy", "DS672")))),0) -> 0 | J8: =IFERROR(IF(C8=0,0,-PV(DCF!$D$12, C8-YEAR(DCF!$D$10), H8*D8, H8, 0)),"") -> 0 | X8: Interest | Z8: =Operating_Model!E136 -> 286.248 | AA8: =Operating_Model!F136 -> 1202 | AB8: =Operating_Model!G136 -> 2295 | AC8: =Operating_Model!H136 -> 2265 | AD8: =Operating_Model!I136 -> 2354 | AE8: =(SUMPRODUCT(($C4:$C103>=AE3)*($D4:$D103*$H4:$H103)))+(SUM(IF($O4:$O103>=AE3, -IPMT($P4:$P103, 1, $O4:$O103-$AD3, $R4:$R103), 0)))+(SUM(IF($AP6:$AP15<AE3,IFERROR(-IPMT($AQ6:$AQ15,AE3-$AP6:$AP15,$AS6:$AS15,$AR6:$AR15), 0),0))) -> 1726.936345 | AF8: =(SUMPRODUCT(($C4:$C103>=AF3)*($D4:$D103*$H4:$H103)))+(SUM(IF($O4:$O103>=AF3, -IPMT($P4:$P103, 2, $O4:$O103-$AD3, $R4:$R103), 0)))+(SUM(IF($AP6:$AP15<AF3,IFERROR(-IPMT($AQ6:$AQ15,AF3-$AP6:$AP15,$AS6:$AS15,$AR6:$AR15), 0),0))) -> 1631.355414 | AG8: =(SUMPRODUCT(($C4:$C103>=AG3)*($D4:$D103*$H4:$H103)))+(SUM(IF($O4:$O103>=AG3, -IPMT($P4:$P103, 3, $O4:$O103-$AD3, $R4:$R103), 0)))+(SUM(IF($AP6:$AP15<AG3,IFERROR(-IPMT($AQ6:$AQ15,AG3-$AP6:$AP15,$AS6:$AS15,$AR6:$AR15), 0),0))) -> 1529.354578 | AH8: =(SUMPRODUCT(($C4:$C103>=AH3)*($D4:$D103*$H4:$H103)))+(SUM(IF($O4:$O103>=AH3, -IPMT($P4:$P103, 4, $O4:$O103-$AD3, $R4:$R103), 0)))+(SUM(IF($AP6:$AP15<AH3,IFERROR(-IPMT($AQ6:$AQ15,AH3-$AP6:$AP15,$AS6:$AS15,$AR6:$AR15), 0),0))) -> 1420.50263 | AI8: =(SUMPRODUCT(($C4:$C103>=AI3)*($D4:$D103*$H4:$H103)))+(SUM(IF($O4:$O103>=AI3, -IPMT($P4:$P103, 5, $O4:$O103-$AD3, $R4:$R103), 0)))+(SUM(IF($AP6:$AP15<AI3,IFERROR(-IPMT($AQ6:$AQ15,AI3-$AP6:$AP15,$AS6:$AS15,$AR6:$AR15), 0),0))) -> 1173.453936 | AJ8: =(SUMPRODUCT(($C4:$C103>=AJ3)*($D4:$D103*$H4:$H103)))+(SUM(IF($O4:$O103>=AJ3, -IPMT($P4:$P103, 6, $O4:$O103-$AD3, $R4:$R103), 0)))+(SUM(IF($AP6:$AP15<AJ3,IFERROR(-IPMT($AQ6:$AQ15,AJ3-$AP6:$AP15,$AS6:$AS15,$AR6:$AR15), 0),0))) -> 1049.488344 | AK8: =(SUMPRODUCT(($C4:$C103>=AK3)*($D4:$D103*$H4:$H103)))+(SUM(IF($O4:$O103>=AK3, -IPMT($P4:$P103, 7, $O4:$O103-$AD3, $R4:$R103), 0)))+(SUM(IF($AP6:$AP15<AK3,IFERROR(-IPMT($AQ6:$AQ15,AK3-$AP6:$AP15,$AS6:$AS15,$AR6:$AR15), 0),0))) -> 861.6963282 | AL8: =(SUMPRODUCT(($C4:$C103>=AL3)*($D4:$D103*$H4:$H103)))+(SUM(IF($O4:$O103>=AL3, -IPMT($P4:$P103, 8, $O4:$O103-$AD3, $R4:$R103), 0)))+(SUM(IF($AP6:$AP15<AL3,IFERROR(-IPMT($AQ6:$AQ15,AL3-$AP6:$AP15,$AS6:$AS15,$AR6:$AR15), 0),0))) -> 580.5186255 | AM8: =(SUMPRODUCT(($C4:$C103>=AM3)*($D4:$D103*$H4:$H103)))+(SUM(IF($O4:$O103>=AM3, -IPMT($P4:$P103, 9, $O4:$O103-$AD3, $R4:$R103), 0)))+(SUM(IF($AP6:$AP15<AM3,IFERROR(-IPMT($AQ6:$AQ15,AM3-$AP6:$AP15,$AS6:$AS15,$AR6:$AR15), 0),0))) -> 429.8584092 | AN8: =(SUMPRODUCT(($C4:$C103>=AN3)*($D4:$D103*$H4:$H103)))+(SUM(IF($O4:$O103>=AN3, -IPMT($P4:$P103, 10, $O4:$O103-$AD3, $R4:$R103), 0)))+(SUM(IF($AP6:$AP15<AN3,IFERROR(-IPMT($AQ6:$AQ15,AN3-$AP6:$AP15,$AS6:$AS15,$AR6:$AR15), 0),0))) -> 171.5787653 | AP8: =AG3 -> 2026 | AQ8: =AQ7 -> 0.06716721812 | AR8: =AG12 ->  | AS8: =AS7 -> 9
C9: =IFERROR(YEAR(_xll.BDP(B9,"DS035")), 0) -> 0 | D9: =IFERROR(_xll.BDP(B9,"DS033")/100, 0) -> 0 | E9: =IFERROR(_xll.BDP(B9,"DS004"), 0) -> #N/A Mandatory parameter [SECURITY] cannot be empty | F9: =IFERROR(_xll.BDP(B9,"DS021")/1000000, 0) -> 0 | G9: =IFERROR(_xll.BDP(B9,"DS218")/1000000, 0) -> 0 | H9: =IFERROR(IF(E9=Hub!$D$8,F9, F9*((_xll.BDP(E9 & Hub!$D$8 & " Curncy", "PR005")/_xll.BDP(E9 & Hub!$D$8 & " Curncy", "DS672")))),0) -> 0 | J9: =IFERROR(IF(C9=0,0,-PV(DCF!$D$12, C9-YEAR(DCF!$D$10), H9*D9, H9, 0)),"") -> 0 | AF9: For both, add if statements to see if calculators disabled or enabled | AP9: =AG3 -> 2026 | AQ9: 0.06716721812 | AR9: =AH12 ->  | AS9: 9
C10: =IFERROR(YEAR(_xll.BDP(B10,"DS035")), 0) -> 0 | D10: =IFERROR(_xll.BDP(B10,"DS033")/100, 0) -> 0 | E10: =IFERROR(_xll.BDP(B10,"DS004"), 0) -> #N/A Mandatory parameter [SECURITY] cannot be empty | F10: =IFERROR(_xll.BDP(B10,"DS021")/1000000, 0) -> 0 | G10: =IFERROR(_xll.BDP(B10,"DS218")/1000000, 0) -> 0 | H10: =IFERROR(IF(E10=Hub!$D$8,F10, F10*((_xll.BDP(E10 & Hub!$D$8 & " Curncy", "PR005")/_xll.BDP(E10 & Hub!$D$8 & " Curncy", "DS672")))),0) -> 0 | J10: =IFERROR(IF(C10=0,0,-PV(DCF!$D$12, C10-YEAR(DCF!$D$10), H10*D10, H10, 0)),"") -> 0 | W10: CF_PYMT_LT_DEBT_&_CAPITAL_LEASE | X10: Repayments of Debts | Z10: =-_xll.BDP(Hub!$D$4,$W10,"EQY_FUND_RELATIVE_PERIOD",Z$5, "EQY_FUND_CRNCY", Hub!$D$8) ->  | AA10: =-_xll.BDP(Hub!$D$4,$W10,"EQY_FUND_RELATIVE_PERIOD",AA$5, "EQY_FUND_CRNCY", Hub!$D$8) ->  | AB10: =-_xll.BDP(Hub!$D$4,$W10,"EQY_FUND_RELATIVE_PERIOD",AB$5, "EQY_FUND_CRNCY", Hub!$D$8) ->  | AC10: =-_xll.BDP(Hub!$D$4,$W10,"EQY_FUND_RELATIVE_PERIOD",AC$5, "EQY_FUND_CRNCY", Hub!$D$8) ->  | AD10: =-_xll.BDP(Hub!$D$4,$W10,"EQY_FUND_RELATIVE_PERIOD",AD$5, "EQY_FUND_CRNCY", Hub!$D$8) ->  | AE10: =(SUMIFS($H4:$H103, $C4:$C103, AE3))+(SUM(IF($O4:$O103>=AE3, -PPMT($P4:$P103, 1, $O4:$O103-$AD3, $R4:$R103), 0)))+(SUM(IF($AP6:$AP15<AE3,IFERROR(-PPMT($AQ6:$AQ15,AE3-$AP6:$AP15,$AS6:$AS15,$AR6:$AR15), 0),0))) -> 1423.02947 | AF10: =(SUMIFS($H4:$H103, $C4:$C103, AF3))+(SUM(IF($O4:$O103>=AF3, -PPMT($P4:$P103, 2, $O4:$O103-$AD3, $R4:$R103), 0)))+(SUM(IF($AP6:$AP15<AF3,IFERROR(-PPMT($AQ6:$AQ15,AF3-$AP6:$AP15,$AS6:$AS15,$AR6:$AR15), 0),0))) -> 1518.610401 | AG10: =(SUMIFS($H4:$H103, $C4:$C103, AG3))+(SUM(IF($O4:$O103>=AG3, -PPMT($P4:$P103, 3, $O4:$O103-$AD3, $R4:$R103), 0)))+(SUM(IF($AP6:$AP15<AG3,IFERROR(-PPMT($AQ6:$AQ15,AG3-$AP6:$AP15,$AS6:$AS15,$AR6:$AR15), 0),0))) -> 1620.611237 | AH10: =(SUMIFS($H4:$H103, $C4:$C103, AH3))+(SUM(IF($O4:$O103>=AH3, -PPMT($P4:$P103, 4, $O4:$O103-$AD3, $R4:$R103), 0)))+(SUM(IF($AP6:$AP15<AH3,IFERROR(-PPMT($AQ6:$AQ15,AH3-$AP6:$AP15,$AS6:$AS15,$AR6:$AR15), 0),0))) -> 3340.361185 | AI10: =(SUMIFS($H4:$H103, $C4:$C103, AI3))+(SUM(IF($O4:$O103>=AI3, -PPMT($P4:$P103, 5, $O4:$O103-$AD3, $R4:$R103), 0)))+(SUM(IF($AP6:$AP15<AI3,IFERROR(-PPMT($AQ6:$AQ15,AI3-$AP6:$AP15,$AS6:$AS15,$AR6:$AR15), 0),0))) -> 1845.626416 | AJ10: =(SUMIFS($H4:$H103, $C4:$C103, AJ3))+(SUM(IF($O4:$O103>=AJ3, -PPMT($P4:$P103, 6, $O4:$O103-$AD3, $R4:$R103), 0)))+(SUM(IF($AP6:$AP15<AJ3,IFERROR(-PPMT($AQ6:$AQ15,AJ3-$AP6:$AP15,$AS6:$AS15,$AR6:$AR15), 0),0))) -> 3169.592008 | AK10: =(SUMIFS($H4:$H103, $C4:$C103, AK3))+(SUM(IF($O4:$O103>=AK3, -PPMT($P4:$P103, 7, $O4:$O103-$AD3, $R4:$R103), 0)))+(SUM(IF($AP6:$AP15<AK3,IFERROR(-PPMT($AQ6:$AQ15,AK3-$AP6:$AP15,$AS6:$AS15,$AR6:$AR15), 0),0))) -> 4101.884024 | AL10: =(SUMIFS($H4:$H103, $C4:$C103, AL3))+(SUM(IF($O4:$O103>=AL3, -PPMT($P4:$P103, 8, $O4:$O103-$AD3, $R4:$R103), 0)))+(SUM(IF($AP6:$AP15<AL3,IFERROR(-PPMT($AQ6:$AQ15,AL3-$AP6:$AP15,$AS6:$AS15,$AR6:$AR15), 0),0))) -> 2243.061727 | AM10: =(SUMIFS($H4:$H103, $C4:$C103, AM3))+(SUM(IF($O4:$O103>=AM3, -PPMT($P4:$P103, 9, $O4:$O103-$AD3, $R4:$R103), 0)))+(SUM(IF($AP6:$AP15<AM3,IFERROR(-PPMT($AQ6:$AQ15,AM3-$AP6:$AP15,$AS6:$AS15,$AR6:$AR15), 0),0))) -> 3893.721943 | AN10: =(SUMIFS($H4:$H103, $C4:$C103, AN3))+(SUM(IF($O4:$O103>=AN3, -PPMT($P4:$P103, 10, $O4:$O103-$AD3, $R4:$R103), 0)))+(SUM(IF($AP6:$AP15<AN3,IFERROR(-PPMT($AQ6:$AQ15,AN3-$AP6:$AP15,$AS6:$AS15,$AR6:$AR15), 0),0))) -> 2554.501587 | AP10: =AI3 -> 2028 | AQ10: =AQ9 -> 0.06716721812 | AR10: =AI12 ->  | AS10: =AS9 -> 9
C11: =IFERROR(YEAR(_xll.BDP(B11,"DS035")), 0) -> 0 | D11: =IFERROR(_xll.BDP(B11,"DS033")/100, 0) -> 0 | E11: =IFERROR(_xll.BDP(B11,"DS004"), 0) -> #N/A Mandatory parameter [SECURITY] cannot be empty | F11: =IFERROR(_xll.BDP(B11,"DS021")/1000000, 0) -> 0 | G11: =IFERROR(_xll.BDP(B11,"DS218")/1000000, 0) -> 0 | H11: =IFERROR(IF(E11=Hub!$D$8,F11, F11*((_xll.BDP(E11 & Hub!$D$8 & " Curncy", "PR005")/_xll.BDP(E11 & Hub!$D$8 & " Curncy", "DS672")))),0) -> 0 | J11: =IFERROR(IF(C11=0,0,-PV(DCF!$D$12, C11-YEAR(DCF!$D$10), H11*D11, H11, 0)),"") -> 0 | AP11: =AJ3 -> 2029 | AQ11: =AQ10 -> 0.06716721812 | AR11: =AJ12 ->  | AS11: =AS10 -> 9
C12: =IFERROR(YEAR(_xll.BDP(B12,"DS035")), 0) -> 0 | D12: =IFERROR(_xll.BDP(B12,"DS033")/100, 0) -> 0 | E12: =IFERROR(_xll.BDP(B12,"DS004"), 0) -> #N/A Mandatory parameter [SECURITY] cannot be empty | F12: =IFERROR(_xll.BDP(B12,"DS021")/1000000, 0) -> 0 | G12: =IFERROR(_xll.BDP(B12,"DS218")/1000000, 0) -> 0 | H12: =IFERROR(IF(E12=Hub!$D$8,F12, F12*((_xll.BDP(E12 & Hub!$D$8 & " Curncy", "PR005")/_xll.BDP(E12 & Hub!$D$8 & " Curncy", "DS672")))),0) -> 0 | J12: =IFERROR(IF(C12=0,0,-PV(DCF!$D$12, C12-YEAR(DCF!$D$10), H12*D12, H12, 0)),"") -> 0 | W12: CF_PROC_LT_DEBT_&_CAPITAL_LEASE | X12: Cash from Debt | Z12: =IF(_xll.BDP(Hub!$D$4,$W12,"EQY_FUND_RELATIVE_PERIOD",Z$5, "EQY_FUND_CRNCY", Hub!$D$8)=0, Z14-Y14+Z10, _xll.BDP(Hub!$D$4,$W12,"EQY_FUND_RELATIVE_PERIOD",Z$5, "EQY_FUND_CRNCY", Hub!$D$8)) -> #N/A N/A | AA12: =IF(_xll.BDP(Hub!$D$4,$W12,"EQY_FUND_RELATIVE_PERIOD",AA$5, "EQY_FUND_CRNCY", Hub!$D$8)=0, AA14-Z14+AA10, _xll.BDP(Hub!$D$4,$W12,"EQY_FUND_RELATIVE_PERIOD",AA$5, "EQY_FUND_CRNCY", Hub!$D$8)) -> #N/A N/A | AB12: =IF(_xll.BDP(Hub!$D$4,$W12,"EQY_FUND_RELATIVE_PERIOD",AB$5, "EQY_FUND_CRNCY", Hub!$D$8)=0, AB14-AA14+AB10, _xll.BDP(Hub!$D$4,$W12,"EQY_FUND_RELATIVE_PERIOD",AB$5, "EQY_FUND_CRNCY", Hub!$D$8)) -> #N/A N/A | AC12: =IF(_xll.BDP(Hub!$D$4,$W12,"EQY_FUND_RELATIVE_PERIOD",AC$5, "EQY_FUND_CRNCY", Hub!$D$8)=0, AC14-AB14+AC10, _xll.BDP(Hub!$D$4,$W12,"EQY_FUND_RELATIVE_PERIOD",AC$5, "EQY_FUND_CRNCY", Hub!$D$8)) -> #N/A N/A | AD12: =IF(_xll.BDP(Hub!$D$4,$W12,"EQY_FUND_RELATIVE_PERIOD",AD$5, "EQY_FUND_CRNCY", Hub!$D$8)=0, AD14-AC14+AD10, _xll.BDP(Hub!$D$4,$W12,"EQY_FUND_RELATIVE_PERIOD",AD$5, "EQY_FUND_CRNCY", Hub!$D$8)) -> #N/A N/A | AE12: =AVERAGE(Z12:AD12) ->  | AF12: =AE12 ->  | AG12: =AF12 ->  | AJ12: =AI12 ->  | AK12: =AJ12 ->  | AL12: =AK12 ->  | AM12: =AL12 ->  | AN12: =AM12 ->  | AP12: =AK3 -> 2030 | AQ12: 0.06716721812 | AR12: =AK12 ->  | AS12: 9
C13: =IFERROR(YEAR(_xll.BDP(B13,"DS035")), 0) -> 0 | D13: =IFERROR(_xll.BDP(B13,"DS033")/100, 0) -> 0 | E13: =IFERROR(_xll.BDP(B13,"DS004"), 0) -> #N/A Mandatory parameter [SECURITY] cannot be empty | F13: =IFERROR(_xll.BDP(B13,"DS021")/1000000, 0) -> 0 | G13: =IFERROR(_xll.BDP(B13,"DS218")/1000000, 0) -> 0 | H13: =IFERROR(IF(E13=Hub!$D$8,F13, F13*((_xll.BDP(E13 & Hub!$D$8 & " Curncy", "PR005")/_xll.BDP(E13 & Hub!$D$8 & " Curncy", "DS672")))),0) -> 0 | J13: =IFERROR(IF(C13=0,0,-PV(DCF!$D$12, C13-YEAR(DCF!$D$10), H13*D13, H13, 0)),"") -> 0 | AP13: =AL3 -> 2031 | AQ13: 0.06716721812 | AR13: =AL12 ->  | AS13: 9
C14: =IFERROR(YEAR(_xll.BDP(B14,"DS035")), 0) -> 0 | D14: =IFERROR(_xll.BDP(B14,"DS033")/100, 0) -> 0 | E14: =IFERROR(_xll.BDP(B14,"DS004"), 0) -> #N/A Mandatory parameter [SECURITY] cannot be empty | F14: =IFERROR(_xll.BDP(B14,"DS021")/1000000, 0) -> 0 | G14: =IFERROR(_xll.BDP(B14,"DS218")/1000000, 0) -> 0 | H14: =IFERROR(IF(E14=Hub!$D$8,F14, F14*((_xll.BDP(E14 & Hub!$D$8 & " Curncy", "PR005")/_xll.BDP(E14 & Hub!$D$8 & " Curncy", "DS672")))),0) -> 0 | J14: =IFERROR(IF(C14=0,0,-PV(DCF!$D$12, C14-YEAR(DCF!$D$10), H14*D14, H14, 0)),"") -> 0 | W14: BS_LT_BORROW | X14: Total Debts | Y14: =_xll.BDP(Hub!$D$4,$W14,"EQY_FUND_RELATIVE_PERIOD",Y$5, "EQY_FUND_CRNCY", Hub!$D$8) -> 4221.108 | Z14: =_xll.BDP(Hub!$D$4,$W14,"EQY_FUND_RELATIVE_PERIOD",Z$5, "EQY_FUND_CRNCY", Hub!$D$8) -> 3471.992 | AA14: =_xll.BDP(Hub!$D$4,$W14,"EQY_FUND_RELATIVE_PERIOD",AA$5, "EQY_FUND_CRNCY", Hub!$D$8) -> 26813 | AB14: =_xll.BDP(Hub!$D$4,$W14,"EQY_FUND_RELATIVE_PERIOD",AB$5, "EQY_FUND_CRNCY", Hub!$D$8) -> 26872 | AC14: =_xll.BDP(Hub!$D$4,$W14,"EQY_FUND_RELATIVE_PERIOD",AC$5, "EQY_FUND_CRNCY", Hub!$D$8) -> 25979 | AD14: =_xll.BDP(Hub!$D$4,$W14,"EQY_FUND_RELATIVE_PERIOD",AD$5, "EQY_FUND_CRNCY", Hub!$D$8) -> 25711 | AE14: =AD14-AE10+AE12 ->  | AF14: =AE14-AF10+AF12 ->  | AG14: =AF14-AG10+AG12 ->  | AJ14: =AI14-AJ10+AJ12 ->  | AK14: =AJ14-AK10+AK12 ->  | AL14: =AK14-AL10+AL12 ->  | AM14: =AL14-AM10+AM12 ->  | AN14: =AM14-AN10+AN12 ->  | AP14: =AM3 -> 2032 | AQ14: 0.06716721812 | AR14: =AM12 ->  | AS14: 9
C15: =IFERROR(YEAR(_xll.BDP(B15,"DS035")), 0) -> 0 | D15: =IFERROR(_xll.BDP(B15,"DS033")/100, 0) -> 0 | E15: =IFERROR(_xll.BDP(B15,"DS004"), 0) -> #N/A Mandatory parameter [SECURITY] cannot be empty | F15: =IFERROR(_xll.BDP(B15,"DS021")/1000000, 0) -> 0 | G15: =IFERROR(_xll.BDP(B15,"DS218")/1000000, 0) -> 0 | H15: =IFERROR(IF(E15=Hub!$D$8,F15, F15*((_xll.BDP(E15 & Hub!$D$8 & " Curncy", "PR005")/_xll.BDP(E15 & Hub!$D$8 & " Curncy", "DS672")))),0) -> 0 | J15: =IFERROR(IF(C15=0,0,-PV(DCF!$D$12, C15-YEAR(DCF!$D$10), H15*D15, H15, 0)),"") -> 0 | AP15: =AN3 -> 2033 | AQ15: 0.06716721812 | AR15: =AN12 ->  | AS15: 9
C16: =IFERROR(YEAR(_xll.BDP(B16,"DS035")), 0) -> 0 | D16: =IFERROR(_xll.BDP(B16,"DS033")/100, 0) -> 0 | E16: =IFERROR(_xll.BDP(B16,"DS004"), 0) -> #N/A Mandatory parameter [SECURITY] cannot be empty | F16: =IFERROR(_xll.BDP(B16,"DS021")/1000000, 0) -> 0 | G16: =IFERROR(_xll.BDP(B16,"DS218")/1000000, 0) -> 0 | H16: =IFERROR(IF(E16=Hub!$D$8,F16, F16*((_xll.BDP(E16 & Hub!$D$8 & " Curncy", "PR005")/_xll.BDP(E16 & Hub!$D$8 & " Curncy", "DS672")))),0) -> 0 | J16: =IFERROR(IF(C16=0,0,-PV(DCF!$D$12, C16-YEAR(DCF!$D$10), H16*D16, H16, 0)),"") -> 0 | AD16: =IF(AD14=AC14-AD10+AD12, "Balanced", "Unbalanced") ->  | AF16: Debt taken here estimated to only be bank loans (no bonds issued)
C17: =IFERROR(YEAR(_xll.BDP(B17,"DS035")), 0) -> 0 | D17: =IFERROR(_xll.BDP(B17,"DS033")/100, 0) -> 0 | E17: =IFERROR(_xll.BDP(B17,"DS004"), 0) -> #N/A Mandatory parameter [SECURITY] cannot be empty | F17: =IFERROR(_xll.BDP(B17,"DS021")/1000000, 0) -> 0 | G17: =IFERROR(_xll.BDP(B17,"DS218")/1000000, 0) -> 0 | H17: =IFERROR(IF(E17=Hub!$D$8,F17, F17*((_xll.BDP(E17 & Hub!$D$8 & " Curncy", "PR005")/_xll.BDP(E17 & Hub!$D$8 & " Curncy", "DS672")))),0) -> 0 | J17: =IFERROR(IF(C17=0,0,-PV(DCF!$D$12, C17-YEAR(DCF!$D$10), H17*D17, H17, 0)),"") -> 0
C18: =IFERROR(YEAR(_xll.BDP(B18,"DS035")), 0) -> 0 | D18: =IFERROR(_xll.BDP(B18,"DS033")/100, 0) -> 0 | E18: =IFERROR(_xll.BDP(B18,"DS004"), 0) -> #N/A Mandatory parameter [SECURITY] cannot be empty | F18: =IFERROR(_xll.BDP(B18,"DS021")/1000000, 0) -> 0 | G18: =IFERROR(_xll.BDP(B18,"DS218")/1000000, 0) -> 0 | H18: =IFERROR(IF(E18=Hub!$D$8,F18, F18*((_xll.BDP(E18 & Hub!$D$8 & " Curncy", "PR005")/_xll.BDP(E18 & Hub!$D$8 & " Curncy", "DS672")))),0) -> 0 | J18: =IFERROR(IF(C18=0,0,-PV(DCF!$D$12, C18-YEAR(DCF!$D$10), H18*D18, H18, 0)),"") -> 0
C19: =IFERROR(YEAR(_xll.BDP(B19,"DS035")), 0) -> 0 | D19: =IFERROR(_xll.BDP(B19,"DS033")/100, 0) -> 0 | E19: =IFERROR(_xll.BDP(B19,"DS004"), 0) -> #N/A Mandatory parameter [SECURITY] cannot be empty | F19: =IFERROR(_xll.BDP(B19,"DS021")/1000000, 0) -> 0 | G19: =IFERROR(_xll.BDP(B19,"DS218")/1000000, 0) -> 0 | H19: =IFERROR(IF(E19=Hub!$D$8,F19, F19*((_xll.BDP(E19 & Hub!$D$8 & " Curncy", "PR005")/_xll.BDP(E19 & Hub!$D$8 & " Curncy", "DS672")))),0) -> 0 | J19: =IFERROR(IF(C19=0,0,-PV(DCF!$D$12, C19-YEAR(DCF!$D$10), H19*D19, H19, 0)),"") -> 0
C20: =IFERROR(YEAR(_xll.BDP(B20,"DS035")), 0) -> 0 | D20: =IFERROR(_xll.BDP(B20,"DS033")/100, 0) -> 0 | E20: =IFERROR(_xll.BDP(B20,"DS004"), 0) -> #N/A Mandatory parameter [SECURITY] cannot be empty | F20: =IFERROR(_xll.BDP(B20,"DS021")/1000000, 0) -> 0 | G20: =IFERROR(_xll.BDP(B20,"DS218")/1000000, 0) -> 0 | H20: =IFERROR(IF(E20=Hub!$D$8,F20, F20*((_xll.BDP(E20 & Hub!$D$8 & " Curncy", "PR005")/_xll.BDP(E20 & Hub!$D$8 & " Curncy", "DS672")))),0) -> 0 | J20: =IFERROR(IF(C20=0,0,-PV(DCF!$D$12, C20-YEAR(DCF!$D$10), H20*D20, H20, 0)),"") -> 0
C21: =IFERROR(YEAR(_xll.BDP(B21,"DS035")), 0) -> 0 | D21: =IFERROR(_xll.BDP(B21,"DS033")/100, 0) -> 0 | E21: =IFERROR(_xll.BDP(B21,"DS004"), 0) -> #N/A Mandatory parameter [SECURITY] cannot be empty | F21: =IFERROR(_xll.BDP(B21,"DS021")/1000000, 0) -> 0 | G21: =IFERROR(_xll.BDP(B21,"DS218")/1000000, 0) -> 0 | H21: =IFERROR(IF(E21=Hub!$D$8,F21, F21*((_xll.BDP(E21 & Hub!$D$8 & " Curncy", "PR005")/_xll.BDP(E21 & Hub!$D$8 & " Curncy", "DS672")))),0) -> 0 | J21: =IFERROR(IF(C21=0,0,-PV(DCF!$D$12, C21-YEAR(DCF!$D$10), H21*D21, H21, 0)),"") -> 0
C22: =IFERROR(YEAR(_xll.BDP(B22,"DS035")), 0) -> 0 | D22: =IFERROR(_xll.BDP(B22,"DS033")/100, 0) -> 0 | E22: =IFERROR(_xll.BDP(B22,"DS004"), 0) -> #N/A Mandatory parameter [SECURITY] cannot be empty | F22: =IFERROR(_xll.BDP(B22,"DS021")/1000000, 0) -> 0 | G22: =IFERROR(_xll.BDP(B22,"DS218")/1000000, 0) -> 0 | H22: =IFERROR(IF(E22=Hub!$D$8,F22, F22*((_xll.BDP(E22 & Hub!$D$8 & " Curncy", "PR005")/_xll.BDP(E22 & Hub!$D$8 & " Curncy", "DS672")))),0) -> 0 | J22: =IFERROR(IF(C22=0,0,-PV(DCF!$D$12, C22-YEAR(DCF!$D$10), H22*D22, H22, 0)),"") -> 0 | X22: =IF(Hub!D87="Yes", "Bank Loan Calculator Disabled", IF(AND(Hub!H28="Yes", Hub!H30="Yes"), "Bank Loan Calculator Enabled", "Bank Loan Calculator Disabled")) -> Bank Loan Calculator Disabled
C23: =IFERROR(YEAR(_xll.BDP(B23,"DS035")), 0) -> 0 | D23: =IFERROR(_xll.BDP(B23,"DS033")/100, 0) -> 0 | E23: =IFERROR(_xll.BDP(B23,"DS004"), 0) -> #N/A Mandatory parameter [SECURITY] cannot be empty | F23: =IFERROR(_xll.BDP(B23,"DS021")/1000000, 0) -> 0 | G23: =IFERROR(_xll.BDP(B23,"DS218")/1000000, 0) -> 0 | H23: =IFERROR(IF(E23=Hub!$D$8,F23, F23*((_xll.BDP(E23 & Hub!$D$8 & " Curncy", "PR005")/_xll.BDP(E23 & Hub!$D$8 & " Curncy", "DS672")))),0) -> 0 | J23: =IFERROR(IF(C23=0,0,-PV(DCF!$D$12, C23-YEAR(DCF!$D$10), H23*D23, H23, 0)),"") -> 0
C24: =IFERROR(YEAR(_xll.BDP(B24,"DS035")), 0) -> 0 | D24: =IFERROR(_xll.BDP(B24,"DS033")/100, 0) -> 0 | E24: =IFERROR(_xll.BDP(B24,"DS004"), 0) -> #N/A Mandatory parameter [SECURITY] cannot be empty | F24: =IFERROR(_xll.BDP(B24,"DS021")/1000000, 0) -> 0 | G24: =IFERROR(_xll.BDP(B24,"DS218")/1000000, 0) -> 0 | H24: =IFERROR(IF(E24=Hub!$D$8,F24, F24*((_xll.BDP(E24 & Hub!$D$8 & " Curncy", "PR005")/_xll.BDP(E24 & Hub!$D$8 & " Curncy", "DS672")))),0) -> 0 | J24: =IFERROR(IF(C24=0,0,-PV(DCF!$D$12, C24-YEAR(DCF!$D$10), H24*D24, H24, 0)),"") -> 0 | X24: =IF(Hub!D87="Yes","Bond Market Value Calculator Disabled",IF(AND(Hub!H28="Yes",Hub!D30="Yes"),"Bond Market Value Calculator Enabled","Bond Market Value Calculator Disabled")) -> Bond Market Value Calculator Disabled
C25: =IFERROR(YEAR(_xll.BDP(B25,"DS035")), 0) -> 0 | D25: =IFERROR(_xll.BDP(B25,"DS033")/100, 0) -> 0 | E25: =IFERROR(_xll.BDP(B25,"DS004"), 0) -> #N/A Mandatory parameter [SECURITY] cannot be empty | F25: =IFERROR(_xll.BDP(B25,"DS021")/1000000, 0) -> 0 | G25: =IFERROR(_xll.BDP(B25,"DS218")/1000000, 0) -> 0 | H25: =IFERROR(IF(E25=Hub!$D$8,F25, F25*((_xll.BDP(E25 & Hub!$D$8 & " Curncy", "PR005")/_xll.BDP(E25 & Hub!$D$8 & " Curncy", "DS672")))),0) -> 0 | J25: =IFERROR(IF(C25=0,0,-PV(DCF!$D$12, C25-YEAR(DCF!$D$10), H25*D25, H25, 0)),"") -> 0
C26: =IFERROR(YEAR(_xll.BDP(B26,"DS035")), 0) -> 0 | D26: =IFERROR(_xll.BDP(B26,"DS033")/100, 0) -> 0 | E26: =IFERROR(_xll.BDP(B26,"DS004"), 0) -> #N/A Mandatory parameter [SECURITY] cannot be empty | F26: =IFERROR(_xll.BDP(B26,"DS021")/1000000, 0) -> 0 | G26: =IFERROR(_xll.BDP(B26,"DS218")/1000000, 0) -> 0 | H26: =IFERROR(IF(E26=Hub!$D$8,F26, F26*((_xll.BDP(E26 & Hub!$D$8 & " Curncy", "PR005")/_xll.BDP(E26 & Hub!$D$8 & " Curncy", "DS672")))),0) -> 0 | J26: =IFERROR(IF(C26=0,0,-PV(DCF!$D$12, C26-YEAR(DCF!$D$10), H26*D26, H26, 0)),"") -> 0
C27: =IFERROR(YEAR(_xll.BDP(B27,"DS035")), 0) -> 0 | D27: =IFERROR(_xll.BDP(B27,"DS033")/100, 0) -> 0 | E27: =IFERROR(_xll.BDP(B27,"DS004"), 0) -> #N/A Mandatory parameter [SECURITY] cannot be empty | F27: =IFERROR(_xll.BDP(B27,"DS021")/1000000, 0) -> 0 | G27: =IFERROR(_xll.BDP(B27,"DS218")/1000000, 0) -> 0 | H27: =IFERROR(IF(E27=Hub!$D$8,F27, F27*((_xll.BDP(E27 & Hub!$D$8 & " Curncy", "PR005")/_xll.BDP(E27 & Hub!$D$8 & " Curncy", "DS672")))),0) -> 0 | J27: =IFERROR(IF(C27=0,0,-PV(DCF!$D$12, C27-YEAR(DCF!$D$10), H27*D27, H27, 0)),"") -> 0
C28: =IFERROR(YEAR(_xll.BDP(B28,"DS035")), 0) -> 0 | D28: =IFERROR(_xll.BDP(B28,"DS033")/100, 0) -> 0 | E28: =IFERROR(_xll.BDP(B28,"DS004"), 0) -> #N/A Mandatory parameter [SECURITY] cannot be empty | F28: =IFERROR(_xll.BDP(B28,"DS021")/1000000, 0) -> 0 | G28: =IFERROR(_xll.BDP(B28,"DS218")/1000000, 0) -> 0 | H28: =IFERROR(IF(E28=Hub!$D$8,F28, F28*((_xll.BDP(E28 & Hub!$D$8 & " Curncy", "PR005")/_xll.BDP(E28 & Hub!$D$8 & " Curncy", "DS672")))),0) -> 0 | J28: =IFERROR(IF(C28=0,0,-PV(DCF!$D$12, C28-YEAR(DCF!$D$10), H28*D28, H28, 0)),"") -> 0 | AC28: =IF(AND(X24="Bond Market Value Calculator Disabled", X22="Bank Loan Calculator Disabled"), "Backup Schedule Enabled", "Backup Schedule Disabled") -> Backup Schedule Enabled
C29: =IFERROR(YEAR(_xll.BDP(B29,"DS035")), 0) -> 0 | D29: =IFERROR(_xll.BDP(B29,"DS033")/100, 0) -> 0 | E29: =IFERROR(_xll.BDP(B29,"DS004"), 0) -> #N/A Mandatory parameter [SECURITY] cannot be empty | F29: =IFERROR(_xll.BDP(B29,"DS021")/1000000, 0) -> 0 | G29: =IFERROR(_xll.BDP(B29,"DS218")/1000000, 0) -> 0 | H29: =IFERROR(IF(E29=Hub!$D$8,F29, F29*((_xll.BDP(E29 & Hub!$D$8 & " Curncy", "PR005")/_xll.BDP(E29 & Hub!$D$8 & " Curncy", "DS672")))),0) -> 0 | J29: =IFERROR(IF(C29=0,0,-PV(DCF!$D$12, C29-YEAR(DCF!$D$10), H29*D29, H29, 0)),"") -> 0
C30: =IFERROR(YEAR(_xll.BDP(B30,"DS035")), 0) -> 0 | D30: =IFERROR(_xll.BDP(B30,"DS033")/100, 0) -> 0 | E30: =IFERROR(_xll.BDP(B30,"DS004"), 0) -> #N/A Mandatory parameter [SECURITY] cannot be empty | F30: =IFERROR(_xll.BDP(B30,"DS021")/1000000, 0) -> 0 | G30: =IFERROR(_xll.BDP(B30,"DS218")/1000000, 0) -> 0 | H30: =IFERROR(IF(E30=Hub!$D$8,F30, F30*((_xll.BDP(E30 & Hub!$D$8 & " Curncy", "PR005")/_xll.BDP(E30 & Hub!$D$8 & " Curncy", "DS672")))),0) -> 0 | J30: =IFERROR(IF(C30=0,0,-PV(DCF!$D$12, C30-YEAR(DCF!$D$10), H30*D30, H30, 0)),"") -> 0 | AB30: Actuals | AG30: Forecast
C31: =IFERROR(YEAR(_xll.BDP(B31,"DS035")), 0) -> 0 | D31: =IFERROR(_xll.BDP(B31,"DS033")/100, 0) -> 0 | E31: =IFERROR(_xll.BDP(B31,"DS004"), 0) -> #N/A Mandatory parameter [SECURITY] cannot be empty | F31: =IFERROR(_xll.BDP(B31,"DS021")/1000000, 0) -> 0 | G31: =IFERROR(_xll.BDP(B31,"DS218")/1000000, 0) -> 0 | H31: =IFERROR(IF(E31=Hub!$D$8,F31, F31*((_xll.BDP(E31 & Hub!$D$8 & " Curncy", "PR005")/_xll.BDP(E31 & Hub!$D$8 & " Curncy", "DS672")))),0) -> 0 | J31: =IFERROR(IF(C31=0,0,-PV(DCF!$D$12, C31-YEAR(DCF!$D$10), H31*D31, H31, 0)),"") -> 0 | Y31: =YEAR(Y32) -> 2018 | Z31: =YEAR(Z32) -> 2019 | AA31: =YEAR(AA32) -> 2020 | AB31: 2021 | AC31: 2022 | AD31: 2023 | AE31: =YEAR(AE32) -> 2024 | AF31: =YEAR(AF32) -> 2025 | AG31: 2026 | AH31: 2027 | AI31: 2028 | AJ31: 2029 | AK31: 2030 | AL31: 2031 | AM31: 2032 | AN31: 2033
C32: =IFERROR(YEAR(_xll.BDP(B32,"DS035")), 0) -> 0 | D32: =IFERROR(_xll.BDP(B32,"DS033")/100, 0) -> 0 | E32: =IFERROR(_xll.BDP(B32,"DS004"), 0) -> #N/A Mandatory parameter [SECURITY] cannot be empty | F32: =IFERROR(_xll.BDP(B32,"DS021")/1000000, 0) -> 0 | G32: =IFERROR(_xll.BDP(B32,"DS218")/1000000, 0) -> 0 | H32: =IFERROR(IF(E32=Hub!$D$8,F32, F32*((_xll.BDP(E32 & Hub!$D$8 & " Curncy", "PR005")/_xll.BDP(E32 & Hub!$D$8 & " Curncy", "DS672")))),0) -> 0 | J32: =IFERROR(IF(C32=0,0,-PV(DCF!$D$12, C32-YEAR(DCF!$D$10), H32*D32, H32, 0)),"") -> 0 | Y32: =EOMONTH(Z32,-12) -> 2018-12-31 | Z32: 2019-12-31 | AA32: 2020-12-31 | AB32: 2021-12-31 | AC32: =EOMONTH(AD32,-12) -> 2022-12-31 | AD32: =DCF!I16 -> 2023-12-31 | AE32: =EOMONTH(AD32,12) -> 2024-12-31 | AF32: =EOMONTH(AE32,12) -> 2025-12-31 | AG32: 2026-12-31 | AH32: 2027-12-31 | AI32: 2028-12-31 | AJ32: =EOMONTH(AI32,12) -> 2029-12-31 | AK32: =EOMONTH(AJ32,12) -> 2030-12-31 | AL32: =EOMONTH(AK32,12) -> 2031-12-31 | AM32: =EOMONTH(AL32,12) -> 2032-12-31 | AN32: =EOMONTH(AM32,12) -> 2033-12-31
C33: =IFERROR(YEAR(_xll.BDP(B33,"DS035")), 0) -> 0 | D33: =IFERROR(_xll.BDP(B33,"DS033")/100, 0) -> 0 | E33: =IFERROR(_xll.BDP(B33,"DS004"), 0) -> #N/A Mandatory parameter [SECURITY] cannot be empty | F33: =IFERROR(_xll.BDP(B33,"DS021")/1000000, 0) -> 0 | G33: =IFERROR(_xll.BDP(B33,"DS218")/1000000, 0) -> 0 | H33: =IFERROR(IF(E33=Hub!$D$8,F33, F33*((_xll.BDP(E33 & Hub!$D$8 & " Curncy", "PR005")/_xll.BDP(E33 & Hub!$D$8 & " Curncy", "DS672")))),0) -> 0 | J33: =IFERROR(IF(C33=0,0,-PV(DCF!$D$12, C33-YEAR(DCF!$D$10), H33*D33, H33, 0)),"") -> 0 | X33: Debt Schedule Backup
C34: =IFERROR(YEAR(_xll.BDP(B34,"DS035")), 0) -> 0 | D34: =IFERROR(_xll.BDP(B34,"DS033")/100, 0) -> 0 | E34: =IFERROR(_xll.BDP(B34,"DS004"), 0) -> #N/A Mandatory parameter [SECURITY] cannot be empty | F34: =IFERROR(_xll.BDP(B34,"DS021")/1000000, 0) -> 0 | G34: =IFERROR(_xll.BDP(B34,"DS218")/1000000, 0) -> 0 | H34: =IFERROR(IF(E34=Hub!$D$8,F34, F34*((_xll.BDP(E34 & Hub!$D$8 & " Curncy", "PR005")/_xll.BDP(E34 & Hub!$D$8 & " Curncy", "DS672")))),0) -> 0 | J34: =IFERROR(IF(C34=0,0,-PV(DCF!$D$12, C34-YEAR(DCF!$D$10), H34*D34, H34, 0)),"") -> 0
C35: =IFERROR(YEAR(_xll.BDP(B35,"DS035")), 0) -> 0 | D35: =IFERROR(_xll.BDP(B35,"DS033")/100, 0) -> 0 | E35: =IFERROR(_xll.BDP(B35,"DS004"), 0) -> #N/A Mandatory parameter [SECURITY] cannot be empty | F35: =IFERROR(_xll.BDP(B35,"DS021")/1000000, 0) -> 0 | G35: =IFERROR(_xll.BDP(B35,"DS218")/1000000, 0) -> 0 | H35: =IFERROR(IF(E35=Hub!$D$8,F35, F35*((_xll.BDP(E35 & Hub!$D$8 & " Curncy", "PR005")/_xll.BDP(E35 & Hub!$D$8 & " Curncy", "DS672")))),0) -> 0 | J35: =IFERROR(IF(C35=0,0,-PV(DCF!$D$12, C35-YEAR(DCF!$D$10), H35*D35, H35, 0)),"") -> 0 | X35: Interest | Z35: =Operating_Model!E136 -> 286.248 | AA35: =Operating_Model!F136 -> 1202 | AB35: =Operating_Model!G136 -> 2295 | AC35: =Operating_Model!H136 -> 2265 | AD35: =Operating_Model!I136 -> 2354 | AE35: =AD41*AE43 -> 3468.441488 | AF35: =AE41*AF43 -> 4151.314065 | AG35: 4834.186642 | AH35: 5517.059219 | AI35: 6199.931796 | AJ35: =AI41*AJ43 -> 6882.804373 | AK35: =AJ41*AK43 -> 7565.67695 | AL35: =AK41*AL43 -> 8248.549527 | AM35: =AL41*AM43 -> 8931.422104 | AN35: =AM41*AN43 -> 9614.294681
C36: =IFERROR(YEAR(_xll.BDP(B36,"DS035")), 0) -> 0 | D36: =IFERROR(_xll.BDP(B36,"DS033")/100, 0) -> 0 | E36: =IFERROR(_xll.BDP(B36,"DS004"), 0) -> #N/A Mandatory parameter [SECURITY] cannot be empty | F36: =IFERROR(_xll.BDP(B36,"DS021")/1000000, 0) -> 0 | G36: =IFERROR(_xll.BDP(B36,"DS218")/1000000, 0) -> 0 | H36: =IFERROR(IF(E36=Hub!$D$8,F36, F36*((_xll.BDP(E36 & Hub!$D$8 & " Curncy", "PR005")/_xll.BDP(E36 & Hub!$D$8 & " Curncy", "DS672")))),0) -> 0 | J36: =IFERROR(IF(C36=0,0,-PV(DCF!$D$12, C36-YEAR(DCF!$D$10), H36*D36, H36, 0)),"") -> 0
C37: =IFERROR(YEAR(_xll.BDP(B37,"DS035")), 0) -> 0 | D37: =IFERROR(_xll.BDP(B37,"DS033")/100, 0) -> 0 | E37: =IFERROR(_xll.BDP(B37,"DS004"), 0) -> #N/A Mandatory parameter [SECURITY] cannot be empty | F37: =IFERROR(_xll.BDP(B37,"DS021")/1000000, 0) -> 0 | G37: =IFERROR(_xll.BDP(B37,"DS218")/1000000, 0) -> 0 | H37: =IFERROR(IF(E37=Hub!$D$8,F37, F37*((_xll.BDP(E37 & Hub!$D$8 & " Curncy", "PR005")/_xll.BDP(E37 & Hub!$D$8 & " Curncy", "DS672")))),0) -> 0 | J37: =IFERROR(IF(C37=0,0,-PV(DCF!$D$12, C37-YEAR(DCF!$D$10), H37*D37, H37, 0)),"") -> 0 | X37: Repayments of Debts | Z37: =IFERROR(IF(Z10="#N/A N/A", IF(Z$14-Y$14<0, -(Z$14-Y$14),0), Z10),IF(Z$14-Y$14<0, -(Z$14-Y$14),0)) -> 749.116 | AA37: =IFERROR(IF(AA10="#N/A N/A", IF(AA$14-Z$14<0, -(AA$14-Z$14),0), AA10),IF(AA$14-Z$14<0, -(AA$14-Z$14),0)) -> 0 | AB37: =IFERROR(IF(AB10="#N/A N/A", IF(AB$14-AA$14<0, -(AB$14-AA$14),0), AB10),IF(AB$14-AA$14<0, -(AB$14-AA$14),0)) -> 0 | AC37: 893 | AD37: 268 | AE37: =AVERAGE(Z37:AD37) -> 382.0232 | AF37: =AE37 -> 382.0232 | AG37: =AF37 -> 382.0232 | AH37: 382.0232 | AI37: 382.0232 | AJ37: =AI37 -> 382.0232 | AK37: =AJ37 -> 382.0232 | AL37: =AK37 -> 382.0232 | AM37: =AL37 -> 382.0232 | AN37: =AM37 -> 382.0232
C38: =IFERROR(YEAR(_xll.BDP(B38,"DS035")), 0) -> 0 | D38: =IFERROR(_xll.BDP(B38,"DS033")/100, 0) -> 0 | E38: =IFERROR(_xll.BDP(B38,"DS004"), 0) -> #N/A Mandatory parameter [SECURITY] cannot be empty | F38: =IFERROR(_xll.BDP(B38,"DS021")/1000000, 0) -> 0 | G38: =IFERROR(_xll.BDP(B38,"DS218")/1000000, 0) -> 0 | H38: =IFERROR(IF(E38=Hub!$D$8,F38, F38*((_xll.BDP(E38 & Hub!$D$8 & " Curncy", "PR005")/_xll.BDP(E38 & Hub!$D$8 & " Curncy", "DS672")))),0) -> 0 | J38: =IFERROR(IF(C38=0,0,-PV(DCF!$D$12, C38-YEAR(DCF!$D$10), H38*D38, H38, 0)),"") -> 0
C39: =IFERROR(YEAR(_xll.BDP(B39,"DS035")), 0) -> 0 | D39: =IFERROR(_xll.BDP(B39,"DS033")/100, 0) -> 0 | E39: =IFERROR(_xll.BDP(B39,"DS004"), 0) -> #N/A Mandatory parameter [SECURITY] cannot be empty | F39: =IFERROR(_xll.BDP(B39,"DS021")/1000000, 0) -> 0 | G39: =IFERROR(_xll.BDP(B39,"DS218")/1000000, 0) -> 0 | H39: =IFERROR(IF(E39=Hub!$D$8,F39, F39*((_xll.BDP(E39 & Hub!$D$8 & " Curncy", "PR005")/_xll.BDP(E39 & Hub!$D$8 & " Curncy", "DS672")))),0) -> 0 | J39: =IFERROR(IF(C39=0,0,-PV(DCF!$D$12, C39-YEAR(DCF!$D$10), H39*D39, H39, 0)),"") -> 0 | X39: Cash from Debt | Z39: =IFERROR(IF(Z12="#N/A N/A", IF(Z$14-Y$14>0, Z$14-Y$14,0), Z12),IF(Z$14-Y$14>0, Z$14-Y$14,0)) -> 0 | AA39: =IFERROR(IF(AA12="#N/A N/A", IF(AA$14-Z$14>0, AA$14-Z$14,0), AA12),IF(AA$14-Z$14>0, AA$14-Z$14,0)) -> 23341.008 | AB39: 59 | AC39: 0 | AD39: 0 | AE39: =AVERAGE(Z39:AD39) -> 4680.0016 | AF39: =AE39 -> 4680.0016 | AG39: =AF39 -> 4680.0016 | AH39: 4680.0016 | AI39: 4680.0016 | AJ39: =AI39 -> 4680.0016 | AK39: =AJ39 -> 4680.0016 | AL39: =AK39 -> 4680.0016 | AM39: =AL39 -> 4680.0016 | AN39: =AM39 -> 4680.0016
C40: =IFERROR(YEAR(_xll.BDP(B40,"DS035")), 0) -> 0 | D40: =IFERROR(_xll.BDP(B40,"DS033")/100, 0) -> 0 | E40: =IFERROR(_xll.BDP(B40,"DS004"), 0) -> #N/A Mandatory parameter [SECURITY] cannot be empty | F40: =IFERROR(_xll.BDP(B40,"DS021")/1000000, 0) -> 0 | G40: =IFERROR(_xll.BDP(B40,"DS218")/1000000, 0) -> 0 | H40: =IFERROR(IF(E40=Hub!$D$8,F40, F40*((_xll.BDP(E40 & Hub!$D$8 & " Curncy", "PR005")/_xll.BDP(E40 & Hub!$D$8 & " Curncy", "DS672")))),0) -> 0 | J40: =IFERROR(IF(C40=0,0,-PV(DCF!$D$12, C40-YEAR(DCF!$D$10), H40*D40, H40, 0)),"") -> 0
C41: =IFERROR(YEAR(_xll.BDP(B41,"DS035")), 0) -> 0 | D41: =IFERROR(_xll.BDP(B41,"DS033")/100, 0) -> 0 | E41: =IFERROR(_xll.BDP(B41,"DS004"), 0) -> #N/A Mandatory parameter [SECURITY] cannot be empty | F41: =IFERROR(_xll.BDP(B41,"DS021")/1000000, 0) -> 0 | G41: =IFERROR(_xll.BDP(B41,"DS218")/1000000, 0) -> 0 | H41: =IFERROR(IF(E41=Hub!$D$8,F41, F41*((_xll.BDP(E41 & Hub!$D$8 & " Curncy", "PR005")/_xll.BDP(E41 & Hub!$D$8 & " Curncy", "DS672")))),0) -> 0 | J41: =IFERROR(IF(C41=0,0,-PV(DCF!$D$12, C41-YEAR(DCF!$D$10), H41*D41, H41, 0)),"") -> 0 | X41: Total Debts | Y41: =Y14 -> 4221.108 | Z41: =Y41-Z37+Z39 -> 3471.992 | AA41: =Z41-AA37+AA39 -> 26813 | AB41: 26872 | AC41: 25979 | AD41: 25711 | AE41: =AD41+AE37+AE39 -> 30773.0248 | AF41: 35835.0496 | AG41: 40897.0744 | AH41: 45959.0992 | AI41: 51021.124 | AJ41: 56083.1488 | AK41: 61145.1736 | AL41: 66207.1984 | AM41: 71269.2232 | AN41: 76331.248
C42: =IFERROR(YEAR(_xll.BDP(B42,"DS035")), 0) -> 0 | D42: =IFERROR(_xll.BDP(B42,"DS033")/100, 0) -> 0 | E42: =IFERROR(_xll.BDP(B42,"DS004"), 0) -> #N/A Mandatory parameter [SECURITY] cannot be empty | F42: =IFERROR(_xll.BDP(B42,"DS021")/1000000, 0) -> 0 | G42: =IFERROR(_xll.BDP(B42,"DS218")/1000000, 0) -> 0 | H42: =IFERROR(IF(E42=Hub!$D$8,F42, F42*((_xll.BDP(E42 & Hub!$D$8 & " Curncy", "PR005")/_xll.BDP(E42 & Hub!$D$8 & " Curncy", "DS672")))),0) -> 0 | J42: =IFERROR(IF(C42=0,0,-PV(DCF!$D$12, C42-YEAR(DCF!$D$10), H42*D42, H42, 0)),"") -> 0
C43: =IFERROR(YEAR(_xll.BDP(B43,"DS035")), 0) -> 0 | D43: =IFERROR(_xll.BDP(B43,"DS033")/100, 0) -> 0 | E43: =IFERROR(_xll.BDP(B43,"DS004"), 0) -> #N/A Mandatory parameter [SECURITY] cannot be empty | F43: =IFERROR(_xll.BDP(B43,"DS021")/1000000, 0) -> 0 | G43: =IFERROR(_xll.BDP(B43,"DS218")/1000000, 0) -> 0 | H43: =IFERROR(IF(E43=Hub!$D$8,F43, F43*((_xll.BDP(E43 & Hub!$D$8 & " Curncy", "PR005")/_xll.BDP(E43 & Hub!$D$8 & " Curncy", "DS672")))),0) -> 0 | J43: =IFERROR(IF(C43=0,0,-PV(DCF!$D$12, C43-YEAR(DCF!$D$10), H43*D43, H43, 0)),"") -> 0 | X43: Interest Rate | Y43: - | Z43: =IF(Y41=0,0,Z35/Y41) -> 0.06781347457 | AA43: =AA35/Z41 -> 0.3461989544 | AB43: 0.08559280946 | AC43: 0.08428847871 | AD43: 0.09061164787 | AE43: =AVERAGE(Z43:AD43) -> 0.134901073 | AF43: =AE43 -> 0.134901073 | AG43: =AF43 -> 0.134901073 | AH43: 0.134901073 | AI43: 0.134901073 | AJ43: =AI43 -> 0.134901073 | AK43: =AJ43 -> 0.134901073 | AL43: =AK43 -> 0.134901073 | AM43: =AL43 -> 0.134901073 | AN43: =AM43 -> 0.134901073
C44: =IFERROR(YEAR(_xll.BDP(B44,"DS035")), 0) -> 0 | D44: =IFERROR(_xll.BDP(B44,"DS033")/100, 0) -> 0 | E44: =IFERROR(_xll.BDP(B44,"DS004"), 0) -> #N/A Mandatory parameter [SECURITY] cannot be empty | F44: =IFERROR(_xll.BDP(B44,"DS021")/1000000, 0) -> 0 | G44: =IFERROR(_xll.BDP(B44,"DS218")/1000000, 0) -> 0 | H44: =IFERROR(IF(E44=Hub!$D$8,F44, F44*((_xll.BDP(E44 & Hub!$D$8 & " Curncy", "PR005")/_xll.BDP(E44 & Hub!$D$8 & " Curncy", "DS672")))),0) -> 0 | J44: =IFERROR(IF(C44=0,0,-PV(DCF!$D$12, C44-YEAR(DCF!$D$10), H44*D44, H44, 0)),"") -> 0
C45: =IFERROR(YEAR(_xll.BDP(B45,"DS035")), 0) -> 0 | D45: =IFERROR(_xll.BDP(B45,"DS033")/100, 0) -> 0 | E45: =IFERROR(_xll.BDP(B45,"DS004"), 0) -> #N/A Mandatory parameter [SECURITY] cannot be empty | F45: =IFERROR(_xll.BDP(B45,"DS021")/1000000, 0) -> 0 | G45: =IFERROR(_xll.BDP(B45,"DS218")/1000000, 0) -> 0 | H45: =IFERROR(IF(E45=Hub!$D$8,F45, F45*((_xll.BDP(E45 & Hub!$D$8 & " Curncy", "PR005")/_xll.BDP(E45 & Hub!$D$8 & " Curncy", "DS672")))),0) -> 0 | J45: =IFERROR(IF(C45=0,0,-PV(DCF!$D$12, C45-YEAR(DCF!$D$10), H45*D45, H45, 0)),"") -> 0
C46: =IFERROR(YEAR(_xll.BDP(B46,"DS035")), 0) -> 0 | D46: =IFERROR(_xll.BDP(B46,"DS033")/100, 0) -> 0 | E46: =IFERROR(_xll.BDP(B46,"DS004"), 0) -> #N/A Mandatory parameter [SECURITY] cannot be empty | F46: =IFERROR(_xll.BDP(B46,"DS021")/1000000, 0) -> 0 | G46: =IFERROR(_xll.BDP(B46,"DS218")/1000000, 0) -> 0 | H46: =IFERROR(IF(E46=Hub!$D$8,F46, F46*((_xll.BDP(E46 & Hub!$D$8 & " Curncy", "PR005")/_xll.BDP(E46 & Hub!$D$8 & " Curncy", "DS672")))),0) -> 0 | J46: =IFERROR(IF(C46=0,0,-PV(DCF!$D$12, C46-YEAR(DCF!$D$10), H46*D46, H46, 0)),"") -> 0
C47: =IFERROR(YEAR(_xll.BDP(B47,"DS035")), 0) -> 0 | D47: =IFERROR(_xll.BDP(B47,"DS033")/100, 0) -> 0 | E47: =IFERROR(_xll.BDP(B47,"DS004"), 0) -> #N/A Mandatory parameter [SECURITY] cannot be empty | F47: =IFERROR(_xll.BDP(B47,"DS021")/1000000, 0) -> 0 | G47: =IFERROR(_xll.BDP(B47,"DS218")/1000000, 0) -> 0 | H47: =IFERROR(IF(E47=Hub!$D$8,F47, F47*((_xll.BDP(E47 & Hub!$D$8 & " Curncy", "PR005")/_xll.BDP(E47 & Hub!$D$8 & " Curncy", "DS672")))),0) -> 0 | J47: =IFERROR(IF(C47=0,0,-PV(DCF!$D$12, C47-YEAR(DCF!$D$10), H47*D47, H47, 0)),"") -> 0
C48: =IFERROR(YEAR(_xll.BDP(B48,"DS035")), 0) -> 0 | D48: =IFERROR(_xll.BDP(B48,"DS033")/100, 0) -> 0 | E48: =IFERROR(_xll.BDP(B48,"DS004"), 0) -> #N/A Mandatory parameter [SECURITY] cannot be empty | F48: =IFERROR(_xll.BDP(B48,"DS021")/1000000, 0) -> 0 | G48: =IFERROR(_xll.BDP(B48,"DS218")/1000000, 0) -> 0 | H48: =IFERROR(IF(E48=Hub!$D$8,F48, F48*((_xll.BDP(E48 & Hub!$D$8 & " Curncy", "PR005")/_xll.BDP(E48 & Hub!$D$8 & " Curncy", "DS672")))),0) -> 0 | J48: =IFERROR(IF(C48=0,0,-PV(DCF!$D$12, C48-YEAR(DCF!$D$10), H48*D48, H48, 0)),"") -> 0
C49: =IFERROR(YEAR(_xll.BDP(B49,"DS035")), 0) -> 0 | D49: =IFERROR(_xll.BDP(B49,"DS033")/100, 0) -> 0 | E49: =IFERROR(_xll.BDP(B49,"DS004"), 0) -> #N/A Mandatory parameter [SECURITY] cannot be empty | F49: =IFERROR(_xll.BDP(B49,"DS021")/1000000, 0) -> 0 | G49: =IFERROR(_xll.BDP(B49,"DS218")/1000000, 0) -> 0 | H49: =IFERROR(IF(E49=Hub!$D$8,F49, F49*((_xll.BDP(E49 & Hub!$D$8 & " Curncy", "PR005")/_xll.BDP(E49 & Hub!$D$8 & " Curncy", "DS672")))),0) -> 0 | J49: =IFERROR(IF(C49=0,0,-PV(DCF!$D$12, C49-YEAR(DCF!$D$10), H49*D49, H49, 0)),"") -> 0
C50: =IFERROR(YEAR(_xll.BDP(B50,"DS035")), 0) -> 0 | D50: =IFERROR(_xll.BDP(B50,"DS033")/100, 0) -> 0 | E50: =IFERROR(_xll.BDP(B50,"DS004"), 0) -> #N/A Mandatory parameter [SECURITY] cannot be empty | F50: =IFERROR(_xll.BDP(B50,"DS021")/1000000, 0) -> 0 | G50: =IFERROR(_xll.BDP(B50,"DS218")/1000000, 0) -> 0 | H50: =IFERROR(IF(E50=Hub!$D$8,F50, F50*((_xll.BDP(E50 & Hub!$D$8 & " Curncy", "PR005")/_xll.BDP(E50 & Hub!$D$8 & " Curncy", "DS672")))),0) -> 0 | J50: =IFERROR(IF(C50=0,0,-PV(DCF!$D$12, C50-YEAR(DCF!$D$10), H50*D50, H50, 0)),"") -> 0
C51: =IFERROR(YEAR(_xll.BDP(B51,"DS035")), 0) -> 0 | D51: =IFERROR(_xll.BDP(B51,"DS033")/100, 0) -> 0 | E51: =IFERROR(_xll.BDP(B51,"DS004"), 0) -> #N/A Mandatory parameter [SECURITY] cannot be empty | F51: =IFERROR(_xll.BDP(B51,"DS021")/1000000, 0) -> 0 | G51: =IFERROR(_xll.BDP(B51,"DS218")/1000000, 0) -> 0 | H51: =IFERROR(IF(E51=Hub!$D$8,F51, F51*((_xll.BDP(E51 & Hub!$D$8 & " Curncy", "PR005")/_xll.BDP(E51 & Hub!$D$8 & " Curncy", "DS672")))),0) -> 0 | J51: =IFERROR(IF(C51=0,0,-PV(DCF!$D$12, C51-YEAR(DCF!$D$10), H51*D51, H51, 0)),"") -> 0
C52: =IFERROR(YEAR(_xll.BDP(B52,"DS035")), 0) -> 0 | D52: =IFERROR(_xll.BDP(B52,"DS033")/100, 0) -> 0 | E52: =IFERROR(_xll.BDP(B52,"DS004"), 0) -> #N/A Mandatory parameter [SECURITY] cannot be empty | F52: =IFERROR(_xll.BDP(B52,"DS021")/1000000, 0) -> 0 | G52: =IFERROR(_xll.BDP(B52,"DS218")/1000000, 0) -> 0 | H52: =IFERROR(IF(E52=Hub!$D$8,F52, F52*((_xll.BDP(E52 & Hub!$D$8 & " Curncy", "PR005")/_xll.BDP(E52 & Hub!$D$8 & " Curncy", "DS672")))),0) -> 0 | J52: =IFERROR(IF(C52=0,0,-PV(DCF!$D$12, C52-YEAR(DCF!$D$10), H52*D52, H52, 0)),"") -> 0
C53: =IFERROR(YEAR(_xll.BDP(B53,"DS035")), 0) -> 0 | D53: =IFERROR(_xll.BDP(B53,"DS033")/100, 0) -> 0 | E53: =IFERROR(_xll.BDP(B53,"DS004"), 0) -> #N/A Mandatory parameter [SECURITY] cannot be empty | F53: =IFERROR(_xll.BDP(B53,"DS021")/1000000, 0) -> 0 | G53: =IFERROR(_xll.BDP(B53,"DS218")/1000000, 0) -> 0 | H53: =IFERROR(IF(E53=Hub!$D$8,F53, F53*((_xll.BDP(E53 & Hub!$D$8 & " Curncy", "PR005")/_xll.BDP(E53 & Hub!$D$8 & " Curncy", "DS672")))),0) -> 0 | J53: =IFERROR(IF(C53=0,0,-PV(DCF!$D$12, C53-YEAR(DCF!$D$10), H53*D53, H53, 0)),"") -> 0
C54: =IFERROR(YEAR(_xll.BDP(B54,"DS035")), 0) -> 0 | D54: =IFERROR(_xll.BDP(B54,"DS033")/100, 0) -> 0 | E54: =IFERROR(_xll.BDP(B54,"DS004"), 0) -> #N/A Mandatory parameter [SECURITY] cannot be empty | F54: =IFERROR(_xll.BDP(B54,"DS021")/1000000, 0) -> 0 | G54: =IFERROR(_xll.BDP(B54,"DS218")/1000000, 0) -> 0 | H54: =IFERROR(IF(E54=Hub!$D$8,F54, F54*((_xll.BDP(E54 & Hub!$D$8 & " Curncy", "PR005")/_xll.BDP(E54 & Hub!$D$8 & " Curncy", "DS672")))),0) -> 0 | J54: =IFERROR(IF(C54=0,0,-PV(DCF!$D$12, C54-YEAR(DCF!$D$10), H54*D54, H54, 0)),"") -> 0
C55: =IFERROR(YEAR(_xll.BDP(B55,"DS035")), 0) -> 0 | D55: =IFERROR(_xll.BDP(B55,"DS033")/100, 0) -> 0 | E55: =IFERROR(_xll.BDP(B55,"DS004"), 0) -> #N/A Mandatory parameter [SECURITY] cannot be empty | F55: =IFERROR(_xll.BDP(B55,"DS021")/1000000, 0) -> 0 | G55: =IFERROR(_xll.BDP(B55,"DS218")/1000000, 0) -> 0 | H55: =IFERROR(IF(E55=Hub!$D$8,F55, F55*((_xll.BDP(E55 & Hub!$D$8 & " Curncy", "PR005")/_xll.BDP(E55 & Hub!$D$8 & " Curncy", "DS672")))),0) -> 0 | J55: =IFERROR(IF(C55=0,0,-PV(DCF!$D$12, C55-YEAR(DCF!$D$10), H55*D55, H55, 0)),"") -> 0
C56: =IFERROR(YEAR(_xll.BDP(B56,"DS035")), 0) -> 0 | D56: =IFERROR(_xll.BDP(B56,"DS033")/100, 0) -> 0 | E56: =IFERROR(_xll.BDP(B56,"DS004"), 0) -> #N/A Mandatory parameter [SECURITY] cannot be empty | F56: =IFERROR(_xll.BDP(B56,"DS021")/1000000, 0) -> 0 | G56: =IFERROR(_xll.BDP(B56,"DS218")/1000000, 0) -> 0 | H56: =IFERROR(IF(E56=Hub!$D$8,F56, F56*((_xll.BDP(E56 & Hub!$D$8 & " Curncy", "PR005")/_xll.BDP(E56 & Hub!$D$8 & " Curncy", "DS672")))),0) -> 0 | J56: =IFERROR(IF(C56=0,0,-PV(DCF!$D$12, C56-YEAR(DCF!$D$10), H56*D56, H56, 0)),"") -> 0
C57: =IFERROR(YEAR(_xll.BDP(B57,"DS035")), 0) -> 0 | D57: =IFERROR(_xll.BDP(B57,"DS033")/100, 0) -> 0 | E57: =IFERROR(_xll.BDP(B57,"DS004"), 0) -> #N/A Mandatory parameter [SECURITY] cannot be empty | F57: =IFERROR(_xll.BDP(B57,"DS021")/1000000, 0) -> 0 | G57: =IFERROR(_xll.BDP(B57,"DS218")/1000000, 0) -> 0 | H57: =IFERROR(IF(E57=Hub!$D$8,F57, F57*((_xll.BDP(E57 & Hub!$D$8 & " Curncy", "PR005")/_xll.BDP(E57 & Hub!$D$8 & " Curncy", "DS672")))),0) -> 0 | J57: =IFERROR(IF(C57=0,0,-PV(DCF!$D$12, C57-YEAR(DCF!$D$10), H57*D57, H57, 0)),"") -> 0
C58: =IFERROR(YEAR(_xll.BDP(B58,"DS035")), 0) -> 0 | D58: =IFERROR(_xll.BDP(B58,"DS033")/100, 0) -> 0 | E58: =IFERROR(_xll.BDP(B58,"DS004"), 0) -> #N/A Mandatory parameter [SECURITY] cannot be empty | F58: =IFERROR(_xll.BDP(B58,"DS021")/1000000, 0) -> 0 | G58: =IFERROR(_xll.BDP(B58,"DS218")/1000000, 0) -> 0 | H58: =IFERROR(IF(E58=Hub!$D$8,F58, F58*((_xll.BDP(E58 & Hub!$D$8 & " Curncy", "PR005")/_xll.BDP(E58 & Hub!$D$8 & " Curncy", "DS672")))),0) -> 0 | J58: =IFERROR(IF(C58=0,0,-PV(DCF!$D$12, C58-YEAR(DCF!$D$10), H58*D58, H58, 0)),"") -> 0
C59: =IFERROR(YEAR(_xll.BDP(B59,"DS035")), 0) -> 0 | D59: =IFERROR(_xll.BDP(B59,"DS033")/100, 0) -> 0 | E59: =IFERROR(_xll.BDP(B59,"DS004"), 0) -> #N/A Mandatory parameter [SECURITY] cannot be empty | F59: =IFERROR(_xll.BDP(B59,"DS021")/1000000, 0) -> 0 | G59: =IFERROR(_xll.BDP(B59,"DS218")/1000000, 0) -> 0 | H59: =IFERROR(IF(E59=Hub!$D$8,F59, F59*((_xll.BDP(E59 & Hub!$D$8 & " Curncy", "PR005")/_xll.BDP(E59 & Hub!$D$8 & " Curncy", "DS672")))),0) -> 0 | J59: =IFERROR(IF(C59=0,0,-PV(DCF!$D$12, C59-YEAR(DCF!$D$10), H59*D59, H59, 0)),"") -> 0
C60: =IFERROR(YEAR(_xll.BDP(B60,"DS035")), 0) -> 0 | D60: =IFERROR(_xll.BDP(B60,"DS033")/100, 0) -> 0 | E60: =IFERROR(_xll.BDP(B60,"DS004"), 0) -> #N/A Mandatory parameter [SECURITY] cannot be empty | F60: =IFERROR(_xll.BDP(B60,"DS021")/1000000, 0) -> 0 | G60: =IFERROR(_xll.BDP(B60,"DS218")/1000000, 0) -> 0 | H60: =IFERROR(IF(E60=Hub!$D$8,F60, F60*((_xll.BDP(E60 & Hub!$D$8 & " Curncy", "PR005")/_xll.BDP(E60 & Hub!$D$8 & " Curncy", "DS672")))),0) -> 0 | J60: =IFERROR(IF(C60=0,0,-PV(DCF!$D$12, C60-YEAR(DCF!$D$10), H60*D60, H60, 0)),"") -> 0
C61: =IFERROR(YEAR(_xll.BDP(B61,"DS035")), 0) -> 0 | D61: =IFERROR(_xll.BDP(B61,"DS033")/100, 0) -> 0 | E61: =IFERROR(_xll.BDP(B61,"DS004"), 0) -> #N/A Mandatory parameter [SECURITY] cannot be empty | F61: =IFERROR(_xll.BDP(B61,"DS021")/1000000, 0) -> 0 | G61: =IFERROR(_xll.BDP(B61,"DS218")/1000000, 0) -> 0 | H61: =IFERROR(IF(E61=Hub!$D$8,F61, F61*((_xll.BDP(E61 & Hub!$D$8 & " Curncy", "PR005")/_xll.BDP(E61 & Hub!$D$8 & " Curncy", "DS672")))),0) -> 0 | J61: =IFERROR(IF(C61=0,0,-PV(DCF!$D$12, C61-YEAR(DCF!$D$10), H61*D61, H61, 0)),"") -> 0
C62: =IFERROR(YEAR(_xll.BDP(B62,"DS035")), 0) -> 0 | D62: =IFERROR(_xll.BDP(B62,"DS033")/100, 0) -> 0 | E62: =IFERROR(_xll.BDP(B62,"DS004"), 0) -> #N/A Mandatory parameter [SECURITY] cannot be empty | F62: =IFERROR(_xll.BDP(B62,"DS021")/1000000, 0) -> 0 | G62: =IFERROR(_xll.BDP(B62,"DS218")/1000000, 0) -> 0 | H62: =IFERROR(IF(E62=Hub!$D$8,F62, F62*((_xll.BDP(E62 & Hub!$D$8 & " Curncy", "PR005")/_xll.BDP(E62 & Hub!$D$8 & " Curncy", "DS672")))),0) -> 0 | J62: =IFERROR(IF(C62=0,0,-PV(DCF!$D$12, C62-YEAR(DCF!$D$10), H62*D62, H62, 0)),"") -> 0
C63: =IFERROR(YEAR(_xll.BDP(B63,"DS035")), 0) -> 0 | D63: =IFERROR(_xll.BDP(B63,"DS033")/100, 0) -> 0 | E63: =IFERROR(_xll.BDP(B63,"DS004"), 0) -> #N/A Mandatory parameter [SECURITY] cannot be empty | F63: =IFERROR(_xll.BDP(B63,"DS021")/1000000, 0) -> 0 | G63: =IFERROR(_xll.BDP(B63,"DS218")/1000000, 0) -> 0 | H63: =IFERROR(IF(E63=Hub!$D$8,F63, F63*((_xll.BDP(E63 & Hub!$D$8 & " Curncy", "PR005")/_xll.BDP(E63 & Hub!$D$8 & " Curncy", "DS672")))),0) -> 0 | J63: =IFERROR(IF(C63=0,0,-PV(DCF!$D$12, C63-YEAR(DCF!$D$10), H63*D63, H63, 0)),"") -> 0
C64: =IFERROR(YEAR(_xll.BDP(B64,"DS035")), 0) -> 0 | D64: =IFERROR(_xll.BDP(B64,"DS033")/100, 0) -> 0 | E64: =IFERROR(_xll.BDP(B64,"DS004"), 0) -> #N/A Mandatory parameter [SECURITY] cannot be empty | F64: =IFERROR(_xll.BDP(B64,"DS021")/1000000, 0) -> 0 | G64: =IFERROR(_xll.BDP(B64,"DS218")/1000000, 0) -> 0 | H64: =IFERROR(IF(E64=Hub!$D$8,F64, F64*((_xll.BDP(E64 & Hub!$D$8 & " Curncy", "PR005")/_xll.BDP(E64 & Hub!$D$8 & " Curncy", "DS672")))),0) -> 0 | J64: =IFERROR(IF(C64=0,0,-PV(DCF!$D$12, C64-YEAR(DCF!$D$10), H64*D64, H64, 0)),"") -> 0
C65: =IFERROR(YEAR(_xll.BDP(B65,"DS035")), 0) -> 0 | D65: =IFERROR(_xll.BDP(B65,"DS033")/100, 0) -> 0 | E65: =IFERROR(_xll.BDP(B65,"DS004"), 0) -> #N/A Mandatory parameter [SECURITY] cannot be empty | F65: =IFERROR(_xll.BDP(B65,"DS021")/1000000, 0) -> 0 | G65: =IFERROR(_xll.BDP(B65,"DS218")/1000000, 0) -> 0 | H65: =IFERROR(IF(E65=Hub!$D$8,F65, F65*((_xll.BDP(E65 & Hub!$D$8 & " Curncy", "PR005")/_xll.BDP(E65 & Hub!$D$8 & " Curncy", "DS672")))),0) -> 0 | J65: =IFERROR(IF(C65=0,0,-PV(DCF!$D$12, C65-YEAR(DCF!$D$10), H65*D65, H65, 0)),"") -> 0
C66: =IFERROR(YEAR(_xll.BDP(B66,"DS035")), 0) -> 0 | D66: =IFERROR(_xll.BDP(B66,"DS033")/100, 0) -> 0 | E66: =IFERROR(_xll.BDP(B66,"DS004"), 0) -> #N/A Mandatory parameter [SECURITY] cannot be empty | F66: =IFERROR(_xll.BDP(B66,"DS021")/1000000, 0) -> 0 | G66: =IFERROR(_xll.BDP(B66,"DS218")/1000000, 0) -> 0 | H66: =IFERROR(IF(E66=Hub!$D$8,F66, F66*((_xll.BDP(E66 & Hub!$D$8 & " Curncy", "PR005")/_xll.BDP(E66 & Hub!$D$8 & " Curncy", "DS672")))),0) -> 0 | J66: =IFERROR(IF(C66=0,0,-PV(DCF!$D$12, C66-YEAR(DCF!$D$10), H66*D66, H66, 0)),"") -> 0
C67: =IFERROR(YEAR(_xll.BDP(B67,"DS035")), 0) -> 0 | D67: =IFERROR(_xll.BDP(B67,"DS033")/100, 0) -> 0 | E67: =IFERROR(_xll.BDP(B67,"DS004"), 0) -> #N/A Mandatory parameter [SECURITY] cannot be empty | F67: =IFERROR(_xll.BDP(B67,"DS021")/1000000, 0) -> 0 | G67: =IFERROR(_xll.BDP(B67,"DS218")/1000000, 0) -> 0 | H67: =IFERROR(IF(E67=Hub!$D$8,F67, F67*((_xll.BDP(E67 & Hub!$D$8 & " Curncy", "PR005")/_xll.BDP(E67 & Hub!$D$8 & " Curncy", "DS672")))),0) -> 0 | J67: =IFERROR(IF(C67=0,0,-PV(DCF!$D$12, C67-YEAR(DCF!$D$10), H67*D67, H67, 0)),"") -> 0
C68: =IFERROR(YEAR(_xll.BDP(B68,"DS035")), 0) -> 0 | D68: =IFERROR(_xll.BDP(B68,"DS033")/100, 0) -> 0 | E68: =IFERROR(_xll.BDP(B68,"DS004"), 0) -> #N/A Mandatory parameter [SECURITY] cannot be empty | F68: =IFERROR(_xll.BDP(B68,"DS021")/1000000, 0) -> 0 | G68: =IFERROR(_xll.BDP(B68,"DS218")/1000000, 0) -> 0 | H68: =IFERROR(IF(E68=Hub!$D$8,F68, F68*((_xll.BDP(E68 & Hub!$D$8 & " Curncy", "PR005")/_xll.BDP(E68 & Hub!$D$8 & " Curncy", "DS672")))),0) -> 0 | J68: =IFERROR(IF(C68=0,0,-PV(DCF!$D$12, C68-YEAR(DCF!$D$10), H68*D68, H68, 0)),"") -> 0
C69: =IFERROR(YEAR(_xll.BDP(B69,"DS035")), 0) -> 0 | D69: =IFERROR(_xll.BDP(B69,"DS033")/100, 0) -> 0 | E69: =IFERROR(_xll.BDP(B69,"DS004"), 0) -> #N/A Mandatory parameter [SECURITY] cannot be empty | F69: =IFERROR(_xll.BDP(B69,"DS021")/1000000, 0) -> 0 | G69: =IFERROR(_xll.BDP(B69,"DS218")/1000000, 0) -> 0 | H69: =IFERROR(IF(E69=Hub!$D$8,F69, F69*((_xll.BDP(E69 & Hub!$D$8 & " Curncy", "PR005")/_xll.BDP(E69 & Hub!$D$8 & " Curncy", "DS672")))),0) -> 0 | J69: =IFERROR(IF(C69=0,0,-PV(DCF!$D$12, C69-YEAR(DCF!$D$10), H69*D69, H69, 0)),"") -> 0
C70: =IFERROR(YEAR(_xll.BDP(B70,"DS035")), 0) -> 0 | D70: =IFERROR(_xll.BDP(B70,"DS033")/100, 0) -> 0 | E70: =IFERROR(_xll.BDP(B70,"DS004"), 0) -> #N/A Mandatory parameter [SECURITY] cannot be empty | F70: =IFERROR(_xll.BDP(B70,"DS021")/1000000, 0) -> 0 | G70: =IFERROR(_xll.BDP(B70,"DS218")/1000000, 0) -> 0 | H70: =IFERROR(IF(E70=Hub!$D$8,F70, F70*((_xll.BDP(E70 & Hub!$D$8 & " Curncy", "PR005")/_xll.BDP(E70 & Hub!$D$8 & " Curncy", "DS672")))),0) -> 0 | J70: =IFERROR(IF(C70=0,0,-PV(DCF!$D$12, C70-YEAR(DCF!$D$10), H70*D70, H70, 0)),"") -> 0
C71: =IFERROR(YEAR(_xll.BDP(B71,"DS035")), 0) -> 0 | D71: =IFERROR(_xll.BDP(B71,"DS033")/100, 0) -> 0 | E71: =IFERROR(_xll.BDP(B71,"DS004"), 0) -> #N/A Mandatory parameter [SECURITY] cannot be empty | F71: =IFERROR(_xll.BDP(B71,"DS021")/1000000, 0) -> 0 | G71: =IFERROR(_xll.BDP(B71,"DS218")/1000000, 0) -> 0 | H71: =IFERROR(IF(E71=Hub!$D$8,F71, F71*((_xll.BDP(E71 & Hub!$D$8 & " Curncy", "PR005")/_xll.BDP(E71 & Hub!$D$8 & " Curncy", "DS672")))),0) -> 0 | J71: =IFERROR(IF(C71=0,0,-PV(DCF!$D$12, C71-YEAR(DCF!$D$10), H71*D71, H71, 0)),"") -> 0
C72: =IFERROR(YEAR(_xll.BDP(B72,"DS035")), 0) -> 0 | D72: =IFERROR(_xll.BDP(B72,"DS033")/100, 0) -> 0 | E72: =IFERROR(_xll.BDP(B72,"DS004"), 0) -> #N/A Mandatory parameter [SECURITY] cannot be empty | F72: =IFERROR(_xll.BDP(B72,"DS021")/1000000, 0) -> 0 | G72: =IFERROR(_xll.BDP(B72,"DS218")/1000000, 0) -> 0 | H72: =IFERROR(IF(E72=Hub!$D$8,F72, F72*((_xll.BDP(E72 & Hub!$D$8 & " Curncy", "PR005")/_xll.BDP(E72 & Hub!$D$8 & " Curncy", "DS672")))),0) -> 0 | J72: =IFERROR(IF(C72=0,0,-PV(DCF!$D$12, C72-YEAR(DCF!$D$10), H72*D72, H72, 0)),"") -> 0
C73: =IFERROR(YEAR(_xll.BDP(B73,"DS035")), 0) -> 0 | D73: =IFERROR(_xll.BDP(B73,"DS033")/100, 0) -> 0 | E73: =IFERROR(_xll.BDP(B73,"DS004"), 0) -> #N/A Mandatory parameter [SECURITY] cannot be empty | F73: =IFERROR(_xll.BDP(B73,"DS021")/1000000, 0) -> 0 | G73: =IFERROR(_xll.BDP(B73,"DS218")/1000000, 0) -> 0 | H73: =IFERROR(IF(E73=Hub!$D$8,F73, F73*((_xll.BDP(E73 & Hub!$D$8 & " Curncy", "PR005")/_xll.BDP(E73 & Hub!$D$8 & " Curncy", "DS672")))),0) -> 0 | J73: =IFERROR(IF(C73=0,0,-PV(DCF!$D$12, C73-YEAR(DCF!$D$10), H73*D73, H73, 0)),"") -> 0
C74: =IFERROR(YEAR(_xll.BDP(B74,"DS035")), 0) -> 0 | D74: =IFERROR(_xll.BDP(B74,"DS033")/100, 0) -> 0 | E74: =IFERROR(_xll.BDP(B74,"DS004"), 0) -> #N/A Mandatory parameter [SECURITY] cannot be empty | F74: =IFERROR(_xll.BDP(B74,"DS021")/1000000, 0) -> 0 | G74: =IFERROR(_xll.BDP(B74,"DS218")/1000000, 0) -> 0 | H74: =IFERROR(IF(E74=Hub!$D$8,F74, F74*((_xll.BDP(E74 & Hub!$D$8 & " Curncy", "PR005")/_xll.BDP(E74 & Hub!$D$8 & " Curncy", "DS672")))),0) -> 0 | J74: =IFERROR(IF(C74=0,0,-PV(DCF!$D$12, C74-YEAR(DCF!$D$10), H74*D74, H74, 0)),"") -> 0
C75: =IFERROR(YEAR(_xll.BDP(B75,"DS035")), 0) -> 0 | D75: =IFERROR(_xll.BDP(B75,"DS033")/100, 0) -> 0 | E75: =IFERROR(_xll.BDP(B75,"DS004"), 0) -> #N/A Mandatory parameter [SECURITY] cannot be empty | F75: =IFERROR(_xll.BDP(B75,"DS021")/1000000, 0) -> 0 | G75: =IFERROR(_xll.BDP(B75,"DS218")/1000000, 0) -> 0 | H75: =IFERROR(IF(E75=Hub!$D$8,F75, F75*((_xll.BDP(E75 & Hub!$D$8 & " Curncy", "PR005")/_xll.BDP(E75 & Hub!$D$8 & " Curncy", "DS672")))),0) -> 0 | J75: =IFERROR(IF(C75=0,0,-PV(DCF!$D$12, C75-YEAR(DCF!$D$10), H75*D75, H75, 0)),"") -> 0
C76: =IFERROR(YEAR(_xll.BDP(B76,"DS035")), 0) -> 0 | D76: =IFERROR(_xll.BDP(B76,"DS033")/100, 0) -> 0 | E76: =IFERROR(_xll.BDP(B76,"DS004"), 0) -> #N/A Mandatory parameter [SECURITY] cannot be empty | F76: =IFERROR(_xll.BDP(B76,"DS021")/1000000, 0) -> 0 | G76: =IFERROR(_xll.BDP(B76,"DS218")/1000000, 0) -> 0 | H76: =IFERROR(IF(E76=Hub!$D$8,F76, F76*((_xll.BDP(E76 & Hub!$D$8 & " Curncy", "PR005")/_xll.BDP(E76 & Hub!$D$8 & " Curncy", "DS672")))),0) -> 0 | J76: =IFERROR(IF(C76=0,0,-PV(DCF!$D$12, C76-YEAR(DCF!$D$10), H76*D76, H76, 0)),"") -> 0
C77: =IFERROR(YEAR(_xll.BDP(B77,"DS035")), 0) -> 0 | D77: =IFERROR(_xll.BDP(B77,"DS033")/100, 0) -> 0 | E77: =IFERROR(_xll.BDP(B77,"DS004"), 0) -> #N/A Mandatory parameter [SECURITY] cannot be empty | F77: =IFERROR(_xll.BDP(B77,"DS021")/1000000, 0) -> 0 | G77: =IFERROR(_xll.BDP(B77,"DS218")/1000000, 0) -> 0 | H77: =IFERROR(IF(E77=Hub!$D$8,F77, F77*((_xll.BDP(E77 & Hub!$D$8 & " Curncy", "PR005")/_xll.BDP(E77 & Hub!$D$8 & " Curncy", "DS672")))),0) -> 0 | J77: =IFERROR(IF(C77=0,0,-PV(DCF!$D$12, C77-YEAR(DCF!$D$10), H77*D77, H77, 0)),"") -> 0
C78: =IFERROR(YEAR(_xll.BDP(B78,"DS035")), 0) -> 0 | D78: =IFERROR(_xll.BDP(B78,"DS033")/100, 0) -> 0 | E78: =IFERROR(_xll.BDP(B78,"DS004"), 0) -> #N/A Mandatory parameter [SECURITY] cannot be empty | F78: =IFERROR(_xll.BDP(B78,"DS021")/1000000, 0) -> 0 | G78: =IFERROR(_xll.BDP(B78,"DS218")/1000000, 0) -> 0 | H78: =IFERROR(IF(E78=Hub!$D$8,F78, F78*((_xll.BDP(E78 & Hub!$D$8 & " Curncy", "PR005")/_xll.BDP(E78 & Hub!$D$8 & " Curncy", "DS672")))),0) -> 0 | J78: =IFERROR(IF(C78=0,0,-PV(DCF!$D$12, C78-YEAR(DCF!$D$10), H78*D78, H78, 0)),"") -> 0
C79: =IFERROR(YEAR(_xll.BDP(B79,"DS035")), 0) -> 0 | D79: =IFERROR(_xll.BDP(B79,"DS033")/100, 0) -> 0 | E79: =IFERROR(_xll.BDP(B79,"DS004"), 0) -> #N/A Mandatory parameter [SECURITY] cannot be empty | F79: =IFERROR(_xll.BDP(B79,"DS021")/1000000, 0) -> 0 | G79: =IFERROR(_xll.BDP(B79,"DS218")/1000000, 0) -> 0 | H79: =IFERROR(IF(E79=Hub!$D$8,F79, F79*((_xll.BDP(E79 & Hub!$D$8 & " Curncy", "PR005")/_xll.BDP(E79 & Hub!$D$8 & " Curncy", "DS672")))),0) -> 0 | J79: =IFERROR(IF(C79=0,0,-PV(DCF!$D$12, C79-YEAR(DCF!$D$10), H79*D79, H79, 0)),"") -> 0
C80: =IFERROR(YEAR(_xll.BDP(B80,"DS035")), 0) -> 0 | D80: =IFERROR(_xll.BDP(B80,"DS033")/100, 0) -> 0 | E80: =IFERROR(_xll.BDP(B80,"DS004"), 0) -> #N/A Mandatory parameter [SECURITY] cannot be empty | F80: =IFERROR(_xll.BDP(B80,"DS021")/1000000, 0) -> 0 | G80: =IFERROR(_xll.BDP(B80,"DS218")/1000000, 0) -> 0 | H80: =IFERROR(IF(E80=Hub!$D$8,F80, F80*((_xll.BDP(E80 & Hub!$D$8 & " Curncy", "PR005")/_xll.BDP(E80 & Hub!$D$8 & " Curncy", "DS672")))),0) -> 0 | J80: =IFERROR(IF(C80=0,0,-PV(DCF!$D$12, C80-YEAR(DCF!$D$10), H80*D80, H80, 0)),"") -> 0
C81: =IFERROR(YEAR(_xll.BDP(B81,"DS035")), 0) -> 0 | D81: =IFERROR(_xll.BDP(B81,"DS033")/100, 0) -> 0 | E81: =IFERROR(_xll.BDP(B81,"DS004"), 0) -> #N/A Mandatory parameter [SECURITY] cannot be empty | F81: =IFERROR(_xll.BDP(B81,"DS021")/1000000, 0) -> 0 | G81: =IFERROR(_xll.BDP(B81,"DS218")/1000000, 0) -> 0 | H81: =IFERROR(IF(E81=Hub!$D$8,F81, F81*((_xll.BDP(E81 & Hub!$D$8 & " Curncy", "PR005")/_xll.BDP(E81 & Hub!$D$8 & " Curncy", "DS672")))),0) -> 0 | J81: =IFERROR(IF(C81=0,0,-PV(DCF!$D$12, C81-YEAR(DCF!$D$10), H81*D81, H81, 0)),"") -> 0
C82: =IFERROR(YEAR(_xll.BDP(B82,"DS035")), 0) -> 0 | D82: =IFERROR(_xll.BDP(B82,"DS033")/100, 0) -> 0 | E82: =IFERROR(_xll.BDP(B82,"DS004"), 0) -> #N/A Mandatory parameter [SECURITY] cannot be empty | F82: =IFERROR(_xll.BDP(B82,"DS021")/1000000, 0) -> 0 | G82: =IFERROR(_xll.BDP(B82,"DS218")/1000000, 0) -> 0 | H82: =IFERROR(IF(E82=Hub!$D$8,F82, F82*((_xll.BDP(E82 & Hub!$D$8 & " Curncy", "PR005")/_xll.BDP(E82 & Hub!$D$8 & " Curncy", "DS672")))),0) -> 0 | J82: =IFERROR(IF(C82=0,0,-PV(DCF!$D$12, C82-YEAR(DCF!$D$10), H82*D82, H82, 0)),"") -> 0
C83: =IFERROR(YEAR(_xll.BDP(B83,"DS035")), 0) -> 0 | D83: =IFERROR(_xll.BDP(B83,"DS033")/100, 0) -> 0 | E83: =IFERROR(_xll.BDP(B83,"DS004"), 0) -> #N/A Mandatory parameter [SECURITY] cannot be empty | F83: =IFERROR(_xll.BDP(B83,"DS021")/1000000, 0) -> 0 | G83: =IFERROR(_xll.BDP(B83,"DS218")/1000000, 0) -> 0 | H83: =IFERROR(IF(E83=Hub!$D$8,F83, F83*((_xll.BDP(E83 & Hub!$D$8 & " Curncy", "PR005")/_xll.BDP(E83 & Hub!$D$8 & " Curncy", "DS672")))),0) -> 0 | J83: =IFERROR(IF(C83=0,0,-PV(DCF!$D$12, C83-YEAR(DCF!$D$10), H83*D83, H83, 0)),"") -> 0
C84: =IFERROR(YEAR(_xll.BDP(B84,"DS035")), 0) -> 0 | D84: =IFERROR(_xll.BDP(B84,"DS033")/100, 0) -> 0 | E84: =IFERROR(_xll.BDP(B84,"DS004"), 0) -> #N/A Mandatory parameter [SECURITY] cannot be empty | F84: =IFERROR(_xll.BDP(B84,"DS021")/1000000, 0) -> 0 | G84: =IFERROR(_xll.BDP(B84,"DS218")/1000000, 0) -> 0 | H84: =IFERROR(IF(E84=Hub!$D$8,F84, F84*((_xll.BDP(E84 & Hub!$D$8 & " Curncy", "PR005")/_xll.BDP(E84 & Hub!$D$8 & " Curncy", "DS672")))),0) -> 0 | J84: =IFERROR(IF(C84=0,0,-PV(DCF!$D$12, C84-YEAR(DCF!$D$10), H84*D84, H84, 0)),"") -> 0
C85: =IFERROR(YEAR(_xll.BDP(B85,"DS035")), 0) -> 0 | D85: =IFERROR(_xll.BDP(B85,"DS033")/100, 0) -> 0 | E85: =IFERROR(_xll.BDP(B85,"DS004"), 0) -> #N/A Mandatory parameter [SECURITY] cannot be empty | F85: =IFERROR(_xll.BDP(B85,"DS021")/1000000, 0) -> 0 | G85: =IFERROR(_xll.BDP(B85,"DS218")/1000000, 0) -> 0 | H85: =IFERROR(IF(E85=Hub!$D$8,F85, F85*((_xll.BDP(E85 & Hub!$D$8 & " Curncy", "PR005")/_xll.BDP(E85 & Hub!$D$8 & " Curncy", "DS672")))),0) -> 0 | J85: =IFERROR(IF(C85=0,0,-PV(DCF!$D$12, C85-YEAR(DCF!$D$10), H85*D85, H85, 0)),"") -> 0
C86: =IFERROR(YEAR(_xll.BDP(B86,"DS035")), 0) -> 0 | D86: =IFERROR(_xll.BDP(B86,"DS033")/100, 0) -> 0 | E86: =IFERROR(_xll.BDP(B86,"DS004"), 0) -> #N/A Mandatory parameter [SECURITY] cannot be empty | F86: =IFERROR(_xll.BDP(B86,"DS021")/1000000, 0) -> 0 | G86: =IFERROR(_xll.BDP(B86,"DS218")/1000000, 0) -> 0 | H86: =IFERROR(IF(E86=Hub!$D$8,F86, F86*((_xll.BDP(E86 & Hub!$D$8 & " Curncy", "PR005")/_xll.BDP(E86 & Hub!$D$8 & " Curncy", "DS672")))),0) -> 0 | J86: =IFERROR(IF(C86=0,0,-PV(DCF!$D$12, C86-YEAR(DCF!$D$10), H86*D86, H86, 0)),"") -> 0
